Workbook

Sheet はじめに

Sheet 分析キット

Sheet 実証用オプション (hidden)
A1: オプション名 | B1: 値 | C1: 説明
A2: 他者比較しない | C2: 同じクラスの他者との比較を行わない場合には「1」を入力。通常通り他者と比較する際には何も入力しない。

Sheet よくある質問
B1: 質問 | C1: 回答 | D1: 参考リンク
A2: 1 | B2: 各データのダウンロード方法を知りたい | C2: 各データのダウンロード方法はこちらの記事をご覧ください。 | D2: 分析キットマニュアル
A3: 2 | B3: 実際の使い方を動画で確認したい | C3: 実際の使い方を説明した動画がありますので、参考リンクの動画をご覧ください（8分） | D3: 分析キット使い方解説動画
A4: 3 | B4: 試しにレポート出力機能を試してみたい | C4: すでに本分析キットにはサンプルデータがアップロードされているため、このまま「分析キット」シートの「分析処理＋レポート出力をまとめて実行」ボタンを押していただければ、レポートの出力を試すことができます。 また、分析キットをダウンロードできるページから、サンプルデータをダウンロードしていただければ、「Step1：データのアップロード」からお試しいただけます。 | D4: 分析キットマニュアル
A5: 4 | B5: 一度に分析できる生徒数は何名までですか？ | C5: 本分析キットでは、一度に分析できる生徒数は最大150名までです。ただし、生徒数や分析する学習履歴数が多くなると分析に多くの時間がかかるため、40名程度のクラスごとに分析することを推奨しています。
A6: 5 | B6: 搭載してほしい機能がある | C6: ご期待をいただきまして、ありがとうございます。今後の改善の参考にさせていただきますので、ぜひ参考リンクのアンケートフォームから要望をご記載ください。 | D6: アンケートフォーム
A7: 6 | B7: 学年全体に対して分析がしたい | C7: 学年で１つのクラスを作成してあれば分析は可能ですが、一度に分析できる生徒数を最大150名までとしています。なお、150名等にするとデータレポートの出力に、相当量の時間がかかることが想定されることをあらかじめご了承ください。需要の大きさの把握のためにも、ぜひアンケートフォームからご要望をお寄せください。 | D7: アンケートフォーム
A8: 7 | B8: 3カ月以上の期間で分析がしたい | C8: Excelで処理できるデータ量を考慮し、最新100日までの学習履歴データのみで分析ができるようにしております。
A9: 8 | B9: レポート出力機能がうまく動作しない | C9: 改めてマニュアル動画を読んでいただいたうえで、リブリーのサポートサイト（https://support.libry.jp/）から記事を探していただくか、お問い合わせください。 | D9: 分析キット使い方解説動画
A10: 9 | B10: 生徒レポートのPDFデータが生徒ごとに出力されるが、PDFを結合したものを出力してほしい。 | C10: 生徒レポートは生徒ごとにデータで配布しやすいように、生徒ごとのPDFデータとして出力しています。PDFの結合は現時点では対応しておりません。「PDF 結合」などと検索をいただくと、無料のサービスなどもありますので、御校のデータポリシー等に従ってご活用ください。
A11: 10
A12: 11
A13: 12
A14: 13
A15: 14

Sheet 事前準備＞

Sheet 生徒情報
A1: =_xlfn.UNIQUE(_xlfn._xlws.FILTER('インポートデータ(解答履歴)'!A:B, 'インポートデータ(解答履歴)'!A:A <> "" )) -> 出席番号 | B1: 生徒名 | C1: 手入力(自由記述)
A2: 8 | B2: 松岡 真澄 | C2: 未分類
A3: 10 | B3: 山口 和泉 | C3: 未分類
A4: 6 | B4: 川上 清美 | C4: 未分類
A5: 2 | B5: 佐々木 希望 | C5: 未分類
A6: 5 | B6: 泉 優 | C6: 未分類
A7: 3 | B7: 岡野 千尋 | C7: 未分類
A8: 11 | B8: 飯田 翼 | C8: 未分類
A9: 1 | B9: 石川 泉 | C9: 未分類
A10: 7 | B10: 清水 幸 | C10: 未分類
A11: 4 | B11: 田中 桂 | C11: 未分類
A12: 9 | B12: 武田 司 | C12: 未分類

Sheet list_group
A1: group_id | B1: 手入力(自由記述) | C1: 問題数
A2: 1 | B2: 単元１ | C2: =IF(B2="","", COUNTIF(list_question!I:I,B2)) -> 27
A3: 2 | B3: 単元２ | C3: =IF(B3="","", COUNTIF(list_question!I:I,B3)) -> 15
A4: 3 | C4: =IF(B4="","", COUNTIF(list_question!I:I,B4)) -> 
A5: 4 | C5: =IF(B5="","", COUNTIF(list_question!I:I,B5)) -> 
A6: 5 | C6: =IF(B6="","", COUNTIF(list_question!I:I,B6)) -> 
A7: 6 | C7: =IF(B7="","", COUNTIF(list_question!I:I,B7)) -> 

Sheet list_question
A1: book_id | B1: name | C1: question_id | D1: index_id | E1: name | F1: title | G1: Column7 | H1: 検索用 | I1: グループ（選択） | J1: 解答人数 | K1: 正答率 | L1: 本人解答回数(0または正誤)
A2: SAMPLE | B2: サンプル問題集 | C2: 1 | D2: 1 | E2: 単元１ | F2: 基本問題１ | G2: 0 | H2: =IF(A2="","",B2&C2) -> サンプル問題集1 | I2: 単元１ | J2: =IFERROR(ROWS(_xlfn.UNIQUE(_xlfn._xlws.FILTER('インポートデータ(解答履歴)'!$A:$A,('インポートデータ(解答履歴)'!$A:$A<>"")*('インポートデータ(解答履歴)'!W:W=H2)))),0) -> 9 | K2: =IFERROR(ROWS(_xlfn._xlws.FILTER('インポートデータ(解答履歴)'!$A:$A,('インポートデータ(解答履歴)'!$A:$A<>"")*('インポートデータ(解答履歴)'!$W:$W=H2)*('インポートデータ(解答履歴)'!$K:$K="◯")*('インポートデータ(解答履歴)'!$Y:$Y="最新")))/ROWS(_xlfn._xlws.FILTER('インポートデータ(解答履歴)'!$A:$A,('インポートデータ(解答履歴)'!$A:$A<>"")*('インポートデータ(解答履歴)'!$W:$W=H2)*('インポートデータ(解答履歴)'!$Y:$Y="最新"))),0) -> 0.4444444444 | L2: =IF(COUNTIFS('インポートデータ(解答履歴)'!W:W,H2,'インポートデータ(解答履歴)'!A:A,表!$C$3)=0, 0, INDEX('インポートデータ(解答履歴)'!K:K, MATCH(1, ('インポートデータ(解答履歴)'!A:A=表!$C$3) * ('インポートデータ(解答履歴)'!W:W=H2) * ('インポートデータ(解答履歴)'!Y:Y="最新"), 0))) -> 0
A3: SAMPLE | B3: サンプル問題集 | C3: 2 | D3: 1 | E3: 単元１ | F3: 基本問題２ | G3: 0 | H3: サンプル問題集2 | I3: 単元１ | J3: =IFERROR(ROWS(_xlfn.UNIQUE(_xlfn._xlws.FILTER('インポートデータ(解答履歴)'!$A:$A,('インポートデータ(解答履歴)'!$A:$A<>"")*('インポートデータ(解答履歴)'!W:W=H3)))),0) -> 9 | K3: =IFERROR(ROWS(_xlfn._xlws.FILTER('インポートデータ(解答履歴)'!$A:$A,('インポートデータ(解答履歴)'!$A:$A<>"")*('インポートデータ(解答履歴)'!$W:$W=H3)*('インポートデータ(解答履歴)'!$K:$K="◯")*('インポートデータ(解答履歴)'!$Y:$Y="最新")))/ROWS(_xlfn._xlws.FILTER('インポートデータ(解答履歴)'!$A:$A,('インポートデータ(解答履歴)'!$A:$A<>"")*('インポートデータ(解答履歴)'!$W:$W=H3)*('インポートデータ(解答履歴)'!$Y:$Y="最新"))),0) -> 0.5555555556 | L3: =IF(COUNTIFS('インポートデータ(解答履歴)'!W:W,H3,'インポートデータ(解答履歴)'!A:A,表!$C$3)=0, 0, INDEX('インポートデータ(解答履歴)'!K:K, MATCH(1, ('インポートデータ(解答履歴)'!A:A=表!$C$3) * ('インポートデータ(解答履歴)'!W:W=H3) * ('インポートデータ(解答履歴)'!Y:Y="最新"), 0))) -> 0
A4: SAMPLE | B4: サンプル問題集 | C4: 3 | D4: 1 | E4: 単元１ | F4: 基本問題３ | G4: 0 | H4: サンプル問題集3 | I4: 単元１ | J4: =IFERROR(ROWS(_xlfn.UNIQUE(_xlfn._xlws.FILTER('インポートデータ(解答履歴)'!$A:$A,('インポートデータ(解答履歴)'!$A:$A<>"")*('インポートデータ(解答履歴)'!W:W=H4)))),0) -> 8 | K4: =IFERROR(ROWS(_xlfn._xlws.FILTER('インポートデータ(解答履歴)'!$A:$A,('インポートデータ(解答履歴)'!$A:$A<>"")*('インポートデータ(解答履歴)'!$W:$W=H4)*('インポートデータ(解答履歴)'!$K:$K="◯")*('インポートデータ(解答履歴)'!$Y:$Y="最新")))/ROWS(_xlfn._xlws.FILTER('インポートデータ(解答履歴)'!$A:$A,('インポートデータ(解答履歴)'!$A:$A<>"")*('インポートデータ(解答履歴)'!$W:$W=H4)*('インポートデータ(解答履歴)'!$Y:$Y="最新"))),0) -> 0.625 | L4: =IF(COUNTIFS('インポートデータ(解答履歴)'!W:W,H4,'インポートデータ(解答履歴)'!A:A,表!$C$3)=0, 0, INDEX('インポートデータ(解答履歴)'!K:K, MATCH(1, ('インポートデータ(解答履歴)'!A:A=表!$C$3) * ('インポートデータ(解答履歴)'!W:W=H4) * ('インポートデータ(解答履歴)'!Y:Y="最新"), 0))) -> 0
A5: SAMPLE | B5: サンプル問題集 | C5: 4 | D5: 1 | E5: 単元１ | F5: 基本問題４ | G5: 0 | H5: サンプル問題集4 | I5: 単元１ | J5: =IFERROR(ROWS(_xlfn.UNIQUE(_xlfn._xlws.FILTER('インポートデータ(解答履歴)'!$A:$A,('インポートデータ(解答履歴)'!$A:$A<>"")*('インポートデータ(解答履歴)'!W:W=H5)))),0) -> 8 | K5: =IFERROR(ROWS(_xlfn._xlws.FILTER('インポートデータ(解答履歴)'!$A:$A,('インポートデータ(解答履歴)'!$A:$A<>"")*('インポートデータ(解答履歴)'!$W:$W=H5)*('インポートデータ(解答履歴)'!$K:$K="◯")*('インポートデータ(解答履歴)'!$Y:$Y="最新")))/ROWS(_xlfn._xlws.FILTER('インポートデータ(解答履歴)'!$A:$A,('インポートデータ(解答履歴)'!$A:$A<>"")*('インポートデータ(解答履歴)'!$W:$W=H5)*('インポートデータ(解答履歴)'!$Y:$Y="最新"))),0) -> 0.875 | L5: =IF(COUNTIFS('インポートデータ(解答履歴)'!W:W,H5,'インポートデータ(解答履歴)'!A:A,表!$C$3)=0, 0, INDEX('インポートデータ(解答履歴)'!K:K, MATCH(1, ('インポートデータ(解答履歴)'!A:A=表!$C$3) * ('インポートデータ(解答履歴)'!W:W=H5) * ('インポートデータ(解答履歴)'!Y:Y="最新"), 0))) -> 0
A6: SAMPLE | B6: サンプル問題集 | C6: 5 | D6: 1 | E6: 単元１ | F6: 基本問題５ | G6: 0 | H6: サンプル問題集5 | I6: 単元１ | J6: =IFERROR(ROWS(_xlfn.UNIQUE(_xlfn._xlws.FILTER('インポートデータ(解答履歴)'!$A:$A,('インポートデータ(解答履歴)'!$A:$A<>"")*('インポートデータ(解答履歴)'!W:W=H6)))),0) -> 8 | K6: =IFERROR(ROWS(_xlfn._xlws.FILTER('インポートデータ(解答履歴)'!$A:$A,('インポートデータ(解答履歴)'!$A:$A<>"")*('インポートデータ(解答履歴)'!$W:$W=H6)*('インポートデータ(解答履歴)'!$K:$K="◯")*('インポートデータ(解答履歴)'!$Y:$Y="最新")))/ROWS(_xlfn._xlws.FILTER('インポートデータ(解答履歴)'!$A:$A,('インポートデータ(解答履歴)'!$A:$A<>"")*('インポートデータ(解答履歴)'!$W:$W=H6)*('インポートデータ(解答履歴)'!$Y:$Y="最新"))),0) -> 0.875 | L6: =IF(COUNTIFS('インポートデータ(解答履歴)'!W:W,H6,'インポートデータ(解答履歴)'!A:A,表!$C$3)=0, 0, INDEX('インポートデータ(解答履歴)'!K:K, MATCH(1, ('インポートデータ(解答履歴)'!A:A=表!$C$3) * ('インポートデータ(解答履歴)'!W:W=H6) * ('インポートデータ(解答履歴)'!Y:Y="最新"), 0))) -> 0
A7: SAMPLE | B7: サンプル問題集 | C7: 6 | D7: 1 | E7: 単元１ | F7: 基本問題６ | G7: 0 | H7: サンプル問題集6 | I7: 単元１ | J7: =IFERROR(ROWS(_xlfn.UNIQUE(_xlfn._xlws.FILTER('インポートデータ(解答履歴)'!$A:$A,('インポートデータ(解答履歴)'!$A:$A<>"")*('インポートデータ(解答履歴)'!W:W=H7)))),0) -> 8 | K7: =IFERROR(ROWS(_xlfn._xlws.FILTER('インポートデータ(解答履歴)'!$A:$A,('インポートデータ(解答履歴)'!$A:$A<>"")*('インポートデータ(解答履歴)'!$W:$W=H7)*('インポートデータ(解答履歴)'!$K:$K="◯")*('インポートデータ(解答履歴)'!$Y:$Y="最新")))/ROWS(_xlfn._xlws.FILTER('インポートデータ(解答履歴)'!$A:$A,('インポートデータ(解答履歴)'!$A:$A<>"")*('インポートデータ(解答履歴)'!$W:$W=H7)*('インポートデータ(解答履歴)'!$Y:$Y="最新"))),0) -> 0.625 | L7: =IF(COUNTIFS('インポートデータ(解答履歴)'!W:W,H7,'インポートデータ(解答履歴)'!A:A,表!$C$3)=0, 0, INDEX('インポートデータ(解答履歴)'!K:K, MATCH(1, ('インポートデータ(解答履歴)'!A:A=表!$C$3) * ('インポートデータ(解答履歴)'!W:W=H7) * ('インポートデータ(解答履歴)'!Y:Y="最新"), 0))) -> 0
A8: SAMPLE | B8: サンプル問題集 | C8: 7 | D8: 1 | E8: 単元１ | F8: 基本問題７ | G8: 0 | H8: サンプル問題集7 | I8: 単元１ | J8: =IFERROR(ROWS(_xlfn.UNIQUE(_xlfn._xlws.FILTER('インポートデータ(解答履歴)'!$A:$A,('インポートデータ(解答履歴)'!$A:$A<>"")*('インポートデータ(解答履歴)'!W:W=H8)))),0) -> 8 | K8: =IFERROR(ROWS(_xlfn._xlws.FILTER('インポートデータ(解答履歴)'!$A:$A,('インポートデータ(解答履歴)'!$A:$A<>"")*('インポートデータ(解答履歴)'!$W:$W=H8)*('インポートデータ(解答履歴)'!$K:$K="◯")*('インポートデータ(解答履歴)'!$Y:$Y="最新")))/ROWS(_xlfn._xlws.FILTER('インポートデータ(解答履歴)'!$A:$A,('インポートデータ(解答履歴)'!$A:$A<>"")*('インポートデータ(解答履歴)'!$W:$W=H8)*('インポートデータ(解答履歴)'!$Y:$Y="最新"))),0) -> 1 | L8: =IF(COUNTIFS('インポートデータ(解答履歴)'!W:W,H8,'インポートデータ(解答履歴)'!A:A,表!$C$3)=0, 0, INDEX('インポートデータ(解答履歴)'!K:K, MATCH(1, ('インポートデータ(解答履歴)'!A:A=表!$C$3) * ('インポートデータ(解答履歴)'!W:W=H8) * ('インポートデータ(解答履歴)'!Y:Y="最新"), 0))) -> 0
A9: SAMPLE | B9: サンプル問題集 | C9: 8 | D9: 1 | E9: 単元１ | F9: 基本問題８ | G9: 0 | H9: サンプル問題集8 | I9: 単元１ | J9: =IFERROR(ROWS(_xlfn.UNIQUE(_xlfn._xlws.FILTER('インポートデータ(解答履歴)'!$A:$A,('インポートデータ(解答履歴)'!$A:$A<>"")*('インポートデータ(解答履歴)'!W:W=H9)))),0) -> 7 | K9: =IFERROR(ROWS(_xlfn._xlws.FILTER('インポートデータ(解答履歴)'!$A:$A,('インポートデータ(解答履歴)'!$A:$A<>"")*('インポートデータ(解答履歴)'!$W:$W=H9)*('インポートデータ(解答履歴)'!$K:$K="◯")*('インポートデータ(解答履歴)'!$Y:$Y="最新")))/ROWS(_xlfn._xlws.FILTER('インポートデータ(解答履歴)'!$A:$A,('インポートデータ(解答履歴)'!$A:$A<>"")*('インポートデータ(解答履歴)'!$W:$W=H9)*('インポートデータ(解答履歴)'!$Y:$Y="最新"))),0) -> 0.5714285714 | L9: =IF(COUNTIFS('インポートデータ(解答履歴)'!W:W,H9,'インポートデータ(解答履歴)'!A:A,表!$C$3)=0, 0, INDEX('インポートデータ(解答履歴)'!K:K, MATCH(1, ('インポートデータ(解答履歴)'!A:A=表!$C$3) * ('インポートデータ(解答履歴)'!W:W=H9) * ('インポートデータ(解答履歴)'!Y:Y="最新"), 0))) -> 0
A10: SAMPLE | B10: サンプル問題集 | C10: 9 | D10: 1 | E10: 単元１ | F10: 基本問題９ | G10: 0 | H10: サンプル問題集9 | I10: 単元１ | J10: =IFERROR(ROWS(_xlfn.UNIQUE(_xlfn._xlws.FILTER('インポートデータ(解答履歴)'!$A:$A,('インポートデータ(解答履歴)'!$A:$A<>"")*('インポートデータ(解答履歴)'!W:W=H10)))),0) -> 7 | K10: =IFERROR(ROWS(_xlfn._xlws.FILTER('インポートデータ(解答履歴)'!$A:$A,('インポートデータ(解答履歴)'!$A:$A<>"")*('インポートデータ(解答履歴)'!$W:$W=H10)*('インポートデータ(解答履歴)'!$K:$K="◯")*('インポートデータ(解答履歴)'!$Y:$Y="最新")))/ROWS(_xlfn._xlws.FILTER('インポートデータ(解答履歴)'!$A:$A,('インポートデータ(解答履歴)'!$A:$A<>"")*('インポートデータ(解答履歴)'!$W:$W=H10)*('インポートデータ(解答履歴)'!$Y:$Y="最新"))),0) -> 0.8571428571 | L10: =IF(COUNTIFS('インポートデータ(解答履歴)'!W:W,H10,'インポートデータ(解答履歴)'!A:A,表!$C$3)=0, 0, INDEX('インポートデータ(解答履歴)'!K:K, MATCH(1, ('インポートデータ(解答履歴)'!A:A=表!$C$3) * ('インポートデータ(解答履歴)'!W:W=H10) * ('インポートデータ(解答履歴)'!Y:Y="最新"), 0))) -> 0
A11: SAMPLE | B11: サンプル問題集 | C11: 10 | D11: 1 | E11: 単元１ | F11: 基本問題１０ | G11: 0 | H11: サンプル問題集10 | I11: 単元１ | J11: =IFERROR(ROWS(_xlfn.UNIQUE(_xlfn._xlws.FILTER('インポートデータ(解答履歴)'!$A:$A,('インポートデータ(解答履歴)'!$A:$A<>"")*('インポートデータ(解答履歴)'!W:W=H11)))),0) -> 10 | K11: =IFERROR(ROWS(_xlfn._xlws.FILTER('インポートデータ(解答履歴)'!$A:$A,('インポートデータ(解答履歴)'!$A:$A<>"")*('インポートデータ(解答履歴)'!$W:$W=H11)*('インポートデータ(解答履歴)'!$K:$K="◯")*('インポートデータ(解答履歴)'!$Y:$Y="最新")))/ROWS(_xlfn._xlws.FILTER('インポートデータ(解答履歴)'!$A:$A,('インポートデータ(解答履歴)'!$A:$A<>"")*('インポートデータ(解答履歴)'!$W:$W=H11)*('インポートデータ(解答履歴)'!$Y:$Y="最新"))),0) -> 0.9 | L11: =IF(COUNTIFS('インポートデータ(解答履歴)'!W:W,H11,'インポートデータ(解答履歴)'!A:A,表!$C$3)=0, 0, INDEX('インポートデータ(解答履歴)'!K:K, MATCH(1, ('インポートデータ(解答履歴)'!A:A=表!$C$3) * ('インポートデータ(解答履歴)'!W:W=H11) * ('インポートデータ(解答履歴)'!Y:Y="最新"), 0))) -> 0
A12: SAMPLE | B12: サンプル問題集 | C12: 11 | D12: 1 | E12: 単元１ | F12: 基本問題１１ | G12: 0 | H12: サンプル問題集11 | I12: 単元１ | J12: =IFERROR(ROWS(_xlfn.UNIQUE(_xlfn._xlws.FILTER('インポートデータ(解答履歴)'!$A:$A,('インポートデータ(解答履歴)'!$A:$A<>"")*('インポートデータ(解答履歴)'!W:W=H12)))),0) -> 10 | K12: =IFERROR(ROWS(_xlfn._xlws.FILTER('インポートデータ(解答履歴)'!$A:$A,('インポートデータ(解答履歴)'!$A:$A<>"")*('インポートデータ(解答履歴)'!$W:$W=H12)*('インポートデータ(解答履歴)'!$K:$K="◯")*('インポートデータ(解答履歴)'!$Y:$Y="最新")))/ROWS(_xlfn._xlws.FILTER('インポートデータ(解答履歴)'!$A:$A,('インポートデータ(解答履歴)'!$A:$A<>"")*('インポートデータ(解答履歴)'!$W:$W=H12)*('インポートデータ(解答履歴)'!$Y:$Y="最新"))),0) -> 0.8 | L12: =IF(COUNTIFS('インポートデータ(解答履歴)'!W:W,H12,'インポートデータ(解答履歴)'!A:A,表!$C$3)=0, 0, INDEX('インポートデータ(解答履歴)'!K:K, MATCH(1, ('インポートデータ(解答履歴)'!A:A=表!$C$3) * ('インポートデータ(解答履歴)'!W:W=H12) * ('インポートデータ(解答履歴)'!Y:Y="最新"), 0))) -> 0
A13: SAMPLE | B13: サンプル問題集 | C13: 12 | D13: 1 | E13: 単元１ | F13: 基本問題１２ | G13: 0 | H13: サンプル問題集12 | I13: 単元１ | J13: =IFERROR(ROWS(_xlfn.UNIQUE(_xlfn._xlws.FILTER('インポートデータ(解答履歴)'!$A:$A,('インポートデータ(解答履歴)'!$A:$A<>"")*('インポートデータ(解答履歴)'!W:W=H13)))),0) -> 10 | K13: =IFERROR(ROWS(_xlfn._xlws.FILTER('インポートデータ(解答履歴)'!$A:$A,('インポートデータ(解答履歴)'!$A:$A<>"")*('インポートデータ(解答履歴)'!$W:$W=H13)*('インポートデータ(解答履歴)'!$K:$K="◯")*('インポートデータ(解答履歴)'!$Y:$Y="最新")))/ROWS(_xlfn._xlws.FILTER('インポートデータ(解答履歴)'!$A:$A,('インポートデータ(解答履歴)'!$A:$A<>"")*('インポートデータ(解答履歴)'!$W:$W=H13)*('インポートデータ(解答履歴)'!$Y:$Y="最新"))),0) -> 1 | L13: =IF(COUNTIFS('インポートデータ(解答履歴)'!W:W,H13,'インポートデータ(解答履歴)'!A:A,表!$C$3)=0, 0, INDEX('インポートデータ(解答履歴)'!K:K, MATCH(1, ('インポートデータ(解答履歴)'!A:A=表!$C$3) * ('インポートデータ(解答履歴)'!W:W=H13) * ('インポートデータ(解答履歴)'!Y:Y="最新"), 0))) -> 0
A14: SAMPLE | B14: サンプル問題集 | C14: 13 | D14: 1 | E14: 単元１ | F14: 基本問題１３ | G14: 0 | H14: サンプル問題集13 | I14: 単元１ | J14: =IFERROR(ROWS(_xlfn.UNIQUE(_xlfn._xlws.FILTER('インポートデータ(解答履歴)'!$A:$A,('インポートデータ(解答履歴)'!$A:$A<>"")*('インポートデータ(解答履歴)'!W:W=H14)))),0) -> 10 | K14: =IFERROR(ROWS(_xlfn._xlws.FILTER('インポートデータ(解答履歴)'!$A:$A,('インポートデータ(解答履歴)'!$A:$A<>"")*('インポートデータ(解答履歴)'!$W:$W=H14)*('インポートデータ(解答履歴)'!$K:$K="◯")*('インポートデータ(解答履歴)'!$Y:$Y="最新")))/ROWS(_xlfn._xlws.FILTER('インポートデータ(解答履歴)'!$A:$A,('インポートデータ(解答履歴)'!$A:$A<>"")*('インポートデータ(解答履歴)'!$W:$W=H14)*('インポートデータ(解答履歴)'!$Y:$Y="最新"))),0) -> 0.9 | L14: =IF(COUNTIFS('インポートデータ(解答履歴)'!W:W,H14,'インポートデータ(解答履歴)'!A:A,表!$C$3)=0, 0, INDEX('インポートデータ(解答履歴)'!K:K, MATCH(1, ('インポートデータ(解答履歴)'!A:A=表!$C$3) * ('インポートデータ(解答履歴)'!W:W=H14) * ('インポートデータ(解答履歴)'!Y:Y="最新"), 0))) -> 0
A15: SAMPLE | B15: サンプル問題集 | C15: 14 | D15: 1 | E15: 単元１ | F15: 基本問題１４ | G15: 0 | H15: サンプル問題集14 | I15: 単元１ | J15: =IFERROR(ROWS(_xlfn.UNIQUE(_xlfn._xlws.FILTER('インポートデータ(解答履歴)'!$A:$A,('インポートデータ(解答履歴)'!$A:$A<>"")*('インポートデータ(解答履歴)'!W:W=H15)))),0) -> 8 | K15: =IFERROR(ROWS(_xlfn._xlws.FILTER('インポートデータ(解答履歴)'!$A:$A,('インポートデータ(解答履歴)'!$A:$A<>"")*('インポートデータ(解答履歴)'!$W:$W=H15)*('インポートデータ(解答履歴)'!$K:$K="◯")*('インポートデータ(解答履歴)'!$Y:$Y="最新")))/ROWS(_xlfn._xlws.FILTER('インポートデータ(解答履歴)'!$A:$A,('インポートデータ(解答履歴)'!$A:$A<>"")*('インポートデータ(解答履歴)'!$W:$W=H15)*('インポートデータ(解答履歴)'!$Y:$Y="最新"))),0) -> 0.75 | L15: =IF(COUNTIFS('インポートデータ(解答履歴)'!W:W,H15,'インポートデータ(解答履歴)'!A:A,表!$C$3)=0, 0, INDEX('インポートデータ(解答履歴)'!K:K, MATCH(1, ('インポートデータ(解答履歴)'!A:A=表!$C$3) * ('インポートデータ(解答履歴)'!W:W=H15) * ('インポートデータ(解答履歴)'!Y:Y="最新"), 0))) -> 0
A16: SAMPLE | B16: サンプル問題集 | C16: 15 | D16: 1 | E16: 単元１ | F16: 基本問題１５ | G16: 0 | H16: サンプル問題集15 | I16: 単元１ | J16: =IFERROR(ROWS(_xlfn.UNIQUE(_xlfn._xlws.FILTER('インポートデータ(解答履歴)'!$A:$A,('インポートデータ(解答履歴)'!$A:$A<>"")*('インポートデータ(解答履歴)'!W:W=H16)))),0) -> 8 | K16: =IFERROR(ROWS(_xlfn._xlws.FILTER('インポートデータ(解答履歴)'!$A:$A,('インポートデータ(解答履歴)'!$A:$A<>"")*('インポートデータ(解答履歴)'!$W:$W=H16)*('インポートデータ(解答履歴)'!$K:$K="◯")*('インポートデータ(解答履歴)'!$Y:$Y="最新")))/ROWS(_xlfn._xlws.FILTER('インポートデータ(解答履歴)'!$A:$A,('インポートデータ(解答履歴)'!$A:$A<>"")*('インポートデータ(解答履歴)'!$W:$W=H16)*('インポートデータ(解答履歴)'!$Y:$Y="最新"))),0) -> 0.625 | L16: =IF(COUNTIFS('インポートデータ(解答履歴)'!W:W,H16,'インポートデータ(解答履歴)'!A:A,表!$C$3)=0, 0, INDEX('インポートデータ(解答履歴)'!K:K, MATCH(1, ('インポートデータ(解答履歴)'!A:A=表!$C$3) * ('インポートデータ(解答履歴)'!W:W=H16) * ('インポートデータ(解答履歴)'!Y:Y="最新"), 0))) -> 0
A17: SAMPLE | B17: サンプル問題集 | C17: 16 | D17: 1 | E17: 単元１ | F17: 基本問題１６ | G17: 0 | H17: サンプル問題集16 | I17: 単元１ | J17: =IFERROR(ROWS(_xlfn.UNIQUE(_xlfn._xlws.FILTER('インポートデータ(解答履歴)'!$A:$A,('インポートデータ(解答履歴)'!$A:$A<>"")*('インポートデータ(解答履歴)'!W:W=H17)))),0) -> 8 | K17: =IFERROR(ROWS(_xlfn._xlws.FILTER('インポートデータ(解答履歴)'!$A:$A,('インポートデータ(解答履歴)'!$A:$A<>"")*('インポートデータ(解答履歴)'!$W:$W=H17)*('インポートデータ(解答履歴)'!$K:$K="◯")*('インポートデータ(解答履歴)'!$Y:$Y="最新")))/ROWS(_xlfn._xlws.FILTER('インポートデータ(解答履歴)'!$A:$A,('インポートデータ(解答履歴)'!$A:$A<>"")*('インポートデータ(解答履歴)'!$W:$W=H17)*('インポートデータ(解答履歴)'!$Y:$Y="最新"))),0) -> 0.625 | L17: =IF(COUNTIFS('インポートデータ(解答履歴)'!W:W,H17,'インポートデータ(解答履歴)'!A:A,表!$C$3)=0, 0, INDEX('インポートデータ(解答履歴)'!K:K, MATCH(1, ('インポートデータ(解答履歴)'!A:A=表!$C$3) * ('インポートデータ(解答履歴)'!W:W=H17) * ('インポートデータ(解答履歴)'!Y:Y="最新"), 0))) -> 0
A18: SAMPLE | B18: サンプル問題集 | C18: 17 | D18: 1 | E18: 単元１ | F18: 基本問題１７ | G18: 0 | H18: サンプル問題集17 | I18: 単元１ | J18: =IFERROR(ROWS(_xlfn.UNIQUE(_xlfn._xlws.FILTER('インポートデータ(解答履歴)'!$A:$A,('インポートデータ(解答履歴)'!$A:$A<>"")*('インポートデータ(解答履歴)'!W:W=H18)))),0) -> 8 | K18: =IFERROR(ROWS(_xlfn._xlws.FILTER('インポートデータ(解答履歴)'!$A:$A,('インポートデータ(解答履歴)'!$A:$A<>"")*('インポートデータ(解答履歴)'!$W:$W=H18)*('インポートデータ(解答履歴)'!$K:$K="◯")*('インポートデータ(解答履歴)'!$Y:$Y="最新")))/ROWS(_xlfn._xlws.FILTER('インポートデータ(解答履歴)'!$A:$A,('インポートデータ(解答履歴)'!$A:$A<>"")*('インポートデータ(解答履歴)'!$W:$W=H18)*('インポートデータ(解答履歴)'!$Y:$Y="最新"))),0) -> 0.75 | L18: =IF(COUNTIFS('インポートデータ(解答履歴)'!W:W,H18,'インポートデータ(解答履歴)'!A:A,表!$C$3)=0, 0, INDEX('インポートデータ(解答履歴)'!K:K, MATCH(1, ('インポートデータ(解答履歴)'!A:A=表!$C$3) * ('インポートデータ(解答履歴)'!W:W=H18) * ('インポートデータ(解答履歴)'!Y:Y="最新"), 0))) -> 0
A19: SAMPLE | B19: サンプル問題集 | C19: 18 | D19: 1 | E19: 単元１ | F19: 基本問題１８ | G19: 0 | H19: サンプル問題集18 | I19: 単元１ | J19: =IFERROR(ROWS(_xlfn.UNIQUE(_xlfn._xlws.FILTER('インポートデータ(解答履歴)'!$A:$A,('インポートデータ(解答履歴)'!$A:$A<>"")*('インポートデータ(解答履歴)'!W:W=H19)))),0) -> 10 | K19: =IFERROR(ROWS(_xlfn._xlws.FILTER('インポートデータ(解答履歴)'!$A:$A,('インポートデータ(解答履歴)'!$A:$A<>"")*('インポートデータ(解答履歴)'!$W:$W=H19)*('インポートデータ(解答履歴)'!$K:$K="◯")*('インポートデータ(解答履歴)'!$Y:$Y="最新")))/ROWS(_xlfn._xlws.FILTER('インポートデータ(解答履歴)'!$A:$A,('インポートデータ(解答履歴)'!$A:$A<>"")*('インポートデータ(解答履歴)'!$W:$W=H19)*('インポートデータ(解答履歴)'!$Y:$Y="最新"))),0) -> 0.9 | L19: =IF(COUNTIFS('インポートデータ(解答履歴)'!W:W,H19,'インポートデータ(解答履歴)'!A:A,表!$C$3)=0, 0, INDEX('インポートデータ(解答履歴)'!K:K, MATCH(1, ('インポートデータ(解答履歴)'!A:A=表!$C$3) * ('インポートデータ(解答履歴)'!W:W=H19) * ('インポートデータ(解答履歴)'!Y:Y="最新"), 0))) -> ◯
A20: SAMPLE | B20: サンプル問題集 | C20: 19 | D20: 1 | E20: 単元１ | F20: 基本問題１９ | G20: 0 | H20: サンプル問題集19 | I20: 単元１ | J20: =IFERROR(ROWS(_xlfn.UNIQUE(_xlfn._xlws.FILTER('インポートデータ(解答履歴)'!$A:$A,('インポートデータ(解答履歴)'!$A:$A<>"")*('インポートデータ(解答履歴)'!W:W=H20)))),0) -> 10 | K20: =IFERROR(ROWS(_xlfn._xlws.FILTER('インポートデータ(解答履歴)'!$A:$A,('インポートデータ(解答履歴)'!$A:$A<>"")*('インポートデータ(解答履歴)'!$W:$W=H20)*('インポートデータ(解答履歴)'!$K:$K="◯")*('インポートデータ(解答履歴)'!$Y:$Y="最新")))/ROWS(_xlfn._xlws.FILTER('インポートデータ(解答履歴)'!$A:$A,('インポートデータ(解答履歴)'!$A:$A<>"")*('インポートデータ(解答履歴)'!$W:$W=H20)*('インポートデータ(解答履歴)'!$Y:$Y="最新"))),0) -> 0.9 | L20: =IF(COUNTIFS('インポートデータ(解答履歴)'!W:W,H20,'インポートデータ(解答履歴)'!A:A,表!$C$3)=0, 0, INDEX('インポートデータ(解答履歴)'!K:K, MATCH(1, ('インポートデータ(解答履歴)'!A:A=表!$C$3) * ('インポートデータ(解答履歴)'!W:W=H20) * ('インポートデータ(解答履歴)'!Y:Y="最新"), 0))) -> ◯
A21: SAMPLE | B21: サンプル問題集 | C21: 20 | D21: 1 | E21: 単元１ | F21: 基本問題２０ | G21: 0 | H21: サンプル問題集20 | I21: 単元１ | J21: =IFERROR(ROWS(_xlfn.UNIQUE(_xlfn._xlws.FILTER('インポートデータ(解答履歴)'!$A:$A,('インポートデータ(解答履歴)'!$A:$A<>"")*('インポートデータ(解答履歴)'!W:W=H21)))),0) -> 10 | K21: =IFERROR(ROWS(_xlfn._xlws.FILTER('インポートデータ(解答履歴)'!$A:$A,('インポートデータ(解答履歴)'!$A:$A<>"")*('インポートデータ(解答履歴)'!$W:$W=H21)*('インポートデータ(解答履歴)'!$K:$K="◯")*('インポートデータ(解答履歴)'!$Y:$Y="最新")))/ROWS(_xlfn._xlws.FILTER('インポートデータ(解答履歴)'!$A:$A,('インポートデータ(解答履歴)'!$A:$A<>"")*('インポートデータ(解答履歴)'!$W:$W=H21)*('インポートデータ(解答履歴)'!$Y:$Y="最新"))),0) -> 0.9 | L21: =IF(COUNTIFS('インポートデータ(解答履歴)'!W:W,H21,'インポートデータ(解答履歴)'!A:A,表!$C$3)=0, 0, INDEX('インポートデータ(解答履歴)'!K:K, MATCH(1, ('インポートデータ(解答履歴)'!A:A=表!$C$3) * ('インポートデータ(解答履歴)'!W:W=H21) * ('インポートデータ(解答履歴)'!Y:Y="最新"), 0))) -> ◯
A22: SAMPLE | B22: サンプル問題集 | C22: 21 | D22: 1 | E22: 単元１ | F22: 基本問題２１ | G22: 0 | H22: サンプル問題集21 | I22: 単元１ | J22: =IFERROR(ROWS(_xlfn.UNIQUE(_xlfn._xlws.FILTER('インポートデータ(解答履歴)'!$A:$A,('インポートデータ(解答履歴)'!$A:$A<>"")*('インポートデータ(解答履歴)'!W:W=H22)))),0) -> 10 | K22: =IFERROR(ROWS(_xlfn._xlws.FILTER('インポートデータ(解答履歴)'!$A:$A,('インポートデータ(解答履歴)'!$A:$A<>"")*('インポートデータ(解答履歴)'!$W:$W=H22)*('インポートデータ(解答履歴)'!$K:$K="◯")*('インポートデータ(解答履歴)'!$Y:$Y="最新")))/ROWS(_xlfn._xlws.FILTER('インポートデータ(解答履歴)'!$A:$A,('インポートデータ(解答履歴)'!$A:$A<>"")*('インポートデータ(解答履歴)'!$W:$W=H22)*('インポートデータ(解答履歴)'!$Y:$Y="最新"))),0) -> 0.9 | L22: =IF(COUNTIFS('インポートデータ(解答履歴)'!W:W,H22,'インポートデータ(解答履歴)'!A:A,表!$C$3)=0, 0, INDEX('インポートデータ(解答履歴)'!K:K, MATCH(1, ('インポートデータ(解答履歴)'!A:A=表!$C$3) * ('インポートデータ(解答履歴)'!W:W=H22) * ('インポートデータ(解答履歴)'!Y:Y="最新"), 0))) -> ◯
A23: SAMPLE | B23: サンプル問題集 | C23: 22 | D23: 1 | E23: 単元１ | F23: 基本問題２２ | G23: 0 | H23: サンプル問題集22 | I23: 単元１ | J23: =IFERROR(ROWS(_xlfn.UNIQUE(_xlfn._xlws.FILTER('インポートデータ(解答履歴)'!$A:$A,('インポートデータ(解答履歴)'!$A:$A<>"")*('インポートデータ(解答履歴)'!W:W=H23)))),0) -> 10 | K23: =IFERROR(ROWS(_xlfn._xlws.FILTER('インポートデータ(解答履歴)'!$A:$A,('インポートデータ(解答履歴)'!$A:$A<>"")*('インポートデータ(解答履歴)'!$W:$W=H23)*('インポートデータ(解答履歴)'!$K:$K="◯")*('インポートデータ(解答履歴)'!$Y:$Y="最新")))/ROWS(_xlfn._xlws.FILTER('インポートデータ(解答履歴)'!$A:$A,('インポートデータ(解答履歴)'!$A:$A<>"")*('インポートデータ(解答履歴)'!$W:$W=H23)*('インポートデータ(解答履歴)'!$Y:$Y="最新"))),0) -> 0.9 | L23: =IF(COUNTIFS('インポートデータ(解答履歴)'!W:W,H23,'インポートデータ(解答履歴)'!A:A,表!$C$3)=0, 0, INDEX('インポートデータ(解答履歴)'!K:K, MATCH(1, ('インポートデータ(解答履歴)'!A:A=表!$C$3) * ('インポートデータ(解答履歴)'!W:W=H23) * ('インポートデータ(解答履歴)'!Y:Y="最新"), 0))) -> ◯
A24: SAMPLE | B24: サンプル問題集 | C24: 23 | D24: 1 | E24: 単元１ | F24: 基本問題２３ | G24: 0 | H24: サンプル問題集23 | I24: 単元１ | J24: =IFERROR(ROWS(_xlfn.UNIQUE(_xlfn._xlws.FILTER('インポートデータ(解答履歴)'!$A:$A,('インポートデータ(解答履歴)'!$A:$A<>"")*('インポートデータ(解答履歴)'!W:W=H24)))),0) -> 10 | K24: =IFERROR(ROWS(_xlfn._xlws.FILTER('インポートデータ(解答履歴)'!$A:$A,('インポートデータ(解答履歴)'!$A:$A<>"")*('インポートデータ(解答履歴)'!$W:$W=H24)*('インポートデータ(解答履歴)'!$K:$K="◯")*('インポートデータ(解答履歴)'!$Y:$Y="最新")))/ROWS(_xlfn._xlws.FILTER('インポートデータ(解答履歴)'!$A:$A,('インポートデータ(解答履歴)'!$A:$A<>"")*('インポートデータ(解答履歴)'!$W:$W=H24)*('インポートデータ(解答履歴)'!$Y:$Y="最新"))),0) -> 0.9 | L24: =IF(COUNTIFS('インポートデータ(解答履歴)'!W:W,H24,'インポートデータ(解答履歴)'!A:A,表!$C$3)=0, 0, INDEX('インポートデータ(解答履歴)'!K:K, MATCH(1, ('インポートデータ(解答履歴)'!A:A=表!$C$3) * ('インポートデータ(解答履歴)'!W:W=H24) * ('インポートデータ(解答履歴)'!Y:Y="最新"), 0))) -> ◯
A25: SAMPLE | B25: サンプル問題集 | C25: 24 | D25: 2 | E25: 単元２ | F25: 基本問題２４ | G25: 0 | H25: サンプル問題集24 | I25: 単元１ | J25: =IFERROR(ROWS(_xlfn.UNIQUE(_xlfn._xlws.FILTER('インポートデータ(解答履歴)'!$A:$A,('インポートデータ(解答履歴)'!$A:$A<>"")*('インポートデータ(解答履歴)'!W:W=H25)))),0) -> 6 | K25: =IFERROR(ROWS(_xlfn._xlws.FILTER('インポートデータ(解答履歴)'!$A:$A,('インポートデータ(解答履歴)'!$A:$A<>"")*('インポートデータ(解答履歴)'!$W:$W=H25)*('インポートデータ(解答履歴)'!$K:$K="◯")*('インポートデータ(解答履歴)'!$Y:$Y="最新")))/ROWS(_xlfn._xlws.FILTER('インポートデータ(解答履歴)'!$A:$A,('インポートデータ(解答履歴)'!$A:$A<>"")*('インポートデータ(解答履歴)'!$W:$W=H25)*('インポートデータ(解答履歴)'!$Y:$Y="最新"))),0) -> 0.8333333333 | L25: =IF(COUNTIFS('インポートデータ(解答履歴)'!W:W,H25,'インポートデータ(解答履歴)'!A:A,表!$C$3)=0, 0, INDEX('インポートデータ(解答履歴)'!K:K, MATCH(1, ('インポートデータ(解答履歴)'!A:A=表!$C$3) * ('インポートデータ(解答履歴)'!W:W=H25) * ('インポートデータ(解答履歴)'!Y:Y="最新"), 0))) -> 0
A26: SAMPLE | B26: サンプル問題集 | C26: 25 | D26: 2 | E26: 単元２ | F26: 基本問題２５ | G26: 0 | H26: サンプル問題集25 | I26: 単元１ | J26: =IFERROR(ROWS(_xlfn.UNIQUE(_xlfn._xlws.FILTER('インポートデータ(解答履歴)'!$A:$A,('インポートデータ(解答履歴)'!$A:$A<>"")*('インポートデータ(解答履歴)'!W:W=H26)))),0) -> 6 | K26: =IFERROR(ROWS(_xlfn._xlws.FILTER('インポートデータ(解答履歴)'!$A:$A,('インポートデータ(解答履歴)'!$A:$A<>"")*('インポートデータ(解答履歴)'!$W:$W=H26)*('インポートデータ(解答履歴)'!$K:$K="◯")*('インポートデータ(解答履歴)'!$Y:$Y="最新")))/ROWS(_xlfn._xlws.FILTER('インポートデータ(解答履歴)'!$A:$A,('インポートデータ(解答履歴)'!$A:$A<>"")*('インポートデータ(解答履歴)'!$W:$W=H26)*('インポートデータ(解答履歴)'!$Y:$Y="最新"))),0) -> 1 | L26: =IF(COUNTIFS('インポートデータ(解答履歴)'!W:W,H26,'インポートデータ(解答履歴)'!A:A,表!$C$3)=0, 0, INDEX('インポートデータ(解答履歴)'!K:K, MATCH(1, ('インポートデータ(解答履歴)'!A:A=表!$C$3) * ('インポートデータ(解答履歴)'!W:W=H26) * ('インポートデータ(解答履歴)'!Y:Y="最新"), 0))) -> 0
A27: SAMPLE | B27: サンプル問題集 | C27: 26 | D27: 2 | E27: 単元２ | F27: 基本問題２６ | G27: 0 | H27: サンプル問題集26 | I27: 単元１ | J27: =IFERROR(ROWS(_xlfn.UNIQUE(_xlfn._xlws.FILTER('インポートデータ(解答履歴)'!$A:$A,('インポートデータ(解答履歴)'!$A:$A<>"")*('インポートデータ(解答履歴)'!W:W=H27)))),0) -> 6 | K27: =IFERROR(ROWS(_xlfn._xlws.FILTER('インポートデータ(解答履歴)'!$A:$A,('インポートデータ(解答履歴)'!$A:$A<>"")*('インポートデータ(解答履歴)'!$W:$W=H27)*('インポートデータ(解答履歴)'!$K:$K="◯")*('インポートデータ(解答履歴)'!$Y:$Y="最新")))/ROWS(_xlfn._xlws.FILTER('インポートデータ(解答履歴)'!$A:$A,('インポートデータ(解答履歴)'!$A:$A<>"")*('インポートデータ(解答履歴)'!$W:$W=H27)*('インポートデータ(解答履歴)'!$Y:$Y="最新"))),0) -> 0.3333333333 | L27: =IF(COUNTIFS('インポートデータ(解答履歴)'!W:W,H27,'インポートデータ(解答履歴)'!A:A,表!$C$3)=0, 0, INDEX('インポートデータ(解答履歴)'!K:K, MATCH(1, ('インポートデータ(解答履歴)'!A:A=表!$C$3) * ('インポートデータ(解答履歴)'!W:W=H27) * ('インポートデータ(解答履歴)'!Y:Y="最新"), 0))) -> 0
A28: SAMPLE | B28: サンプル問題集 | C28: 27 | D28: 2 | E28: 単元２ | F28: 基本問題２７ | G28: 0 | H28: サンプル問題集27 | I28: 単元１ | J28: =IFERROR(ROWS(_xlfn.UNIQUE(_xlfn._xlws.FILTER('インポートデータ(解答履歴)'!$A:$A,('インポートデータ(解答履歴)'!$A:$A<>"")*('インポートデータ(解答履歴)'!W:W=H28)))),0) -> 6 | K28: =IFERROR(ROWS(_xlfn._xlws.FILTER('インポートデータ(解答履歴)'!$A:$A,('インポートデータ(解答履歴)'!$A:$A<>"")*('インポートデータ(解答履歴)'!$W:$W=H28)*('インポートデータ(解答履歴)'!$K:$K="◯")*('インポートデータ(解答履歴)'!$Y:$Y="最新")))/ROWS(_xlfn._xlws.FILTER('インポートデータ(解答履歴)'!$A:$A,('インポートデータ(解答履歴)'!$A:$A<>"")*('インポートデータ(解答履歴)'!$W:$W=H28)*('インポートデータ(解答履歴)'!$Y:$Y="最新"))),0) -> 0.8333333333 | L28: =IF(COUNTIFS('インポートデータ(解答履歴)'!W:W,H28,'インポートデータ(解答履歴)'!A:A,表!$C$3)=0, 0, INDEX('インポートデータ(解答履歴)'!K:K, MATCH(1, ('インポートデータ(解答履歴)'!A:A=表!$C$3) * ('インポートデータ(解答履歴)'!W:W=H28) * ('インポートデータ(解答履歴)'!Y:Y="最新"), 0))) -> 0
A29: SAMPLE | B29: サンプル問題集 | C29: 28 | D29: 2 | E29: 単元２ | F29: 基本問題２８ | G29: 0 | H29: サンプル問題集28 | I29: 単元２ | J29: =IFERROR(ROWS(_xlfn.UNIQUE(_xlfn._xlws.FILTER('インポートデータ(解答履歴)'!$A:$A,('インポートデータ(解答履歴)'!$A:$A<>"")*('インポートデータ(解答履歴)'!W:W=H29)))),0) -> 6 | K29: =IFERROR(ROWS(_xlfn._xlws.FILTER('インポートデータ(解答履歴)'!$A:$A,('インポートデータ(解答履歴)'!$A:$A<>"")*('インポートデータ(解答履歴)'!$W:$W=H29)*('インポートデータ(解答履歴)'!$K:$K="◯")*('インポートデータ(解答履歴)'!$Y:$Y="最新")))/ROWS(_xlfn._xlws.FILTER('インポートデータ(解答履歴)'!$A:$A,('インポートデータ(解答履歴)'!$A:$A<>"")*('インポートデータ(解答履歴)'!$W:$W=H29)*('インポートデータ(解答履歴)'!$Y:$Y="最新"))),0) -> 0.6666666667 | L29: =IF(COUNTIFS('インポートデータ(解答履歴)'!W:W,H29,'インポートデータ(解答履歴)'!A:A,表!$C$3)=0, 0, INDEX('インポートデータ(解答履歴)'!K:K, MATCH(1, ('インポートデータ(解答履歴)'!A:A=表!$C$3) * ('インポートデータ(解答履歴)'!W:W=H29) * ('インポートデータ(解答履歴)'!Y:Y="最新"), 0))) -> 0
A30: SAMPLE | B30: サンプル問題集 | C30: 29 | D30: 2 | E30: 単元２ | F30: 基本問題２９ | G30: 0 | H30: サンプル問題集29 | I30: 単元２ | J30: =IFERROR(ROWS(_xlfn.UNIQUE(_xlfn._xlws.FILTER('インポートデータ(解答履歴)'!$A:$A,('インポートデータ(解答履歴)'!$A:$A<>"")*('インポートデータ(解答履歴)'!W:W=H30)))),0) -> 6 | K30: =IFERROR(ROWS(_xlfn._xlws.FILTER('インポートデータ(解答履歴)'!$A:$A,('インポートデータ(解答履歴)'!$A:$A<>"")*('インポートデータ(解答履歴)'!$W:$W=H30)*('インポートデータ(解答履歴)'!$K:$K="◯")*('インポートデータ(解答履歴)'!$Y:$Y="最新")))/ROWS(_xlfn._xlws.FILTER('インポートデータ(解答履歴)'!$A:$A,('インポートデータ(解答履歴)'!$A:$A<>"")*('インポートデータ(解答履歴)'!$W:$W=H30)*('インポートデータ(解答履歴)'!$Y:$Y="最新"))),0) -> 0.8333333333 | L30: =IF(COUNTIFS('インポートデータ(解答履歴)'!W:W,H30,'インポートデータ(解答履歴)'!A:A,表!$C$3)=0, 0, INDEX('インポートデータ(解答履歴)'!K:K, MATCH(1, ('インポートデータ(解答履歴)'!A:A=表!$C$3) * ('インポートデータ(解答履歴)'!W:W=H30) * ('インポートデータ(解答履歴)'!Y:Y="最新"), 0))) -> 0
A31: SAMPLE | B31: サンプル問題集 | C31: 30 | D31: 2 | E31: 単元２ | F31: 基本問題３０ | G31: 0 | H31: サンプル問題集30 | I31: 単元２ | J31: =IFERROR(ROWS(_xlfn.UNIQUE(_xlfn._xlws.FILTER('インポートデータ(解答履歴)'!$A:$A,('インポートデータ(解答履歴)'!$A:$A<>"")*('インポートデータ(解答履歴)'!W:W=H31)))),0) -> 6 | K31: =IFERROR(ROWS(_xlfn._xlws.FILTER('インポートデータ(解答履歴)'!$A:$A,('インポートデータ(解答履歴)'!$A:$A<>"")*('インポートデータ(解答履歴)'!$W:$W=H31)*('インポートデータ(解答履歴)'!$K:$K="◯")*('インポートデータ(解答履歴)'!$Y:$Y="最新")))/ROWS(_xlfn._xlws.FILTER('インポートデータ(解答履歴)'!$A:$A,('インポートデータ(解答履歴)'!$A:$A<>"")*('インポートデータ(解答履歴)'!$W:$W=H31)*('インポートデータ(解答履歴)'!$Y:$Y="最新"))),0) -> 0.8333333333 | L31: =IF(COUNTIFS('インポートデータ(解答履歴)'!W:W,H31,'インポートデータ(解答履歴)'!A:A,表!$C$3)=0, 0, INDEX('インポートデータ(解答履歴)'!K:K, MATCH(1, ('インポートデータ(解答履歴)'!A:A=表!$C$3) * ('インポートデータ(解答履歴)'!W:W=H31) * ('インポートデータ(解答履歴)'!Y:Y="最新"), 0))) -> 0
A32: SAMPLE | B32: サンプル問題集 | C32: 31 | D32: 2 | E32: 単元２ | F32: 基本問題３１ | G32: 0 | H32: サンプル問題集31 | I32: 単元２ | J32: =IFERROR(ROWS(_xlfn.UNIQUE(_xlfn._xlws.FILTER('インポートデータ(解答履歴)'!$A:$A,('インポートデータ(解答履歴)'!$A:$A<>"")*('インポートデータ(解答履歴)'!W:W=H32)))),0) -> 6 | K32: =IFERROR(ROWS(_xlfn._xlws.FILTER('インポートデータ(解答履歴)'!$A:$A,('インポートデータ(解答履歴)'!$A:$A<>"")*('インポートデータ(解答履歴)'!$W:$W=H32)*('インポートデータ(解答履歴)'!$K:$K="◯")*('インポートデータ(解答履歴)'!$Y:$Y="最新")))/ROWS(_xlfn._xlws.FILTER('インポートデータ(解答履歴)'!$A:$A,('インポートデータ(解答履歴)'!$A:$A<>"")*('インポートデータ(解答履歴)'!$W:$W=H32)*('インポートデータ(解答履歴)'!$Y:$Y="最新"))),0) -> 1 | L32: =IF(COUNTIFS('インポートデータ(解答履歴)'!W:W,H32,'インポートデータ(解答履歴)'!A:A,表!$C$3)=0, 0, INDEX('インポートデータ(解答履歴)'!K:K, MATCH(1, ('インポートデータ(解答履歴)'!A:A=表!$C$3) * ('インポートデータ(解答履歴)'!W:W=H32) * ('インポートデータ(解答履歴)'!Y:Y="最新"), 0))) -> 0
A33: SAMPLE | B33: サンプル問題集 | C33: 32 | D33: 2 | E33: 単元２ | F33: 基本問題３２ | G33: 0 | H33: サンプル問題集32 | I33: 単元２ | J33: =IFERROR(ROWS(_xlfn.UNIQUE(_xlfn._xlws.FILTER('インポートデータ(解答履歴)'!$A:$A,('インポートデータ(解答履歴)'!$A:$A<>"")*('インポートデータ(解答履歴)'!W:W=H33)))),0) -> 6 | K33: =IFERROR(ROWS(_xlfn._xlws.FILTER('インポートデータ(解答履歴)'!$A:$A,('インポートデータ(解答履歴)'!$A:$A<>"")*('インポートデータ(解答履歴)'!$W:$W=H33)*('インポートデータ(解答履歴)'!$K:$K="◯")*('インポートデータ(解答履歴)'!$Y:$Y="最新")))/ROWS(_xlfn._xlws.FILTER('インポートデータ(解答履歴)'!$A:$A,('インポートデータ(解答履歴)'!$A:$A<>"")*('インポートデータ(解答履歴)'!$W:$W=H33)*('インポートデータ(解答履歴)'!$Y:$Y="最新"))),0) -> 0.8333333333 | L33: =IF(COUNTIFS('インポートデータ(解答履歴)'!W:W,H33,'インポートデータ(解答履歴)'!A:A,表!$C$3)=0, 0, INDEX('インポートデータ(解答履歴)'!K:K, MATCH(1, ('インポートデータ(解答履歴)'!A:A=表!$C$3) * ('インポートデータ(解答履歴)'!W:W=H33) * ('インポートデータ(解答履歴)'!Y:Y="最新"), 0))) -> 0
A34: SAMPLE | B34: サンプル問題集 | C34: 33 | D34: 2 | E34: 単元２ | F34: 基本問題３３ | G34: 0 | H34: サンプル問題集33 | I34: 単元２ | J34: =IFERROR(ROWS(_xlfn.UNIQUE(_xlfn._xlws.FILTER('インポートデータ(解答履歴)'!$A:$A,('インポートデータ(解答履歴)'!$A:$A<>"")*('インポートデータ(解答履歴)'!W:W=H34)))),0) -> 6 | K34: =IFERROR(ROWS(_xlfn._xlws.FILTER('インポートデータ(解答履歴)'!$A:$A,('インポートデータ(解答履歴)'!$A:$A<>"")*('インポートデータ(解答履歴)'!$W:$W=H34)*('インポートデータ(解答履歴)'!$K:$K="◯")*('インポートデータ(解答履歴)'!$Y:$Y="最新")))/ROWS(_xlfn._xlws.FILTER('インポートデータ(解答履歴)'!$A:$A,('インポートデータ(解答履歴)'!$A:$A<>"")*('インポートデータ(解答履歴)'!$W:$W=H34)*('インポートデータ(解答履歴)'!$Y:$Y="最新"))),0) -> 0.6666666667 | L34: =IF(COUNTIFS('インポートデータ(解答履歴)'!W:W,H34,'インポートデータ(解答履歴)'!A:A,表!$C$3)=0, 0, INDEX('インポートデータ(解答履歴)'!K:K, MATCH(1, ('インポートデータ(解答履歴)'!A:A=表!$C$3) * ('インポートデータ(解答履歴)'!W:W=H34) * ('インポートデータ(解答履歴)'!Y:Y="最新"), 0))) -> 0
A35: SAMPLE | B35: サンプル問題集 | C35: 34 | D35: 2 | E35: 単元２ | F35: 基本問題３４ | G35: 0 | H35: サンプル問題集34 | I35: 単元２ | J35: =IFERROR(ROWS(_xlfn.UNIQUE(_xlfn._xlws.FILTER('インポートデータ(解答履歴)'!$A:$A,('インポートデータ(解答履歴)'!$A:$A<>"")*('インポートデータ(解答履歴)'!W:W=H35)))),0) -> 6 | K35: =IFERROR(ROWS(_xlfn._xlws.FILTER('インポートデータ(解答履歴)'!$A:$A,('インポートデータ(解答履歴)'!$A:$A<>"")*('インポートデータ(解答履歴)'!$W:$W=H35)*('インポートデータ(解答履歴)'!$K:$K="◯")*('インポートデータ(解答履歴)'!$Y:$Y="最新")))/ROWS(_xlfn._xlws.FILTER('インポートデータ(解答履歴)'!$A:$A,('インポートデータ(解答履歴)'!$A:$A<>"")*('インポートデータ(解答履歴)'!$W:$W=H35)*('インポートデータ(解答履歴)'!$Y:$Y="最新"))),0) -> 0.6666666667 | L35: =IF(COUNTIFS('インポートデータ(解答履歴)'!W:W,H35,'インポートデータ(解答履歴)'!A:A,表!$C$3)=0, 0, INDEX('インポートデータ(解答履歴)'!K:K, MATCH(1, ('インポートデータ(解答履歴)'!A:A=表!$C$3) * ('インポートデータ(解答履歴)'!W:W=H35) * ('インポートデータ(解答履歴)'!Y:Y="最新"), 0))) -> 0
A36: SAMPLE | B36: サンプル問題集 | C36: 35 | D36: 2 | E36: 単元２ | F36: 基本問題３５ | G36: 0 | H36: サンプル問題集35 | I36: 単元２ | J36: =IFERROR(ROWS(_xlfn.UNIQUE(_xlfn._xlws.FILTER('インポートデータ(解答履歴)'!$A:$A,('インポートデータ(解答履歴)'!$A:$A<>"")*('インポートデータ(解答履歴)'!W:W=H36)))),0) -> 6 | K36: =IFERROR(ROWS(_xlfn._xlws.FILTER('インポートデータ(解答履歴)'!$A:$A,('インポートデータ(解答履歴)'!$A:$A<>"")*('インポートデータ(解答履歴)'!$W:$W=H36)*('インポートデータ(解答履歴)'!$K:$K="◯")*('インポートデータ(解答履歴)'!$Y:$Y="最新")))/ROWS(_xlfn._xlws.FILTER('インポートデータ(解答履歴)'!$A:$A,('インポートデータ(解答履歴)'!$A:$A<>"")*('インポートデータ(解答履歴)'!$W:$W=H36)*('インポートデータ(解答履歴)'!$Y:$Y="最新"))),0) -> 1 | L36: =IF(COUNTIFS('インポートデータ(解答履歴)'!W:W,H36,'インポートデータ(解答履歴)'!A:A,表!$C$3)=0, 0, INDEX('インポートデータ(解答履歴)'!K:K, MATCH(1, ('インポートデータ(解答履歴)'!A:A=表!$C$3) * ('インポートデータ(解答履歴)'!W:W=H36) * ('インポートデータ(解答履歴)'!Y:Y="最新"), 0))) -> 0
A37: SAMPLE | B37: サンプル問題集 | C37: 36 | D37: 2 | E37: 単元２ | F37: 基本問題３６ | G37: 0 | H37: サンプル問題集36 | I37: 単元２ | J37: =IFERROR(ROWS(_xlfn.UNIQUE(_xlfn._xlws.FILTER('インポートデータ(解答履歴)'!$A:$A,('インポートデータ(解答履歴)'!$A:$A<>"")*('インポートデータ(解答履歴)'!W:W=H37)))),0) -> 6 | K37: =IFERROR(ROWS(_xlfn._xlws.FILTER('インポートデータ(解答履歴)'!$A:$A,('インポートデータ(解答履歴)'!$A:$A<>"")*('インポートデータ(解答履歴)'!$W:$W=H37)*('インポートデータ(解答履歴)'!$K:$K="◯")*('インポートデータ(解答履歴)'!$Y:$Y="最新")))/ROWS(_xlfn._xlws.FILTER('インポートデータ(解答履歴)'!$A:$A,('インポートデータ(解答履歴)'!$A:$A<>"")*('インポートデータ(解答履歴)'!$W:$W=H37)*('インポートデータ(解答履歴)'!$Y:$Y="最新"))),0) -> 0.8333333333 | L37: =IF(COUNTIFS('インポートデータ(解答履歴)'!W:W,H37,'インポートデータ(解答履歴)'!A:A,表!$C$3)=0, 0, INDEX('インポートデータ(解答履歴)'!K:K, MATCH(1, ('インポートデータ(解答履歴)'!A:A=表!$C$3) * ('インポートデータ(解答履歴)'!W:W=H37) * ('インポートデータ(解答履歴)'!Y:Y="最新"), 0))) -> 0
A38: SAMPLE | B38: サンプル問題集 | C38: 37 | D38: 2 | E38: 単元２ | F38: 基本問題３７ | G38: 0 | H38: サンプル問題集37 | I38: 単元２ | J38: =IFERROR(ROWS(_xlfn.UNIQUE(_xlfn._xlws.FILTER('インポートデータ(解答履歴)'!$A:$A,('インポートデータ(解答履歴)'!$A:$A<>"")*('インポートデータ(解答履歴)'!W:W=H38)))),0) -> 6 | K38: =IFERROR(ROWS(_xlfn._xlws.FILTER('インポートデータ(解答履歴)'!$A:$A,('インポートデータ(解答履歴)'!$A:$A<>"")*('インポートデータ(解答履歴)'!$W:$W=H38)*('インポートデータ(解答履歴)'!$K:$K="◯")*('インポートデータ(解答履歴)'!$Y:$Y="最新")))/ROWS(_xlfn._xlws.FILTER('インポートデータ(解答履歴)'!$A:$A,('インポートデータ(解答履歴)'!$A:$A<>"")*('インポートデータ(解答履歴)'!$W:$W=H38)*('インポートデータ(解答履歴)'!$Y:$Y="最新"))),0) -> 0.6666666667 | L38: =IF(COUNTIFS('インポートデータ(解答履歴)'!W:W,H38,'インポートデータ(解答履歴)'!A:A,表!$C$3)=0, 0, INDEX('インポートデータ(解答履歴)'!K:K, MATCH(1, ('インポートデータ(解答履歴)'!A:A=表!$C$3) * ('インポートデータ(解答履歴)'!W:W=H38) * ('インポートデータ(解答履歴)'!Y:Y="最新"), 0))) -> 0
A39: SAMPLE | B39: サンプル問題集 | C39: 38 | D39: 2 | E39: 単元２ | F39: 基本問題３８ | G39: 0 | H39: サンプル問題集38 | I39: 単元２ | J39: =IFERROR(ROWS(_xlfn.UNIQUE(_xlfn._xlws.FILTER('インポートデータ(解答履歴)'!$A:$A,('インポートデータ(解答履歴)'!$A:$A<>"")*('インポートデータ(解答履歴)'!W:W=H39)))),0) -> 6 | K39: =IFERROR(ROWS(_xlfn._xlws.FILTER('インポートデータ(解答履歴)'!$A:$A,('インポートデータ(解答履歴)'!$A:$A<>"")*('インポートデータ(解答履歴)'!$W:$W=H39)*('インポートデータ(解答履歴)'!$K:$K="◯")*('インポートデータ(解答履歴)'!$Y:$Y="最新")))/ROWS(_xlfn._xlws.FILTER('インポートデータ(解答履歴)'!$A:$A,('インポートデータ(解答履歴)'!$A:$A<>"")*('インポートデータ(解答履歴)'!$W:$W=H39)*('インポートデータ(解答履歴)'!$Y:$Y="最新"))),0) -> 0.6666666667 | L39: =IF(COUNTIFS('インポートデータ(解答履歴)'!W:W,H39,'インポートデータ(解答履歴)'!A:A,表!$C$3)=0, 0, INDEX('インポートデータ(解答履歴)'!K:K, MATCH(1, ('インポートデータ(解答履歴)'!A:A=表!$C$3) * ('インポートデータ(解答履歴)'!W:W=H39) * ('インポートデータ(解答履歴)'!Y:Y="最新"), 0))) -> 0
A40: SAMPLE | B40: サンプル問題集 | C40: 39 | D40: 2 | E40: 単元２ | F40: 基本問題３９ | G40: 0 | H40: サンプル問題集39 | I40: 単元２ | J40: =IFERROR(ROWS(_xlfn.UNIQUE(_xlfn._xlws.FILTER('インポートデータ(解答履歴)'!$A:$A,('インポートデータ(解答履歴)'!$A:$A<>"")*('インポートデータ(解答履歴)'!W:W=H40)))),0) -> 6 | K40: =IFERROR(ROWS(_xlfn._xlws.FILTER('インポートデータ(解答履歴)'!$A:$A,('インポートデータ(解答履歴)'!$A:$A<>"")*('インポートデータ(解答履歴)'!$W:$W=H40)*('インポートデータ(解答履歴)'!$K:$K="◯")*('インポートデータ(解答履歴)'!$Y:$Y="最新")))/ROWS(_xlfn._xlws.FILTER('インポートデータ(解答履歴)'!$A:$A,('インポートデータ(解答履歴)'!$A:$A<>"")*('インポートデータ(解答履歴)'!$W:$W=H40)*('インポートデータ(解答履歴)'!$Y:$Y="最新"))),0) -> 0.5 | L40: =IF(COUNTIFS('インポートデータ(解答履歴)'!W:W,H40,'インポートデータ(解答履歴)'!A:A,表!$C$3)=0, 0, INDEX('インポートデータ(解答履歴)'!K:K, MATCH(1, ('インポートデータ(解答履歴)'!A:A=表!$C$3) * ('インポートデータ(解答履歴)'!W:W=H40) * ('インポートデータ(解答履歴)'!Y:Y="最新"), 0))) -> 0
A41: SAMPLE | B41: サンプル問題集 | C41: 40 | D41: 2 | E41: 単元２ | F41: 基本問題４０ | G41: 0 | H41: サンプル問題集40 | I41: 単元２ | J41: =IFERROR(ROWS(_xlfn.UNIQUE(_xlfn._xlws.FILTER('インポートデータ(解答履歴)'!$A:$A,('インポートデータ(解答履歴)'!$A:$A<>"")*('インポートデータ(解答履歴)'!W:W=H41)))),0) -> 6 | K41: =IFERROR(ROWS(_xlfn._xlws.FILTER('インポートデータ(解答履歴)'!$A:$A,('インポートデータ(解答履歴)'!$A:$A<>"")*('インポートデータ(解答履歴)'!$W:$W=H41)*('インポートデータ(解答履歴)'!$K:$K="◯")*('インポートデータ(解答履歴)'!$Y:$Y="最新")))/ROWS(_xlfn._xlws.FILTER('インポートデータ(解答履歴)'!$A:$A,('インポートデータ(解答履歴)'!$A:$A<>"")*('インポートデータ(解答履歴)'!$W:$W=H41)*('インポートデータ(解答履歴)'!$Y:$Y="最新"))),0) -> 0.8333333333 | L41: =IF(COUNTIFS('インポートデータ(解答履歴)'!W:W,H41,'インポートデータ(解答履歴)'!A:A,表!$C$3)=0, 0, INDEX('インポートデータ(解答履歴)'!K:K, MATCH(1, ('インポートデータ(解答履歴)'!A:A=表!$C$3) * ('インポートデータ(解答履歴)'!W:W=H41) * ('インポートデータ(解答履歴)'!Y:Y="最新"), 0))) -> 0
A42: SAMPLE | B42: サンプル問題集 | C42: 41 | D42: 2 | E42: 単元２ | F42: 発展問題１ | G42: 0 | H42: サンプル問題集41 | I42: 単元２ | J42: =IFERROR(ROWS(_xlfn.UNIQUE(_xlfn._xlws.FILTER('インポートデータ(解答履歴)'!$A:$A,('インポートデータ(解答履歴)'!$A:$A<>"")*('インポートデータ(解答履歴)'!W:W=H42)))),0) -> 5 | K42: =IFERROR(ROWS(_xlfn._xlws.FILTER('インポートデータ(解答履歴)'!$A:$A,('インポートデータ(解答履歴)'!$A:$A<>"")*('インポートデータ(解答履歴)'!$W:$W=H42)*('インポートデータ(解答履歴)'!$K:$K="◯")*('インポートデータ(解答履歴)'!$Y:$Y="最新")))/ROWS(_xlfn._xlws.FILTER('インポートデータ(解答履歴)'!$A:$A,('インポートデータ(解答履歴)'!$A:$A<>"")*('インポートデータ(解答履歴)'!$W:$W=H42)*('インポートデータ(解答履歴)'!$Y:$Y="最新"))),0) -> 0.4 | L42: =IF(COUNTIFS('インポートデータ(解答履歴)'!W:W,H42,'インポートデータ(解答履歴)'!A:A,表!$C$3)=0, 0, INDEX('インポートデータ(解答履歴)'!K:K, MATCH(1, ('インポートデータ(解答履歴)'!A:A=表!$C$3) * ('インポートデータ(解答履歴)'!W:W=H42) * ('インポートデータ(解答履歴)'!Y:Y="最新"), 0))) -> 0
A43: SAMPLE | B43: サンプル問題集 | C43: 42 | D43: 2 | E43: 単元２ | F43: 発展問題２ | G43: 0 | H43: サンプル問題集42 | I43: 単元２ | J43: =IFERROR(ROWS(_xlfn.UNIQUE(_xlfn._xlws.FILTER('インポートデータ(解答履歴)'!$A:$A,('インポートデータ(解答履歴)'!$A:$A<>"")*('インポートデータ(解答履歴)'!W:W=H43)))),0) -> 5 | K43: =IFERROR(ROWS(_xlfn._xlws.FILTER('インポートデータ(解答履歴)'!$A:$A,('インポートデータ(解答履歴)'!$A:$A<>"")*('インポートデータ(解答履歴)'!$W:$W=H43)*('インポートデータ(解答履歴)'!$K:$K="◯")*('インポートデータ(解答履歴)'!$Y:$Y="最新")))/ROWS(_xlfn._xlws.FILTER('インポートデータ(解答履歴)'!$A:$A,('インポートデータ(解答履歴)'!$A:$A<>"")*('インポートデータ(解答履歴)'!$W:$W=H43)*('インポートデータ(解答履歴)'!$Y:$Y="最新"))),0) -> 0.8 | L43: =IF(COUNTIFS('インポートデータ(解答履歴)'!W:W,H43,'インポートデータ(解答履歴)'!A:A,表!$C$3)=0, 0, INDEX('インポートデータ(解答履歴)'!K:K, MATCH(1, ('インポートデータ(解答履歴)'!A:A=表!$C$3) * ('インポートデータ(解答履歴)'!W:W=H43) * ('インポートデータ(解答履歴)'!Y:Y="最新"), 0))) -> 0

Sheet list_question_origin
A1: book_id | B1: name | C1: question_id | D1: index_id | E1: name | F1: title | G1: Column7 | H1: 検索用 | I1: グループ（選択） | J1: 解答人数
A2: SAMPLE | B2: サンプル問題集 | C2: 1 | D2: 1 | E2: 単元１ | F2: 基本問題１ | G2: 0 | H2: =IF(A2="","",B2&C2) -> サンプル問題集1 | I2: 単元１ | J2: =IFERROR(ROWS(_xlfn.UNIQUE(_xlfn._xlws.FILTER('インポートデータ(解答履歴)'!$A:$A,('インポートデータ(解答履歴)'!$A:$A<>"")*('インポートデータ(解答履歴)'!W:W=H2)))),0) -> 9
A3: SAMPLE | B3: サンプル問題集 | C3: 2 | D3: 1 | E3: 単元１ | F3: 基本問題２ | G3: 0 | H3: サンプル問題集2 | I3: 単元１ | J3: =IFERROR(ROWS(_xlfn.UNIQUE(_xlfn._xlws.FILTER('インポートデータ(解答履歴)'!$A:$A,('インポートデータ(解答履歴)'!$A:$A<>"")*('インポートデータ(解答履歴)'!W:W=H3)))),0) -> 9
A4: SAMPLE | B4: サンプル問題集 | C4: 3 | D4: 1 | E4: 単元１ | F4: 基本問題３ | G4: 0 | H4: サンプル問題集3 | I4: 単元１ | J4: =IFERROR(ROWS(_xlfn.UNIQUE(_xlfn._xlws.FILTER('インポートデータ(解答履歴)'!$A:$A,('インポートデータ(解答履歴)'!$A:$A<>"")*('インポートデータ(解答履歴)'!W:W=H4)))),0) -> 8
A5: SAMPLE | B5: サンプル問題集 | C5: 4 | D5: 1 | E5: 単元１ | F5: 基本問題４ | G5: 0 | H5: サンプル問題集4 | I5: 単元１ | J5: =IFERROR(ROWS(_xlfn.UNIQUE(_xlfn._xlws.FILTER('インポートデータ(解答履歴)'!$A:$A,('インポートデータ(解答履歴)'!$A:$A<>"")*('インポートデータ(解答履歴)'!W:W=H5)))),0) -> 8
A6: SAMPLE | B6: サンプル問題集 | C6: 5 | D6: 1 | E6: 単元１ | F6: 基本問題５ | G6: 0 | H6: サンプル問題集5 | I6: 単元１ | J6: =IFERROR(ROWS(_xlfn.UNIQUE(_xlfn._xlws.FILTER('インポートデータ(解答履歴)'!$A:$A,('インポートデータ(解答履歴)'!$A:$A<>"")*('インポートデータ(解答履歴)'!W:W=H6)))),0) -> 8
A7: SAMPLE | B7: サンプル問題集 | C7: 6 | D7: 1 | E7: 単元１ | F7: 基本問題６ | G7: 0 | H7: サンプル問題集6 | I7: 単元１ | J7: =IFERROR(ROWS(_xlfn.UNIQUE(_xlfn._xlws.FILTER('インポートデータ(解答履歴)'!$A:$A,('インポートデータ(解答履歴)'!$A:$A<>"")*('インポートデータ(解答履歴)'!W:W=H7)))),0) -> 8
A8: SAMPLE | B8: サンプル問題集 | C8: 7 | D8: 1 | E8: 単元１ | F8: 基本問題７ | G8: 0 | H8: サンプル問題集7 | I8: 単元１ | J8: =IFERROR(ROWS(_xlfn.UNIQUE(_xlfn._xlws.FILTER('インポートデータ(解答履歴)'!$A:$A,('インポートデータ(解答履歴)'!$A:$A<>"")*('インポートデータ(解答履歴)'!W:W=H8)))),0) -> 8
A9: SAMPLE | B9: サンプル問題集 | C9: 8 | D9: 1 | E9: 単元１ | F9: 基本問題８ | G9: 0 | H9: サンプル問題集8 | I9: 単元１ | J9: =IFERROR(ROWS(_xlfn.UNIQUE(_xlfn._xlws.FILTER('インポートデータ(解答履歴)'!$A:$A,('インポートデータ(解答履歴)'!$A:$A<>"")*('インポートデータ(解答履歴)'!W:W=H9)))),0) -> 7
A10: SAMPLE | B10: サンプル問題集 | C10: 9 | D10: 1 | E10: 単元１ | F10: 基本問題９ | G10: 0 | H10: サンプル問題集9 | I10: 単元１ | J10: =IFERROR(ROWS(_xlfn.UNIQUE(_xlfn._xlws.FILTER('インポートデータ(解答履歴)'!$A:$A,('インポートデータ(解答履歴)'!$A:$A<>"")*('インポートデータ(解答履歴)'!W:W=H10)))),0) -> 7
A11: SAMPLE | B11: サンプル問題集 | C11: 10 | D11: 1 | E11: 単元１ | F11: 基本問題１０ | G11: 0 | H11: サンプル問題集10 | I11: 単元１ | J11: =IFERROR(ROWS(_xlfn.UNIQUE(_xlfn._xlws.FILTER('インポートデータ(解答履歴)'!$A:$A,('インポートデータ(解答履歴)'!$A:$A<>"")*('インポートデータ(解答履歴)'!W:W=H11)))),0) -> 10
A12: SAMPLE | B12: サンプル問題集 | C12: 11 | D12: 1 | E12: 単元１ | F12: 基本問題１１ | G12: 0 | H12: サンプル問題集11 | I12: 単元１ | J12: =IFERROR(ROWS(_xlfn.UNIQUE(_xlfn._xlws.FILTER('インポートデータ(解答履歴)'!$A:$A,('インポートデータ(解答履歴)'!$A:$A<>"")*('インポートデータ(解答履歴)'!W:W=H12)))),0) -> 10
A13: SAMPLE | B13: サンプル問題集 | C13: 12 | D13: 1 | E13: 単元１ | F13: 基本問題１２ | G13: 0 | H13: サンプル問題集12 | I13: 単元１ | J13: =IFERROR(ROWS(_xlfn.UNIQUE(_xlfn._xlws.FILTER('インポートデータ(解答履歴)'!$A:$A,('インポートデータ(解答履歴)'!$A:$A<>"")*('インポートデータ(解答履歴)'!W:W=H13)))),0) -> 10
A14: SAMPLE | B14: サンプル問題集 | C14: 13 | D14: 1 | E14: 単元１ | F14: 基本問題１３ | G14: 0 | H14: サンプル問題集13 | I14: 単元１ | J14: =IFERROR(ROWS(_xlfn.UNIQUE(_xlfn._xlws.FILTER('インポートデータ(解答履歴)'!$A:$A,('インポートデータ(解答履歴)'!$A:$A<>"")*('インポートデータ(解答履歴)'!W:W=H14)))),0) -> 10
A15: SAMPLE | B15: サンプル問題集 | C15: 14 | D15: 1 | E15: 単元１ | F15: 基本問題１４ | G15: 0 | H15: サンプル問題集14 | I15: 単元１ | J15: =IFERROR(ROWS(_xlfn.UNIQUE(_xlfn._xlws.FILTER('インポートデータ(解答履歴)'!$A:$A,('インポートデータ(解答履歴)'!$A:$A<>"")*('インポートデータ(解答履歴)'!W:W=H15)))),0) -> 8
A16: SAMPLE | B16: サンプル問題集 | C16: 15 | D16: 1 | E16: 単元１ | F16: 基本問題１５ | G16: 0 | H16: サンプル問題集15 | I16: 単元１ | J16: =IFERROR(ROWS(_xlfn.UNIQUE(_xlfn._xlws.FILTER('インポートデータ(解答履歴)'!$A:$A,('インポートデータ(解答履歴)'!$A:$A<>"")*('インポートデータ(解答履歴)'!W:W=H16)))),0) -> 8
A17: SAMPLE | B17: サンプル問題集 | C17: 16 | D17: 1 | E17: 単元１ | F17: 基本問題１６ | G17: 0 | H17: サンプル問題集16 | I17: 単元１ | J17: =IFERROR(ROWS(_xlfn.UNIQUE(_xlfn._xlws.FILTER('インポートデータ(解答履歴)'!$A:$A,('インポートデータ(解答履歴)'!$A:$A<>"")*('インポートデータ(解答履歴)'!W:W=H17)))),0) -> 8
A18: SAMPLE | B18: サンプル問題集 | C18: 17 | D18: 1 | E18: 単元１ | F18: 基本問題１７ | G18: 0 | H18: サンプル問題集17 | I18: 単元１ | J18: =IFERROR(ROWS(_xlfn.UNIQUE(_xlfn._xlws.FILTER('インポートデータ(解答履歴)'!$A:$A,('インポートデータ(解答履歴)'!$A:$A<>"")*('インポートデータ(解答履歴)'!W:W=H18)))),0) -> 8
A19: SAMPLE | B19: サンプル問題集 | C19: 18 | D19: 1 | E19: 単元１ | F19: 基本問題１８ | G19: 0 | H19: サンプル問題集18 | I19: 単元１ | J19: =IFERROR(ROWS(_xlfn.UNIQUE(_xlfn._xlws.FILTER('インポートデータ(解答履歴)'!$A:$A,('インポートデータ(解答履歴)'!$A:$A<>"")*('インポートデータ(解答履歴)'!W:W=H19)))),0) -> 10
A20: SAMPLE | B20: サンプル問題集 | C20: 19 | D20: 1 | E20: 単元１ | F20: 基本問題１９ | G20: 0 | H20: サンプル問題集19 | I20: 単元１ | J20: =IFERROR(ROWS(_xlfn.UNIQUE(_xlfn._xlws.FILTER('インポートデータ(解答履歴)'!$A:$A,('インポートデータ(解答履歴)'!$A:$A<>"")*('インポートデータ(解答履歴)'!W:W=H20)))),0) -> 10
A21: SAMPLE | B21: サンプル問題集 | C21: 20 | D21: 1 | E21: 単元１ | F21: 基本問題２０ | G21: 0 | H21: サンプル問題集20 | I21: 単元１ | J21: =IFERROR(ROWS(_xlfn.UNIQUE(_xlfn._xlws.FILTER('インポートデータ(解答履歴)'!$A:$A,('インポートデータ(解答履歴)'!$A:$A<>"")*('インポートデータ(解答履歴)'!W:W=H21)))),0) -> 10
A22: SAMPLE | B22: サンプル問題集 | C22: 21 | D22: 1 | E22: 単元１ | F22: 基本問題２１ | G22: 0 | H22: サンプル問題集21 | I22: 単元１ | J22: =IFERROR(ROWS(_xlfn.UNIQUE(_xlfn._xlws.FILTER('インポートデータ(解答履歴)'!$A:$A,('インポートデータ(解答履歴)'!$A:$A<>"")*('インポートデータ(解答履歴)'!W:W=H22)))),0) -> 10
A23: SAMPLE | B23: サンプル問題集 | C23: 22 | D23: 1 | E23: 単元１ | F23: 基本問題２２ | G23: 0 | H23: サンプル問題集22 | I23: 単元１ | J23: =IFERROR(ROWS(_xlfn.UNIQUE(_xlfn._xlws.FILTER('インポートデータ(解答履歴)'!$A:$A,('インポートデータ(解答履歴)'!$A:$A<>"")*('インポートデータ(解答履歴)'!W:W=H23)))),0) -> 10
A24: SAMPLE | B24: サンプル問題集 | C24: 23 | D24: 1 | E24: 単元１ | F24: 基本問題２３ | G24: 0 | H24: サンプル問題集23 | I24: 単元１ | J24: =IFERROR(ROWS(_xlfn.UNIQUE(_xlfn._xlws.FILTER('インポートデータ(解答履歴)'!$A:$A,('インポートデータ(解答履歴)'!$A:$A<>"")*('インポートデータ(解答履歴)'!W:W=H24)))),0) -> 10
A25: SAMPLE | B25: サンプル問題集 | C25: 24 | D25: 2 | E25: 単元２ | F25: 基本問題２４ | G25: 0 | H25: サンプル問題集24 | I25: 単元１ | J25: =IFERROR(ROWS(_xlfn.UNIQUE(_xlfn._xlws.FILTER('インポートデータ(解答履歴)'!$A:$A,('インポートデータ(解答履歴)'!$A:$A<>"")*('インポートデータ(解答履歴)'!W:W=H25)))),0) -> 6
A26: SAMPLE | B26: サンプル問題集 | C26: 25 | D26: 2 | E26: 単元２ | F26: 基本問題２５ | G26: 0 | H26: サンプル問題集25 | I26: 単元１ | J26: =IFERROR(ROWS(_xlfn.UNIQUE(_xlfn._xlws.FILTER('インポートデータ(解答履歴)'!$A:$A,('インポートデータ(解答履歴)'!$A:$A<>"")*('インポートデータ(解答履歴)'!W:W=H26)))),0) -> 6
A27: SAMPLE | B27: サンプル問題集 | C27: 26 | D27: 2 | E27: 単元２ | F27: 基本問題２６ | G27: 0 | H27: サンプル問題集26 | I27: 単元１ | J27: =IFERROR(ROWS(_xlfn.UNIQUE(_xlfn._xlws.FILTER('インポートデータ(解答履歴)'!$A:$A,('インポートデータ(解答履歴)'!$A:$A<>"")*('インポートデータ(解答履歴)'!W:W=H27)))),0) -> 6
A28: SAMPLE | B28: サンプル問題集 | C28: 27 | D28: 2 | E28: 単元２ | F28: 基本問題２７ | G28: 0 | H28: サンプル問題集27 | I28: 単元１ | J28: =IFERROR(ROWS(_xlfn.UNIQUE(_xlfn._xlws.FILTER('インポートデータ(解答履歴)'!$A:$A,('インポートデータ(解答履歴)'!$A:$A<>"")*('インポートデータ(解答履歴)'!W:W=H28)))),0) -> 6
A29: SAMPLE | B29: サンプル問題集 | C29: 28 | D29: 2 | E29: 単元２ | F29: 基本問題２８ | G29: 0 | H29: サンプル問題集28 | I29: 単元２ | J29: =IFERROR(ROWS(_xlfn.UNIQUE(_xlfn._xlws.FILTER('インポートデータ(解答履歴)'!$A:$A,('インポートデータ(解答履歴)'!$A:$A<>"")*('インポートデータ(解答履歴)'!W:W=H29)))),0) -> 6
A30: SAMPLE | B30: サンプル問題集 | C30: 29 | D30: 2 | E30: 単元２ | F30: 基本問題２９ | G30: 0 | H30: サンプル問題集29 | I30: 単元２ | J30: =IFERROR(ROWS(_xlfn.UNIQUE(_xlfn._xlws.FILTER('インポートデータ(解答履歴)'!$A:$A,('インポートデータ(解答履歴)'!$A:$A<>"")*('インポートデータ(解答履歴)'!W:W=H30)))),0) -> 6
A31: SAMPLE | B31: サンプル問題集 | C31: 30 | D31: 2 | E31: 単元２ | F31: 基本問題３０ | G31: 0 | H31: サンプル問題集30 | I31: 単元２ | J31: =IFERROR(ROWS(_xlfn.UNIQUE(_xlfn._xlws.FILTER('インポートデータ(解答履歴)'!$A:$A,('インポートデータ(解答履歴)'!$A:$A<>"")*('インポートデータ(解答履歴)'!W:W=H31)))),0) -> 6
A32: SAMPLE | B32: サンプル問題集 | C32: 31 | D32: 2 | E32: 単元２ | F32: 基本問題３１ | G32: 0 | H32: サンプル問題集31 | I32: 単元２ | J32: =IFERROR(ROWS(_xlfn.UNIQUE(_xlfn._xlws.FILTER('インポートデータ(解答履歴)'!$A:$A,('インポートデータ(解答履歴)'!$A:$A<>"")*('インポートデータ(解答履歴)'!W:W=H32)))),0) -> 6
A33: SAMPLE | B33: サンプル問題集 | C33: 32 | D33: 2 | E33: 単元２ | F33: 基本問題３２ | G33: 0 | H33: サンプル問題集32 | I33: 単元２ | J33: =IFERROR(ROWS(_xlfn.UNIQUE(_xlfn._xlws.FILTER('インポートデータ(解答履歴)'!$A:$A,('インポートデータ(解答履歴)'!$A:$A<>"")*('インポートデータ(解答履歴)'!W:W=H33)))),0) -> 6
A34: SAMPLE | B34: サンプル問題集 | C34: 33 | D34: 2 | E34: 単元２ | F34: 基本問題３３ | G34: 0 | H34: サンプル問題集33 | I34: 単元２ | J34: =IFERROR(ROWS(_xlfn.UNIQUE(_xlfn._xlws.FILTER('インポートデータ(解答履歴)'!$A:$A,('インポートデータ(解答履歴)'!$A:$A<>"")*('インポートデータ(解答履歴)'!W:W=H34)))),0) -> 6
A35: SAMPLE | B35: サンプル問題集 | C35: 34 | D35: 2 | E35: 単元２ | F35: 基本問題３４ | G35: 0 | H35: サンプル問題集34 | I35: 単元２ | J35: =IFERROR(ROWS(_xlfn.UNIQUE(_xlfn._xlws.FILTER('インポートデータ(解答履歴)'!$A:$A,('インポートデータ(解答履歴)'!$A:$A<>"")*('インポートデータ(解答履歴)'!W:W=H35)))),0) -> 6
A36: SAMPLE | B36: サンプル問題集 | C36: 35 | D36: 2 | E36: 単元２ | F36: 基本問題３５ | G36: 0 | H36: サンプル問題集35 | I36: 単元２ | J36: =IFERROR(ROWS(_xlfn.UNIQUE(_xlfn._xlws.FILTER('インポートデータ(解答履歴)'!$A:$A,('インポートデータ(解答履歴)'!$A:$A<>"")*('インポートデータ(解答履歴)'!W:W=H36)))),0) -> 6
A37: SAMPLE | B37: サンプル問題集 | C37: 36 | D37: 2 | E37: 単元２ | F37: 基本問題３６ | G37: 0 | H37: サンプル問題集36 | I37: 単元２ | J37: =IFERROR(ROWS(_xlfn.UNIQUE(_xlfn._xlws.FILTER('インポートデータ(解答履歴)'!$A:$A,('インポートデータ(解答履歴)'!$A:$A<>"")*('インポートデータ(解答履歴)'!W:W=H37)))),0) -> 6
A38: SAMPLE | B38: サンプル問題集 | C38: 37 | D38: 2 | E38: 単元２ | F38: 基本問題３７ | G38: 0 | H38: サンプル問題集37 | I38: 単元２ | J38: =IFERROR(ROWS(_xlfn.UNIQUE(_xlfn._xlws.FILTER('インポートデータ(解答履歴)'!$A:$A,('インポートデータ(解答履歴)'!$A:$A<>"")*('インポートデータ(解答履歴)'!W:W=H38)))),0) -> 6
A39: SAMPLE | B39: サンプル問題集 | C39: 38 | D39: 2 | E39: 単元２ | F39: 基本問題３８ | G39: 0 | H39: サンプル問題集38 | I39: 単元２ | J39: =IFERROR(ROWS(_xlfn.UNIQUE(_xlfn._xlws.FILTER('インポートデータ(解答履歴)'!$A:$A,('インポートデータ(解答履歴)'!$A:$A<>"")*('インポートデータ(解答履歴)'!W:W=H39)))),0) -> 6
A40: SAMPLE | B40: サンプル問題集 | C40: 39 | D40: 2 | E40: 単元２ | F40: 基本問題３９ | G40: 0 | H40: サンプル問題集39 | I40: 単元２ | J40: =IFERROR(ROWS(_xlfn.UNIQUE(_xlfn._xlws.FILTER('インポートデータ(解答履歴)'!$A:$A,('インポートデータ(解答履歴)'!$A:$A<>"")*('インポートデータ(解答履歴)'!W:W=H40)))),0) -> 6
A41: SAMPLE | B41: サンプル問題集 | C41: 40 | D41: 2 | E41: 単元２ | F41: 基本問題４０ | G41: 0 | H41: サンプル問題集40 | I41: 単元２ | J41: =IFERROR(ROWS(_xlfn.UNIQUE(_xlfn._xlws.FILTER('インポートデータ(解答履歴)'!$A:$A,('インポートデータ(解答履歴)'!$A:$A<>"")*('インポートデータ(解答履歴)'!W:W=H41)))),0) -> 6
A42: SAMPLE | B42: サンプル問題集 | C42: 41 | D42: 2 | E42: 単元２ | F42: 発展問題１ | G42: 0 | H42: サンプル問題集41 | I42: 単元２ | J42: =IFERROR(ROWS(_xlfn.UNIQUE(_xlfn._xlws.FILTER('インポートデータ(解答履歴)'!$A:$A,('インポートデータ(解答履歴)'!$A:$A<>"")*('インポートデータ(解答履歴)'!W:W=H42)))),0) -> 5
A43: SAMPLE | B43: サンプル問題集 | C43: 42 | D43: 2 | E43: 単元２ | F43: 発展問題２ | G43: 0 | H43: サンプル問題集42 | I43: 単元２ | J43: =IFERROR(ROWS(_xlfn.UNIQUE(_xlfn._xlws.FILTER('インポートデータ(解答履歴)'!$A:$A,('インポートデータ(解答履歴)'!$A:$A<>"")*('インポートデータ(解答履歴)'!W:W=H43)))),0) -> 5
A44: SAMPLE | B44: サンプル問題集 | C44: 43 | D44: 2 | E44: 単元２ | F44: 発展問題３ | G44: 0 | H44: サンプル問題集43 | J44: =IFERROR(ROWS(_xlfn.UNIQUE(_xlfn._xlws.FILTER('インポートデータ(解答履歴)'!$A:$A,('インポートデータ(解答履歴)'!$A:$A<>"")*('インポートデータ(解答履歴)'!W:W=H44)))),0) -> 5
A45: SAMPLE | B45: サンプル問題集 | C45: 44 | D45: 2 | E45: 単元２ | F45: 発展問題４ | G45: 0 | H45: サンプル問題集44 | J45: =IFERROR(ROWS(_xlfn.UNIQUE(_xlfn._xlws.FILTER('インポートデータ(解答履歴)'!$A:$A,('インポートデータ(解答履歴)'!$A:$A<>"")*('インポートデータ(解答履歴)'!W:W=H45)))),0) -> 1
G46: 0
G47: 0
G48: 0
G49: 0
G50: 0
G51: 0
G52: 0
G53: 0
G54: 0
G55: 0
G56: 0
G57: 0
G58: 0
G59: 0
G60: 0
G61: 0
G62: 0
G63: 0
G64: 0
G65: 0
G66: 0 | H66: =IF(A66="","",B66&C66) -> 
G67: 0
G68: 0
G69: 0
G70: 0
G71: 0
G72: 0
G73: 0
G74: 0
G75: 0
G76: 0
G77: 0
G78: 0
G79: 0
G80: 0
G81: 0
G82: 0
G83: 0
G84: 0
G85: 0
G86: 0
G87: 0
G88: 0
G89: 0
G90: 0
G91: 0
G92: 0
G93: 0
G94: 0
G95: 0
G96: 0
G97: 0
G98: 0
G99: 0
G100: 0
G101: 0
G102: 0
G103: 0
G104: 0
G105: 0
G106: 0
G107: 0
G108: 0
G109: 0
G110: 0
G111: 0
G112: 0
G113: 0
G114: 0
G115: 0
G116: 0
G117: 0
G118: 0
G119: 0
G120: 0
G121: 0
G122: 0
G123: 0
G124: 0
G125: 0
G126: 0
G127: 0
G128: 0
G129: 0
G130: 0 | H130: =IF(A130="","",B130&C130) -> 
G131: 0
G132: 0
G133: 0
G134: 0
G135: 0
G136: 0
G137: 0
G138: 0
G139: 0
G140: 0
G141: 0
G142: 0
G143: 0
G144: 0
G145: 0
G146: 0
G147: 0
G148: 0
G149: 0
G150: 0
G151: 0
G152: 0
G153: 0
G154: 0
G155: 0
G156: 0
G157: 0
G158: 0
G159: 0
G160: 0
G161: 0
G162: 0
G163: 0
G164: 0
G165: 0
G166: 0
G167: 0
G168: 0
G169: 0
G170: 0
G171: 0
G172: 0
G173: 0
G174: 0
G175: 0
G176: 0
G177: 0
G178: 0
G179: 0
G180: 0
G181: 0
G182: 0
G183: 0
G184: 0
G185: 0
G186: 0
G187: 0
G188: 0
G189: 0
G190: 0
G191: 0
G192: 0
G193: 0
G194: 0 | H194: =IF(A194="","",B194&C194) -> 
G195: 0
G196: 0
G197: 0
G198: 0
G199: 0
G200: 0
... 1084 more rows

Sheet レポート＞

Sheet Report
B1: Libry データレポート | D1: 番号： | E1: 9 | F1: 名前： | G1: =VLOOKUP(E1,生徒情報!A:B,2,FALSE) -> 武田 司 | O1: 抽出期間： | P1: 2023年10月06日～2023年12月04日
B5: グループ別の回答率
J6: 集計期間に解答した問題 | P6: 初回に正解した問題
J7: =IF($E$1="","",VLOOKUP($E$1,dataprofile!A:EB,76,FALSE)&"問") -> 6問 | O7: =IFERROR(VLOOKUP($E$1,dataprofile!A:EB,77,FALSE)/VLOOKUP($E$1,dataprofile!A:EB,76,FALSE),0) -> 0 | P7: =IF($E$1="","",VLOOKUP($E$1,dataprofile!A:EB,77,FALSE)&"問") -> 0問
P12: 初回に不正解した問題 | V12: 克服した問題
O13: =1-O7 -> 1 | P13: =IF($E$1="","",VLOOKUP($E$1,dataprofile!A:EB,78,FALSE)&"問") -> 6問 | U13: =IFERROR(VLOOKUP($E$1,dataprofile!A:EB,79,FALSE)/VLOOKUP($E$1,dataprofile!A:EB,78,FALSE),0) -> 1 | V13: =IF($E$1="","",VLOOKUP($E$1,dataprofile!A:EB,79,FALSE)&"問") -> 6問
V16: ="先週から+"&_xlfn.XLOOKUP(E1,dataprofile!A:A,dataprofile!CA:CA,0,0,1)-_xlfn.XLOOKUP(E1,dataprofile!A:A,dataprofile!CA:CA,0,0,1)&"問" -> 先週から+0問
V18: 間違えっぱなしの問題
U19: =1-U13 -> 0 | V19: =IF($E$1="","",VLOOKUP($E$1,dataprofile!A:EB,80,FALSE)&"問") -> 0問
B23: =text!B3 -> 自分のペースでよいので、指定された範囲の問題に積極的に取り組んでいこう。 | J23: =text!B6 -> 集計期間内の学習量が50問に満たないため、コメントは表示されません。
J25: 最近克服した問題
J26: 日付 | L26: 書籍名 | O26: 目次 | R26: 問題名 | T26: 最終結果 | V26: 時間 | X26: クラス 正答率
J27: =IF(表!B8="","",表!B8) -> 2023-12-02 | L27: =IF(表!C8="","",表!C8) -> サンプル問題集 | O27: =IF(表!D8="","",表!D8) -> 単元１ | R27: =IFERROR(IF(表!E8="","",LEFT(表!E8,FIND("/",表!E8)-1)),表!E8) -> 基本問題１８ | T27: =IF(表!G8="","",表!G8) -> ◯ | V27: =表!I8 -> 00:00:54 | X27: =表!J8 -> 0.9
J28: =IF(表!B9="","",表!B9) -> 2023-12-02 | L28: =IF(表!C9="","",表!C9) -> サンプル問題集 | O28: =IF(表!D9="","",表!D9) -> 単元１ | R28: =IFERROR(IF(表!E9="","",LEFT(表!E9,FIND("/",表!E9)-1)),表!E9) -> 基本問題２１ | T28: =IF(表!G9="","",表!G9) -> ◯ | V28: =表!I9 -> 00:00:26 | X28: =表!J9 -> 0.9
J29: =IF(表!B10="","",表!B10) -> 2023-12-02 | L29: =IF(表!C10="","",表!C10) -> サンプル問題集 | O29: =IF(表!D10="","",表!D10) -> 単元１ | R29: =IFERROR(IF(表!E10="","",LEFT(表!E10,FIND("/",表!E10)-1)),表!E10) -> 基本問題２２ | T29: =IF(表!G10="","",表!G10) -> ◯ | V29: =表!I10 -> 00:00:10 | X29: =表!J10 -> 0.9
J30: =IF(表!B11="","",表!B11) -> 2023-12-02 | L30: =IF(表!C11="","",表!C11) -> サンプル問題集 | O30: =IF(表!D11="","",表!D11) -> 単元１ | R30: =IFERROR(IF(表!E11="","",LEFT(表!E11,FIND("/",表!E11)-1)),表!E11) -> 基本問題２３ | T30: =IF(表!G11="","",表!G11) -> ◯ | V30: =表!I11 -> 00:00:02 | X30: =表!J11 -> 0.9
J31: =IF(表!B12="","",表!B12) -> 2023-12-03 | L31: =IF(表!C12="","",表!C12) -> サンプル問題集 | O31: =IF(表!D12="","",表!D12) -> 単元１ | R31: =IFERROR(IF(表!E12="","",LEFT(表!E12,FIND("/",表!E12)-1)),表!E12) -> 基本問題１９ | T31: =IF(表!G12="","",表!G12) -> ◯ | V31: =表!I12 -> 00:02:02 | X31: =表!J12 -> 0.9
B33: =text!B4 -> ぜひ、リブリーで宿題以外の問題にもチャレンジしてみてください！ | J33: 優先して振り返るべき問題（あなたは間違えっぱなしだけど、みんなは正解できている問題）
J34: 日付 | L34: 書籍名 | O34: 目次 | R34: 問題名 | T34: 最終結果 | V34: 時間 | X34: クラス 正答率
J35: =IF(表!B17="","",表!B17) ->  | L35: =IF(表!C17="","",表!C17) ->  | O35: =IF(表!D17="","",表!D17) ->  | R35: =IFERROR(IF(表!E17="","",LEFT( 表!E17,FIND("/", 表!E17) - 1)),表!E17) ->  | T35: =IF(表!G17="","",表!G17) ->  | V35: =IF(表!J17="","",表!J17) ->  | X35: =IF(表!H17="","",表!H17) -> 
J36: =IF(表!B18="","",表!B18) ->  | L36: =IF(表!C18="","",表!C18) ->  | O36: =IF(表!D18="","",表!D18) ->  | R36: =IFERROR(IF(表!E18="","",LEFT( 表!E18,FIND("/", 表!E18) - 1)),表!E18) ->  | T36: =IF(表!G18="","",表!G18) ->  | V36: =IF(表!J18="","",表!J18) ->  | X36: =IF(表!H18="","",表!H18) -> 
J37: =IF(表!B19="","",表!B19) ->  | L37: =IF(表!C19="","",表!C19) ->  | O37: =IF(表!D19="","",表!D19) ->  | R37: =IFERROR(IF(表!E19="","",LEFT( 表!E19,FIND("/", 表!E19) - 1)),表!E19) ->  | T37: =IF(表!G19="","",表!G19) ->  | V37: =IF(表!J19="","",表!J19) ->  | X37: =IF(表!H19="","",表!H19) -> 
J38: =IF(表!B20="","",表!B20) ->  | L38: =IF(表!C20="","",表!C20) ->  | O38: =IF(表!D20="","",表!D20) ->  | R38: =IFERROR(IF(表!E20="","",LEFT( 表!E20,FIND("/", 表!E20) - 1)),表!E20) ->  | T38: =IF(表!G20="","",表!G20) ->  | V38: =IF(表!J20="","",表!J20) ->  | X38: =IF(表!H20="","",表!H20) -> 
J39: =IF(表!B21="","",表!B21) ->  | L39: =IF(表!C21="","",表!C21) ->  | O39: =IF(表!D21="","",表!D21) ->  | R39: =IFERROR(IF(表!E21="","",LEFT( 表!E21,FIND("/", 表!E21) - 1)),表!E21) ->  | T39: =IF(表!G21="","",表!G21) ->  | V39: =IF(表!J21="","",表!J21) ->  | X39: =IF(表!H21="","",表!H21) -> 
J40: =IF(表!B22="","",表!B22) ->  | L40: =IF(表!C22="","",表!C22) ->  | O40: =IF(表!D22="","",表!D22) ->  | R40: =IFERROR(IF(表!E22="","",LEFT( 表!E22,FIND("/", 表!E22) - 1)),表!E22) ->  | T40: =IF(表!G22="","",表!G22) ->  | V40: =IF(表!J22="","",表!J22) ->  | X40: =IF(表!H22="","",表!H22) -> 
J41: =IF(表!B23="","",表!B23) ->  | L41: =IF(表!C23="","",表!C23) ->  | O41: =IF(表!D23="","",表!D23) ->  | R41: =IFERROR(IF(表!E23="","",LEFT( 表!E23,FIND("/", 表!E23) - 1)),表!E23) ->  | T41: =IF(表!G23="","",表!G23) ->  | V41: =IF(表!J23="","",表!J23) ->  | X41: =IF(表!H23="","",表!H23) -> 
J42: =IF(表!B24="","",表!B24) ->  | L42: =IF(表!C24="","",表!C24) ->  | O42: =IF(表!D24="","",表!D24) ->  | R42: =IFERROR(IF(表!E24="","",LEFT( 表!E24,FIND("/", 表!E24) - 1)),表!E24) ->  | T42: =IF(表!G24="","",表!G24) ->  | V42: =IF(表!J24="","",表!J24) ->  | X42: =IF(表!H24="","",表!H24) -> 
B43: 学校内（8時～16時台） | D43: 放課後（5時～7時台、17時～23時台） | G43: 深夜学習（0時〜4時台） | J43: =IF(表!B25="","",表!B25) ->  | L43: =IF(表!C25="","",表!C25) ->  | O43: =IF(表!D25="","",表!D25) ->  | R43: =IFERROR(IF(表!E25="","",LEFT( 表!E25,FIND("/", 表!E25) - 1)),表!E25) ->  | T43: =IF(表!G25="","",表!G25) ->  | V43: =IF(表!J25="","",表!J25) ->  | X43: =IF(表!H25="","",表!H25) -> 
B44: ='グラフデータ1-1'!Z25 -> 0.32 | D44: ='グラフデータ1-1'!AA25 -> 0.68 | G44: ='グラフデータ1-1'!AB25 -> 0 | J44: =IF(表!B26="","",表!B26) ->  | L44: =IF(表!C26="","",表!C26) ->  | O44: =IF(表!D26="","",表!D26) ->  | R44: =IFERROR(IF(表!E26="","",LEFT( 表!E26,FIND("/", 表!E26) - 1)),表!E26) ->  | T44: =IF(表!G26="","",表!G26) ->  | V44: =IF(表!J26="","",表!J26) ->  | X44: =IF(表!H26="","",表!H26) -> 
J45: =IF(表!B27="","",表!B27) ->  | L45: =IF(表!C27="","",表!C27) ->  | O45: =IF(表!D27="","",表!D27) ->  | R45: =IFERROR(IF(表!E27="","",LEFT( 表!E27,FIND("/", 表!E27) - 1)),表!E27) ->  | T45: =IF(表!G27="","",表!G27) ->  | V45: =IF(表!J27="","",表!J27) ->  | X45: =IF(表!H27="","",表!H27) -> 
B46: =text!B5 -> 集計期間内の学習量が50問に満たないため、コメントは表示されません。 | J46: =IF(表!B28="","",表!B28) ->  | L46: =IF(表!C28="","",表!C28) ->  | O46: =IF(表!D28="","",表!D28) ->  | R46: =IFERROR(IF(表!E28="","",LEFT( 表!E28,FIND("/", 表!E28) - 1)),表!E28) ->  | T46: =IF(表!G28="","",表!G28) ->  | V46: =IF(表!J28="","",表!J28) ->  | X46: =IF(表!H28="","",表!H28) -> 
J47: =IF(表!B29="","",表!B29) ->  | L47: =IF(表!C29="","",表!C29) ->  | O47: =IF(表!D29="","",表!D29) ->  | R47: =IFERROR(IF(表!E29="","",LEFT( 表!E29,FIND("/", 表!E29) - 1)),表!E29) ->  | T47: =IF(表!G29="","",表!G29) ->  | V47: =IF(表!J29="","",表!J29) ->  | X47: =IF(表!H29="","",表!H29) -> 
B50: Report ver1.11
B51: しょせｋ
J54: あなたは解いてないけど、みんなが取り組んでいる問題
J55: 書籍名 | O55: 目次 | R55: 問題名 | T55: 通し番号 | V55: 解答者数 | W55: クラス 正答率
J56: =IF(表!B34="","",表!B34) -> サンプル問題集 | O56: =IF(表!C34="","",表!C34) -> 単元１ | R56: =IFERROR(IF(表!D34="","",LEFT(表!D34,FIND("/",表!D34)-1)),表!D34) -> 基本問題１０ | T56: =IF(表!E34="","",表!E34) -> 10 | V56: =IF(表!F34="","",表!F34) -> 10 | W56: =IF(表!G34="","",表!G34) -> 0.9
J57: =IF(表!B35="","",表!B35) -> サンプル問題集 | O57: =IF(表!C35="","",表!C35) -> 単元１ | R57: =IFERROR(IF(表!D35="","",LEFT(表!D35,FIND("/",表!D35)-1)),表!D35) -> 基本問題１１ | T57: =IF(表!E35="","",表!E35) -> 11 | V57: =IF(表!F35="","",表!F35) -> 10 | W57: =IF(表!G35="","",表!G35) -> 0.8
J58: =IF(表!B36="","",表!B36) -> サンプル問題集 | O58: =IF(表!C36="","",表!C36) -> 単元１ | R58: =IFERROR(IF(表!D36="","",LEFT(表!D36,FIND("/",表!D36)-1)),表!D36) -> 基本問題１２ | T58: =IF(表!E36="","",表!E36) -> 12 | V58: =IF(表!F36="","",表!F36) -> 10 | W58: =IF(表!G36="","",表!G36) -> 1
J59: =IF(表!B37="","",表!B37) -> サンプル問題集 | O59: =IF(表!C37="","",表!C37) -> 単元１ | R59: =IFERROR(IF(表!D37="","",LEFT(表!D37,FIND("/",表!D37)-1)),表!D37) -> 基本問題１３ | T59: =IF(表!E37="","",表!E37) -> 13 | V59: =IF(表!F37="","",表!F37) -> 10 | W59: =IF(表!G37="","",表!G37) -> 0.9
J60: =IF(表!B38="","",表!B38) -> サンプル問題集 | O60: =IF(表!C38="","",表!C38) -> 単元１ | R60: =IFERROR(IF(表!D38="","",LEFT(表!D38,FIND("/",表!D38)-1)),表!D38) -> 基本問題１ | T60: =IF(表!E38="","",表!E38) -> 1 | V60: =IF(表!F38="","",表!F38) -> 9 | W60: =IF(表!G38="","",表!G38) -> 0.4444444444
J62: あなたは正解できてるけど、みんなが間違えている問題
J63: 日付 | L63: 書籍名 | O63: 目次 | R63: 問題名 | T63: 通し番号 | V63: 時間 | W63: クラス 正答率
J64: =IF(表!B43="","",表!B43) -> 2023-12-02 | L64: =IF(表!C43="","",表!C43) -> サンプル問題集 | O64: =IF(表!D43="","",表!D43) -> 単元１ | R64: =IFERROR(IF(表!E43="","",LEFT( 表!E43,FIND("/", 表!E43) - 1)),表!E43) -> 基本問題１８ | T64: =IF(表!F43="","",表!F43) -> 18 | V64: =IF(表!J43="","",表!J43) -> 00:00:54 | W64: =IF(表!G43="","",表!G43) -> 0.9
J65: =IF(表!B44="","",表!B44) -> 2023-12-03 | L65: =IF(表!C44="","",表!C44) -> サンプル問題集 | O65: =IF(表!D44="","",表!D44) -> 単元１ | R65: =IFERROR(IF(表!E44="","",LEFT( 表!E44,FIND("/", 表!E44) - 1)),表!E44) -> 基本問題１９ | T65: =IF(表!F44="","",表!F44) -> 19 | V65: =IF(表!J44="","",表!J44) -> 00:02:02 | W65: =IF(表!G44="","",表!G44) -> 0.9
J66: =IF(表!B45="","",表!B45) -> 2023-12-03 | L66: =IF(表!C45="","",表!C45) -> サンプル問題集 | O66: =IF(表!D45="","",表!D45) -> 単元１ | R66: =IFERROR(IF(表!E45="","",LEFT( 表!E45,FIND("/", 表!E45) - 1)),表!E45) -> 基本問題２０ | T66: =IF(表!F45="","",表!F45) -> 20 | V66: =IF(表!J45="","",表!J45) -> 00:00:05 | W66: =IF(表!G45="","",表!G45) -> 0.9
J67: =IF(表!B46="","",表!B46) -> 2023-12-02 | L67: =IF(表!C46="","",表!C46) -> サンプル問題集 | O67: =IF(表!D46="","",表!D46) -> 単元１ | R67: =IFERROR(IF(表!E46="","",LEFT( 表!E46,FIND("/", 表!E46) - 1)),表!E46) -> 基本問題２１ | T67: =IF(表!F46="","",表!F46) -> 21 | V67: =IF(表!J46="","",表!J46) -> 00:00:26 | W67: =IF(表!G46="","",表!G46) -> 0.9
J68: =IF(表!B47="","",表!B47) -> 2023-12-02 | L68: =IF(表!C47="","",表!C47) -> サンプル問題集 | O68: =IF(表!D47="","",表!D47) -> 単元１ | R68: =IFERROR(IF(表!E47="","",LEFT( 表!E47,FIND("/", 表!E47) - 1)),表!E47) -> 基本問題２２ | T68: =IF(表!F47="","",表!F47) -> 22 | V68: =IF(表!J47="","",表!J47) -> 00:00:10 | W68: =IF(表!G47="","",表!G47) -> 0.9
J69: =IF(表!B48="","",表!B48) -> 2023-12-02 | L69: =IF(表!C48="","",表!C48) -> サンプル問題集 | O69: =IF(表!D48="","",表!D48) -> 単元１ | R69: =IFERROR(IF(表!E48="","",LEFT( 表!E48,FIND("/", 表!E48) - 1)),表!E48) -> 基本問題２３ | T69: =IF(表!F48="","",表!F48) -> 23 | V69: =IF(表!J48="","",表!J48) -> 00:00:02 | W69: =IF(表!G48="","",表!G48) -> 0.9
J70: =IF(表!B49="","",表!B49) ->  | L70: =IF(表!C49="","",表!C49) ->  | O70: =IF(表!D49="","",表!D49) ->  | R70: =IFERROR(IF(表!E49="","",LEFT( 表!E49,FIND("/", 表!E49) - 1)),表!E49) ->  | T70: =IF(表!F49="","",表!F49) ->  | V70: =IF(表!J49="","",表!J49) ->  | W70: =IF(表!G49="","",表!G49) -> 
J71: =IF(表!B50="","",表!B50) ->  | L71: =IF(表!C50="","",表!C50) ->  | O71: =IF(表!D50="","",表!D50) ->  | R71: =IFERROR(IF(表!E50="","",LEFT( 表!E50,FIND("/", 表!E50) - 1)),表!E50) ->  | T71: =IF(表!F50="","",表!F50) ->  | V71: =IF(表!J50="","",表!J50) ->  | W71: =IF(表!G50="","",表!G50) -> 
J72: =IF(表!B51="","",表!B51) ->  | L72: =IF(表!C51="","",表!C51) ->  | O72: =IF(表!D51="","",表!D51) ->  | R72: =IFERROR(IF(表!E51="","",LEFT( 表!E51,FIND("/", 表!E51) - 1)),表!E51) ->  | T72: =IF(表!F51="","",表!F51) ->  | V72: =IF(表!J51="","",表!J51) ->  | W72: =IF(表!G51="","",表!G51) -> 
J75: 総演習数 （問） | L75: =表!$C$61 -> 100 | M75: =表!C63 ->  | O75: 取組率 （％） | Q75: =表!E61 -> 1 | R75: =表!E63 ->  | T75: 自習数 （問） | V75: =表!G61 -> 22 | W75: =表!G63 -> 
L76: ="あなた:"&VLOOKUP($E$1,dataprofile!$A:$DF,93,FALSE) -> あなた:25 | Q76: ="あなた:"&TEXT(VLOOKUP($E$1,dataprofile!$A:$DF,99,FALSE),"#%") -> あなた:14% | V76: ="あなた:"&VLOOKUP($E$1,dataprofile!$A:$DF,105,FALSE) -> あなた:0
B77: =text!B7 -> あなたは「無限の伸びしろ型」です。 やればきっとできるので、しっかりと演習量を伸ばしていきましょう！ | J77: 総演習時間 （分） | L77: =表!D61 -> 3038.883333 | M77: =表!D63 ->  | O77: 最終正答率 （％） | Q77: =表!F61 -> 1 | R77: =表!F63 ->  | T77: 克服率 （％） | V77: =表!H61 -> 1 | W77: =表!H63 -> 
L78: ="あなた:"&FLOOR(VLOOKUP($E$1,dataprofile!$A:$DF,96,FALSE)/60,1) -> あなた:264 | Q78: ="あなた:"&TEXT(VLOOKUP($E$1,dataprofile!$A:$DF,102,FALSE),"#%") -> あなた:100% | V78: ="あなた:"&TEXT(VLOOKUP($E$1,dataprofile!$A:$DF,108,FALSE),"#%") -> あなた:100%
B79: レポートを見て、感じたことや次の勉強に活かそうと思ったことを自由に書いてみよう

Sheet teacher_report (hidden)
C1: グループ別の取り組み状況 | AA1: 最近の学習量推移 | AG1: 学習している時間帯 | AM1: 振り返り状況 | AV1: 学習特性図 | AY1: クラス内ランキング
C2: =dataprofile!C3 -> 単元１ | G2: =dataprofile!F3 -> 単元２ | K2: =dataprofile!I3 ->  | O2: =dataprofile!L3 ->  | S2: =dataprofile!O3 ->  | W2: =dataprofile!R3 ->  | AA2: 2週間前 | AC2: 1週間前 | AE2: 今週 | AY2: 総合学習数 | BB2: 総学習時間（秒） | BE2: 取組率 | BH2: 最終正答率 | BK2: 自習数 | BN2: 克服率
A3: 番号 | B3: 生徒名 | C3: 問題数 | D3: 取組数 | E3: 正解数 | F3: 取組率 | G3: 問題数 | H3: 取組数 | I3: 正解数 | J3: 取組率 | K3: 問題数 | L3: 取組数 | M3: 正解数 | N3: 取組率 | O3: 問題数 | P3: 取組数 | Q3: 正解数 | R3: 取組率 | S3: 問題数 | T3: 取組数 | U3: 正解数 | V3: 取組率 | W3: 問題数 | X3: 取組数 | Y3: 正解数 | Z3: 取組率 | AA3: 学習量 | AB3: 自習量 | AC3: 学習量 | AD3: 自習量 | AE3: 学習量 | AF3: 自習量 | AG3: 学校内 | AH3: 放課後 | AI3: 深夜 | AJ3: 学校内率 | AK3: 放課後率 | AL3: 深夜率 | AM3: 総回答数 | AN3: 初回正答数 | AO3: 初回誤答数 | AP3: 初回正答率 | AQ3: 初回誤答率 | AR3: 克服数 | AS3: 克服率 | AT3: 7日間の克服数 | AU3: 間違えっぱなし数 | AV3: 評価 | AW3: 取組率 | AX3: 最終正答率 | AY3: 値 | AZ3: 順位 | BA3: カテゴリ | BB3: 値 | BC3: 順位 | BD3: カテゴリ | BE3: 値 | BF3: 順位 | BG3: カテゴリ | BH3: 値 | BI3: 順位 | BJ3: カテゴリ | BK3: 値 | BL3: 順位 | BM3: カテゴリ | BN3: 値 | BO3: 順位 | BP3: カテゴリ
A4: =dataprofile!A5:B205 -> 8 | B4: 松岡 真澄 | C4: =dataprofile!C5:E205 -> 27 | D4: 27 | E4: 21 | F4: =D4/C4 -> 1 | G4: =dataprofile!F5:H205 -> 15 | H4: 15 | I4: 13 | J4: =H4/G4 -> 1 | K4: =dataprofile!I5:K205 ->  | N4: =IFERROR(L4/K4,0) -> 0 | O4: =dataprofile!L5:N205 ->  | R4: =IFERROR(P4/O4,0) -> 0 | S4: =dataprofile!O5:Q205 ->  | V4: =IFERROR(T4/S4,0) -> 0 | W4: =dataprofile!R5:T205 ->  | Z4: =IFERROR(X4/W4,0) -> 0 | AA4: =dataprofile!AQ5:AV205 -> 0 | AB4: 0 | AC4: 0 | AD4: 0 | AE4: 0 | AF4: 0 | AG4: =dataprofile!BU5:BW205 -> 16 | AH4: 45 | AI4: 0 | AJ4: =AG4/SUM($AG4:$AI4) -> 0.262295082 | AK4: =AH4/SUM($AG4:$AI4) -> 0.737704918 | AL4: =AI4/SUM($AG4:$AI4) -> 0 | AM4: =dataprofile!BX5:BZ205 -> 43 | AN4: 30 | AO4: 13 | AP4: =AN4/AM4 -> 0.6976744186 | AQ4: =AO4/AM4 -> 0.3023255814 | AR4: =dataprofile!CA5:CA205 -> 6 | AS4: =IFERROR(AR4/AO4,"-") -> 0.4615384615 | AT4: =dataprofile!CH5:CH205 -> 0 | AU4: =dataprofile!CB5:CB205 -> 7 | AW4: =dataprofile!CL5:CM205 -> 1 | AX4: 0.8095238095 | AY4: =dataprofile!CO5:CQ205 -> 61 | AZ4: 3 | BA4: 上位30% | BB4: =dataprofile!CR5/60 -> 534.2333333 | BC4: =dataprofile!CS5:DF205 -> 2 | BD4: 上位30% | BE4: 1 | BF4: 1 | BG4: 1位 | BH4: 0.8095238095 | BI4: 7 | BJ4: その他 | BK4: 0 | BL4: 2 | BM4: 上位30% | BN4: 0.6 | BO4: 4 | BP4: その他
A5: 10 | B5: 山口 和泉 | C5: 27 | D5: 27 | E5: 17 | F5: =D5/C5 -> 1 | G5: 15 | H5: 15 | I5: 4 | J5: =H5/G5 -> 1 | N5: =IFERROR(L5/K5,0) -> 0 | R5: =IFERROR(P5/O5,0) -> 0 | V5: =IFERROR(T5/S5,0) -> 0 | Z5: =IFERROR(X5/W5,0) -> 0 | AA5: 0 | AB5: 0 | AC5: 0 | AD5: 0 | AE5: 0 | AF5: 0 | AG5: 37 | AH5: 33 | AI5: 7 | AJ5: =AG5/SUM($AG5:$AI5) -> 0.4805194805 | AK5: =AH5/SUM($AG5:$AI5) -> 0.4285714286 | AL5: =AI5/SUM($AG5:$AI5) -> 0.09090909091 | AM5: 43 | AN5: 18 | AO5: 25 | AP5: =AN5/AM5 -> 0.4186046512 | AQ5: =AO5/AM5 -> 0.5813953488 | AR5: 4 | AS5: =IFERROR(AR5/AO5,"-") -> 0.16 | AT5: 0 | AU5: 21 | AW5: 1 | AX5: 0.5 | AY5: 77 | AZ5: 2 | BA5: 上位30% | BB5: =dataprofile!CR6/60 -> 257.6833333 | BC5: 5 | BD5: その他 | BE5: 1 | BF5: 1 | BG5: 1位 | BH5: 0.5 | BI5: 10 | BJ5: その他 | BK5: 0 | BL5: 2 | BM5: 上位30% | BN5: 0.3636363636 | BO5: 5 | BP5: その他
A6: 6 | B6: 川上 清美 | C6: 27 | D6: 27 | E6: 27 | F6: 1 | G6: 15 | H6: 15 | I6: 15 | J6: 1 | N6: =IFERROR(L6/K6,0) -> 0 | R6: 0 | V6: 0 | Z6: 0 | AA6: 0 | AB6: 0 | AC6: 0 | AD6: 0 | AE6: 0 | AF6: 0 | AG6: 42 | AH6: 14 | AI6: 0 | AJ6: 0.75 | AK6: 0.25 | AL6: 0 | AM6: 43 | AN6: 43 | AO6: 0 | AP6: 1 | AQ6: 0 | AR6: 0 | AS6: - | AT6: 0 | AU6: 0 | AW6: 1 | AX6: 1 | AY6: 56 | AZ6: 4 | BA6: その他 | BB6: =dataprofile!CR7/60 -> 39.05 | BC6: 10 | BD6: その他 | BE6: 1 | BF6: 1 | BG6: 1位 | BH6: 1 | BI6: 1 | BJ6: 1位 | BK6: 0 | BL6: 2 | BM6: 上位30% | BN6: 0 | BO6: 8 | BP6: その他
A7: 2 | B7: 佐々木 希望 | C7: 27 | D7: 17 | E7: 14 | F7: 0.6296296296 | G7: 15 | H7: 0 | I7: 0 | J7: 0 | N7: 0 | R7: 0 | V7: 0 | Z7: 0 | AA7: 0 | AB7: 0 | AC7: 0 | AD7: 0 | AE7: 0 | AF7: 0 | AG7: 13 | AH7: 4 | AI7: 0 | AJ7: 0.7647058824 | AK7: 0.2352941176 | AL7: 0 | AM7: 17 | AN7: 14 | AO7: 3 | AP7: 0.8235294118 | AQ7: 0.1764705882 | AR7: 0 | AS7: 0 | AT7: 0 | AU7: 3 | AW7: 0.4047619048 | AX7: 0.8235294118 | AY7: 17 | AZ7: 9 | BA7: その他 | BB7: =dataprofile!CR8/60 -> 79.71666667 | BC7: 8 | BD7: その他 | BE7: 0.4047619048 | BF7: 8 | BG7: その他 | BH7: 0.8235294118 | BI7: 6 | BJ7: その他 | BK7: 0 | BL7: 2 | BM7: 上位30% | BN7: 0 | BO7: 8 | BP7: その他
A8: 5 | B8: 泉 優 | C8: 27 | D8: 27 | E8: 25 | F8: 1 | G8: 15 | H8: 15 | I8: 14 | J8: 1 | N8: 0 | R8: 0 | V8: 0 | Z8: 0 | AA8: 0 | AB8: 0 | AC8: 0 | AD8: 0 | AE8: 0 | AF8: 0 | AG8: 29 | AH8: 23 | AI8: 0 | AJ8: 0.5576923077 | AK8: 0.4423076923 | AL8: 0 | AM8: 43 | AN8: 38 | AO8: 5 | AP8: 0.8837209302 | AQ8: 0.1162790698 | AR8: 2 | AS8: 0.4 | AT8: 0 | AU8: 3 | AW8: 1 | AX8: 0.9285714286 | AY8: 52 | AZ8: 5 | BA8: その他 | BB8: =dataprofile!CR9/60 -> 299.8166667 | BC8: 3 | BD8: 上位30% | BE8: 1 | BF8: 1 | BG8: 1位 | BH8: 0.9285714286 | BI8: 4 | BJ8: その他 | BK8: 0 | BL8: 2 | BM8: 上位30% | BN8: 0.6666666667 | BO8: 3 | BP8: 上位30%
A9: 3 | B9: 岡野 千尋 | C9: 27 | D9: 12 | E9: 10 | F9: 0.4444444444 | G9: 15 | H9: 0 | I9: 0 | J9: 0 | N9: 0 | R9: 0 | V9: 0 | Z9: 0 | AA9: 0 | AB9: 0 | AC9: 0 | AD9: 0 | AE9: 0 | AF9: 0 | AG9: 15 | AH9: 0 | AI9: 0 | AJ9: 1 | AK9: 0 | AL9: 0 | AM9: 12 | AN9: 9 | AO9: 3 | AP9: 0.75 | AQ9: 0.25 | AR9: 1 | AS9: 0.3333333333 | AT9: 0 | AU9: 2 | AW9: 0.2857142857 | AX9: 0.8333333333 | AY9: 15 | AZ9: 10 | BA9: その他 | BB9: =dataprofile!CR10/60 -> 28.1 | BC9: 11 | BD9: その他 | BE9: 0.2857142857 | BF9: 9 | BG9: その他 | BH9: 0.8333333333 | BI9: 5 | BJ9: その他 | BK9: 0 | BL9: 2 | BM9: 上位30% | BN9: 0.3333333333 | BO9: 6 | BP9: その他
A10: 11 | B10: 飯田 翼 | C10: 27 | D10: 27 | E10: 26 | F10: 1 | G10: 15 | H10: 13 | I10: 13 | J10: 0.8666666667 | N10: 0 | R10: 0 | V10: 0 | Z10: 0 | AA10: 0 | AB10: 0 | AC10: 0 | AD10: 0 | AE10: 0 | AF10: 0 | AG10: 21 | AH10: 70 | AI10: 9 | AJ10: 0.21 | AK10: 0.7 | AL10: 0.09 | AM10: 40 | AN10: 17 | AO10: 23 | AP10: 0.425 | AQ10: 0.575 | AR10: 22 | AS10: 0.9565217391 | AT10: 6 | AU10: 1 | AW10: 0.9523809524 | AX10: 0.975 | AY10: 100 | AZ10: 1 | BA10: 1位 | BB10: =dataprofile!CR11/60 -> 174.3833333 | BC10: 6 | BD10: その他 | BE10: 0.9523809524 | BF10: 6 | BG10: その他 | BH10: 0.975 | BI10: 3 | BJ10: 上位30% | BK10: 0 | BL10: 2 | BM10: 上位30% | BN10: 0.9411764706 | BO10: 2 | BP10: 上位30%
A11: 1 | B11: 石川 泉 | C11: 27 | D11: 21 | E11: 9 | F11: 0.7777777778 | G11: 15 | H11: 0 | I11: 0 | J11: 0 | N11: 0 | R11: 0 | V11: 0 | Z11: 0 | AA11: 0 | AB11: 0 | AC11: 0 | AD11: 0 | AE11: 0 | AF11: 0 | AG11: 25 | AH11: 0 | AI11: 0 | AJ11: 1 | AK11: 0 | AL11: 0 | AM11: 21 | AN11: 6 | AO11: 15 | AP11: 0.2857142857 | AQ11: 0.7142857143 | AR11: 3 | AS11: 0.2 | AT11: 3 | AU11: 12 | AW11: 0.5 | AX11: 0.4285714286 | AY11: 25 | AZ11: 7 | BA11: その他 | BB11: =dataprofile!CR12/60 -> 67.01666667 | BC11: 9 | BD11: その他 | BE11: 0.5 | BF11: 7 | BG11: その他 | BH11: 0.4285714286 | BI11: 11 | BJ11: その他 | BK11: 0 | BL11: 2 | BM11: 上位30% | BN11: 0 | BO11: 8 | BP11: その他
A12: 7 | B12: 清水 幸 | C12: 27 | D12: 10 | E12: 6 | F12: 0.3703703704 | G12: 15 | H12: 0 | I12: 0 | J12: 0 | N12: 0 | R12: 0 | V12: 0 | Z12: 0 | AA12: 0 | AB12: 0 | AC12: 0 | AD12: 0 | AE12: 0 | AF12: 0 | AG12: 11 | AH12: 0 | AI12: 0 | AJ12: 1 | AK12: 0 | AL12: 0 | AM12: 10 | AN12: 6 | AO12: 4 | AP12: 0.6 | AQ12: 0.4 | AR12: 0 | AS12: 0 | AT12: 0 | AU12: 4 | AW12: 0.2380952381 | AX12: 0.6 | AY12: 11 | AZ12: 11 | BA12: その他 | BB12: =dataprofile!CR13/60 -> 3038.883333 | BC12: 1 | BD12: 1位 | BE12: 0.2380952381 | BF12: 10 | BG12: その他 | BH12: 0.6 | BI12: 9 | BJ12: その他 | BK12: 0 | BL12: 2 | BM12: 上位30% | BN12: 0 | BO12: 8 | BP12: その他
A13: 4 | B13: 田中 桂 | C13: 27 | D13: 27 | E13: 20 | F13: 1 | G13: 15 | H13: 15 | I13: 7 | J13: 1 | N13: 0 | R13: 0 | V13: 0 | Z13: 0 | AA13: 0 | AB13: 0 | AC13: 0 | AD13: 0 | AE13: 0 | AF13: 0 | AG13: 13 | AH13: 33 | AI13: 6 | AJ13: 0.25 | AK13: 0.6346153846 | AL13: 0.1153846154 | AM13: 44 | AN13: 26 | AO13: 18 | AP13: 0.5909090909 | AQ13: 0.4090909091 | AR13: 2 | AS13: 0.1111111111 | AT13: 0 | AU13: 16 | AW13: 1 | AX13: 0.6428571429 | AY13: 52 | AZ13: 5 | BA13: その他 | BB13: =dataprofile!CR14/60 -> 112.7333333 | BC13: 7 | BD13: その他 | BE13: 1 | BF13: 1 | BG13: 1位 | BH13: 0.6428571429 | BI13: 8 | BJ13: その他 | BK13: 22 | BL13: 1 | BM13: 1位 | BN13: 0.25 | BO13: 7 | BP13: その他
A14: 9 | B14: 武田 司 | C14: 27 | D14: 6 | E14: 6 | F14: 0.2222222222 | G14: 15 | H14: 0 | I14: 0 | J14: 0 | N14: 0 | R14: 0 | V14: 0 | Z14: 0 | AA14: 0 | AB14: 0 | AC14: 0 | AD14: 0 | AE14: 0 | AF14: 0 | AG14: 8 | AH14: 17 | AI14: 0 | AJ14: 0.32 | AK14: 0.68 | AL14: 0 | AM14: 6 | AN14: 0 | AO14: 6 | AP14: 0 | AQ14: 1 | AR14: 6 | AS14: 1 | AT14: 0 | AU14: 0 | AW14: 0.1428571429 | AX14: 1 | AY14: 25 | AZ14: 7 | BA14: その他 | BB14: =dataprofile!CR15/60 -> 264.0166667 | BC14: 4 | BD14: その他 | BE14: 0.1428571429 | BF14: 11 | BG14: その他 | BH14: 1 | BI14: 1 | BJ14: 1位 | BK14: 0 | BL14: 2 | BM14: 上位30% | BN14: 1 | BO14: 1 | BP14: 1位
A15: 0 | B15: 0 | N15: 0 | R15: 0 | V15: 0 | Z15: 0 | AA15: 0 | AB15: 0 | AC15: 0 | AD15: 0 | AE15: 0 | AF15: 0 | AG15: 0 | AH15: 0 | AI15: 0 | AM15: 0 | AN15: 0 | AO15: 0 | AR15: 0 | AS15: - | AT15: 0 | AU15: 0 | AY15: 0 | BB15: =dataprofile!CR16/60 -> 0 | BK15: 0 | BN15: 0
A16: 0 | B16: 0 | J16: =H16/G16 ->  | N16: 0 | R16: 0 | V16: 0 | Z16: 0 | AA16: 0 | AB16: 0 | AC16: 0 | AD16: 0 | AE16: 0 | AF16: 0 | AG16: 0 | AH16: 0 | AI16: 0 | AM16: 0 | AN16: 0 | AO16: 0 | AR16: 0 | AS16: - | AT16: 0 | AU16: 0 | AY16: 0 | BB16: =dataprofile!CR17/60 -> 0 | BK16: 0 | BN16: 0
A17: 0 | B17: 0 | N17: 0 | R17: 0 | V17: 0 | Z17: 0 | AA17: 0 | AB17: 0 | AC17: 0 | AD17: 0 | AE17: 0 | AF17: 0 | AG17: 0 | AH17: 0 | AI17: 0 | AM17: 0 | AN17: 0 | AO17: 0 | AR17: 0 | AS17: - | AT17: 0 | AU17: 0 | AY17: 0 | BB17: =dataprofile!CR18/60 -> 0 | BK17: 0 | BN17: 0
A18: 0 | B18: 0 | N18: 0 | R18: 0 | V18: 0 | Z18: 0 | AA18: 0 | AB18: 0 | AC18: 0 | AD18: 0 | AE18: 0 | AF18: 0 | AG18: 0 | AH18: 0 | AI18: 0 | AM18: 0 | AN18: 0 | AO18: 0 | AR18: 0 | AS18: - | AT18: 0 | AU18: 0 | AY18: 0 | BB18: =dataprofile!CR19/60 -> 0 | BK18: 0 | BN18: 0
A19: 0 | B19: 0 | N19: =IFERROR(L19/K19,0) -> 0 | R19: 0 | V19: 0 | Z19: 0 | AA19: 0 | AB19: 0 | AC19: 0 | AD19: 0 | AE19: 0 | AF19: 0 | AG19: 0 | AH19: 0 | AI19: 0 | AM19: 0 | AN19: 0 | AO19: 0 | AR19: 0 | AS19: - | AT19: 0 | AU19: 0 | AY19: 0 | BB19: =dataprofile!CR20/60 -> 0 | BK19: 0 | BN19: 0
A20: 0 | B20: 0 | N20: 0 | R20: 0 | V20: 0 | Z20: 0 | AA20: 0 | AB20: 0 | AC20: 0 | AD20: 0 | AE20: 0 | AF20: 0 | AG20: 0 | AH20: 0 | AI20: 0 | AM20: 0 | AN20: 0 | AO20: 0 | AR20: 0 | AS20: - | AT20: 0 | AU20: 0 | AY20: 0 | BB20: =dataprofile!CR21/60 -> 0 | BK20: 0 | BN20: 0
A21: 0 | B21: 0 | N21: 0 | R21: 0 | V21: 0 | Z21: 0 | AA21: 0 | AB21: 0 | AC21: 0 | AD21: 0 | AE21: 0 | AF21: 0 | AG21: 0 | AH21: 0 | AI21: 0 | AM21: 0 | AN21: 0 | AO21: 0 | AR21: 0 | AS21: - | AT21: 0 | AU21: 0 | AY21: 0 | BB21: =dataprofile!CR22/60 -> 0 | BK21: 0 | BN21: 0
A22: 0 | B22: 0 | N22: 0 | R22: 0 | V22: 0 | Z22: 0 | AA22: 0 | AB22: 0 | AC22: 0 | AD22: 0 | AE22: 0 | AF22: 0 | AG22: 0 | AH22: 0 | AI22: 0 | AM22: 0 | AN22: 0 | AO22: 0 | AR22: 0 | AS22: - | AT22: 0 | AU22: 0 | AY22: 0 | BB22: =dataprofile!CR23/60 -> 0 | BK22: 0 | BN22: 0
A23: 0 | B23: 0 | N23: 0 | R23: 0 | V23: 0 | Z23: 0 | AA23: 0 | AB23: 0 | AC23: 0 | AD23: 0 | AE23: 0 | AF23: 0 | AG23: 0 | AH23: 0 | AI23: 0 | AM23: 0 | AN23: 0 | AO23: 0 | AR23: 0 | AS23: - | AT23: 0 | AU23: 0 | AY23: 0 | BB23: =dataprofile!CR24/60 -> 0 | BK23: 0 | BN23: 0
A24: 0 | B24: 0 | N24: 0 | R24: 0 | V24: 0 | Z24: 0 | AA24: 0 | AB24: 0 | AC24: 0 | AD24: 0 | AE24: 0 | AF24: 0 | AG24: 0 | AH24: 0 | AI24: 0 | AM24: 0 | AN24: 0 | AO24: 0 | AR24: 0 | AS24: - | AT24: 0 | AU24: 0 | AY24: 0 | BB24: =dataprofile!CR25/60 -> 0 | BK24: 0 | BN24: 0
A25: 0 | B25: 0 | N25: 0 | R25: 0 | V25: 0 | Z25: 0 | AA25: 0 | AB25: 0 | AC25: 0 | AD25: 0 | AE25: 0 | AF25: 0 | AG25: 0 | AH25: 0 | AI25: 0 | AM25: 0 | AN25: 0 | AO25: 0 | AR25: 0 | AS25: - | AT25: 0 | AU25: 0 | AY25: 0 | BB25: =dataprofile!CR26/60 -> 0 | BK25: 0 | BN25: 0
A26: 0 | B26: 0 | N26: 0 | R26: 0 | V26: 0 | Z26: 0 | AA26: 0 | AB26: 0 | AC26: 0 | AD26: 0 | AE26: 0 | AF26: 0 | AG26: 0 | AH26: 0 | AI26: 0 | AM26: 0 | AN26: 0 | AO26: 0 | AR26: 0 | AS26: - | AT26: 0 | AU26: 0 | AY26: 0 | BB26: =dataprofile!CR27/60 -> 0 | BK26: 0 | BN26: 0
A27: 0 | B27: 0 | N27: 0 | R27: 0 | V27: 0 | Z27: 0 | AA27: 0 | AB27: 0 | AC27: 0 | AD27: 0 | AE27: 0 | AF27: 0 | AG27: 0 | AH27: 0 | AI27: 0 | AM27: 0 | AN27: 0 | AO27: 0 | AR27: 0 | AS27: - | AT27: 0 | AU27: 0 | AY27: 0 | BB27: =dataprofile!CR28/60 -> 0 | BK27: 0 | BN27: 0
A28: 0 | B28: 0 | N28: 0 | R28: 0 | V28: 0 | Z28: 0 | AA28: 0 | AB28: 0 | AC28: 0 | AD28: 0 | AE28: 0 | AF28: 0 | AG28: 0 | AH28: 0 | AI28: 0 | AM28: 0 | AN28: 0 | AO28: 0 | AR28: 0 | AS28: - | AT28: 0 | AU28: 0 | AY28: 0 | BB28: =dataprofile!CR29/60 -> 0 | BK28: 0 | BN28: 0
A29: 0 | B29: 0 | N29: 0 | R29: 0 | V29: 0 | Z29: 0 | AA29: 0 | AB29: 0 | AC29: 0 | AD29: 0 | AE29: 0 | AF29: 0 | AG29: 0 | AH29: 0 | AI29: 0 | AM29: 0 | AN29: 0 | AO29: 0 | AR29: 0 | AS29: - | AT29: 0 | AU29: 0 | AY29: 0 | BB29: =dataprofile!CR30/60 -> 0 | BK29: 0 | BN29: 0
A30: 0 | B30: 0 | N30: 0 | R30: 0 | V30: 0 | Z30: 0 | AA30: 0 | AB30: 0 | AC30: 0 | AD30: 0 | AE30: 0 | AF30: 0 | AG30: 0 | AH30: 0 | AI30: 0 | AM30: 0 | AN30: 0 | AO30: 0 | AR30: 0 | AS30: - | AT30: 0 | AU30: 0 | AY30: 0 | BB30: =dataprofile!CR31/60 -> 0 | BK30: 0 | BN30: 0
A31: 0 | B31: 0 | N31: 0 | R31: 0 | V31: 0 | Z31: 0 | AA31: 0 | AB31: 0 | AC31: 0 | AD31: 0 | AE31: 0 | AF31: 0 | AG31: 0 | AH31: 0 | AI31: 0 | AM31: 0 | AN31: 0 | AO31: 0 | AR31: 0 | AS31: - | AT31: 0 | AU31: 0 | AY31: 0 | BB31: =dataprofile!CR32/60 -> 0 | BK31: 0 | BN31: 0
A32: 0 | B32: 0 | N32: 0 | R32: 0 | V32: 0 | Z32: 0 | AA32: 0 | AB32: 0 | AC32: 0 | AD32: 0 | AE32: 0 | AF32: 0 | AG32: 0 | AH32: 0 | AI32: 0 | AM32: 0 | AN32: 0 | AO32: 0 | AR32: 0 | AS32: - | AT32: 0 | AU32: 0 | AY32: 0 | BB32: =dataprofile!CR33/60 -> 0 | BK32: 0 | BN32: 0
A33: 0 | B33: 0 | N33: 0 | R33: 0 | V33: 0 | Z33: 0 | AA33: 0 | AB33: 0 | AC33: 0 | AD33: 0 | AE33: 0 | AF33: 0 | AG33: 0 | AH33: 0 | AI33: 0 | AM33: 0 | AN33: 0 | AO33: 0 | AR33: 0 | AS33: - | AT33: 0 | AU33: 0 | AY33: 0 | BB33: =dataprofile!CR34/60 -> 0 | BK33: 0 | BN33: 0
A34: 0 | B34: 0 | N34: 0 | R34: 0 | V34: 0 | Z34: 0 | AA34: 0 | AB34: 0 | AC34: 0 | AD34: 0 | AE34: 0 | AF34: 0 | AG34: 0 | AH34: 0 | AI34: 0 | AM34: 0 | AN34: 0 | AO34: 0 | AR34: 0 | AS34: - | AT34: 0 | AU34: 0 | AY34: 0 | BB34: =dataprofile!CR35/60 -> 0 | BK34: 0 | BN34: 0
A35: 0 | B35: 0 | N35: 0 | R35: 0 | V35: 0 | Z35: 0 | AA35: 0 | AB35: 0 | AC35: 0 | AD35: 0 | AE35: 0 | AF35: 0 | AG35: 0 | AH35: 0 | AI35: 0 | AM35: 0 | AN35: 0 | AO35: 0 | AR35: 0 | AS35: - | AT35: 0 | AU35: 0 | AY35: 0 | BB35: =dataprofile!CR36/60 -> 0 | BK35: 0 | BN35: 0
A36: 0 | B36: 0 | N36: 0 | R36: 0 | V36: 0 | Z36: 0 | AA36: 0 | AB36: 0 | AC36: 0 | AD36: 0 | AE36: 0 | AF36: 0 | AG36: 0 | AH36: 0 | AI36: 0 | AM36: 0 | AN36: 0 | AO36: 0 | AR36: 0 | AS36: - | AT36: 0 | AU36: 0 | AY36: 0 | BB36: =dataprofile!CR37/60 -> 0 | BK36: 0 | BN36: 0
A37: 0 | B37: 0 | N37: 0 | R37: 0 | V37: 0 | Z37: 0 | AA37: 0 | AB37: 0 | AC37: 0 | AD37: 0 | AE37: 0 | AF37: 0 | AG37: 0 | AH37: 0 | AI37: 0 | AM37: 0 | AN37: 0 | AO37: 0 | AR37: 0 | AS37: - | AT37: 0 | AU37: 0 | AY37: 0 | BB37: =dataprofile!CR38/60 -> 0 | BK37: 0 | BN37: 0
A38: 0 | B38: 0 | N38: 0 | R38: 0 | V38: 0 | Z38: 0 | AA38: 0 | AB38: 0 | AC38: 0 | AD38: 0 | AE38: 0 | AF38: 0 | AG38: 0 | AH38: 0 | AI38: 0 | AM38: 0 | AN38: 0 | AO38: 0 | AR38: 0 | AS38: - | AT38: 0 | AU38: 0 | AY38: 0 | BB38: =dataprofile!CR39/60 -> 0 | BK38: 0 | BN38: 0
A39: 0 | B39: 0 | N39: 0 | R39: 0 | V39: 0 | Z39: 0 | AA39: 0 | AB39: 0 | AC39: 0 | AD39: 0 | AE39: 0 | AF39: 0 | AG39: 0 | AH39: 0 | AI39: 0 | AM39: 0 | AN39: 0 | AO39: 0 | AR39: 0 | AS39: - | AT39: 0 | AU39: 0 | AY39: 0 | BB39: =dataprofile!CR40/60 -> 0 | BK39: 0 | BN39: 0
A40: 0 | B40: 0 | N40: 0 | R40: 0 | V40: 0 | Z40: 0 | AA40: 0 | AB40: 0 | AC40: 0 | AD40: 0 | AE40: 0 | AF40: 0 | AG40: 0 | AH40: 0 | AI40: 0 | AM40: 0 | AN40: 0 | AO40: 0 | AR40: 0 | AS40: - | AT40: 0 | AU40: 0 | AY40: 0 | BB40: =dataprofile!CR41/60 -> 0 | BK40: 0 | BN40: 0
A41: 0 | B41: 0 | N41: 0 | R41: 0 | V41: 0 | Z41: 0 | AA41: 0 | AB41: 0 | AC41: 0 | AD41: 0 | AE41: 0 | AF41: 0 | AG41: 0 | AH41: 0 | AI41: 0 | AM41: 0 | AN41: 0 | AO41: 0 | AR41: 0 | AS41: - | AT41: 0 | AU41: 0 | AY41: 0 | BB41: =dataprofile!CR42/60 -> 0 | BK41: 0 | BN41: 0
A42: 0 | B42: 0 | N42: 0 | R42: 0 | V42: 0 | Z42: 0 | AA42: 0 | AB42: 0 | AC42: 0 | AD42: 0 | AE42: 0 | AF42: 0 | AG42: 0 | AH42: 0 | AI42: 0 | AM42: 0 | AN42: 0 | AO42: 0 | AR42: 0 | AS42: - | AT42: 0 | AU42: 0 | AY42: 0 | BB42: =dataprofile!CR43/60 -> 0 | BK42: 0 | BN42: 0
A43: 0 | B43: 0 | N43: 0 | R43: 0 | V43: 0 | Z43: 0 | AA43: 0 | AB43: 0 | AC43: 0 | AD43: 0 | AE43: 0 | AF43: 0 | AG43: 0 | AH43: 0 | AI43: 0 | AM43: 0 | AN43: 0 | AO43: 0 | AR43: 0 | AS43: - | AT43: 0 | AU43: 0 | AY43: 0 | BB43: =dataprofile!CR44/60 -> 0 | BK43: 0 | BN43: 0
A44: 0 | B44: 0 | N44: 0 | R44: 0 | V44: 0 | Z44: 0 | AA44: 0 | AB44: 0 | AC44: 0 | AD44: 0 | AE44: 0 | AF44: 0 | AG44: 0 | AH44: 0 | AI44: 0 | AM44: 0 | AN44: 0 | AO44: 0 | AR44: 0 | AS44: - | AT44: 0 | AU44: 0 | AY44: 0 | BB44: =dataprofile!CR45/60 -> 0 | BK44: 0 | BN44: 0
A45: 0 | B45: 0 | N45: 0 | R45: 0 | V45: 0 | Z45: 0 | AA45: 0 | AB45: 0 | AC45: 0 | AD45: 0 | AE45: 0 | AF45: 0 | AG45: 0 | AH45: 0 | AI45: 0 | AM45: 0 | AN45: 0 | AO45: 0 | AR45: 0 | AS45: - | AT45: 0 | AU45: 0 | AY45: 0 | BB45: =dataprofile!CR46/60 -> 0 | BK45: 0 | BN45: 0
A46: 0 | B46: 0 | N46: 0 | R46: 0 | V46: 0 | Z46: 0 | AA46: 0 | AB46: 0 | AC46: 0 | AD46: 0 | AE46: 0 | AF46: 0 | AG46: 0 | AH46: 0 | AI46: 0 | AM46: 0 | AN46: 0 | AO46: 0 | AR46: 0 | AS46: - | AT46: 0 | AU46: 0 | AY46: 0 | BB46: =dataprofile!CR47/60 -> 0 | BK46: 0 | BN46: 0
A47: 0 | B47: 0 | N47: 0 | R47: 0 | V47: 0 | Z47: 0 | AA47: 0 | AB47: 0 | AC47: 0 | AD47: 0 | AE47: 0 | AF47: 0 | AG47: 0 | AH47: 0 | AI47: 0 | AM47: 0 | AN47: 0 | AO47: 0 | AR47: 0 | AS47: - | AT47: 0 | AU47: 0 | AY47: 0 | BB47: =dataprofile!CR48/60 -> 0 | BK47: 0 | BN47: 0
A48: 0 | B48: 0 | N48: 0 | R48: 0 | V48: 0 | Z48: 0 | AA48: 0 | AB48: 0 | AC48: 0 | AD48: 0 | AE48: 0 | AF48: 0 | AG48: 0 | AH48: 0 | AI48: 0 | AM48: 0 | AN48: 0 | AO48: 0 | AR48: 0 | AS48: - | AT48: 0 | AU48: 0 | AY48: 0 | BB48: =dataprofile!CR49/60 -> 0 | BK48: 0 | BN48: 0
A49: 0 | B49: 0 | N49: 0 | R49: 0 | V49: 0 | Z49: 0 | AA49: 0 | AB49: 0 | AC49: 0 | AD49: 0 | AE49: 0 | AF49: 0 | AG49: 0 | AH49: 0 | AI49: 0 | AM49: 0 | AN49: 0 | AO49: 0 | AR49: 0 | AS49: - | AT49: 0 | AU49: 0 | AY49: 0 | BB49: =dataprofile!CR50/60 -> 0 | BK49: 0 | BN49: 0
A50: 0 | B50: 0 | N50: 0 | R50: 0 | V50: 0 | Z50: 0 | AA50: 0 | AB50: 0 | AC50: 0 | AD50: 0 | AE50: 0 | AF50: 0 | AG50: 0 | AH50: 0 | AI50: 0 | AM50: 0 | AN50: 0 | AO50: 0 | AR50: 0 | AS50: - | AT50: 0 | AU50: 0 | AY50: 0 | BB50: =dataprofile!CR51/60 -> 0 | BK50: 0 | BN50: 0
A51: 0 | B51: 0 | N51: 0 | R51: 0 | V51: 0 | Z51: 0 | AA51: 0 | AB51: 0 | AC51: 0 | AD51: 0 | AE51: 0 | AF51: 0 | AG51: 0 | AH51: 0 | AI51: 0 | AM51: 0 | AN51: 0 | AO51: 0 | AR51: 0 | AS51: - | AT51: 0 | AU51: 0 | AY51: 0 | BB51: =dataprofile!CR52/60 -> 0 | BK51: 0 | BN51: 0
A52: 0 | B52: 0 | N52: 0 | R52: 0 | V52: 0 | Z52: 0 | AA52: 0 | AB52: 0 | AC52: 0 | AD52: 0 | AE52: 0 | AF52: 0 | AG52: 0 | AH52: 0 | AI52: 0 | AM52: 0 | AN52: 0 | AO52: 0 | AR52: 0 | AS52: - | AT52: 0 | AU52: 0 | AY52: 0 | BB52: =dataprofile!CR53/60 -> 0 | BK52: 0 | BN52: 0
A53: 0 | B53: 0 | N53: 0 | R53: 0 | V53: 0 | Z53: 0 | AA53: 0 | AB53: 0 | AC53: 0 | AD53: 0 | AE53: 0 | AF53: 0 | AG53: 0 | AH53: 0 | AI53: 0 | AM53: 0 | AN53: 0 | AO53: 0 | AR53: 0 | AS53: - | AT53: 0 | AU53: 0 | AY53: 0 | BB53: =dataprofile!CR54/60 -> 0 | BK53: 0 | BN53: 0
A54: 0 | B54: 0 | N54: 0 | R54: 0 | V54: 0 | Z54: 0 | AA54: 0 | AB54: 0 | AC54: 0 | AD54: 0 | AE54: 0 | AF54: 0 | AG54: 0 | AH54: 0 | AI54: 0 | AM54: 0 | AN54: 0 | AO54: 0 | AR54: 0 | AS54: - | AT54: 0 | AU54: 0 | AY54: 0 | BB54: =dataprofile!CR55/60 -> 0 | BK54: 0 | BN54: 0
A55: 0 | B55: 0 | N55: 0 | R55: 0 | V55: 0 | Z55: 0 | AA55: 0 | AB55: 0 | AC55: 0 | AD55: 0 | AE55: 0 | AF55: 0 | AG55: 0 | AH55: 0 | AI55: 0 | AM55: 0 | AN55: 0 | AO55: 0 | AR55: 0 | AS55: - | AT55: 0 | AU55: 0 | AY55: 0 | BB55: =dataprofile!CR56/60 -> 0 | BK55: 0 | BN55: 0
A56: 0 | B56: 0 | N56: 0 | R56: 0 | V56: 0 | Z56: 0 | AA56: 0 | AB56: 0 | AC56: 0 | AD56: 0 | AE56: 0 | AF56: 0 | AG56: 0 | AH56: 0 | AI56: 0 | AM56: 0 | AN56: 0 | AO56: 0 | AR56: 0 | AS56: - | AT56: 0 | AU56: 0 | AY56: 0 | BB56: =dataprofile!CR57/60 -> 0 | BK56: 0 | BN56: 0
A57: 0 | B57: 0 | N57: 0 | R57: 0 | V57: 0 | Z57: 0 | AA57: 0 | AB57: 0 | AC57: 0 | AD57: 0 | AE57: 0 | AF57: 0 | AG57: 0 | AH57: 0 | AI57: 0 | AM57: 0 | AN57: 0 | AO57: 0 | AR57: 0 | AS57: - | AT57: 0 | AU57: 0 | AY57: 0 | BB57: =dataprofile!CR58/60 -> 0 | BK57: 0 | BN57: 0
A58: 0 | B58: 0 | N58: 0 | R58: 0 | V58: 0 | Z58: 0 | AA58: 0 | AB58: 0 | AC58: 0 | AD58: 0 | AE58: 0 | AF58: 0 | AG58: 0 | AH58: 0 | AI58: 0 | AM58: 0 | AN58: 0 | AO58: 0 | AR58: 0 | AS58: - | AT58: 0 | AU58: 0 | AY58: 0 | BB58: =dataprofile!CR59/60 -> 0 | BK58: 0 | BN58: 0
A59: 0 | B59: 0 | N59: 0 | R59: 0 | V59: 0 | Z59: 0 | AA59: 0 | AB59: 0 | AC59: 0 | AD59: 0 | AE59: 0 | AF59: 0 | AG59: 0 | AH59: 0 | AI59: 0 | AM59: 0 | AN59: 0 | AO59: 0 | AR59: 0 | AS59: - | AT59: 0 | AU59: 0 | AY59: 0 | BB59: =dataprofile!CR60/60 -> 0 | BK59: 0 | BN59: 0
A60: 0 | B60: 0 | N60: 0 | R60: 0 | V60: 0 | Z60: 0 | AA60: 0 | AB60: 0 | AC60: 0 | AD60: 0 | AE60: 0 | AF60: 0 | AG60: 0 | AH60: 0 | AI60: 0 | AM60: 0 | AN60: 0 | AO60: 0 | AR60: 0 | AS60: - | AT60: 0 | AU60: 0 | AY60: 0 | BB60: =dataprofile!CR61/60 -> 0 | BK60: 0 | BN60: 0
A61: 0 | B61: 0 | N61: 0 | R61: 0 | V61: 0 | Z61: 0 | AA61: 0 | AB61: 0 | AC61: 0 | AD61: 0 | AE61: 0 | AF61: 0 | AG61: 0 | AH61: 0 | AI61: 0 | AM61: 0 | AN61: 0 | AO61: 0 | AR61: 0 | AS61: - | AT61: 0 | AU61: 0 | AY61: 0 | BB61: =dataprofile!CR62/60 -> 0 | BK61: 0 | BN61: 0
A62: 0 | B62: 0 | N62: 0 | R62: 0 | V62: 0 | Z62: 0 | AA62: 0 | AB62: 0 | AC62: 0 | AD62: 0 | AE62: 0 | AF62: 0 | AG62: 0 | AH62: 0 | AI62: 0 | AM62: 0 | AN62: 0 | AO62: 0 | AR62: 0 | AS62: - | AT62: 0 | AU62: 0 | AY62: 0 | BB62: =dataprofile!CR63/60 -> 0 | BK62: 0 | BN62: 0
A63: 0 | B63: 0 | N63: 0 | R63: 0 | V63: 0 | Z63: 0 | AA63: 0 | AB63: 0 | AC63: 0 | AD63: 0 | AE63: 0 | AF63: 0 | AG63: 0 | AH63: 0 | AI63: 0 | AM63: 0 | AN63: 0 | AO63: 0 | AR63: 0 | AS63: - | AT63: 0 | AU63: 0 | AY63: 0 | BB63: =dataprofile!CR64/60 -> 0 | BK63: 0 | BN63: 0
A64: 0 | B64: 0 | N64: 0 | R64: 0 | V64: 0 | Z64: 0 | AA64: 0 | AB64: 0 | AC64: 0 | AD64: 0 | AE64: 0 | AF64: 0 | AG64: 0 | AH64: 0 | AI64: 0 | AM64: 0 | AN64: 0 | AO64: 0 | AR64: 0 | AS64: - | AT64: 0 | AU64: 0 | AY64: 0 | BB64: =dataprofile!CR65/60 -> 0 | BK64: 0 | BN64: 0
A65: 0 | B65: 0 | N65: 0 | R65: 0 | V65: 0 | Z65: 0 | AA65: 0 | AB65: 0 | AC65: 0 | AD65: 0 | AE65: 0 | AF65: 0 | AG65: 0 | AH65: 0 | AI65: 0 | AM65: 0 | AN65: 0 | AO65: 0 | AR65: 0 | AS65: - | AT65: 0 | AU65: 0 | AY65: 0 | BB65: =dataprofile!CR66/60 -> 0 | BK65: 0 | BN65: 0
A66: 0 | B66: 0 | N66: 0 | R66: 0 | V66: 0 | Z66: 0 | AA66: 0 | AB66: 0 | AC66: 0 | AD66: 0 | AE66: 0 | AF66: 0 | AG66: 0 | AH66: 0 | AI66: 0 | AM66: 0 | AN66: 0 | AO66: 0 | AR66: 0 | AS66: - | AT66: 0 | AU66: 0 | AY66: 0 | BB66: =dataprofile!CR67/60 -> 0 | BK66: 0 | BN66: 0
A67: 0 | B67: 0 | N67: 0 | R67: 0 | V67: 0 | Z67: 0 | AA67: 0 | AB67: 0 | AC67: 0 | AD67: 0 | AE67: 0 | AF67: 0 | AG67: 0 | AH67: 0 | AI67: 0 | AM67: 0 | AN67: 0 | AO67: 0 | AR67: 0 | AS67: - | AT67: 0 | AU67: 0 | AY67: 0 | BB67: =dataprofile!CR68/60 -> 0 | BK67: 0 | BN67: 0
A68: 0 | B68: 0 | N68: 0 | R68: 0 | V68: 0 | Z68: 0 | AA68: 0 | AB68: 0 | AC68: 0 | AD68: 0 | AE68: 0 | AF68: 0 | AG68: 0 | AH68: 0 | AI68: 0 | AM68: 0 | AN68: 0 | AO68: 0 | AR68: 0 | AS68: - | AT68: 0 | AU68: 0 | AY68: 0 | BB68: =dataprofile!CR69/60 -> 0 | BK68: 0 | BN68: 0
A69: 0 | B69: 0 | F69: =D69/C69 ->  | J69: =H69/G69 ->  | N69: 0 | R69: =IFERROR(P69/O69,0) -> 0 | V69: =IFERROR(T69/S69,0) -> 0 | Z69: =IFERROR(X69/W69,0) -> 0 | AA69: 0 | AB69: 0 | AC69: 0 | AD69: 0 | AE69: 0 | AF69: 0 | AG69: 0 | AH69: 0 | AI69: 0 | AJ69: =AG69/SUM($AG69:$AI69) ->  | AK69: =AH69/SUM($AG69:$AI69) ->  | AL69: =AI69/SUM($AG69:$AI69) ->  | AM69: 0 | AN69: 0 | AO69: 0 | AP69: =AN69/AM69 ->  | AQ69: =AO69/AM69 ->  | AR69: 0 | AS69: =IFERROR(AR69/AO69,"-") -> - | AT69: 0 | AU69: 0 | AY69: 0 | BB69: =dataprofile!CR70/60 -> 0 | BK69: 0 | BN69: 0
A70: 0 | B70: 0 | N70: =IFERROR(L70/K70,0) -> 0 | R70: 0 | V70: 0 | Z70: 0 | AA70: 0 | AB70: 0 | AC70: 0 | AD70: 0 | AE70: 0 | AF70: 0 | AG70: 0 | AH70: 0 | AI70: 0 | AM70: 0 | AN70: 0 | AO70: 0 | AR70: 0 | AS70: - | AT70: 0 | AU70: 0 | AY70: 0 | BB70: =dataprofile!CR71/60 -> 0 | BK70: 0 | BN70: 0
A71: 0 | B71: 0 | N71: 0 | R71: 0 | V71: 0 | Z71: 0 | AA71: 0 | AB71: 0 | AC71: 0 | AD71: 0 | AE71: 0 | AF71: 0 | AG71: 0 | AH71: 0 | AI71: 0 | AM71: 0 | AN71: 0 | AO71: 0 | AR71: 0 | AS71: - | AT71: 0 | AU71: 0 | AY71: 0 | BB71: =dataprofile!CR72/60 -> 0 | BK71: 0 | BN71: 0
A72: 0 | B72: 0 | N72: 0 | R72: 0 | V72: 0 | Z72: 0 | AA72: 0 | AB72: 0 | AC72: 0 | AD72: 0 | AE72: 0 | AF72: 0 | AG72: 0 | AH72: 0 | AI72: 0 | AM72: 0 | AN72: 0 | AO72: 0 | AR72: 0 | AS72: - | AT72: 0 | AU72: 0 | AY72: 0 | BB72: =dataprofile!CR73/60 -> 0 | BK72: 0 | BN72: 0
A73: 0 | B73: 0 | N73: 0 | R73: 0 | V73: 0 | Z73: 0 | AA73: 0 | AB73: 0 | AC73: 0 | AD73: 0 | AE73: 0 | AF73: 0 | AG73: 0 | AH73: 0 | AI73: 0 | AM73: 0 | AN73: 0 | AO73: 0 | AR73: 0 | AS73: - | AT73: 0 | AU73: 0 | AY73: 0 | BB73: =dataprofile!CR74/60 -> 0 | BK73: 0 | BN73: 0
A74: 0 | B74: 0 | N74: 0 | R74: 0 | V74: 0 | Z74: 0 | AA74: 0 | AB74: 0 | AC74: 0 | AD74: 0 | AE74: 0 | AF74: 0 | AG74: 0 | AH74: 0 | AI74: 0 | AM74: 0 | AN74: 0 | AO74: 0 | AR74: 0 | AS74: - | AT74: 0 | AU74: 0 | AY74: 0 | BB74: =dataprofile!CR75/60 -> 0 | BK74: 0 | BN74: 0
A75: 0 | B75: 0 | N75: 0 | R75: 0 | V75: 0 | Z75: 0 | AA75: 0 | AB75: 0 | AC75: 0 | AD75: 0 | AE75: 0 | AF75: 0 | AG75: 0 | AH75: 0 | AI75: 0 | AM75: 0 | AN75: 0 | AO75: 0 | AR75: 0 | AS75: - | AT75: 0 | AU75: 0 | AY75: 0 | BB75: =dataprofile!CR76/60 -> 0 | BK75: 0 | BN75: 0
A76: 0 | B76: 0 | N76: 0 | R76: 0 | V76: 0 | Z76: 0 | AA76: 0 | AB76: 0 | AC76: 0 | AD76: 0 | AE76: 0 | AF76: 0 | AG76: 0 | AH76: 0 | AI76: 0 | AM76: 0 | AN76: 0 | AO76: 0 | AR76: 0 | AS76: - | AT76: 0 | AU76: 0 | AY76: 0 | BB76: =dataprofile!CR77/60 -> 0 | BK76: 0 | BN76: 0
A77: 0 | B77: 0 | N77: 0 | R77: 0 | V77: 0 | Z77: 0 | AA77: 0 | AB77: 0 | AC77: 0 | AD77: 0 | AE77: 0 | AF77: 0 | AG77: 0 | AH77: 0 | AI77: 0 | AM77: 0 | AN77: 0 | AO77: 0 | AR77: 0 | AS77: - | AT77: 0 | AU77: 0 | AY77: 0 | BB77: =dataprofile!CR78/60 -> 0 | BK77: 0 | BN77: 0
A78: 0 | B78: 0 | N78: 0 | R78: 0 | V78: 0 | Z78: 0 | AA78: 0 | AB78: 0 | AC78: 0 | AD78: 0 | AE78: 0 | AF78: 0 | AG78: 0 | AH78: 0 | AI78: 0 | AM78: 0 | AN78: 0 | AO78: 0 | AR78: 0 | AS78: - | AT78: 0 | AU78: 0 | AY78: 0 | BB78: =dataprofile!CR79/60 -> 0 | BK78: 0 | BN78: 0
A79: 0 | B79: 0 | N79: 0 | R79: 0 | V79: 0 | Z79: 0 | AA79: 0 | AB79: 0 | AC79: 0 | AD79: 0 | AE79: 0 | AF79: 0 | AG79: 0 | AH79: 0 | AI79: 0 | AM79: 0 | AN79: 0 | AO79: 0 | AR79: 0 | AS79: - | AT79: 0 | AU79: 0 | AY79: 0 | BB79: =dataprofile!CR80/60 -> 0 | BK79: 0 | BN79: 0
A80: 0 | B80: 0 | N80: 0 | R80: 0 | V80: 0 | Z80: 0 | AA80: 0 | AB80: 0 | AC80: 0 | AD80: 0 | AE80: 0 | AF80: 0 | AG80: 0 | AH80: 0 | AI80: 0 | AM80: 0 | AN80: 0 | AO80: 0 | AR80: 0 | AS80: - | AT80: 0 | AU80: 0 | AY80: 0 | BB80: =dataprofile!CR81/60 -> 0 | BK80: 0 | BN80: 0
A81: 0 | B81: 0 | N81: 0 | R81: 0 | V81: 0 | Z81: 0 | AA81: 0 | AB81: 0 | AC81: 0 | AD81: 0 | AE81: 0 | AF81: 0 | AG81: 0 | AH81: 0 | AI81: 0 | AM81: 0 | AN81: 0 | AO81: 0 | AR81: 0 | AS81: - | AT81: 0 | AU81: 0 | AY81: 0 | BB81: =dataprofile!CR82/60 -> 0 | BK81: 0 | BN81: 0
A82: 0 | B82: 0 | N82: 0 | R82: 0 | V82: 0 | Z82: 0 | AA82: 0 | AB82: 0 | AC82: 0 | AD82: 0 | AE82: 0 | AF82: 0 | AG82: 0 | AH82: 0 | AI82: 0 | AM82: 0 | AN82: 0 | AO82: 0 | AR82: 0 | AS82: - | AT82: 0 | AU82: 0 | AY82: 0 | BB82: =dataprofile!CR83/60 -> 0 | BK82: 0 | BN82: 0
A83: 0 | B83: 0 | N83: 0 | R83: 0 | V83: 0 | Z83: 0 | AA83: 0 | AB83: 0 | AC83: 0 | AD83: 0 | AE83: 0 | AF83: 0 | AG83: 0 | AH83: 0 | AI83: 0 | AM83: 0 | AN83: 0 | AO83: 0 | AR83: 0 | AS83: - | AT83: 0 | AU83: 0 | AY83: 0 | BB83: =dataprofile!CR84/60 -> 0 | BK83: 0 | BN83: 0
A84: 0 | B84: 0 | N84: 0 | R84: 0 | V84: 0 | Z84: 0 | AA84: 0 | AB84: 0 | AC84: 0 | AD84: 0 | AE84: 0 | AF84: 0 | AG84: 0 | AH84: 0 | AI84: 0 | AM84: 0 | AN84: 0 | AO84: 0 | AR84: 0 | AS84: - | AT84: 0 | AU84: 0 | AY84: 0 | BB84: =dataprofile!CR85/60 -> 0 | BK84: 0 | BN84: 0
A85: 0 | B85: 0 | N85: 0 | R85: 0 | V85: 0 | Z85: 0 | AA85: 0 | AB85: 0 | AC85: 0 | AD85: 0 | AE85: 0 | AF85: 0 | AG85: 0 | AH85: 0 | AI85: 0 | AM85: 0 | AN85: 0 | AO85: 0 | AR85: 0 | AS85: - | AT85: 0 | AU85: 0 | AY85: 0 | BB85: =dataprofile!CR86/60 -> 0 | BK85: 0 | BN85: 0
A86: 0 | B86: 0 | N86: 0 | R86: 0 | V86: 0 | Z86: 0 | AA86: 0 | AB86: 0 | AC86: 0 | AD86: 0 | AE86: 0 | AF86: 0 | AG86: 0 | AH86: 0 | AI86: 0 | AM86: 0 | AN86: 0 | AO86: 0 | AR86: 0 | AS86: - | AT86: 0 | AU86: 0 | AY86: 0 | BB86: =dataprofile!CR87/60 -> 0 | BK86: 0 | BN86: 0
A87: 0 | B87: 0 | N87: 0 | R87: 0 | V87: 0 | Z87: 0 | AA87: 0 | AB87: 0 | AC87: 0 | AD87: 0 | AE87: 0 | AF87: 0 | AG87: 0 | AH87: 0 | AI87: 0 | AM87: 0 | AN87: 0 | AO87: 0 | AR87: 0 | AS87: - | AT87: 0 | AU87: 0 | AY87: 0 | BB87: =dataprofile!CR88/60 -> 0 | BK87: 0 | BN87: 0
A88: 0 | B88: 0 | N88: 0 | R88: 0 | V88: 0 | Z88: 0 | AA88: 0 | AB88: 0 | AC88: 0 | AD88: 0 | AE88: 0 | AF88: 0 | AG88: 0 | AH88: 0 | AI88: 0 | AM88: 0 | AN88: 0 | AO88: 0 | AR88: 0 | AS88: - | AT88: 0 | AU88: 0 | AY88: 0 | BB88: =dataprofile!CR89/60 -> 0 | BK88: 0 | BN88: 0
A89: 0 | B89: 0 | N89: 0 | R89: 0 | V89: 0 | Z89: 0 | AA89: 0 | AB89: 0 | AC89: 0 | AD89: 0 | AE89: 0 | AF89: 0 | AG89: 0 | AH89: 0 | AI89: 0 | AM89: 0 | AN89: 0 | AO89: 0 | AR89: 0 | AS89: - | AT89: 0 | AU89: 0 | AY89: 0 | BB89: =dataprofile!CR90/60 -> 0 | BK89: 0 | BN89: 0
A90: 0 | B90: 0 | N90: 0 | R90: 0 | V90: 0 | Z90: 0 | AA90: 0 | AB90: 0 | AC90: 0 | AD90: 0 | AE90: 0 | AF90: 0 | AG90: 0 | AH90: 0 | AI90: 0 | AM90: 0 | AN90: 0 | AO90: 0 | AR90: 0 | AS90: - | AT90: 0 | AU90: 0 | AY90: 0 | BB90: =dataprofile!CR91/60 -> 0 | BK90: 0 | BN90: 0
A91: 0 | B91: 0 | N91: 0 | R91: 0 | V91: 0 | Z91: 0 | AA91: 0 | AB91: 0 | AC91: 0 | AD91: 0 | AE91: 0 | AF91: 0 | AG91: 0 | AH91: 0 | AI91: 0 | AM91: 0 | AN91: 0 | AO91: 0 | AR91: 0 | AS91: - | AT91: 0 | AU91: 0 | AY91: 0 | BB91: =dataprofile!CR92/60 -> 0 | BK91: 0 | BN91: 0
A92: 0 | B92: 0 | N92: 0 | R92: 0 | V92: 0 | Z92: 0 | AA92: 0 | AB92: 0 | AC92: 0 | AD92: 0 | AE92: 0 | AF92: 0 | AG92: 0 | AH92: 0 | AI92: 0 | AM92: 0 | AN92: 0 | AO92: 0 | AR92: 0 | AS92: - | AT92: 0 | AU92: 0 | AY92: 0 | BB92: =dataprofile!CR93/60 -> 0 | BK92: 0 | BN92: 0
A93: 0 | B93: 0 | N93: 0 | R93: 0 | V93: 0 | Z93: 0 | AA93: 0 | AB93: 0 | AC93: 0 | AD93: 0 | AE93: 0 | AF93: 0 | AG93: 0 | AH93: 0 | AI93: 0 | AM93: 0 | AN93: 0 | AO93: 0 | AR93: 0 | AS93: - | AT93: 0 | AU93: 0 | AY93: 0 | BB93: =dataprofile!CR94/60 -> 0 | BK93: 0 | BN93: 0
A94: 0 | B94: 0 | N94: 0 | R94: 0 | V94: 0 | Z94: 0 | AA94: 0 | AB94: 0 | AC94: 0 | AD94: 0 | AE94: 0 | AF94: 0 | AG94: 0 | AH94: 0 | AI94: 0 | AM94: 0 | AN94: 0 | AO94: 0 | AR94: 0 | AS94: - | AT94: 0 | AU94: 0 | AY94: 0 | BB94: =dataprofile!CR95/60 -> 0 | BK94: 0 | BN94: 0
A95: 0 | B95: 0 | N95: 0 | R95: 0 | V95: 0 | Z95: 0 | AA95: 0 | AB95: 0 | AC95: 0 | AD95: 0 | AE95: 0 | AF95: 0 | AG95: 0 | AH95: 0 | AI95: 0 | AM95: 0 | AN95: 0 | AO95: 0 | AR95: 0 | AS95: - | AT95: 0 | AU95: 0 | AY95: 0 | BB95: =dataprofile!CR96/60 -> 0 | BK95: 0 | BN95: 0
A96: 0 | B96: 0 | N96: 0 | R96: 0 | V96: 0 | Z96: 0 | AA96: 0 | AB96: 0 | AC96: 0 | AD96: 0 | AE96: 0 | AF96: 0 | AG96: 0 | AH96: 0 | AI96: 0 | AM96: 0 | AN96: 0 | AO96: 0 | AR96: 0 | AS96: - | AT96: 0 | AU96: 0 | AY96: 0 | BB96: =dataprofile!CR97/60 -> 0 | BK96: 0 | BN96: 0
A97: 0 | B97: 0 | N97: 0 | R97: 0 | V97: 0 | Z97: 0 | AA97: 0 | AB97: 0 | AC97: 0 | AD97: 0 | AE97: 0 | AF97: 0 | AG97: 0 | AH97: 0 | AI97: 0 | AM97: 0 | AN97: 0 | AO97: 0 | AR97: 0 | AS97: - | AT97: 0 | AU97: 0 | AY97: 0 | BB97: =dataprofile!CR98/60 -> 0 | BK97: 0 | BN97: 0
A98: 0 | B98: 0 | N98: 0 | R98: 0 | V98: 0 | Z98: 0 | AA98: 0 | AB98: 0 | AC98: 0 | AD98: 0 | AE98: 0 | AF98: 0 | AG98: 0 | AH98: 0 | AI98: 0 | AM98: 0 | AN98: 0 | AO98: 0 | AR98: 0 | AS98: - | AT98: 0 | AU98: 0 | AY98: 0 | BB98: =dataprofile!CR99/60 -> 0 | BK98: 0 | BN98: 0
A99: 0 | B99: 0 | N99: 0 | R99: 0 | V99: 0 | Z99: 0 | AA99: 0 | AB99: 0 | AC99: 0 | AD99: 0 | AE99: 0 | AF99: 0 | AG99: 0 | AH99: 0 | AI99: 0 | AM99: 0 | AN99: 0 | AO99: 0 | AR99: 0 | AS99: - | AT99: 0 | AU99: 0 | AY99: 0 | BB99: =dataprofile!CR100/60 -> 0 | BK99: 0 | BN99: 0
A100: 0 | B100: 0 | N100: 0 | R100: 0 | V100: 0 | Z100: 0 | AA100: 0 | AB100: 0 | AC100: 0 | AD100: 0 | AE100: 0 | AF100: 0 | AG100: 0 | AH100: 0 | AI100: 0 | AM100: 0 | AN100: 0 | AO100: 0 | AR100: 0 | AS100: - | AT100: 0 | AU100: 0 | AY100: 0 | BB100: =dataprofile!CR101/60 -> 0 | BK100: 0 | BN100: 0
A101: 0 | B101: 0 | N101: 0 | R101: 0 | V101: 0 | Z101: 0 | AA101: 0 | AB101: 0 | AC101: 0 | AD101: 0 | AE101: 0 | AF101: 0 | AG101: 0 | AH101: 0 | AI101: 0 | AM101: 0 | AN101: 0 | AO101: 0 | AR101: 0 | AS101: - | AT101: 0 | AU101: 0 | AY101: 0 | BB101: =dataprofile!CR102/60 -> 0 | BK101: 0 | BN101: 0
A102: 0 | B102: 0 | N102: 0 | R102: 0 | V102: 0 | Z102: 0 | AA102: 0 | AB102: 0 | AC102: 0 | AD102: 0 | AE102: 0 | AF102: 0 | AG102: 0 | AH102: 0 | AI102: 0 | AM102: 0 | AN102: 0 | AO102: 0 | AR102: 0 | AS102: - | AT102: 0 | AU102: 0 | AY102: 0 | BB102: =dataprofile!CR103/60 -> 0 | BK102: 0 | BN102: 0
A103: 0 | B103: 0 | N103: 0 | R103: 0 | V103: 0 | Z103: 0 | AA103: 0 | AB103: 0 | AC103: 0 | AD103: 0 | AE103: 0 | AF103: 0 | AG103: 0 | AH103: 0 | AI103: 0 | AM103: 0 | AN103: 0 | AO103: 0 | AR103: 0 | AS103: - | AT103: 0 | AU103: 0 | AY103: 0 | BB103: =dataprofile!CR104/60 -> 0 | BK103: 0 | BN103: 0
A104: 0 | B104: 0 | N104: 0 | R104: 0 | V104: 0 | Z104: 0 | AA104: 0 | AB104: 0 | AC104: 0 | AD104: 0 | AE104: 0 | AF104: 0 | AG104: 0 | AH104: 0 | AI104: 0 | AM104: 0 | AN104: 0 | AO104: 0 | AR104: 0 | AS104: - | AT104: 0 | AU104: 0 | AY104: 0 | BB104: =dataprofile!CR105/60 -> 0 | BK104: 0 | BN104: 0
A105: 0 | B105: 0 | N105: 0 | R105: 0 | V105: 0 | Z105: 0 | AA105: 0 | AB105: 0 | AC105: 0 | AD105: 0 | AE105: 0 | AF105: 0 | AG105: 0 | AH105: 0 | AI105: 0 | AM105: 0 | AN105: 0 | AO105: 0 | AR105: 0 | AS105: - | AT105: 0 | AU105: 0 | AY105: 0 | BB105: =dataprofile!CR106/60 -> 0 | BK105: 0 | BN105: 0
A106: 0 | B106: 0 | N106: 0 | R106: 0 | V106: 0 | Z106: 0 | AA106: 0 | AB106: 0 | AC106: 0 | AD106: 0 | AE106: 0 | AF106: 0 | AG106: 0 | AH106: 0 | AI106: 0 | AM106: 0 | AN106: 0 | AO106: 0 | AR106: 0 | AS106: - | AT106: 0 | AU106: 0 | AY106: 0 | BB106: =dataprofile!CR107/60 -> 0 | BK106: 0 | BN106: 0
A107: 0 | B107: 0 | N107: 0 | R107: 0 | V107: 0 | Z107: 0 | AA107: 0 | AB107: 0 | AC107: 0 | AD107: 0 | AE107: 0 | AF107: 0 | AG107: 0 | AH107: 0 | AI107: 0 | AM107: 0 | AN107: 0 | AO107: 0 | AR107: 0 | AS107: - | AT107: 0 | AU107: 0 | AY107: 0 | BB107: =dataprofile!CR108/60 -> 0 | BK107: 0 | BN107: 0
A108: 0 | B108: 0 | N108: 0 | R108: 0 | V108: 0 | Z108: 0 | AA108: 0 | AB108: 0 | AC108: 0 | AD108: 0 | AE108: 0 | AF108: 0 | AG108: 0 | AH108: 0 | AI108: 0 | AM108: 0 | AN108: 0 | AO108: 0 | AR108: 0 | AS108: - | AT108: 0 | AU108: 0 | AY108: 0 | BB108: =dataprofile!CR109/60 -> 0 | BK108: 0 | BN108: 0
A109: 0 | B109: 0 | N109: 0 | R109: 0 | V109: 0 | Z109: 0 | AA109: 0 | AB109: 0 | AC109: 0 | AD109: 0 | AE109: 0 | AF109: 0 | AG109: 0 | AH109: 0 | AI109: 0 | AM109: 0 | AN109: 0 | AO109: 0 | AR109: 0 | AS109: - | AT109: 0 | AU109: 0 | AY109: 0 | BB109: =dataprofile!CR110/60 -> 0 | BK109: 0 | BN109: 0
A110: 0 | B110: 0 | N110: 0 | R110: 0 | V110: 0 | Z110: 0 | AA110: 0 | AB110: 0 | AC110: 0 | AD110: 0 | AE110: 0 | AF110: 0 | AG110: 0 | AH110: 0 | AI110: 0 | AM110: 0 | AN110: 0 | AO110: 0 | AR110: 0 | AS110: - | AT110: 0 | AU110: 0 | AY110: 0 | BB110: =dataprofile!CR111/60 -> 0 | BK110: 0 | BN110: 0
A111: 0 | B111: 0 | N111: 0 | R111: 0 | V111: 0 | Z111: 0 | AA111: 0 | AB111: 0 | AC111: 0 | AD111: 0 | AE111: 0 | AF111: 0 | AG111: 0 | AH111: 0 | AI111: 0 | AM111: 0 | AN111: 0 | AO111: 0 | AR111: 0 | AS111: - | AT111: 0 | AU111: 0 | AY111: 0 | BB111: =dataprofile!CR112/60 -> 0 | BK111: 0 | BN111: 0
A112: 0 | B112: 0 | N112: 0 | R112: 0 | V112: 0 | Z112: 0 | AA112: 0 | AB112: 0 | AC112: 0 | AD112: 0 | AE112: 0 | AF112: 0 | AG112: 0 | AH112: 0 | AI112: 0 | AM112: 0 | AN112: 0 | AO112: 0 | AR112: 0 | AS112: - | AT112: 0 | AU112: 0 | AY112: 0 | BB112: =dataprofile!CR113/60 -> 0 | BK112: 0 | BN112: 0
A113: 0 | B113: 0 | N113: 0 | R113: 0 | V113: 0 | Z113: 0 | AA113: 0 | AB113: 0 | AC113: 0 | AD113: 0 | AE113: 0 | AF113: 0 | AG113: 0 | AH113: 0 | AI113: 0 | AM113: 0 | AN113: 0 | AO113: 0 | AR113: 0 | AS113: - | AT113: 0 | AU113: 0 | AY113: 0 | BB113: =dataprofile!CR114/60 -> 0 | BK113: 0 | BN113: 0
A114: 0 | B114: 0 | N114: 0 | R114: 0 | V114: 0 | Z114: 0 | AA114: 0 | AB114: 0 | AC114: 0 | AD114: 0 | AE114: 0 | AF114: 0 | AG114: 0 | AH114: 0 | AI114: 0 | AM114: 0 | AN114: 0 | AO114: 0 | AR114: 0 | AS114: - | AT114: 0 | AU114: 0 | AY114: 0 | BB114: =dataprofile!CR115/60 -> 0 | BK114: 0 | BN114: 0
A115: 0 | B115: 0 | N115: 0 | R115: 0 | V115: 0 | Z115: 0 | AA115: 0 | AB115: 0 | AC115: 0 | AD115: 0 | AE115: 0 | AF115: 0 | AG115: 0 | AH115: 0 | AI115: 0 | AM115: 0 | AN115: 0 | AO115: 0 | AR115: 0 | AS115: - | AT115: 0 | AU115: 0 | AY115: 0 | BB115: =dataprofile!CR116/60 -> 0 | BK115: 0 | BN115: 0
A116: 0 | B116: 0 | N116: 0 | R116: 0 | V116: 0 | Z116: 0 | AA116: 0 | AB116: 0 | AC116: 0 | AD116: 0 | AE116: 0 | AF116: 0 | AG116: 0 | AH116: 0 | AI116: 0 | AM116: 0 | AN116: 0 | AO116: 0 | AR116: 0 | AS116: - | AT116: 0 | AU116: 0 | AY116: 0 | BB116: =dataprofile!CR117/60 -> 0 | BK116: 0 | BN116: 0
A117: 0 | B117: 0 | N117: 0 | R117: 0 | V117: 0 | Z117: 0 | AA117: 0 | AB117: 0 | AC117: 0 | AD117: 0 | AE117: 0 | AF117: 0 | AG117: 0 | AH117: 0 | AI117: 0 | AM117: 0 | AN117: 0 | AO117: 0 | AR117: 0 | AS117: - | AT117: 0 | AU117: 0 | AY117: 0 | BB117: =dataprofile!CR118/60 -> 0 | BK117: 0 | BN117: 0
A118: 0 | B118: 0 | N118: 0 | R118: 0 | V118: 0 | Z118: 0 | AA118: 0 | AB118: 0 | AC118: 0 | AD118: 0 | AE118: 0 | AF118: 0 | AG118: 0 | AH118: 0 | AI118: 0 | AM118: 0 | AN118: 0 | AO118: 0 | AR118: 0 | AS118: - | AT118: 0 | AU118: 0 | AY118: 0 | BB118: =dataprofile!CR119/60 -> 0 | BK118: 0 | BN118: 0
A119: 0 | B119: 0 | N119: 0 | R119: 0 | V119: 0 | Z119: 0 | AA119: 0 | AB119: 0 | AC119: 0 | AD119: 0 | AE119: 0 | AF119: 0 | AG119: 0 | AH119: 0 | AI119: 0 | AM119: 0 | AN119: 0 | AO119: 0 | AR119: 0 | AS119: - | AT119: 0 | AU119: 0 | AY119: 0 | BB119: =dataprofile!CR120/60 -> 0 | BK119: 0 | BN119: 0
A120: 0 | B120: 0 | N120: 0 | R120: 0 | V120: 0 | Z120: 0 | AA120: 0 | AB120: 0 | AC120: 0 | AD120: 0 | AE120: 0 | AF120: 0 | AG120: 0 | AH120: 0 | AI120: 0 | AM120: 0 | AN120: 0 | AO120: 0 | AR120: 0 | AS120: - | AT120: 0 | AU120: 0 | AY120: 0 | BB120: =dataprofile!CR121/60 -> 0 | BK120: 0 | BN120: 0
A121: 0 | B121: 0 | N121: 0 | R121: 0 | V121: 0 | Z121: 0 | AA121: 0 | AB121: 0 | AC121: 0 | AD121: 0 | AE121: 0 | AF121: 0 | AG121: 0 | AH121: 0 | AI121: 0 | AM121: 0 | AN121: 0 | AO121: 0 | AR121: 0 | AS121: - | AT121: 0 | AU121: 0 | AY121: 0 | BB121: =dataprofile!CR122/60 -> 0 | BK121: 0 | BN121: 0
A122: 0 | B122: 0 | N122: 0 | R122: 0 | V122: 0 | Z122: 0 | AA122: 0 | AB122: 0 | AC122: 0 | AD122: 0 | AE122: 0 | AF122: 0 | AG122: 0 | AH122: 0 | AI122: 0 | AM122: 0 | AN122: 0 | AO122: 0 | AR122: 0 | AS122: - | AT122: 0 | AU122: 0 | AY122: 0 | BB122: =dataprofile!CR123/60 -> 0 | BK122: 0 | BN122: 0
A123: 0 | B123: 0 | N123: 0 | R123: 0 | V123: 0 | Z123: 0 | AA123: 0 | AB123: 0 | AC123: 0 | AD123: 0 | AE123: 0 | AF123: 0 | AG123: 0 | AH123: 0 | AI123: 0 | AM123: 0 | AN123: 0 | AO123: 0 | AR123: 0 | AS123: - | AT123: 0 | AU123: 0 | AY123: 0 | BB123: =dataprofile!CR124/60 -> 0 | BK123: 0 | BN123: 0
A124: 0 | B124: 0 | N124: 0 | R124: 0 | V124: 0 | Z124: 0 | AA124: 0 | AB124: 0 | AC124: 0 | AD124: 0 | AE124: 0 | AF124: 0 | AG124: 0 | AH124: 0 | AI124: 0 | AM124: 0 | AN124: 0 | AO124: 0 | AR124: 0 | AS124: - | AT124: 0 | AU124: 0 | AY124: 0 | BB124: =dataprofile!CR125/60 -> 0 | BK124: 0 | BN124: 0
A125: 0 | B125: 0 | N125: 0 | R125: 0 | V125: 0 | Z125: 0 | AA125: 0 | AB125: 0 | AC125: 0 | AD125: 0 | AE125: 0 | AF125: 0 | AG125: 0 | AH125: 0 | AI125: 0 | AM125: 0 | AN125: 0 | AO125: 0 | AR125: 0 | AS125: - | AT125: 0 | AU125: 0 | AY125: 0 | BB125: =dataprofile!CR126/60 -> 0 | BK125: 0 | BN125: 0
A126: 0 | B126: 0 | N126: 0 | R126: 0 | V126: 0 | Z126: 0 | AA126: 0 | AB126: 0 | AC126: 0 | AD126: 0 | AE126: 0 | AF126: 0 | AG126: 0 | AH126: 0 | AI126: 0 | AM126: 0 | AN126: 0 | AO126: 0 | AR126: 0 | AS126: - | AT126: 0 | AU126: 0 | AY126: 0 | BB126: =dataprofile!CR127/60 -> 0 | BK126: 0 | BN126: 0
A127: 0 | B127: 0 | N127: 0 | R127: 0 | V127: 0 | Z127: 0 | AA127: 0 | AB127: 0 | AC127: 0 | AD127: 0 | AE127: 0 | AF127: 0 | AG127: 0 | AH127: 0 | AI127: 0 | AM127: 0 | AN127: 0 | AO127: 0 | AR127: 0 | AS127: - | AT127: 0 | AU127: 0 | AY127: 0 | BB127: =dataprofile!CR128/60 -> 0 | BK127: 0 | BN127: 0
A128: 0 | B128: 0 | N128: 0 | R128: 0 | V128: 0 | Z128: 0 | AA128: 0 | AB128: 0 | AC128: 0 | AD128: 0 | AE128: 0 | AF128: 0 | AG128: 0 | AH128: 0 | AI128: 0 | AM128: 0 | AN128: 0 | AO128: 0 | AR128: 0 | AS128: - | AT128: 0 | AU128: 0 | AY128: 0 | BB128: =dataprofile!CR129/60 -> 0 | BK128: 0 | BN128: 0
A129: 0 | B129: 0 | N129: 0 | R129: 0 | V129: 0 | Z129: 0 | AA129: 0 | AB129: 0 | AC129: 0 | AD129: 0 | AE129: 0 | AF129: 0 | AG129: 0 | AH129: 0 | AI129: 0 | AM129: 0 | AN129: 0 | AO129: 0 | AR129: 0 | AS129: - | AT129: 0 | AU129: 0 | AY129: 0 | BB129: =dataprofile!CR130/60 -> 0 | BK129: 0 | BN129: 0
A130: 0 | B130: 0 | N130: 0 | R130: 0 | V130: 0 | Z130: 0 | AA130: 0 | AB130: 0 | AC130: 0 | AD130: 0 | AE130: 0 | AF130: 0 | AG130: 0 | AH130: 0 | AI130: 0 | AM130: 0 | AN130: 0 | AO130: 0 | AR130: 0 | AS130: - | AT130: 0 | AU130: 0 | AY130: 0 | BB130: =dataprofile!CR131/60 -> 0 | BK130: 0 | BN130: 0
A131: 0 | B131: 0 | N131: 0 | R131: 0 | V131: 0 | Z131: 0 | AA131: 0 | AB131: 0 | AC131: 0 | AD131: 0 | AE131: 0 | AF131: 0 | AG131: 0 | AH131: 0 | AI131: 0 | AM131: 0 | AN131: 0 | AO131: 0 | AR131: 0 | AS131: - | AT131: 0 | AU131: 0 | AY131: 0 | BB131: =dataprofile!CR132/60 -> 0 | BK131: 0 | BN131: 0
A132: 0 | B132: 0 | N132: 0 | R132: 0 | V132: 0 | Z132: 0 | AA132: 0 | AB132: 0 | AC132: 0 | AD132: 0 | AE132: 0 | AF132: 0 | AG132: 0 | AH132: 0 | AI132: 0 | AM132: 0 | AN132: 0 | AO132: 0 | AR132: 0 | AS132: - | AT132: 0 | AU132: 0 | AY132: 0 | BB132: =dataprofile!CR133/60 -> 0 | BK132: 0 | BN132: 0
A133: 0 | B133: 0 | F133: =D133/C133 ->  | J133: =H133/G133 ->  | N133: 0 | R133: =IFERROR(P133/O133,0) -> 0 | V133: =IFERROR(T133/S133,0) -> 0 | Z133: =IFERROR(X133/W133,0) -> 0 | AA133: 0 | AB133: 0 | AC133: 0 | AD133: 0 | AE133: 0 | AF133: 0 | AG133: 0 | AH133: 0 | AI133: 0 | AJ133: =AG133/SUM($AG133:$AI133) ->  | AK133: =AH133/SUM($AG133:$AI133) ->  | AL133: =AI133/SUM($AG133:$AI133) ->  | AM133: 0 | AN133: 0 | AO133: 0 | AP133: =AN133/AM133 ->  | AQ133: =AO133/AM133 ->  | AR133: 0 | AS133: =IFERROR(AR133/AO133,"-") -> - | AT133: 0 | AU133: 0 | AY133: 0 | BB133: =dataprofile!CR134/60 -> 0 | BK133: 0 | BN133: 0
A134: 0 | B134: 0 | N134: =IFERROR(L134/K134,0) -> 0 | R134: 0 | V134: 0 | Z134: 0 | AA134: 0 | AB134: 0 | AC134: 0 | AD134: 0 | AE134: 0 | AF134: 0 | AG134: 0 | AH134: 0 | AI134: 0 | AM134: 0 | AN134: 0 | AO134: 0 | AR134: 0 | AS134: - | AT134: 0 | AU134: 0 | AY134: 0 | BB134: =dataprofile!CR135/60 -> 0 | BK134: 0 | BN134: 0
A135: 0 | B135: 0 | N135: 0 | R135: 0 | V135: 0 | Z135: 0 | AA135: 0 | AB135: 0 | AC135: 0 | AD135: 0 | AE135: 0 | AF135: 0 | AG135: 0 | AH135: 0 | AI135: 0 | AM135: 0 | AN135: 0 | AO135: 0 | AR135: 0 | AS135: - | AT135: 0 | AU135: 0 | AY135: 0 | BB135: =dataprofile!CR136/60 -> 0 | BK135: 0 | BN135: 0
A136: 0 | B136: 0 | N136: 0 | R136: 0 | V136: 0 | Z136: 0 | AA136: 0 | AB136: 0 | AC136: 0 | AD136: 0 | AE136: 0 | AF136: 0 | AG136: 0 | AH136: 0 | AI136: 0 | AM136: 0 | AN136: 0 | AO136: 0 | AR136: 0 | AS136: - | AT136: 0 | AU136: 0 | AY136: 0 | BB136: =dataprofile!CR137/60 -> 0 | BK136: 0 | BN136: 0
A137: 0 | B137: 0 | N137: 0 | R137: 0 | V137: 0 | Z137: 0 | AA137: 0 | AB137: 0 | AC137: 0 | AD137: 0 | AE137: 0 | AF137: 0 | AG137: 0 | AH137: 0 | AI137: 0 | AM137: 0 | AN137: 0 | AO137: 0 | AR137: 0 | AS137: - | AT137: 0 | AU137: 0 | AY137: 0 | BB137: =dataprofile!CR138/60 -> 0 | BK137: 0 | BN137: 0
A138: 0 | B138: 0 | N138: 0 | R138: 0 | V138: 0 | Z138: 0 | AA138: 0 | AB138: 0 | AC138: 0 | AD138: 0 | AE138: 0 | AF138: 0 | AG138: 0 | AH138: 0 | AI138: 0 | AM138: 0 | AN138: 0 | AO138: 0 | AR138: 0 | AS138: - | AT138: 0 | AU138: 0 | AY138: 0 | BB138: =dataprofile!CR139/60 -> 0 | BK138: 0 | BN138: 0
A139: 0 | B139: 0 | N139: 0 | R139: 0 | V139: 0 | Z139: 0 | AA139: 0 | AB139: 0 | AC139: 0 | AD139: 0 | AE139: 0 | AF139: 0 | AG139: 0 | AH139: 0 | AI139: 0 | AM139: 0 | AN139: 0 | AO139: 0 | AR139: 0 | AS139: - | AT139: 0 | AU139: 0 | AY139: 0 | BB139: =dataprofile!CR140/60 -> 0 | BK139: 0 | BN139: 0
A140: 0 | B140: 0 | N140: 0 | R140: 0 | V140: 0 | Z140: 0 | AA140: 0 | AB140: 0 | AC140: 0 | AD140: 0 | AE140: 0 | AF140: 0 | AG140: 0 | AH140: 0 | AI140: 0 | AM140: 0 | AN140: 0 | AO140: 0 | AR140: 0 | AS140: - | AT140: 0 | AU140: 0 | AY140: 0 | BB140: =dataprofile!CR141/60 -> 0 | BK140: 0 | BN140: 0
A141: 0 | B141: 0 | N141: 0 | R141: 0 | V141: 0 | Z141: 0 | AA141: 0 | AB141: 0 | AC141: 0 | AD141: 0 | AE141: 0 | AF141: 0 | AG141: 0 | AH141: 0 | AI141: 0 | AM141: 0 | AN141: 0 | AO141: 0 | AR141: 0 | AS141: - | AT141: 0 | AU141: 0 | AY141: 0 | BB141: =dataprofile!CR142/60 -> 0 | BK141: 0 | BN141: 0
A142: 0 | B142: 0 | N142: 0 | R142: 0 | V142: 0 | Z142: 0 | AA142: 0 | AB142: 0 | AC142: 0 | AD142: 0 | AE142: 0 | AF142: 0 | AG142: 0 | AH142: 0 | AI142: 0 | AM142: 0 | AN142: 0 | AO142: 0 | AR142: 0 | AS142: - | AT142: 0 | AU142: 0 | AY142: 0 | BB142: =dataprofile!CR143/60 -> 0 | BK142: 0 | BN142: 0
A143: 0 | B143: 0 | N143: 0 | R143: 0 | V143: 0 | Z143: 0 | AA143: 0 | AB143: 0 | AC143: 0 | AD143: 0 | AE143: 0 | AF143: 0 | AG143: 0 | AH143: 0 | AI143: 0 | AM143: 0 | AN143: 0 | AO143: 0 | AR143: 0 | AS143: - | AT143: 0 | AU143: 0 | AY143: 0 | BB143: =dataprofile!CR144/60 -> 0 | BK143: 0 | BN143: 0
A144: 0 | B144: 0 | N144: 0 | R144: 0 | V144: 0 | Z144: 0 | AA144: 0 | AB144: 0 | AC144: 0 | AD144: 0 | AE144: 0 | AF144: 0 | AG144: 0 | AH144: 0 | AI144: 0 | AM144: 0 | AN144: 0 | AO144: 0 | AR144: 0 | AS144: - | AT144: 0 | AU144: 0 | AY144: 0 | BB144: =dataprofile!CR145/60 -> 0 | BK144: 0 | BN144: 0
A145: 0 | B145: 0 | N145: 0 | R145: 0 | V145: 0 | Z145: 0 | AA145: 0 | AB145: 0 | AC145: 0 | AD145: 0 | AE145: 0 | AF145: 0 | AG145: 0 | AH145: 0 | AI145: 0 | AM145: 0 | AN145: 0 | AO145: 0 | AR145: 0 | AS145: - | AT145: 0 | AU145: 0 | AY145: 0 | BB145: =dataprofile!CR146/60 -> 0 | BK145: 0 | BN145: 0
A146: 0 | B146: 0 | N146: 0 | R146: 0 | V146: 0 | Z146: 0 | AA146: 0 | AB146: 0 | AC146: 0 | AD146: 0 | AE146: 0 | AF146: 0 | AG146: 0 | AH146: 0 | AI146: 0 | AM146: 0 | AN146: 0 | AO146: 0 | AR146: 0 | AS146: - | AT146: 0 | AU146: 0 | AY146: 0 | BB146: =dataprofile!CR147/60 -> 0 | BK146: 0 | BN146: 0
A147: 0 | B147: 0 | N147: 0 | R147: 0 | V147: 0 | Z147: 0 | AA147: 0 | AB147: 0 | AC147: 0 | AD147: 0 | AE147: 0 | AF147: 0 | AG147: 0 | AH147: 0 | AI147: 0 | AM147: 0 | AN147: 0 | AO147: 0 | AR147: 0 | AS147: - | AT147: 0 | AU147: 0 | AY147: 0 | BB147: =dataprofile!CR148/60 -> 0 | BK147: 0 | BN147: 0
A148: 0 | B148: 0 | N148: 0 | R148: 0 | V148: 0 | Z148: 0 | AA148: 0 | AB148: 0 | AC148: 0 | AD148: 0 | AE148: 0 | AF148: 0 | AG148: 0 | AH148: 0 | AI148: 0 | AM148: 0 | AN148: 0 | AO148: 0 | AR148: 0 | AS148: - | AT148: 0 | AU148: 0 | AY148: 0 | BB148: =dataprofile!CR149/60 -> 0 | BK148: 0 | BN148: 0
A149: 0 | B149: 0 | N149: 0 | R149: 0 | V149: 0 | Z149: 0 | AA149: 0 | AB149: 0 | AC149: 0 | AD149: 0 | AE149: 0 | AF149: 0 | AG149: 0 | AH149: 0 | AI149: 0 | AM149: 0 | AN149: 0 | AO149: 0 | AR149: 0 | AS149: - | AT149: 0 | AU149: 0 | AY149: 0 | BB149: =dataprofile!CR150/60 -> 0 | BK149: 0 | BN149: 0
A150: 0 | B150: 0 | N150: 0 | R150: 0 | V150: 0 | Z150: 0 | AA150: 0 | AB150: 0 | AC150: 0 | AD150: 0 | AE150: 0 | AF150: 0 | AG150: 0 | AH150: 0 | AI150: 0 | AM150: 0 | AN150: 0 | AO150: 0 | AR150: 0 | AS150: - | AT150: 0 | AU150: 0 | AY150: 0 | BB150: =dataprofile!CR151/60 -> 0 | BK150: 0 | BN150: 0
A151: 0 | B151: 0 | N151: 0 | R151: 0 | V151: 0 | Z151: 0 | AA151: 0 | AB151: 0 | AC151: 0 | AD151: 0 | AE151: 0 | AF151: 0 | AG151: 0 | AH151: 0 | AI151: 0 | AM151: 0 | AN151: 0 | AO151: 0 | AR151: 0 | AS151: - | AT151: 0 | AU151: 0 | AY151: 0 | BB151: =dataprofile!CR152/60 -> 0 | BK151: 0 | BN151: 0
A152: 0 | B152: 0 | N152: 0 | R152: 0 | V152: 0 | Z152: 0 | AA152: 0 | AB152: 0 | AC152: 0 | AD152: 0 | AE152: 0 | AF152: 0 | AG152: 0 | AH152: 0 | AI152: 0 | AM152: 0 | AN152: 0 | AO152: 0 | AR152: 0 | AS152: - | AT152: 0 | AU152: 0 | AY152: 0 | BB152: =dataprofile!CR153/60 -> 0 | BK152: 0 | BN152: 0
A153: 0 | B153: 0 | N153: 0 | R153: 0 | V153: 0 | Z153: 0 | AA153: 0 | AB153: 0 | AC153: 0 | AD153: 0 | AE153: 0 | AF153: 0 | AG153: 0 | AH153: 0 | AI153: 0 | AM153: 0 | AN153: 0 | AO153: 0 | AR153: 0 | AS153: - | AT153: 0 | AU153: 0 | AY153: 0 | BB153: =dataprofile!CR154/60 -> 0 | BK153: 0 | BN153: 0
A154: 0 | B154: 0 | N154: 0 | R154: 0 | V154: 0 | Z154: 0 | AA154: 0 | AB154: 0 | AC154: 0 | AD154: 0 | AE154: 0 | AF154: 0 | AG154: 0 | AH154: 0 | AI154: 0 | AM154: 0 | AN154: 0 | AO154: 0 | AR154: 0 | AS154: - | AT154: 0 | AU154: 0 | AY154: 0 | BB154: =dataprofile!CR155/60 -> 0 | BK154: 0 | BN154: 0
A155: 0 | B155: 0 | N155: 0 | R155: 0 | V155: 0 | Z155: 0 | AA155: 0 | AB155: 0 | AC155: 0 | AD155: 0 | AE155: 0 | AF155: 0 | AG155: 0 | AH155: 0 | AI155: 0 | AM155: 0 | AN155: 0 | AO155: 0 | AR155: 0 | AS155: - | AT155: 0 | AU155: 0 | AY155: 0 | BB155: =dataprofile!CR156/60 -> 0 | BK155: 0 | BN155: 0
A156: 0 | B156: 0 | N156: 0 | R156: 0 | V156: 0 | Z156: 0 | AA156: 0 | AB156: 0 | AC156: 0 | AD156: 0 | AE156: 0 | AF156: 0 | AG156: 0 | AH156: 0 | AI156: 0 | AM156: 0 | AN156: 0 | AO156: 0 | AR156: 0 | AS156: - | AT156: 0 | AU156: 0 | AY156: 0 | BB156: =dataprofile!CR157/60 -> 0 | BK156: 0 | BN156: 0
A157: 0 | B157: 0 | N157: 0 | R157: 0 | V157: 0 | Z157: 0 | AA157: 0 | AB157: 0 | AC157: 0 | AD157: 0 | AE157: 0 | AF157: 0 | AG157: 0 | AH157: 0 | AI157: 0 | AM157: 0 | AN157: 0 | AO157: 0 | AR157: 0 | AS157: - | AT157: 0 | AU157: 0 | AY157: 0 | BB157: =dataprofile!CR158/60 -> 0 | BK157: 0 | BN157: 0
A158: 0 | B158: 0 | N158: 0 | R158: 0 | V158: 0 | Z158: 0 | AA158: 0 | AB158: 0 | AC158: 0 | AD158: 0 | AE158: 0 | AF158: 0 | AG158: 0 | AH158: 0 | AI158: 0 | AM158: 0 | AN158: 0 | AO158: 0 | AR158: 0 | AS158: - | AT158: 0 | AU158: 0 | AY158: 0 | BB158: =dataprofile!CR159/60 -> 0 | BK158: 0 | BN158: 0
A159: 0 | B159: 0 | N159: 0 | R159: 0 | V159: 0 | Z159: 0 | AA159: 0 | AB159: 0 | AC159: 0 | AD159: 0 | AE159: 0 | AF159: 0 | AG159: 0 | AH159: 0 | AI159: 0 | AM159: 0 | AN159: 0 | AO159: 0 | AR159: 0 | AS159: - | AT159: 0 | AU159: 0 | AY159: 0 | BB159: =dataprofile!CR160/60 -> 0 | BK159: 0 | BN159: 0
A160: 0 | B160: 0 | N160: 0 | R160: 0 | V160: 0 | Z160: 0 | AA160: 0 | AB160: 0 | AC160: 0 | AD160: 0 | AE160: 0 | AF160: 0 | AG160: 0 | AH160: 0 | AI160: 0 | AM160: 0 | AN160: 0 | AO160: 0 | AR160: 0 | AS160: - | AT160: 0 | AU160: 0 | AY160: 0 | BB160: =dataprofile!CR161/60 -> 0 | BK160: 0 | BN160: 0
A161: 0 | B161: 0 | N161: 0 | R161: 0 | V161: 0 | Z161: 0 | AA161: 0 | AB161: 0 | AC161: 0 | AD161: 0 | AE161: 0 | AF161: 0 | AG161: 0 | AH161: 0 | AI161: 0 | AM161: 0 | AN161: 0 | AO161: 0 | AR161: 0 | AS161: - | AT161: 0 | AU161: 0 | AY161: 0 | BB161: =dataprofile!CR162/60 -> 0 | BK161: 0 | BN161: 0
A162: 0 | B162: 0 | N162: 0 | R162: 0 | V162: 0 | Z162: 0 | AA162: 0 | AB162: 0 | AC162: 0 | AD162: 0 | AE162: 0 | AF162: 0 | AG162: 0 | AH162: 0 | AI162: 0 | AM162: 0 | AN162: 0 | AO162: 0 | AR162: 0 | AS162: - | AT162: 0 | AU162: 0 | AY162: 0 | BB162: =dataprofile!CR163/60 -> 0 | BK162: 0 | BN162: 0
A163: 0 | B163: 0 | N163: 0 | R163: 0 | V163: 0 | Z163: 0 | AA163: 0 | AB163: 0 | AC163: 0 | AD163: 0 | AE163: 0 | AF163: 0 | AG163: 0 | AH163: 0 | AI163: 0 | AM163: 0 | AN163: 0 | AO163: 0 | AR163: 0 | AS163: - | AT163: 0 | AU163: 0 | AY163: 0 | BB163: =dataprofile!CR164/60 -> 0 | BK163: 0 | BN163: 0
A164: 0 | B164: 0 | N164: 0 | R164: 0 | V164: 0 | Z164: 0 | AA164: 0 | AB164: 0 | AC164: 0 | AD164: 0 | AE164: 0 | AF164: 0 | AG164: 0 | AH164: 0 | AI164: 0 | AM164: 0 | AN164: 0 | AO164: 0 | AR164: 0 | AS164: - | AT164: 0 | AU164: 0 | AY164: 0 | BB164: =dataprofile!CR165/60 -> 0 | BK164: 0 | BN164: 0
A165: 0 | B165: 0 | N165: 0 | R165: 0 | V165: 0 | Z165: 0 | AA165: 0 | AB165: 0 | AC165: 0 | AD165: 0 | AE165: 0 | AF165: 0 | AG165: 0 | AH165: 0 | AI165: 0 | AM165: 0 | AN165: 0 | AO165: 0 | AR165: 0 | AS165: - | AT165: 0 | AU165: 0 | AY165: 0 | BB165: =dataprofile!CR166/60 -> 0 | BK165: 0 | BN165: 0
A166: 0 | B166: 0 | N166: 0 | R166: 0 | V166: 0 | Z166: 0 | AA166: 0 | AB166: 0 | AC166: 0 | AD166: 0 | AE166: 0 | AF166: 0 | AG166: 0 | AH166: 0 | AI166: 0 | AM166: 0 | AN166: 0 | AO166: 0 | AR166: 0 | AS166: - | AT166: 0 | AU166: 0 | AY166: 0 | BB166: =dataprofile!CR167/60 -> 0 | BK166: 0 | BN166: 0
A167: 0 | B167: 0 | N167: 0 | R167: 0 | V167: 0 | Z167: 0 | AA167: 0 | AB167: 0 | AC167: 0 | AD167: 0 | AE167: 0 | AF167: 0 | AG167: 0 | AH167: 0 | AI167: 0 | AM167: 0 | AN167: 0 | AO167: 0 | AR167: 0 | AS167: - | AT167: 0 | AU167: 0 | AY167: 0 | BB167: =dataprofile!CR168/60 -> 0 | BK167: 0 | BN167: 0
A168: 0 | B168: 0 | N168: 0 | R168: 0 | V168: 0 | Z168: 0 | AA168: 0 | AB168: 0 | AC168: 0 | AD168: 0 | AE168: 0 | AF168: 0 | AG168: 0 | AH168: 0 | AI168: 0 | AM168: 0 | AN168: 0 | AO168: 0 | AR168: 0 | AS168: - | AT168: 0 | AU168: 0 | AY168: 0 | BB168: =dataprofile!CR169/60 -> 0 | BK168: 0 | BN168: 0
A169: 0 | B169: 0 | N169: 0 | R169: 0 | V169: 0 | Z169: 0 | AA169: 0 | AB169: 0 | AC169: 0 | AD169: 0 | AE169: 0 | AF169: 0 | AG169: 0 | AH169: 0 | AI169: 0 | AM169: 0 | AN169: 0 | AO169: 0 | AR169: 0 | AS169: - | AT169: 0 | AU169: 0 | AY169: 0 | BB169: =dataprofile!CR170/60 -> 0 | BK169: 0 | BN169: 0
A170: 0 | B170: 0 | N170: 0 | R170: 0 | V170: 0 | Z170: 0 | AA170: 0 | AB170: 0 | AC170: 0 | AD170: 0 | AE170: 0 | AF170: 0 | AG170: 0 | AH170: 0 | AI170: 0 | AM170: 0 | AN170: 0 | AO170: 0 | AR170: 0 | AS170: - | AT170: 0 | AU170: 0 | AY170: 0 | BB170: =dataprofile!CR171/60 -> 0 | BK170: 0 | BN170: 0
A171: 0 | B171: 0 | N171: 0 | R171: 0 | V171: 0 | Z171: 0 | AA171: 0 | AB171: 0 | AC171: 0 | AD171: 0 | AE171: 0 | AF171: 0 | AG171: 0 | AH171: 0 | AI171: 0 | AM171: 0 | AN171: 0 | AO171: 0 | AR171: 0 | AS171: - | AT171: 0 | AU171: 0 | AY171: 0 | BB171: =dataprofile!CR172/60 -> 0 | BK171: 0 | BN171: 0
A172: 0 | B172: 0 | N172: 0 | R172: 0 | V172: 0 | Z172: 0 | AA172: 0 | AB172: 0 | AC172: 0 | AD172: 0 | AE172: 0 | AF172: 0 | AG172: 0 | AH172: 0 | AI172: 0 | AM172: 0 | AN172: 0 | AO172: 0 | AR172: 0 | AS172: - | AT172: 0 | AU172: 0 | AY172: 0 | BB172: =dataprofile!CR173/60 -> 0 | BK172: 0 | BN172: 0
A173: 0 | B173: 0 | N173: 0 | R173: 0 | V173: 0 | Z173: 0 | AA173: 0 | AB173: 0 | AC173: 0 | AD173: 0 | AE173: 0 | AF173: 0 | AG173: 0 | AH173: 0 | AI173: 0 | AM173: 0 | AN173: 0 | AO173: 0 | AR173: 0 | AS173: - | AT173: 0 | AU173: 0 | AY173: 0 | BB173: =dataprofile!CR174/60 -> 0 | BK173: 0 | BN173: 0
A174: 0 | B174: 0 | N174: 0 | R174: 0 | V174: 0 | Z174: 0 | AA174: 0 | AB174: 0 | AC174: 0 | AD174: 0 | AE174: 0 | AF174: 0 | AG174: 0 | AH174: 0 | AI174: 0 | AM174: 0 | AN174: 0 | AO174: 0 | AR174: 0 | AS174: - | AT174: 0 | AU174: 0 | AY174: 0 | BB174: =dataprofile!CR175/60 -> 0 | BK174: 0 | BN174: 0
A175: 0 | B175: 0 | N175: 0 | R175: 0 | V175: 0 | Z175: 0 | AA175: 0 | AB175: 0 | AC175: 0 | AD175: 0 | AE175: 0 | AF175: 0 | AG175: 0 | AH175: 0 | AI175: 0 | AM175: 0 | AN175: 0 | AO175: 0 | AR175: 0 | AS175: - | AT175: 0 | AU175: 0 | AY175: 0 | BB175: =dataprofile!CR176/60 -> 0 | BK175: 0 | BN175: 0
A176: 0 | B176: 0 | N176: 0 | R176: 0 | V176: 0 | Z176: 0 | AA176: 0 | AB176: 0 | AC176: 0 | AD176: 0 | AE176: 0 | AF176: 0 | AG176: 0 | AH176: 0 | AI176: 0 | AM176: 0 | AN176: 0 | AO176: 0 | AR176: 0 | AS176: - | AT176: 0 | AU176: 0 | AY176: 0 | BB176: =dataprofile!CR177/60 -> 0 | BK176: 0 | BN176: 0
A177: 0 | B177: 0 | N177: 0 | R177: 0 | V177: 0 | Z177: 0 | AA177: 0 | AB177: 0 | AC177: 0 | AD177: 0 | AE177: 0 | AF177: 0 | AG177: 0 | AH177: 0 | AI177: 0 | AM177: 0 | AN177: 0 | AO177: 0 | AR177: 0 | AS177: - | AT177: 0 | AU177: 0 | AY177: 0 | BB177: =dataprofile!CR178/60 -> 0 | BK177: 0 | BN177: 0
A178: 0 | B178: 0 | N178: 0 | R178: 0 | V178: 0 | Z178: 0 | AA178: 0 | AB178: 0 | AC178: 0 | AD178: 0 | AE178: 0 | AF178: 0 | AG178: 0 | AH178: 0 | AI178: 0 | AM178: 0 | AN178: 0 | AO178: 0 | AR178: 0 | AS178: - | AT178: 0 | AU178: 0 | AY178: 0 | BB178: =dataprofile!CR179/60 -> 0 | BK178: 0 | BN178: 0
A179: 0 | B179: 0 | N179: 0 | R179: 0 | V179: 0 | Z179: 0 | AA179: 0 | AB179: 0 | AC179: 0 | AD179: 0 | AE179: 0 | AF179: 0 | AG179: 0 | AH179: 0 | AI179: 0 | AM179: 0 | AN179: 0 | AO179: 0 | AR179: 0 | AS179: - | AT179: 0 | AU179: 0 | AY179: 0 | BB179: =dataprofile!CR180/60 -> 0 | BK179: 0 | BN179: 0
A180: 0 | B180: 0 | N180: 0 | R180: 0 | V180: 0 | Z180: 0 | AA180: 0 | AB180: 0 | AC180: 0 | AD180: 0 | AE180: 0 | AF180: 0 | AG180: 0 | AH180: 0 | AI180: 0 | AM180: 0 | AN180: 0 | AO180: 0 | AR180: 0 | AS180: - | AT180: 0 | AU180: 0 | AY180: 0 | BB180: =dataprofile!CR181/60 -> 0 | BK180: 0 | BN180: 0
A181: 0 | B181: 0 | N181: 0 | R181: 0 | V181: 0 | Z181: 0 | AA181: 0 | AB181: 0 | AC181: 0 | AD181: 0 | AE181: 0 | AF181: 0 | AG181: 0 | AH181: 0 | AI181: 0 | AM181: 0 | AN181: 0 | AO181: 0 | AR181: 0 | AS181: - | AT181: 0 | AU181: 0 | AY181: 0 | BB181: =dataprofile!CR182/60 -> 0 | BK181: 0 | BN181: 0
A182: 0 | B182: 0 | N182: 0 | R182: 0 | V182: 0 | Z182: 0 | AA182: 0 | AB182: 0 | AC182: 0 | AD182: 0 | AE182: 0 | AF182: 0 | AG182: 0 | AH182: 0 | AI182: 0 | AM182: 0 | AN182: 0 | AO182: 0 | AR182: 0 | AS182: - | AT182: 0 | AU182: 0 | AY182: 0 | BB182: =dataprofile!CR183/60 -> 0 | BK182: 0 | BN182: 0
A183: 0 | B183: 0 | N183: 0 | R183: 0 | V183: 0 | Z183: 0 | AA183: 0 | AB183: 0 | AC183: 0 | AD183: 0 | AE183: 0 | AF183: 0 | AG183: 0 | AH183: 0 | AI183: 0 | AM183: 0 | AN183: 0 | AO183: 0 | AR183: 0 | AS183: - | AT183: 0 | AU183: 0 | AY183: 0 | BB183: =dataprofile!CR184/60 -> 0 | BK183: 0 | BN183: 0
A184: 0 | B184: 0 | N184: 0 | R184: 0 | V184: 0 | Z184: 0 | AA184: 0 | AB184: 0 | AC184: 0 | AD184: 0 | AE184: 0 | AF184: 0 | AG184: 0 | AH184: 0 | AI184: 0 | AM184: 0 | AN184: 0 | AO184: 0 | AR184: 0 | AS184: - | AT184: 0 | AU184: 0 | AY184: 0 | BB184: =dataprofile!CR185/60 -> 0 | BK184: 0 | BN184: 0
A185: 0 | B185: 0 | N185: 0 | R185: 0 | V185: 0 | Z185: 0 | AA185: 0 | AB185: 0 | AC185: 0 | AD185: 0 | AE185: 0 | AF185: 0 | AG185: 0 | AH185: 0 | AI185: 0 | AM185: 0 | AN185: 0 | AO185: 0 | AR185: 0 | AS185: - | AT185: 0 | AU185: 0 | AY185: 0 | BB185: =dataprofile!CR186/60 -> 0 | BK185: 0 | BN185: 0
A186: 0 | B186: 0 | N186: 0 | R186: 0 | V186: 0 | Z186: 0 | AA186: 0 | AB186: 0 | AC186: 0 | AD186: 0 | AE186: 0 | AF186: 0 | AG186: 0 | AH186: 0 | AI186: 0 | AM186: 0 | AN186: 0 | AO186: 0 | AR186: 0 | AS186: - | AT186: 0 | AU186: 0 | AY186: 0 | BB186: =dataprofile!CR187/60 -> 0 | BK186: 0 | BN186: 0
A187: 0 | B187: 0 | N187: 0 | R187: 0 | V187: 0 | Z187: 0 | AA187: 0 | AB187: 0 | AC187: 0 | AD187: 0 | AE187: 0 | AF187: 0 | AG187: 0 | AH187: 0 | AI187: 0 | AM187: 0 | AN187: 0 | AO187: 0 | AR187: 0 | AS187: - | AT187: 0 | AU187: 0 | AY187: 0 | BB187: =dataprofile!CR188/60 -> 0 | BK187: 0 | BN187: 0
A188: 0 | B188: 0 | N188: 0 | R188: 0 | V188: 0 | Z188: 0 | AA188: 0 | AB188: 0 | AC188: 0 | AD188: 0 | AE188: 0 | AF188: 0 | AG188: 0 | AH188: 0 | AI188: 0 | AM188: 0 | AN188: 0 | AO188: 0 | AR188: 0 | AS188: - | AT188: 0 | AU188: 0 | AY188: 0 | BB188: =dataprofile!CR189/60 -> 0 | BK188: 0 | BN188: 0
A189: 0 | B189: 0 | N189: 0 | R189: 0 | V189: 0 | Z189: 0 | AA189: 0 | AB189: 0 | AC189: 0 | AD189: 0 | AE189: 0 | AF189: 0 | AG189: 0 | AH189: 0 | AI189: 0 | AM189: 0 | AN189: 0 | AO189: 0 | AR189: 0 | AS189: - | AT189: 0 | AU189: 0 | AY189: 0 | BB189: =dataprofile!CR190/60 -> 0 | BK189: 0 | BN189: 0
A190: 0 | B190: 0 | N190: 0 | R190: 0 | V190: 0 | Z190: 0 | AA190: 0 | AB190: 0 | AC190: 0 | AD190: 0 | AE190: 0 | AF190: 0 | AG190: 0 | AH190: 0 | AI190: 0 | AM190: 0 | AN190: 0 | AO190: 0 | AR190: 0 | AS190: - | AT190: 0 | AU190: 0 | AY190: 0 | BB190: =dataprofile!CR191/60 -> 0 | BK190: 0 | BN190: 0
A191: 0 | B191: 0 | N191: 0 | R191: 0 | V191: 0 | Z191: 0 | AA191: 0 | AB191: 0 | AC191: 0 | AD191: 0 | AE191: 0 | AF191: 0 | AG191: 0 | AH191: 0 | AI191: 0 | AM191: 0 | AN191: 0 | AO191: 0 | AR191: 0 | AS191: - | AT191: 0 | AU191: 0 | AY191: 0 | BB191: =dataprofile!CR192/60 -> 0 | BK191: 0 | BN191: 0
A192: 0 | B192: 0 | N192: 0 | R192: 0 | V192: 0 | Z192: 0 | AA192: 0 | AB192: 0 | AC192: 0 | AD192: 0 | AE192: 0 | AF192: 0 | AG192: 0 | AH192: 0 | AI192: 0 | AM192: 0 | AN192: 0 | AO192: 0 | AR192: 0 | AS192: - | AT192: 0 | AU192: 0 | AY192: 0 | BB192: =dataprofile!CR193/60 -> 0 | BK192: 0 | BN192: 0
A193: 0 | B193: 0 | N193: 0 | R193: 0 | V193: 0 | Z193: 0 | AA193: 0 | AB193: 0 | AC193: 0 | AD193: 0 | AE193: 0 | AF193: 0 | AG193: 0 | AH193: 0 | AI193: 0 | AM193: 0 | AN193: 0 | AO193: 0 | AR193: 0 | AS193: - | AT193: 0 | AU193: 0 | AY193: 0 | BB193: =dataprofile!CR194/60 -> 0 | BK193: 0 | BN193: 0
A194: 0 | B194: 0 | N194: 0 | R194: 0 | V194: 0 | Z194: 0 | AA194: 0 | AB194: 0 | AC194: 0 | AD194: 0 | AE194: 0 | AF194: 0 | AG194: 0 | AH194: 0 | AI194: 0 | AM194: 0 | AN194: 0 | AO194: 0 | AR194: 0 | AS194: - | AT194: 0 | AU194: 0 | AY194: 0 | BB194: =dataprofile!CR195/60 -> 0 | BK194: 0 | BN194: 0
A195: 0 | B195: 0 | N195: 0 | R195: 0 | V195: 0 | Z195: 0 | AA195: 0 | AB195: 0 | AC195: 0 | AD195: 0 | AE195: 0 | AF195: 0 | AG195: 0 | AH195: 0 | AI195: 0 | AM195: 0 | AN195: 0 | AO195: 0 | AR195: 0 | AS195: - | AT195: 0 | AU195: 0 | AY195: 0 | BB195: =dataprofile!CR196/60 -> 0 | BK195: 0 | BN195: 0
A196: 0 | B196: 0 | N196: 0 | R196: 0 | V196: 0 | Z196: 0 | AA196: 0 | AB196: 0 | AC196: 0 | AD196: 0 | AE196: 0 | AF196: 0 | AG196: 0 | AH196: 0 | AI196: 0 | AM196: 0 | AN196: 0 | AO196: 0 | AR196: 0 | AS196: - | AT196: 0 | AU196: 0 | AY196: 0 | BB196: =dataprofile!CR197/60 -> 0 | BK196: 0 | BN196: 0
A197: 0 | B197: 0 | F197: =D197/C197 ->  | J197: =H197/G197 ->  | N197: 0 | R197: =IFERROR(P197/O197,0) -> 0 | V197: =IFERROR(T197/S197,0) -> 0 | Z197: =IFERROR(X197/W197,0) -> 0 | AA197: 0 | AB197: 0 | AC197: 0 | AD197: 0 | AE197: 0 | AF197: 0 | AG197: 0 | AH197: 0 | AI197: 0 | AJ197: =AG197/SUM($AG197:$AI197) ->  | AK197: =AH197/SUM($AG197:$AI197) ->  | AL197: =AI197/SUM($AG197:$AI197) ->  | AM197: 0 | AN197: 0 | AO197: 0 | AP197: =AN197/AM197 ->  | AQ197: =AO197/AM197 ->  | AR197: 0 | AS197: =IFERROR(AR197/AO197,"-") -> - | AT197: 0 | AU197: 0 | AY197: 0 | BB197: =dataprofile!CR198/60 -> 0 | BK197: 0 | BN197: 0
A198: 0 | B198: 0 | N198: =IFERROR(L198/K198,0) -> 0 | R198: 0 | V198: 0 | Z198: 0 | AA198: 0 | AB198: 0 | AC198: 0 | AD198: 0 | AE198: 0 | AF198: 0 | AG198: 0 | AH198: 0 | AI198: 0 | AM198: 0 | AN198: 0 | AO198: 0 | AR198: 0 | AS198: - | AT198: 0 | AU198: 0 | AY198: 0 | BB198: =dataprofile!CR199/60 -> 0 | BK198: 0 | BN198: 0
A199: 0 | B199: 0 | N199: 0 | R199: 0 | V199: 0 | Z199: 0 | AA199: 0 | AB199: 0 | AC199: 0 | AD199: 0 | AE199: 0 | AF199: 0 | AG199: 0 | AH199: 0 | AI199: 0 | AM199: 0 | AN199: 0 | AO199: 0 | AR199: 0 | AS199: - | AT199: 0 | AU199: 0 | AY199: 0 | BB199: =dataprofile!CR200/60 -> 0 | BK199: 0 | BN199: 0
A200: 0 | B200: 0 | N200: 0 | R200: 0 | V200: 0 | Z200: 0 | AA200: 0 | AB200: 0 | AC200: 0 | AD200: 0 | AE200: 0 | AF200: 0 | AG200: 0 | AH200: 0 | AI200: 0 | AM200: 0 | AN200: 0 | AO200: 0 | AR200: 0 | AS200: - | AT200: 0 | AU200: 0 | AY200: 0 | BB200: =dataprofile!CR201/60 -> 0 | BK200: 0 | BN200: 0
... 4 more rows

Sheet teacher_report2 (hidden)

Sheet dataprofile (hidden)
C1: 単元進捗グラフ(1-1) | U1: 学習の取組量(1-2) | AW1: 勉強時間(1-3) | BX1: 振り返り状況(1-4) | CI1: ポジショニングマップ(2-1) | CO1: トップランカー(1-6)
C2: グループ1 | F2: グループ2 | I2: グループ3 | L2: グループ4 | O2: グループ5 | R2: グループ6 | U2: 1W | W2: 2W | Y2: 3W | AA2: 4W | AC2: 5W | AE2: 6W | AG2: 7W | AI2: 8W | AK2: 9W | AM2: 10W | AO2: 11W | AQ2: 12W | AS2: 13W | AU2: 14W | AW2: (時台) | BX2: 今週 | BY2: 最初〜 | BZ2: =MAX('インポートデータ(解答履歴)'!D:D) + TIME(23,59,59) -> 2023-12-05T08:28:44 | CC2: 先週 | CD2: 最初〜 | CE2: =MAX('インポートデータ(解答履歴)'!D:D)-7 + TIME(23,59,59) -> 2023-11-28T08:28:44 | CO2: 総演習数 | CR2: 総演習時間(秒) | CU2: 取組率 | CX2: 最終正答率 | DA2: 自習数 | DD2: 克服率
C3: =IF(list_group!B2<>"",list_group!B2,"") -> 単元１ | E3: =list_group!C2 -> 27 | F3: =IF(list_group!B3<>"",list_group!B3,"") -> 単元２ | H3: =list_group!C3 -> 15 | I3: =IF(list_group!B4<>"",list_group!B4,"") ->  | K3: =list_group!C4 ->  | L3: =IF(list_group!B5<>"",list_group!B5,"") ->  | N3: =list_group!C5 ->  | O3: =IF(list_group!B6<>"",list_group!B6,"") ->  | Q3: =list_group!C6 ->  | R3: =IF(list_group!B7<>"",list_group!B7,"") ->  | T3: =list_group!C7 ->  | U3: =MIN('インポートデータ(解答履歴)'!C:C) - MOD(WEEKDAY(MIN('インポートデータ(解答履歴)'!C:C)) - 2, 7) -> 2023-10-02 | V3: =U3 -> 2023-10-02 | W3: =U3+7 -> 2023-10-09 | X3: =W3 -> 2023-10-09 | Y3: =W3+7 -> 2023-10-16 | Z3: =Y3 -> 2023-10-16 | AA3: =Y3+7 -> 2023-10-23 | AB3: =AA3 -> 2023-10-23 | AC3: =AA3+7 -> 2023-10-30 | AD3: =AC3 -> 2023-10-30 | AE3: =AC3+7 -> 2023-11-06 | AF3: =AE3 -> 2023-11-06 | AG3: =AE3+7 -> 2023-11-13 | AH3: =AG3 -> 2023-11-13 | AI3: =AG3+7 -> 2023-11-20 | AJ3: =AI3 -> 2023-11-20 | AK3: =AI3+7 -> 2023-11-27 | AL3: =AK3 -> 2023-11-27 | AM3: =AK3+7 -> 2023-12-04 | AN3: =AM3 -> 2023-12-04 | AO3: =AM3+7 -> 2023-12-11 | AP3: =AO3 -> 2023-12-11 | AQ3: =AO3+7 -> 2023-12-18 | AR3: =AQ3 -> 2023-12-18 | AS3: =AQ3+7 -> 2023-12-25 | AT3: =AS3 -> 2023-12-25 | AU3: =AS3+7 -> 2024-01-01 | AV3: =AU3 -> 2024-01-01 | AW3: 0 | AX3: 1 | AY3: 2 | AZ3: 3 | BA3: 4 | BB3: 5 | BC3: 6 | BD3: 7 | BE3: 8 | BF3: 9 | BG3: 10 | BH3: 11 | BI3: 12 | BJ3: 13 | BK3: 14 | BL3: 15 | BM3: 16 | BN3: 17 | BO3: 18 | BP3: 19 | BQ3: 20 | BR3: 21 | BS3: 22 | BT3: 23 | BU3: 学校内 | BV3: 学校外 | BW3: 深夜 | BX3: =SUM(BX5:BX1000) -> 322 | BY3: =SUM(BY5:BY1000) -> 207 | BZ3: 115 | CA3: 46 | CB3: 69 | CC3: =SUM(CC5:CC1000) -> 197 | CD3: 121 | CE3: 76 | CF3: 37 | CG3: 39 | CL3: =CI4/CH4 | CM3: =CJ4/CI4
A4: =_xlfn.UNIQUE(_xlfn._xlws.FILTER('インポートデータ(解答履歴)'!A:B, 'インポートデータ(解答履歴)'!A:A <> "" )) -> 出席番号 | B4: 生徒名 | C4: 全量 | D4: 取組数 | E4: 正解数 | F4: 全量 | G4: 取組数 | H4: 正解数 | I4: 全量 | J4: 取組数 | K4: 正解数 | L4: 全量 | M4: 取組数 | N4: 正解数 | O4: 全量 | P4: 取組数 | Q4: 正解数 | R4: 全量 | S4: 取組数 | T4: 正解数 | U4: 宿題 | V4: 自主学習 | W4: 宿題 | X4: 自主学習 | Y4: 宿題 | Z4: 自主学習 | AA4: 宿題 | AB4: 自主学習 | AC4: 宿題 | AD4: 自主学習 | AE4: 宿題 | AF4: 自主学習 | AG4: 宿題 | AH4: 自主学習 | AI4: 宿題 | AJ4: 自主学習 | AK4: 宿題 | AL4: 自主学習 | AM4: 宿題 | AN4: 自主学習 | AO4: 宿題 | AP4: 自主学習 | AQ4: 宿題 | AR4: 自主学習 | AS4: 宿題 | AT4: 自主学習 | AU4: 宿題 | AV4: 自主学習 | AW4: =SUM(AW5:AW100) -> 21 | AX4: =SUM(AX5:AX100) -> 1 | AY4: 0 | AZ4: 0 | BA4: 0 | BB4: 2 | BC4: 0 | BD4: 0 | BE4: 10 | BF4: 39 | BG4: 36 | BH4: 50 | BI4: 13 | BJ4: 8 | BK4: 34 | BL4: 21 | BM4: 19 | BN4: 28 | BO4: 38 | BP4: 44 | BQ4: 29 | BR4: 17 | BS4: 59 | BT4: 22 | BU4: 230 | BV4: 239 | BW4: 22 | BX4: 総回答数 | BY4: 初回正答数 | BZ4: 初回誤答数 | CA4: 克服数 | CB4: 間違えっぱなし数 | CC4: 総回答数 | CD4: 初回正答数 | CE4: 初回誤答数 | CF4: 克服数 | CG4: 間違えっぱなし数 | CH4: ±(先週からの差分) | CI4: 指定問題全量 | CJ4: 指定で解いた問題 | CK4: 左のうち最新が正解の問題 | CL4: 取組率 | CM4: 最終正答率 | CN4: 成績情報 | CO4: 値 | CP4: ランク | CQ4: 上位何パー | CR4: 値 | CS4: ランク | CT4: 上位何パー | CU4: 値 | CV4: ランク | CW4: 上位何パー | CX4: 値 | CY4: ランク | CZ4: 上位何パー | DA4: 値 | DB4: ランク | DC4: 上位何パー | DD4: 値 | DE4: ランク | DF4: 上位何パー
A5: 8 | B5: 松岡 真澄 | C5: =IF($A5="","",E$3) -> 27 | D5: =IF(OR(C$3="",$A5=""),"",IFERROR(ROWS(_xlfn.UNIQUE(_xlfn._xlws.FILTER('インポートデータ(解答履歴)'!$W:$W,('インポートデータ(解答履歴)'!$A:$A=$A5)*('インポートデータ(解答履歴)'!$V:$V=C$3)))),0)) -> 27 | E5: =IF(OR(C$3="",$A5=""),"",IFERROR(ROWS(_xlfn.UNIQUE(_xlfn._xlws.FILTER('インポートデータ(解答履歴)'!$W:$W,('インポートデータ(解答履歴)'!$A:$A=$A5)*('インポートデータ(解答履歴)'!$V:$V=C$3)*('インポートデータ(解答履歴)'!$Y:$Y="最新")*('インポートデータ(解答履歴)'!$K:$K="◯")))),0)) -> 21 | F5: =IF($A5="","",H$3) -> 15 | G5: =IF(OR(F$3="",$A5=""),"",IFERROR(ROWS(_xlfn.UNIQUE(_xlfn._xlws.FILTER('インポートデータ(解答履歴)'!$W:$W,('インポートデータ(解答履歴)'!$A:$A=$A5)*('インポートデータ(解答履歴)'!$V:$V=F$3)))),0)) -> 15 | H5: =IF(OR(F$3="",$A5=""),"",IFERROR(ROWS(_xlfn.UNIQUE(_xlfn._xlws.FILTER('インポートデータ(解答履歴)'!$W:$W,('インポートデータ(解答履歴)'!$A:$A=$A5)*('インポートデータ(解答履歴)'!$V:$V=F$3)*('インポートデータ(解答履歴)'!$Y:$Y="最新")*('インポートデータ(解答履歴)'!$K:$K="◯")))),0)) -> 13 | I5: =IF($A5="","",K$3) ->  | J5: =IF(OR(I$3="",$A5=""),"",IFERROR(ROWS(_xlfn.UNIQUE(_xlfn._xlws.FILTER('インポートデータ(解答履歴)'!$W:$W,('インポートデータ(解答履歴)'!$A:$A=$A5)*('インポートデータ(解答履歴)'!$V:$V=I$3)))),0)) ->  | K5: =IF(OR(I$3="",$A5=""),"",IFERROR(ROWS(_xlfn.UNIQUE(_xlfn._xlws.FILTER('インポートデータ(解答履歴)'!$W:$W,('インポートデータ(解答履歴)'!$A:$A=$A5)*('インポートデータ(解答履歴)'!$V:$V=I$3)*('インポートデータ(解答履歴)'!$Y:$Y="最新")*('インポートデータ(解答履歴)'!$K:$K="◯")))),0)) ->  | L5: =IF($A5="","",N$3) ->  | M5: =IF(OR(L$3="",$A5=""),"",IFERROR(ROWS(_xlfn.UNIQUE(_xlfn._xlws.FILTER('インポートデータ(解答履歴)'!$W:$W,('インポートデータ(解答履歴)'!$A:$A=$A5)*('インポートデータ(解答履歴)'!$V:$V=L$3)))),0)) ->  | N5: =IF(OR(L$3="",$A5=""),"",IFERROR(ROWS(_xlfn.UNIQUE(_xlfn._xlws.FILTER('インポートデータ(解答履歴)'!$W:$W,('インポートデータ(解答履歴)'!$A:$A=$A5)*('インポートデータ(解答履歴)'!$V:$V=L$3)*('インポートデータ(解答履歴)'!$Y:$Y="最新")*('インポートデータ(解答履歴)'!$K:$K="◯")))),0)) ->  | O5: =IF($A5="","",Q$3) ->  | P5: =IF(OR(O$3="",$A5=""),"",IFERROR(ROWS(_xlfn.UNIQUE(_xlfn._xlws.FILTER('インポートデータ(解答履歴)'!$W:$W,('インポートデータ(解答履歴)'!$A:$A=$A5)*('インポートデータ(解答履歴)'!$V:$V=O$3)))),0)) ->  | Q5: =IF(OR(O$3="",$A5=""),"",IFERROR(ROWS(_xlfn.UNIQUE(_xlfn._xlws.FILTER('インポートデータ(解答履歴)'!$W:$W,('インポートデータ(解答履歴)'!$A:$A=$A5)*('インポートデータ(解答履歴)'!$V:$V=O$3)*('インポートデータ(解答履歴)'!$Y:$Y="最新")*('インポートデータ(解答履歴)'!$K:$K="◯")))),0)) ->  | R5: =IF($A5="","",T$3) ->  | S5: =IF(OR(R$3="",$A5=""),"",IFERROR(ROWS(_xlfn.UNIQUE(_xlfn._xlws.FILTER('インポートデータ(解答履歴)'!$W:$W,('インポートデータ(解答履歴)'!$A:$A=$A5)*('インポートデータ(解答履歴)'!$V:$V=R$3)))),0)) ->  | T5: =IF(OR(R$3="",$A5=""),"",IFERROR(ROWS(_xlfn.UNIQUE(_xlfn._xlws.FILTER('インポートデータ(解答履歴)'!$W:$W,('インポートデータ(解答履歴)'!$A:$A=$A5)*('インポートデータ(解答履歴)'!$V:$V=R$3)*('インポートデータ(解答履歴)'!$Y:$Y="最新")*('インポートデータ(解答履歴)'!$K:$K="◯")))),0)) ->  | U5: =COUNTIFS( 'インポートデータ(解答履歴)'!$A:$A, $A5, 'インポートデータ(解答履歴)'!$C:$C, ">="&(U$3), 'インポートデータ(解答履歴)'!$C:$C, "<"&(U$3+7), 'インポートデータ(解答履歴)'!$P:$P, U$4 ) -> 13 | V5: =COUNTIFS( 'インポートデータ(解答履歴)'!$A:$A, $A5, 'インポートデータ(解答履歴)'!$C:$C, ">="&(V$3), 'インポートデータ(解答履歴)'!$C:$C, "<"&(V$3+7), 'インポートデータ(解答履歴)'!$P:$P, V$4 ) -> 0 | W5: =COUNTIFS( 'インポートデータ(解答履歴)'!$A:$A, $A5, 'インポートデータ(解答履歴)'!$C:$C, ">="&(W$3), 'インポートデータ(解答履歴)'!$C:$C, "<"&(W$3+7), 'インポートデータ(解答履歴)'!$P:$P, W$4 ) -> 8 | X5: =COUNTIFS( 'インポートデータ(解答履歴)'!$A:$A, $A5, 'インポートデータ(解答履歴)'!$C:$C, ">="&(X$3), 'インポートデータ(解答履歴)'!$C:$C, "<"&(X$3+7), 'インポートデータ(解答履歴)'!$P:$P, X$4 ) -> 0 | Y5: =COUNTIFS( 'インポートデータ(解答履歴)'!$A:$A, $A5, 'インポートデータ(解答履歴)'!$C:$C, ">="&(Y$3), 'インポートデータ(解答履歴)'!$C:$C, "<"&(Y$3+7), 'インポートデータ(解答履歴)'!$P:$P, Y$4 ) -> 14 | Z5: =COUNTIFS( 'インポートデータ(解答履歴)'!$A:$A, $A5, 'インポートデータ(解答履歴)'!$C:$C, ">="&(Z$3), 'インポートデータ(解答履歴)'!$C:$C, "<"&(Z$3+7), 'インポートデータ(解答履歴)'!$P:$P, Z$4 ) -> 0 | AA5: =COUNTIFS( 'インポートデータ(解答履歴)'!$A:$A, $A5, 'インポートデータ(解答履歴)'!$C:$C, ">="&(AA$3), 'インポートデータ(解答履歴)'!$C:$C, "<"&(AA$3+7), 'インポートデータ(解答履歴)'!$P:$P, AA$4 ) -> 6 | AB5: =COUNTIFS( 'インポートデータ(解答履歴)'!$A:$A, $A5, 'インポートデータ(解答履歴)'!$C:$C, ">="&(AB$3), 'インポートデータ(解答履歴)'!$C:$C, "<"&(AB$3+7), 'インポートデータ(解答履歴)'!$P:$P, AB$4 ) -> 0 | AC5: =COUNTIFS( 'インポートデータ(解答履歴)'!$A:$A, $A5, 'インポートデータ(解答履歴)'!$C:$C, ">="&(AC$3), 'インポートデータ(解答履歴)'!$C:$C, "<"&(AC$3+7), 'インポートデータ(解答履歴)'!$P:$P, AC$4 ) -> 0 | AD5: =COUNTIFS( 'インポートデータ(解答履歴)'!$A:$A, $A5, 'インポートデータ(解答履歴)'!$C:$C, ">="&(AD$3), 'インポートデータ(解答履歴)'!$C:$C, "<"&(AD$3+7), 'インポートデータ(解答履歴)'!$P:$P, AD$4 ) -> 0 | AE5: =COUNTIFS( 'インポートデータ(解答履歴)'!$A:$A, $A5, 'インポートデータ(解答履歴)'!$C:$C, ">="&(AE$3), 'インポートデータ(解答履歴)'!$C:$C, "<"&(AE$3+7), 'インポートデータ(解答履歴)'!$P:$P, AE$4 ) -> 0 | AF5: =COUNTIFS( 'インポートデータ(解答履歴)'!$A:$A, $A5, 'インポートデータ(解答履歴)'!$C:$C, ">="&(AF$3), 'インポートデータ(解答履歴)'!$C:$C, "<"&(AF$3+7), 'インポートデータ(解答履歴)'!$P:$P, AF$4 ) -> 0 | AG5: =COUNTIFS( 'インポートデータ(解答履歴)'!$A:$A, $A5, 'インポートデータ(解答履歴)'!$C:$C, ">="&(AG$3), 'インポートデータ(解答履歴)'!$C:$C, "<"&(AG$3+7), 'インポートデータ(解答履歴)'!$P:$P, AG$4 ) -> 0 | AH5: =COUNTIFS( 'インポートデータ(解答履歴)'!$A:$A, $A5, 'インポートデータ(解答履歴)'!$C:$C, ">="&(AH$3), 'インポートデータ(解答履歴)'!$C:$C, "<"&(AH$3+7), 'インポートデータ(解答履歴)'!$P:$P, AH$4 ) -> 0 | AI5: =COUNTIFS( 'インポートデータ(解答履歴)'!$A:$A, $A5, 'インポートデータ(解答履歴)'!$C:$C, ">="&(AI$3), 'インポートデータ(解答履歴)'!$C:$C, "<"&(AI$3+7), 'インポートデータ(解答履歴)'!$P:$P, AI$4 ) -> 0 | AJ5: =COUNTIFS( 'インポートデータ(解答履歴)'!$A:$A, $A5, 'インポートデータ(解答履歴)'!$C:$C, ">="&(AJ$3), 'インポートデータ(解答履歴)'!$C:$C, "<"&(AJ$3+7), 'インポートデータ(解答履歴)'!$P:$P, AJ$4 ) -> 0 | AK5: =COUNTIFS( 'インポートデータ(解答履歴)'!$A:$A, $A5, 'インポートデータ(解答履歴)'!$C:$C, ">="&(AK$3), 'インポートデータ(解答履歴)'!$C:$C, "<"&(AK$3+7), 'インポートデータ(解答履歴)'!$P:$P, AK$4 ) -> 20 | AL5: =COUNTIFS( 'インポートデータ(解答履歴)'!$A:$A, $A5, 'インポートデータ(解答履歴)'!$C:$C, ">="&(AL$3), 'インポートデータ(解答履歴)'!$C:$C, "<"&(AL$3+7), 'インポートデータ(解答履歴)'!$P:$P, AL$4 ) -> 0 | AM5: =COUNTIFS( 'インポートデータ(解答履歴)'!$A:$A, $A5, 'インポートデータ(解答履歴)'!$C:$C, ">="&(AM$3), 'インポートデータ(解答履歴)'!$C:$C, "<"&(AM$3+7), 'インポートデータ(解答履歴)'!$P:$P, AM$4 ) -> 0 | AN5: =COUNTIFS( 'インポートデータ(解答履歴)'!$A:$A, $A5, 'インポートデータ(解答履歴)'!$C:$C, ">="&(AN$3), 'インポートデータ(解答履歴)'!$C:$C, "<"&(AN$3+7), 'インポートデータ(解答履歴)'!$P:$P, AN$4 ) -> 0 | AO5: =COUNTIFS( 'インポートデータ(解答履歴)'!$A:$A, $A5, 'インポートデータ(解答履歴)'!$C:$C, ">="&(AO$3), 'インポートデータ(解答履歴)'!$C:$C, "<"&(AO$3+7), 'インポートデータ(解答履歴)'!$P:$P, AO$4 ) -> 0 | AP5: =COUNTIFS( 'インポートデータ(解答履歴)'!$A:$A, $A5, 'インポートデータ(解答履歴)'!$C:$C, ">="&(AP$3), 'インポートデータ(解答履歴)'!$C:$C, "<"&(AP$3+7), 'インポートデータ(解答履歴)'!$P:$P, AP$4 ) -> 0 | AQ5: =COUNTIFS( 'インポートデータ(解答履歴)'!$A:$A, $A5, 'インポートデータ(解答履歴)'!$C:$C, ">="&(AQ$3), 'インポートデータ(解答履歴)'!$C:$C, "<"&(AQ$3+7), 'インポートデータ(解答履歴)'!$P:$P, AQ$4 ) -> 0 | AR5: =COUNTIFS( 'インポートデータ(解答履歴)'!$A:$A, $A5, 'インポートデータ(解答履歴)'!$C:$C, ">="&(AR$3), 'インポートデータ(解答履歴)'!$C:$C, "<"&(AR$3+7), 'インポートデータ(解答履歴)'!$P:$P, AR$4 ) -> 0 | AS5: =COUNTIFS( 'インポートデータ(解答履歴)'!$A:$A, $A5, 'インポートデータ(解答履歴)'!$C:$C, ">="&(AS$3), 'インポートデータ(解答履歴)'!$C:$C, "<"&(AS$3+7), 'インポートデータ(解答履歴)'!$P:$P, AS$4 ) -> 0 | AT5: =COUNTIFS( 'インポートデータ(解答履歴)'!$A:$A, $A5, 'インポートデータ(解答履歴)'!$C:$C, ">="&(AT$3), 'インポートデータ(解答履歴)'!$C:$C, "<"&(AT$3+7), 'インポートデータ(解答履歴)'!$P:$P, AT$4 ) -> 0 | AU5: =COUNTIFS( 'インポートデータ(解答履歴)'!$A:$A, $A5, 'インポートデータ(解答履歴)'!$C:$C, ">="&(AU$3), 'インポートデータ(解答履歴)'!$C:$C, "<"&(AU$3+7), 'インポートデータ(解答履歴)'!$P:$P, AU$4 ) -> 0 | AV5: =COUNTIFS( 'インポートデータ(解答履歴)'!$A:$A, $A5, 'インポートデータ(解答履歴)'!$C:$C, ">="&(AV$3), 'インポートデータ(解答履歴)'!$C:$C, "<"&(AV$3+7), 'インポートデータ(解答履歴)'!$P:$P, AV$4 ) -> 0 | AW5: =COUNTIFS('インポートデータ(解答履歴)'!$A:$A, $A5,'インポートデータ(解答履歴)'!$F:$F, AW$3) -> 0 | AX5: =COUNTIFS('インポートデータ(解答履歴)'!$A:$A, $A5,'インポートデータ(解答履歴)'!$F:$F, AX$3) -> 0 | AY5: =COUNTIFS('インポートデータ(解答履歴)'!$A:$A, $A5,'インポートデータ(解答履歴)'!$F:$F, AY$3) -> 0 | AZ5: =COUNTIFS('インポートデータ(解答履歴)'!$A:$A, $A5,'インポートデータ(解答履歴)'!$F:$F, AZ$3) -> 0 | BA5: =COUNTIFS('インポートデータ(解答履歴)'!$A:$A, $A5,'インポートデータ(解答履歴)'!$F:$F, BA$3) -> 0 | BB5: =COUNTIFS('インポートデータ(解答履歴)'!$A:$A, $A5,'インポートデータ(解答履歴)'!$F:$F, BB$3) -> 0 | BC5: =COUNTIFS('インポートデータ(解答履歴)'!$A:$A, $A5,'インポートデータ(解答履歴)'!$F:$F, BC$3) -> 0 | BD5: =COUNTIFS('インポートデータ(解答履歴)'!$A:$A, $A5,'インポートデータ(解答履歴)'!$F:$F, BD$3) -> 0 | BE5: =COUNTIFS('インポートデータ(解答履歴)'!$A:$A, $A5,'インポートデータ(解答履歴)'!$F:$F, BE$3) -> 4 | BF5: =COUNTIFS('インポートデータ(解答履歴)'!$A:$A, $A5,'インポートデータ(解答履歴)'!$F:$F, BF$3) -> 3 | BG5: =COUNTIFS('インポートデータ(解答履歴)'!$A:$A, $A5,'インポートデータ(解答履歴)'!$F:$F, BG$3) -> 5 | BH5: =COUNTIFS('インポートデータ(解答履歴)'!$A:$A, $A5,'インポートデータ(解答履歴)'!$F:$F, BH$3) -> 0 | BI5: =COUNTIFS('インポートデータ(解答履歴)'!$A:$A, $A5,'インポートデータ(解答履歴)'!$F:$F, BI$3) -> 3 | BJ5: =COUNTIFS('インポートデータ(解答履歴)'!$A:$A, $A5,'インポートデータ(解答履歴)'!$F:$F, BJ$3) -> 1 | BK5: =COUNTIFS('インポートデータ(解答履歴)'!$A:$A, $A5,'インポートデータ(解答履歴)'!$F:$F, BK$3) -> 0 | BL5: =COUNTIFS('インポートデータ(解答履歴)'!$A:$A, $A5,'インポートデータ(解答履歴)'!$F:$F, BL$3) -> 0 | BM5: =COUNTIFS('インポートデータ(解答履歴)'!$A:$A, $A5,'インポートデータ(解答履歴)'!$F:$F, BM$3) -> 0 | BN5: =COUNTIFS('インポートデータ(解答履歴)'!$A:$A, $A5,'インポートデータ(解答履歴)'!$F:$F, BN$3) -> 7 | BO5: =COUNTIFS('インポートデータ(解答履歴)'!$A:$A, $A5,'インポートデータ(解答履歴)'!$F:$F, BO$3) -> 18 | BP5: =COUNTIFS('インポートデータ(解答履歴)'!$A:$A, $A5,'インポートデータ(解答履歴)'!$F:$F, BP$3) -> 9 | BQ5: =COUNTIFS('インポートデータ(解答履歴)'!$A:$A, $A5,'インポートデータ(解答履歴)'!$F:$F, BQ$3) -> 8 | BR5: =COUNTIFS('インポートデータ(解答履歴)'!$A:$A, $A5,'インポートデータ(解答履歴)'!$F:$F, BR$3) -> 0 | BS5: =COUNTIFS('インポートデータ(解答履歴)'!$A:$A, $A5,'インポートデータ(解答履歴)'!$F:$F, BS$3) -> 0 | BT5: =COUNTIFS('インポートデータ(解答履歴)'!$A:$A, $A5,'インポートデータ(解答履歴)'!$F:$F, BT$3) -> 3 | BU5: =SUM(BE5:BM5) -> 16 | BV5: =SUM(BB5:BD5,BN5:BT5) -> 45 | BW5: =SUM(AW5:BA5) -> 0 | BX5: =SUM(BY5:BZ5) -> 43 | BY5: =COUNTIFS('インポートデータ(解答履歴)'!$A:$A, $A5, 'インポートデータ(解答履歴)'!$X:$X, "初回", 'インポートデータ(解答履歴)'!$K:$K, "◯", 'インポートデータ(解答履歴)'!$D:$D, "<="&BZ$2) -> 30 | BZ5: =COUNTIFS('インポートデータ(解答履歴)'!$A:$A, $A5, 'インポートデータ(解答履歴)'!$X:$X, "初回", 'インポートデータ(解答履歴)'!$K:$K, "△", 'インポートデータ(解答履歴)'!$D:$D, "<="&BZ$2) + COUNTIFS('インポートデータ(解答履歴)'!$A:$A, $A5, 'インポートデータ(解答履歴)'!$X:$X, "初回", 'インポートデータ(解答履歴)'!$K:$K, "✕", 'インポートデータ(解答履歴)'!$D:$D, "<="&BZ$2) -> 13 | CA5: =BZ5-CB5 -> 6 | CB5: =COUNTIFS('インポートデータ(解答履歴)'!$A:$A, $A5, 'インポートデータ(解答履歴)'!Z:Z, "△", 'インポートデータ(解答履歴)'!$D:$D, "<="&BZ$2) + COUNTIFS('インポートデータ(解答履歴)'!$A:$A, $A5, 'インポートデータ(解答履歴)'!Z:Z, "✕", 'インポートデータ(解答履歴)'!$D:$D, "<="&BZ$2) -> 7 | CC5: =SUM(CD5:CE5) -> 23 | CD5: =COUNTIFS('インポートデータ(解答履歴)'!$A:$A, $A5, 'インポートデータ(解答履歴)'!$X:$X, "初回", 'インポートデータ(解答履歴)'!$K:$K, "◯", 'インポートデータ(解答履歴)'!$D:$D, "<="&CE$2) -> 13 | CE5: =COUNTIFS('インポートデータ(解答履歴)'!$A:$A, $A5, 'インポートデータ(解答履歴)'!$X:$X, "初回", 'インポートデータ(解答履歴)'!$K:$K, "△", 'インポートデータ(解答履歴)'!$D:$D, "<="&CE$2) + COUNTIFS('インポートデータ(解答履歴)'!$A:$A, $A5, 'インポートデータ(解答履歴)'!$X:$X, "初回", 'インポートデータ(解答履歴)'!$K:$K, "✕", 'インポートデータ(解答履歴)'!$D:$D, "<="&CE$2) -> 10 | CF5: =CE5-CG5 -> 6 | CG5: =COUNTIFS('インポートデータ(解答履歴)'!$A:$A, $A5, 'インポートデータ(解答履歴)'!Z:Z, "△", 'インポートデータ(解答履歴)'!$D:$D, "<="&CE$2) + COUNTIFS('インポートデータ(解答履歴)'!$A:$A, $A5, 'インポートデータ(解答履歴)'!Z:Z, "✕", 'インポートデータ(解答履歴)'!$D:$D, "<="&CE$2) -> 4 | CH5: =CA5-CF5 -> 0 | CI5: =SUM(list_group!$C$2:$C$7) -> 42 | CJ5: =IF($A5="","",IFERROR(ROWS(_xlfn.UNIQUE(_xlfn._xlws.FILTER('インポートデータ(解答履歴)'!$W:$W,('インポートデータ(解答履歴)'!$A:$A=$A5)*('インポートデータ(解答履歴)'!$V:$V<>"")*('インポートデータ(解答履歴)'!$V:$V<>0)*('インポートデータ(解答履歴)'!$V:$V<>"該当なし")))),0)) -> 42 | CK5: =IF($A5="","",IFERROR(ROWS(_xlfn.UNIQUE(_xlfn._xlws.FILTER('インポートデータ(解答履歴)'!$W:$W,('インポートデータ(解答履歴)'!$A:$A=$A5)*('インポートデータ(解答履歴)'!$V:$V<>"")*('インポートデータ(解答履歴)'!$V:$V<>0)*('インポートデータ(解答履歴)'!$V:$V<>"該当なし")*('インポートデータ(解答履歴)'!$Y:$Y="最新")*('インポートデータ(解答履歴)'!$K:$K="◯")))),0)) -> 34 | CL5: =IF(A5="","",CJ5/CI5) -> 1 | CM5: =IF(A5="","",IF(CJ5=0,0,CK5/CJ5)) -> 0.8095238095 | CN5: =IF($A5="","",IF(VLOOKUP(A5,生徒情報!A:C,3,FALSE)="","",VLOOKUP(A5,生徒情報!A:C,3,FALSE))) -> 未分類 | CO5: =SUM(U5:AV5) -> 61 | CP5: =IF($A5="","",RANK(CO5,CO:CO)) -> 3 | CQ5: =IF($A5="","",IF(CP5 = 1, "1位", IF( CP5/ COUNT(CP$5:CP$100) <= 0.15, "上位15%", IF(CP5 / COUNT(CP$5:CP$100) <= 0.3, "上位30%", "その他")))) -> 上位30% | CR5: =SUMIFS('インポートデータ(解答履歴)'!O:O,'インポートデータ(解答履歴)'!A:A,A5) -> 32054 | CS5: =IF($A5="","",RANK(CR5,CR:CR)) -> 2 | CT5: =IF($A5="","",IF(CS5 = 1, "1位", IF( CS5/ COUNT(CS$5:CS$100) <= 0.15, "上位15%", IF(CS5 / COUNT(CS$5:CS$100) <= 0.3, "上位30%", "その他")))) -> 上位30% | CU5: =IF($A5="","",IF(CI5=0,0,CJ5/CI5)) -> 1 | CV5: =IF($A5="","",RANK(CU5,CU:CU)) -> 1 | CW5: =IF($A5="","",IF(CV5 = 1, "1位", IF( CV5/ COUNT(CV$5:CV$100) <= 0.15, "上位15%", IF(CV5 / COUNT(CV$5:CV$100) <= 0.3, "上位30%", "その他")))) -> 1位 | CX5: =IF($A5="","",IF((CK5+CK5)=0,0,CK5/CJ5)) -> 0.8095238095 | CY5: =IF($A5="","",RANK(CX5,CX:CX)) -> 7 | CZ5: =IF($A5="","",IF(CY5 = 1, "1位", IF( CY5/ COUNT(CY$5:CY$100) <= 0.15, "上位15%", IF(CY5 / COUNT(CY$5:CY$100) <= 0.3, "上位30%", "その他")))) -> その他 | DA5: =SUM(V5,X5,Z5,AB5,AD5,AF5,AH5,AJ5,AL5,AN5,AP5,AR5,AT5,AV5) -> 0 | DB5: =IF($A5="","",RANK(DA5,DA:DA)) -> 2 | DC5: =IF($A5="","",IF(DB5 = 1, "1位", IF( DB5/ COUNT(DB$5:DB$100) <= 0.15, "上位15%", IF(DB5 / COUNT(DB$5:DB$100) <= 0.3, "上位30%", "その他")))) -> 上位30% | DD5: =IF(CE5=0,0,CF5/CE5) -> 0.6 | DE5: =IF($A5="","",RANK(DD5,DD:DD)) -> 4 | DF5: =IF($A5="","",IF(DE5 = 1, "1位", IF( DE5/ COUNT(DE$5:DE$100) <= 0.15, "上位15%", IF(DE5 / COUNT(DE$5:DE$100) <= 0.3, "上位30%", "その他")))) -> その他
A6: 10 | B6: 山口 和泉 | C6: =IF($A6="","",E$3) -> 27 | D6: =IF(OR(C$3="",$A6=""),"",IFERROR(ROWS(_xlfn.UNIQUE(_xlfn._xlws.FILTER('インポートデータ(解答履歴)'!$W:$W,('インポートデータ(解答履歴)'!$A:$A=$A6)*('インポートデータ(解答履歴)'!$V:$V=C$3)))),0)) -> 27 | E6: =IF(OR(C$3="",$A6=""),"",IFERROR(ROWS(_xlfn.UNIQUE(_xlfn._xlws.FILTER('インポートデータ(解答履歴)'!$W:$W,('インポートデータ(解答履歴)'!$A:$A=$A6)*('インポートデータ(解答履歴)'!$V:$V=C$3)*('インポートデータ(解答履歴)'!$Y:$Y="最新")*('インポートデータ(解答履歴)'!$K:$K="◯")))),0)) -> 17 | F6: =IF($A6="","",H$3) -> 15 | G6: =IF(OR(F$3="",$A6=""),"",IFERROR(ROWS(_xlfn.UNIQUE(_xlfn._xlws.FILTER('インポートデータ(解答履歴)'!$W:$W,('インポートデータ(解答履歴)'!$A:$A=$A6)*('インポートデータ(解答履歴)'!$V:$V=F$3)))),0)) -> 15 | H6: =IF(OR(F$3="",$A6=""),"",IFERROR(ROWS(_xlfn.UNIQUE(_xlfn._xlws.FILTER('インポートデータ(解答履歴)'!$W:$W,('インポートデータ(解答履歴)'!$A:$A=$A6)*('インポートデータ(解答履歴)'!$V:$V=F$3)*('インポートデータ(解答履歴)'!$Y:$Y="最新")*('インポートデータ(解答履歴)'!$K:$K="◯")))),0)) -> 4 | I6: =IF($A6="","",K$3) ->  | J6: =IF(OR(I$3="",$A6=""),"",IFERROR(ROWS(_xlfn.UNIQUE(_xlfn._xlws.FILTER('インポートデータ(解答履歴)'!$W:$W,('インポートデータ(解答履歴)'!$A:$A=$A6)*('インポートデータ(解答履歴)'!$V:$V=I$3)))),0)) ->  | K6: =IF(OR(I$3="",$A6=""),"",IFERROR(ROWS(_xlfn.UNIQUE(_xlfn._xlws.FILTER('インポートデータ(解答履歴)'!$W:$W,('インポートデータ(解答履歴)'!$A:$A=$A6)*('インポートデータ(解答履歴)'!$V:$V=I$3)*('インポートデータ(解答履歴)'!$Y:$Y="最新")*('インポートデータ(解答履歴)'!$K:$K="◯")))),0)) ->  | L6: =IF($A6="","",N$3) ->  | M6: =IF(OR(L$3="",$A6=""),"",IFERROR(ROWS(_xlfn.UNIQUE(_xlfn._xlws.FILTER('インポートデータ(解答履歴)'!$W:$W,('インポートデータ(解答履歴)'!$A:$A=$A6)*('インポートデータ(解答履歴)'!$V:$V=L$3)))),0)) ->  | N6: =IF(OR(L$3="",$A6=""),"",IFERROR(ROWS(_xlfn.UNIQUE(_xlfn._xlws.FILTER('インポートデータ(解答履歴)'!$W:$W,('インポートデータ(解答履歴)'!$A:$A=$A6)*('インポートデータ(解答履歴)'!$V:$V=L$3)*('インポートデータ(解答履歴)'!$Y:$Y="最新")*('インポートデータ(解答履歴)'!$K:$K="◯")))),0)) ->  | O6: =IF($A6="","",Q$3) ->  | P6: =IF(OR(O$3="",$A6=""),"",IFERROR(ROWS(_xlfn.UNIQUE(_xlfn._xlws.FILTER('インポートデータ(解答履歴)'!$W:$W,('インポートデータ(解答履歴)'!$A:$A=$A6)*('インポートデータ(解答履歴)'!$V:$V=O$3)))),0)) ->  | Q6: =IF(OR(O$3="",$A6=""),"",IFERROR(ROWS(_xlfn.UNIQUE(_xlfn._xlws.FILTER('インポートデータ(解答履歴)'!$W:$W,('インポートデータ(解答履歴)'!$A:$A=$A6)*('インポートデータ(解答履歴)'!$V:$V=O$3)*('インポートデータ(解答履歴)'!$Y:$Y="最新")*('インポートデータ(解答履歴)'!$K:$K="◯")))),0)) ->  | R6: =IF($A6="","",T$3) ->  | S6: =IF(OR(R$3="",$A6=""),"",IFERROR(ROWS(_xlfn.UNIQUE(_xlfn._xlws.FILTER('インポートデータ(解答履歴)'!$W:$W,('インポートデータ(解答履歴)'!$A:$A=$A6)*('インポートデータ(解答履歴)'!$V:$V=R$3)))),0)) ->  | T6: =IF(OR(R$3="",$A6=""),"",IFERROR(ROWS(_xlfn.UNIQUE(_xlfn._xlws.FILTER('インポートデータ(解答履歴)'!$W:$W,('インポートデータ(解答履歴)'!$A:$A=$A6)*('インポートデータ(解答履歴)'!$V:$V=R$3)*('インポートデータ(解答履歴)'!$Y:$Y="最新")*('インポートデータ(解答履歴)'!$K:$K="◯")))),0)) ->  | U6: =COUNTIFS( 'インポートデータ(解答履歴)'!$A:$A, $A6, 'インポートデータ(解答履歴)'!$C:$C, ">="&(U$3), 'インポートデータ(解答履歴)'!$C:$C, "<"&(U$3+7), 'インポートデータ(解答履歴)'!$P:$P, U$4 ) -> 6 | V6: =COUNTIFS( 'インポートデータ(解答履歴)'!$A:$A, $A6, 'インポートデータ(解答履歴)'!$C:$C, ">="&(V$3), 'インポートデータ(解答履歴)'!$C:$C, "<"&(V$3+7), 'インポートデータ(解答履歴)'!$P:$P, V$4 ) -> 0 | W6: =COUNTIFS( 'インポートデータ(解答履歴)'!$A:$A, $A6, 'インポートデータ(解答履歴)'!$C:$C, ">="&(W$3), 'インポートデータ(解答履歴)'!$C:$C, "<"&(W$3+7), 'インポートデータ(解答履歴)'!$P:$P, W$4 ) -> 15 | X6: =COUNTIFS( 'インポートデータ(解答履歴)'!$A:$A, $A6, 'インポートデータ(解答履歴)'!$C:$C, ">="&(X$3), 'インポートデータ(解答履歴)'!$C:$C, "<"&(X$3+7), 'インポートデータ(解答履歴)'!$P:$P, X$4 ) -> 0 | Y6: =COUNTIFS( 'インポートデータ(解答履歴)'!$A:$A, $A6, 'インポートデータ(解答履歴)'!$C:$C, ">="&(Y$3), 'インポートデータ(解答履歴)'!$C:$C, "<"&(Y$3+7), 'インポートデータ(解答履歴)'!$P:$P, Y$4 ) -> 17 | Z6: =COUNTIFS( 'インポートデータ(解答履歴)'!$A:$A, $A6, 'インポートデータ(解答履歴)'!$C:$C, ">="&(Z$3), 'インポートデータ(解答履歴)'!$C:$C, "<"&(Z$3+7), 'インポートデータ(解答履歴)'!$P:$P, Z$4 ) -> 0 | AA6: =COUNTIFS( 'インポートデータ(解答履歴)'!$A:$A, $A6, 'インポートデータ(解答履歴)'!$C:$C, ">="&(AA$3), 'インポートデータ(解答履歴)'!$C:$C, "<"&(AA$3+7), 'インポートデータ(解答履歴)'!$P:$P, AA$4 ) -> 4 | AB6: =COUNTIFS( 'インポートデータ(解答履歴)'!$A:$A, $A6, 'インポートデータ(解答履歴)'!$C:$C, ">="&(AB$3), 'インポートデータ(解答履歴)'!$C:$C, "<"&(AB$3+7), 'インポートデータ(解答履歴)'!$P:$P, AB$4 ) -> 0 | AC6: =COUNTIFS( 'インポートデータ(解答履歴)'!$A:$A, $A6, 'インポートデータ(解答履歴)'!$C:$C, ">="&(AC$3), 'インポートデータ(解答履歴)'!$C:$C, "<"&(AC$3+7), 'インポートデータ(解答履歴)'!$P:$P, AC$4 ) -> 0 | AD6: =COUNTIFS( 'インポートデータ(解答履歴)'!$A:$A, $A6, 'インポートデータ(解答履歴)'!$C:$C, ">="&(AD$3), 'インポートデータ(解答履歴)'!$C:$C, "<"&(AD$3+7), 'インポートデータ(解答履歴)'!$P:$P, AD$4 ) -> 0 | AE6: =COUNTIFS( 'インポートデータ(解答履歴)'!$A:$A, $A6, 'インポートデータ(解答履歴)'!$C:$C, ">="&(AE$3), 'インポートデータ(解答履歴)'!$C:$C, "<"&(AE$3+7), 'インポートデータ(解答履歴)'!$P:$P, AE$4 ) -> 0 | AF6: =COUNTIFS( 'インポートデータ(解答履歴)'!$A:$A, $A6, 'インポートデータ(解答履歴)'!$C:$C, ">="&(AF$3), 'インポートデータ(解答履歴)'!$C:$C, "<"&(AF$3+7), 'インポートデータ(解答履歴)'!$P:$P, AF$4 ) -> 0 | AG6: =COUNTIFS( 'インポートデータ(解答履歴)'!$A:$A, $A6, 'インポートデータ(解答履歴)'!$C:$C, ">="&(AG$3), 'インポートデータ(解答履歴)'!$C:$C, "<"&(AG$3+7), 'インポートデータ(解答履歴)'!$P:$P, AG$4 ) -> 0 | AH6: =COUNTIFS( 'インポートデータ(解答履歴)'!$A:$A, $A6, 'インポートデータ(解答履歴)'!$C:$C, ">="&(AH$3), 'インポートデータ(解答履歴)'!$C:$C, "<"&(AH$3+7), 'インポートデータ(解答履歴)'!$P:$P, AH$4 ) -> 0 | AI6: =COUNTIFS( 'インポートデータ(解答履歴)'!$A:$A, $A6, 'インポートデータ(解答履歴)'!$C:$C, ">="&(AI$3), 'インポートデータ(解答履歴)'!$C:$C, "<"&(AI$3+7), 'インポートデータ(解答履歴)'!$P:$P, AI$4 ) -> 6 | AJ6: =COUNTIFS( 'インポートデータ(解答履歴)'!$A:$A, $A6, 'インポートデータ(解答履歴)'!$C:$C, ">="&(AJ$3), 'インポートデータ(解答履歴)'!$C:$C, "<"&(AJ$3+7), 'インポートデータ(解答履歴)'!$P:$P, AJ$4 ) -> 0 | AK6: =COUNTIFS( 'インポートデータ(解答履歴)'!$A:$A, $A6, 'インポートデータ(解答履歴)'!$C:$C, ">="&(AK$3), 'インポートデータ(解答履歴)'!$C:$C, "<"&(AK$3+7), 'インポートデータ(解答履歴)'!$P:$P, AK$4 ) -> 27 | AL6: =COUNTIFS( 'インポートデータ(解答履歴)'!$A:$A, $A6, 'インポートデータ(解答履歴)'!$C:$C, ">="&(AL$3), 'インポートデータ(解答履歴)'!$C:$C, "<"&(AL$3+7), 'インポートデータ(解答履歴)'!$P:$P, AL$4 ) -> 0 | AM6: =COUNTIFS( 'インポートデータ(解答履歴)'!$A:$A, $A6, 'インポートデータ(解答履歴)'!$C:$C, ">="&(AM$3), 'インポートデータ(解答履歴)'!$C:$C, "<"&(AM$3+7), 'インポートデータ(解答履歴)'!$P:$P, AM$4 ) -> 2 | AN6: =COUNTIFS( 'インポートデータ(解答履歴)'!$A:$A, $A6, 'インポートデータ(解答履歴)'!$C:$C, ">="&(AN$3), 'インポートデータ(解答履歴)'!$C:$C, "<"&(AN$3+7), 'インポートデータ(解答履歴)'!$P:$P, AN$4 ) -> 0 | AO6: =COUNTIFS( 'インポートデータ(解答履歴)'!$A:$A, $A6, 'インポートデータ(解答履歴)'!$C:$C, ">="&(AO$3), 'インポートデータ(解答履歴)'!$C:$C, "<"&(AO$3+7), 'インポートデータ(解答履歴)'!$P:$P, AO$4 ) -> 0 | AP6: =COUNTIFS( 'インポートデータ(解答履歴)'!$A:$A, $A6, 'インポートデータ(解答履歴)'!$C:$C, ">="&(AP$3), 'インポートデータ(解答履歴)'!$C:$C, "<"&(AP$3+7), 'インポートデータ(解答履歴)'!$P:$P, AP$4 ) -> 0 | AQ6: =COUNTIFS( 'インポートデータ(解答履歴)'!$A:$A, $A6, 'インポートデータ(解答履歴)'!$C:$C, ">="&(AQ$3), 'インポートデータ(解答履歴)'!$C:$C, "<"&(AQ$3+7), 'インポートデータ(解答履歴)'!$P:$P, AQ$4 ) -> 0 | AR6: =COUNTIFS( 'インポートデータ(解答履歴)'!$A:$A, $A6, 'インポートデータ(解答履歴)'!$C:$C, ">="&(AR$3), 'インポートデータ(解答履歴)'!$C:$C, "<"&(AR$3+7), 'インポートデータ(解答履歴)'!$P:$P, AR$4 ) -> 0 | AS6: =COUNTIFS( 'インポートデータ(解答履歴)'!$A:$A, $A6, 'インポートデータ(解答履歴)'!$C:$C, ">="&(AS$3), 'インポートデータ(解答履歴)'!$C:$C, "<"&(AS$3+7), 'インポートデータ(解答履歴)'!$P:$P, AS$4 ) -> 0 | AT6: =COUNTIFS( 'インポートデータ(解答履歴)'!$A:$A, $A6, 'インポートデータ(解答履歴)'!$C:$C, ">="&(AT$3), 'インポートデータ(解答履歴)'!$C:$C, "<"&(AT$3+7), 'インポートデータ(解答履歴)'!$P:$P, AT$4 ) -> 0 | AU6: =COUNTIFS( 'インポートデータ(解答履歴)'!$A:$A, $A6, 'インポートデータ(解答履歴)'!$C:$C, ">="&(AU$3), 'インポートデータ(解答履歴)'!$C:$C, "<"&(AU$3+7), 'インポートデータ(解答履歴)'!$P:$P, AU$4 ) -> 0 | AV6: =COUNTIFS( 'インポートデータ(解答履歴)'!$A:$A, $A6, 'インポートデータ(解答履歴)'!$C:$C, ">="&(AV$3), 'インポートデータ(解答履歴)'!$C:$C, "<"&(AV$3+7), 'インポートデータ(解答履歴)'!$P:$P, AV$4 ) -> 0 | AW6: =COUNTIFS('インポートデータ(解答履歴)'!$A:$A, $A6,'インポートデータ(解答履歴)'!$F:$F, AW$3) -> 7 | AX6: =COUNTIFS('インポートデータ(解答履歴)'!$A:$A, $A6,'インポートデータ(解答履歴)'!$F:$F, AX$3) -> 0 | AY6: =COUNTIFS('インポートデータ(解答履歴)'!$A:$A, $A6,'インポートデータ(解答履歴)'!$F:$F, AY$3) -> 0 | AZ6: =COUNTIFS('インポートデータ(解答履歴)'!$A:$A, $A6,'インポートデータ(解答履歴)'!$F:$F, AZ$3) -> 0 | BA6: =COUNTIFS('インポートデータ(解答履歴)'!$A:$A, $A6,'インポートデータ(解答履歴)'!$F:$F, BA$3) -> 0 | BB6: =COUNTIFS('インポートデータ(解答履歴)'!$A:$A, $A6,'インポートデータ(解答履歴)'!$F:$F, BB$3) -> 2 | BC6: =COUNTIFS('インポートデータ(解答履歴)'!$A:$A, $A6,'インポートデータ(解答履歴)'!$F:$F, BC$3) -> 0 | BD6: =COUNTIFS('インポートデータ(解答履歴)'!$A:$A, $A6,'インポートデータ(解答履歴)'!$F:$F, BD$3) -> 0 | BE6: =COUNTIFS('インポートデータ(解答履歴)'!$A:$A, $A6,'インポートデータ(解答履歴)'!$F:$F, BE$3) -> 0 | BF6: =COUNTIFS('インポートデータ(解答履歴)'!$A:$A, $A6,'インポートデータ(解答履歴)'!$F:$F, BF$3) -> 0 | BG6: =COUNTIFS('インポートデータ(解答履歴)'!$A:$A, $A6,'インポートデータ(解答履歴)'!$F:$F, BG$3) -> 15 | BH6: =COUNTIFS('インポートデータ(解答履歴)'!$A:$A, $A6,'インポートデータ(解答履歴)'!$F:$F, BH$3) -> 15 | BI6: =COUNTIFS('インポートデータ(解答履歴)'!$A:$A, $A6,'インポートデータ(解答履歴)'!$F:$F, BI$3) -> 1 | BJ6: =COUNTIFS('インポートデータ(解答履歴)'!$A:$A, $A6,'インポートデータ(解答履歴)'!$F:$F, BJ$3) -> 0 | BK6: =COUNTIFS('インポートデータ(解答履歴)'!$A:$A, $A6,'インポートデータ(解答履歴)'!$F:$F, BK$3) -> 2 | BL6: =COUNTIFS('インポートデータ(解答履歴)'!$A:$A, $A6,'インポートデータ(解答履歴)'!$F:$F, BL$3) -> 0 | BM6: =COUNTIFS('インポートデータ(解答履歴)'!$A:$A, $A6,'インポートデータ(解答履歴)'!$F:$F, BM$3) -> 4 | BN6: =COUNTIFS('インポートデータ(解答履歴)'!$A:$A, $A6,'インポートデータ(解答履歴)'!$F:$F, BN$3) -> 0 | BO6: =COUNTIFS('インポートデータ(解答履歴)'!$A:$A, $A6,'インポートデータ(解答履歴)'!$F:$F, BO$3) -> 3 | BP6: =COUNTIFS('インポートデータ(解答履歴)'!$A:$A, $A6,'インポートデータ(解答履歴)'!$F:$F, BP$3) -> 8 | BQ6: =COUNTIFS('インポートデータ(解答履歴)'!$A:$A, $A6,'インポートデータ(解答履歴)'!$F:$F, BQ$3) -> 0 | BR6: =COUNTIFS('インポートデータ(解答履歴)'!$A:$A, $A6,'インポートデータ(解答履歴)'!$F:$F, BR$3) -> 0 | BS6: =COUNTIFS('インポートデータ(解答履歴)'!$A:$A, $A6,'インポートデータ(解答履歴)'!$F:$F, BS$3) -> 5 | BT6: =COUNTIFS('インポートデータ(解答履歴)'!$A:$A, $A6,'インポートデータ(解答履歴)'!$F:$F, BT$3) -> 15 | BU6: =SUM(BE6:BM6) -> 37 | BV6: =SUM(BB6:BD6,BN6:BT6) -> 33 | BW6: =SUM(AW6:BA6) -> 7 | BX6: =SUM(BY6:BZ6) -> 43 | BY6: =COUNTIFS('インポートデータ(解答履歴)'!$A:$A, $A6, 'インポートデータ(解答履歴)'!$X:$X, "初回", 'インポートデータ(解答履歴)'!$K:$K, "◯", 'インポートデータ(解答履歴)'!$D:$D, "<="&BZ$2) -> 18 | BZ6: =COUNTIFS('インポートデータ(解答履歴)'!$A:$A, $A6, 'インポートデータ(解答履歴)'!$X:$X, "初回", 'インポートデータ(解答履歴)'!$K:$K, "△", 'インポートデータ(解答履歴)'!$D:$D, "<="&BZ$2) + COUNTIFS('インポートデータ(解答履歴)'!$A:$A, $A6, 'インポートデータ(解答履歴)'!$X:$X, "初回", 'インポートデータ(解答履歴)'!$K:$K, "✕", 'インポートデータ(解答履歴)'!$D:$D, "<="&BZ$2) -> 25 | CA6: =BZ6-CB6 -> 4 | CB6: =COUNTIFS('インポートデータ(解答履歴)'!$A:$A, $A6, 'インポートデータ(解答履歴)'!Z:Z, "△", 'インポートデータ(解答履歴)'!$D:$D, "<="&BZ$2) + COUNTIFS('インポートデータ(解答履歴)'!$A:$A, $A6, 'インポートデータ(解答履歴)'!Z:Z, "✕", 'インポートデータ(解答履歴)'!$D:$D, "<="&BZ$2) -> 21 | CC6: 23 | CD6: =COUNTIFS('インポートデータ(解答履歴)'!$A:$A, $A6, 'インポートデータ(解答履歴)'!$X:$X, "初回", 'インポートデータ(解答履歴)'!$K:$K, "◯", 'インポートデータ(解答履歴)'!$D:$D, "<="&CE$2) -> 12 | CE6: =COUNTIFS('インポートデータ(解答履歴)'!$A:$A, $A6, 'インポートデータ(解答履歴)'!$X:$X, "初回", 'インポートデータ(解答履歴)'!$K:$K, "△", 'インポートデータ(解答履歴)'!$D:$D, "<="&CE$2) + COUNTIFS('インポートデータ(解答履歴)'!$A:$A, $A6, 'インポートデータ(解答履歴)'!$X:$X, "初回", 'インポートデータ(解答履歴)'!$K:$K, "✕", 'インポートデータ(解答履歴)'!$D:$D, "<="&CE$2) -> 11 | CF6: =CE6-CG6 -> 4 | CG6: =COUNTIFS('インポートデータ(解答履歴)'!$A:$A, $A6, 'インポートデータ(解答履歴)'!Z:Z, "△", 'インポートデータ(解答履歴)'!$D:$D, "<="&CE$2) + COUNTIFS('インポートデータ(解答履歴)'!$A:$A, $A6, 'インポートデータ(解答履歴)'!Z:Z, "✕", 'インポートデータ(解答履歴)'!$D:$D, "<="&CE$2) -> 7 | CH6: =CA6-CF6 -> 0 | CI6: =SUM(list_group!$C$2:$C$7) -> 42 | CJ6: =IF($A6="","",IFERROR(ROWS(_xlfn.UNIQUE(_xlfn._xlws.FILTER('インポートデータ(解答履歴)'!$W:$W,('インポートデータ(解答履歴)'!$A:$A=$A6)*('インポートデータ(解答履歴)'!$V:$V<>"")*('インポートデータ(解答履歴)'!$V:$V<>0)*('インポートデータ(解答履歴)'!$V:$V<>"該当なし")))),0)) -> 42 | CK6: =IF($A6="","",IFERROR(ROWS(_xlfn.UNIQUE(_xlfn._xlws.FILTER('インポートデータ(解答履歴)'!$W:$W,('インポートデータ(解答履歴)'!$A:$A=$A6)*('インポートデータ(解答履歴)'!$V:$V<>"")*('インポートデータ(解答履歴)'!$V:$V<>0)*('インポートデータ(解答履歴)'!$V:$V<>"該当なし")*('インポートデータ(解答履歴)'!$Y:$Y="最新")*('インポートデータ(解答履歴)'!$K:$K="◯")))),0)) -> 21 | CL6: 1 | CM6: 0.5 | CN6: =IF($A6="","",IF(VLOOKUP(A6,生徒情報!A:C,3,FALSE)="","",VLOOKUP(A6,生徒情報!A:C,3,FALSE))) -> 未分類 | CO6: 77 | CP6: =IF($A6="","",RANK(CO6,CO:CO)) -> 2 | CQ6: =IF($A6="","",IF(CP6 = 1, "1位", IF( CP6/ COUNT(CP$5:CP$100) <= 0.15, "上位15%", IF(CP6 / COUNT(CP$5:CP$100) <= 0.3, "上位30%", "その他")))) -> 上位30% | CR6: =SUMIFS('インポートデータ(解答履歴)'!O:O,'インポートデータ(解答履歴)'!A:A,A6) -> 15461 | CS6: =IF($A6="","",RANK(CR6,CR:CR)) -> 5 | CT6: =IF($A6="","",IF(CS6 = 1, "1位", IF( CS6/ COUNT(CS$5:CS$100) <= 0.15, "上位15%", IF(CS6 / COUNT(CS$5:CS$100) <= 0.3, "上位30%", "その他")))) -> その他 | CU6: =IF($A6="","",IF(CI6=0,0,CJ6/CI6)) -> 1 | CV6: =IF($A6="","",RANK(CU6,CU:CU)) -> 1 | CW6: =IF($A6="","",IF(CV6 = 1, "1位", IF( CV6/ COUNT(CV$5:CV$100) <= 0.15, "上位15%", IF(CV6 / COUNT(CV$5:CV$100) <= 0.3, "上位30%", "その他")))) -> 1位 | CX6: =IF($A6="","",IF((CK6+CK6)=0,0,CK6/CJ6)) -> 0.5 | CY6: =IF($A6="","",RANK(CX6,CX:CX)) -> 10 | CZ6: =IF($A6="","",IF(CY6 = 1, "1位", IF( CY6/ COUNT(CY$5:CY$100) <= 0.15, "上位15%", IF(CY6 / COUNT(CY$5:CY$100) <= 0.3, "上位30%", "その他")))) -> その他 | DA6: =SUM(V6,X6,Z6,AB6,AD6,AF6,AH6,AJ6,AL6,AN6,AP6,AR6,AT6,AV6) -> 0 | DB6: =IF($A6="","",RANK(DA6,DA:DA)) -> 2 | DC6: =IF($A6="","",IF(DB6 = 1, "1位", IF( DB6/ COUNT(DB$5:DB$100) <= 0.15, "上位15%", IF(DB6 / COUNT(DB$5:DB$100) <= 0.3, "上位30%", "その他")))) -> 上位30% | DD6: =IF(CE6=0,0,CF6/CE6) -> 0.3636363636 | DE6: =IF($A6="","",RANK(DD6,DD:DD)) -> 5 | DF6: =IF($A6="","",IF(DE6 = 1, "1位", IF( DE6/ COUNT(DE$5:DE$100) <= 0.15, "上位15%", IF(DE6 / COUNT(DE$5:DE$100) <= 0.3, "上位30%", "その他")))) -> その他
A7: 6 | B7: 川上 清美 | C7: 27 | D7: =IF(OR(C$3="",$A7=""),"",IFERROR(ROWS(_xlfn.UNIQUE(_xlfn._xlws.FILTER('インポートデータ(解答履歴)'!$W:$W,('インポートデータ(解答履歴)'!$A:$A=$A7)*('インポートデータ(解答履歴)'!$V:$V=C$3)))),0)) -> 27 | E7: =IF(OR(C$3="",$A7=""),"",IFERROR(ROWS(_xlfn.UNIQUE(_xlfn._xlws.FILTER('インポートデータ(解答履歴)'!$W:$W,('インポートデータ(解答履歴)'!$A:$A=$A7)*('インポートデータ(解答履歴)'!$V:$V=C$3)*('インポートデータ(解答履歴)'!$Y:$Y="最新")*('インポートデータ(解答履歴)'!$K:$K="◯")))),0)) -> 27 | F7: 15 | G7: =IF(OR(F$3="",$A7=""),"",IFERROR(ROWS(_xlfn.UNIQUE(_xlfn._xlws.FILTER('インポートデータ(解答履歴)'!$W:$W,('インポートデータ(解答履歴)'!$A:$A=$A7)*('インポートデータ(解答履歴)'!$V:$V=F$3)))),0)) -> 15 | H7: =IF(OR(F$3="",$A7=""),"",IFERROR(ROWS(_xlfn.UNIQUE(_xlfn._xlws.FILTER('インポートデータ(解答履歴)'!$W:$W,('インポートデータ(解答履歴)'!$A:$A=$A7)*('インポートデータ(解答履歴)'!$V:$V=F$3)*('インポートデータ(解答履歴)'!$Y:$Y="最新")*('インポートデータ(解答履歴)'!$K:$K="◯")))),0)) -> 15 | J7: =IF(OR(I$3="",$A7=""),"",IFERROR(ROWS(_xlfn.UNIQUE(_xlfn._xlws.FILTER('インポートデータ(解答履歴)'!$W:$W,('インポートデータ(解答履歴)'!$A:$A=$A7)*('インポートデータ(解答履歴)'!$V:$V=I$3)))),0)) ->  | K7: =IF(OR(I$3="",$A7=""),"",IFERROR(ROWS(_xlfn.UNIQUE(_xlfn._xlws.FILTER('インポートデータ(解答履歴)'!$W:$W,('インポートデータ(解答履歴)'!$A:$A=$A7)*('インポートデータ(解答履歴)'!$V:$V=I$3)*('インポートデータ(解答履歴)'!$Y:$Y="最新")*('インポートデータ(解答履歴)'!$K:$K="◯")))),0)) ->  | M7: =IF(OR(L$3="",$A7=""),"",IFERROR(ROWS(_xlfn.UNIQUE(_xlfn._xlws.FILTER('インポートデータ(解答履歴)'!$W:$W,('インポートデータ(解答履歴)'!$A:$A=$A7)*('インポートデータ(解答履歴)'!$V:$V=L$3)))),0)) ->  | N7: =IF(OR(L$3="",$A7=""),"",IFERROR(ROWS(_xlfn.UNIQUE(_xlfn._xlws.FILTER('インポートデータ(解答履歴)'!$W:$W,('インポートデータ(解答履歴)'!$A:$A=$A7)*('インポートデータ(解答履歴)'!$V:$V=L$3)*('インポートデータ(解答履歴)'!$Y:$Y="最新")*('インポートデータ(解答履歴)'!$K:$K="◯")))),0)) ->  | P7: =IF(OR(O$3="",$A7=""),"",IFERROR(ROWS(_xlfn.UNIQUE(_xlfn._xlws.FILTER('インポートデータ(解答履歴)'!$W:$W,('インポートデータ(解答履歴)'!$A:$A=$A7)*('インポートデータ(解答履歴)'!$V:$V=O$3)))),0)) ->  | Q7: =IF(OR(O$3="",$A7=""),"",IFERROR(ROWS(_xlfn.UNIQUE(_xlfn._xlws.FILTER('インポートデータ(解答履歴)'!$W:$W,('インポートデータ(解答履歴)'!$A:$A=$A7)*('インポートデータ(解答履歴)'!$V:$V=O$3)*('インポートデータ(解答履歴)'!$Y:$Y="最新")*('インポートデータ(解答履歴)'!$K:$K="◯")))),0)) ->  | S7: =IF(OR(R$3="",$A7=""),"",IFERROR(ROWS(_xlfn.UNIQUE(_xlfn._xlws.FILTER('インポートデータ(解答履歴)'!$W:$W,('インポートデータ(解答履歴)'!$A:$A=$A7)*('インポートデータ(解答履歴)'!$V:$V=R$3)))),0)) ->  | T7: =IF(OR(R$3="",$A7=""),"",IFERROR(ROWS(_xlfn.UNIQUE(_xlfn._xlws.FILTER('インポートデータ(解答履歴)'!$W:$W,('インポートデータ(解答履歴)'!$A:$A=$A7)*('インポートデータ(解答履歴)'!$V:$V=R$3)*('インポートデータ(解答履歴)'!$Y:$Y="最新")*('インポートデータ(解答履歴)'!$K:$K="◯")))),0)) ->  | U7: =COUNTIFS( 'インポートデータ(解答履歴)'!$A:$A, $A7, 'インポートデータ(解答履歴)'!$C:$C, ">="&(U$3), 'インポートデータ(解答履歴)'!$C:$C, "<"&(U$3+7), 'インポートデータ(解答履歴)'!$P:$P, U$4 ) -> 4 | V7: =COUNTIFS( 'インポートデータ(解答履歴)'!$A:$A, $A7, 'インポートデータ(解答履歴)'!$C:$C, ">="&(V$3), 'インポートデータ(解答履歴)'!$C:$C, "<"&(V$3+7), 'インポートデータ(解答履歴)'!$P:$P, V$4 ) -> 0 | W7: =COUNTIFS( 'インポートデータ(解答履歴)'!$A:$A, $A7, 'インポートデータ(解答履歴)'!$C:$C, ">="&(W$3), 'インポートデータ(解答履歴)'!$C:$C, "<"&(W$3+7), 'インポートデータ(解答履歴)'!$P:$P, W$4 ) -> 13 | X7: =COUNTIFS( 'インポートデータ(解答履歴)'!$A:$A, $A7, 'インポートデータ(解答履歴)'!$C:$C, ">="&(X$3), 'インポートデータ(解答履歴)'!$C:$C, "<"&(X$3+7), 'インポートデータ(解答履歴)'!$P:$P, X$4 ) -> 0 | Y7: =COUNTIFS( 'インポートデータ(解答履歴)'!$A:$A, $A7, 'インポートデータ(解答履歴)'!$C:$C, ">="&(Y$3), 'インポートデータ(解答履歴)'!$C:$C, "<"&(Y$3+7), 'インポートデータ(解答履歴)'!$P:$P, Y$4 ) -> 7 | Z7: =COUNTIFS( 'インポートデータ(解答履歴)'!$A:$A, $A7, 'インポートデータ(解答履歴)'!$C:$C, ">="&(Z$3), 'インポートデータ(解答履歴)'!$C:$C, "<"&(Z$3+7), 'インポートデータ(解答履歴)'!$P:$P, Z$4 ) -> 0 | AA7: =COUNTIFS( 'インポートデータ(解答履歴)'!$A:$A, $A7, 'インポートデータ(解答履歴)'!$C:$C, ">="&(AA$3), 'インポートデータ(解答履歴)'!$C:$C, "<"&(AA$3+7), 'インポートデータ(解答履歴)'!$P:$P, AA$4 ) -> 0 | AB7: =COUNTIFS( 'インポートデータ(解答履歴)'!$A:$A, $A7, 'インポートデータ(解答履歴)'!$C:$C, ">="&(AB$3), 'インポートデータ(解答履歴)'!$C:$C, "<"&(AB$3+7), 'インポートデータ(解答履歴)'!$P:$P, AB$4 ) -> 0 | AC7: =COUNTIFS( 'インポートデータ(解答履歴)'!$A:$A, $A7, 'インポートデータ(解答履歴)'!$C:$C, ">="&(AC$3), 'インポートデータ(解答履歴)'!$C:$C, "<"&(AC$3+7), 'インポートデータ(解答履歴)'!$P:$P, AC$4 ) -> 0 | AD7: =COUNTIFS( 'インポートデータ(解答履歴)'!$A:$A, $A7, 'インポートデータ(解答履歴)'!$C:$C, ">="&(AD$3), 'インポートデータ(解答履歴)'!$C:$C, "<"&(AD$3+7), 'インポートデータ(解答履歴)'!$P:$P, AD$4 ) -> 0 | AE7: =COUNTIFS( 'インポートデータ(解答履歴)'!$A:$A, $A7, 'インポートデータ(解答履歴)'!$C:$C, ">="&(AE$3), 'インポートデータ(解答履歴)'!$C:$C, "<"&(AE$3+7), 'インポートデータ(解答履歴)'!$P:$P, AE$4 ) -> 0 | AF7: =COUNTIFS( 'インポートデータ(解答履歴)'!$A:$A, $A7, 'インポートデータ(解答履歴)'!$C:$C, ">="&(AF$3), 'インポートデータ(解答履歴)'!$C:$C, "<"&(AF$3+7), 'インポートデータ(解答履歴)'!$P:$P, AF$4 ) -> 0 | AG7: =COUNTIFS( 'インポートデータ(解答履歴)'!$A:$A, $A7, 'インポートデータ(解答履歴)'!$C:$C, ">="&(AG$3), 'インポートデータ(解答履歴)'!$C:$C, "<"&(AG$3+7), 'インポートデータ(解答履歴)'!$P:$P, AG$4 ) -> 5 | AH7: =COUNTIFS( 'インポートデータ(解答履歴)'!$A:$A, $A7, 'インポートデータ(解答履歴)'!$C:$C, ">="&(AH$3), 'インポートデータ(解答履歴)'!$C:$C, "<"&(AH$3+7), 'インポートデータ(解答履歴)'!$P:$P, AH$4 ) -> 0 | AI7: =COUNTIFS( 'インポートデータ(解答履歴)'!$A:$A, $A7, 'インポートデータ(解答履歴)'!$C:$C, ">="&(AI$3), 'インポートデータ(解答履歴)'!$C:$C, "<"&(AI$3+7), 'インポートデータ(解答履歴)'!$P:$P, AI$4 ) -> 1 | AJ7: =COUNTIFS( 'インポートデータ(解答履歴)'!$A:$A, $A7, 'インポートデータ(解答履歴)'!$C:$C, ">="&(AJ$3), 'インポートデータ(解答履歴)'!$C:$C, "<"&(AJ$3+7), 'インポートデータ(解答履歴)'!$P:$P, AJ$4 ) -> 0 | AK7: =COUNTIFS( 'インポートデータ(解答履歴)'!$A:$A, $A7, 'インポートデータ(解答履歴)'!$C:$C, ">="&(AK$3), 'インポートデータ(解答履歴)'!$C:$C, "<"&(AK$3+7), 'インポートデータ(解答履歴)'!$P:$P, AK$4 ) -> 26 | AL7: =COUNTIFS( 'インポートデータ(解答履歴)'!$A:$A, $A7, 'インポートデータ(解答履歴)'!$C:$C, ">="&(AL$3), 'インポートデータ(解答履歴)'!$C:$C, "<"&(AL$3+7), 'インポートデータ(解答履歴)'!$P:$P, AL$4 ) -> 0 | AM7: =COUNTIFS( 'インポートデータ(解答履歴)'!$A:$A, $A7, 'インポートデータ(解答履歴)'!$C:$C, ">="&(AM$3), 'インポートデータ(解答履歴)'!$C:$C, "<"&(AM$3+7), 'インポートデータ(解答履歴)'!$P:$P, AM$4 ) -> 0 | AN7: =COUNTIFS( 'インポートデータ(解答履歴)'!$A:$A, $A7, 'インポートデータ(解答履歴)'!$C:$C, ">="&(AN$3), 'インポートデータ(解答履歴)'!$C:$C, "<"&(AN$3+7), 'インポートデータ(解答履歴)'!$P:$P, AN$4 ) -> 0 | AO7: =COUNTIFS( 'インポートデータ(解答履歴)'!$A:$A, $A7, 'インポートデータ(解答履歴)'!$C:$C, ">="&(AO$3), 'インポートデータ(解答履歴)'!$C:$C, "<"&(AO$3+7), 'インポートデータ(解答履歴)'!$P:$P, AO$4 ) -> 0 | AP7: =COUNTIFS( 'インポートデータ(解答履歴)'!$A:$A, $A7, 'インポートデータ(解答履歴)'!$C:$C, ">="&(AP$3), 'インポートデータ(解答履歴)'!$C:$C, "<"&(AP$3+7), 'インポートデータ(解答履歴)'!$P:$P, AP$4 ) -> 0 | AQ7: =COUNTIFS( 'インポートデータ(解答履歴)'!$A:$A, $A7, 'インポートデータ(解答履歴)'!$C:$C, ">="&(AQ$3), 'インポートデータ(解答履歴)'!$C:$C, "<"&(AQ$3+7), 'インポートデータ(解答履歴)'!$P:$P, AQ$4 ) -> 0 | AR7: =COUNTIFS( 'インポートデータ(解答履歴)'!$A:$A, $A7, 'インポートデータ(解答履歴)'!$C:$C, ">="&(AR$3), 'インポートデータ(解答履歴)'!$C:$C, "<"&(AR$3+7), 'インポートデータ(解答履歴)'!$P:$P, AR$4 ) -> 0 | AS7: =COUNTIFS( 'インポートデータ(解答履歴)'!$A:$A, $A7, 'インポートデータ(解答履歴)'!$C:$C, ">="&(AS$3), 'インポートデータ(解答履歴)'!$C:$C, "<"&(AS$3+7), 'インポートデータ(解答履歴)'!$P:$P, AS$4 ) -> 0 | AT7: =COUNTIFS( 'インポートデータ(解答履歴)'!$A:$A, $A7, 'インポートデータ(解答履歴)'!$C:$C, ">="&(AT$3), 'インポートデータ(解答履歴)'!$C:$C, "<"&(AT$3+7), 'インポートデータ(解答履歴)'!$P:$P, AT$4 ) -> 0 | AU7: =COUNTIFS( 'インポートデータ(解答履歴)'!$A:$A, $A7, 'インポートデータ(解答履歴)'!$C:$C, ">="&(AU$3), 'インポートデータ(解答履歴)'!$C:$C, "<"&(AU$3+7), 'インポートデータ(解答履歴)'!$P:$P, AU$4 ) -> 0 | AV7: =COUNTIFS( 'インポートデータ(解答履歴)'!$A:$A, $A7, 'インポートデータ(解答履歴)'!$C:$C, ">="&(AV$3), 'インポートデータ(解答履歴)'!$C:$C, "<"&(AV$3+7), 'インポートデータ(解答履歴)'!$P:$P, AV$4 ) -> 0 | AW7: =COUNTIFS('インポートデータ(解答履歴)'!$A:$A, $A7,'インポートデータ(解答履歴)'!$F:$F, AW$3) -> 0 | AX7: =COUNTIFS('インポートデータ(解答履歴)'!$A:$A, $A7,'インポートデータ(解答履歴)'!$F:$F, AX$3) -> 0 | AY7: =COUNTIFS('インポートデータ(解答履歴)'!$A:$A, $A7,'インポートデータ(解答履歴)'!$F:$F, AY$3) -> 0 | AZ7: =COUNTIFS('インポートデータ(解答履歴)'!$A:$A, $A7,'インポートデータ(解答履歴)'!$F:$F, AZ$3) -> 0 | BA7: =COUNTIFS('インポートデータ(解答履歴)'!$A:$A, $A7,'インポートデータ(解答履歴)'!$F:$F, BA$3) -> 0 | BB7: =COUNTIFS('インポートデータ(解答履歴)'!$A:$A, $A7,'インポートデータ(解答履歴)'!$F:$F, BB$3) -> 0 | BC7: =COUNTIFS('インポートデータ(解答履歴)'!$A:$A, $A7,'インポートデータ(解答履歴)'!$F:$F, BC$3) -> 0 | BD7: =COUNTIFS('インポートデータ(解答履歴)'!$A:$A, $A7,'インポートデータ(解答履歴)'!$F:$F, BD$3) -> 0 | BE7: =COUNTIFS('インポートデータ(解答履歴)'!$A:$A, $A7,'インポートデータ(解答履歴)'!$F:$F, BE$3) -> 0 | BF7: =COUNTIFS('インポートデータ(解答履歴)'!$A:$A, $A7,'インポートデータ(解答履歴)'!$F:$F, BF$3) -> 4 | BG7: =COUNTIFS('インポートデータ(解答履歴)'!$A:$A, $A7,'インポートデータ(解答履歴)'!$F:$F, BG$3) -> 9 | BH7: =COUNTIFS('インポートデータ(解答履歴)'!$A:$A, $A7,'インポートデータ(解答履歴)'!$F:$F, BH$3) -> 11 | BI7: =COUNTIFS('インポートデータ(解答履歴)'!$A:$A, $A7,'インポートデータ(解答履歴)'!$F:$F, BI$3) -> 2 | BJ7: =COUNTIFS('インポートデータ(解答履歴)'!$A:$A, $A7,'インポートデータ(解答履歴)'!$F:$F, BJ$3) -> 5 | BK7: =COUNTIFS('インポートデータ(解答履歴)'!$A:$A, $A7,'インポートデータ(解答履歴)'!$F:$F, BK$3) -> 4 | BL7: =COUNTIFS('インポートデータ(解答履歴)'!$A:$A, $A7,'インポートデータ(解答履歴)'!$F:$F, BL$3) -> 4 | BM7: =COUNTIFS('インポートデータ(解答履歴)'!$A:$A, $A7,'インポートデータ(解答履歴)'!$F:$F, BM$3) -> 3 | BN7: =COUNTIFS('インポートデータ(解答履歴)'!$A:$A, $A7,'インポートデータ(解答履歴)'!$F:$F, BN$3) -> 0 | BO7: =COUNTIFS('インポートデータ(解答履歴)'!$A:$A, $A7,'インポートデータ(解答履歴)'!$F:$F, BO$3) -> 2 | BP7: =COUNTIFS('インポートデータ(解答履歴)'!$A:$A, $A7,'インポートデータ(解答履歴)'!$F:$F, BP$3) -> 0 | BQ7: =COUNTIFS('インポートデータ(解答履歴)'!$A:$A, $A7,'インポートデータ(解答履歴)'!$F:$F, BQ$3) -> 10 | BR7: =COUNTIFS('インポートデータ(解答履歴)'!$A:$A, $A7,'インポートデータ(解答履歴)'!$F:$F, BR$3) -> 2 | BS7: =COUNTIFS('インポートデータ(解答履歴)'!$A:$A, $A7,'インポートデータ(解答履歴)'!$F:$F, BS$3) -> 0 | BT7: =COUNTIFS('インポートデータ(解答履歴)'!$A:$A, $A7,'インポートデータ(解答履歴)'!$F:$F, BT$3) -> 0 | BU7: 42 | BV7: 14 | BW7: 0 | BX7: 43 | BY7: =COUNTIFS('インポートデータ(解答履歴)'!$A:$A, $A7, 'インポートデータ(解答履歴)'!$X:$X, "初回", 'インポートデータ(解答履歴)'!$K:$K, "◯", 'インポートデータ(解答履歴)'!$D:$D, "<="&BZ$2) -> 43 | BZ7: =COUNTIFS('インポートデータ(解答履歴)'!$A:$A, $A7, 'インポートデータ(解答履歴)'!$X:$X, "初回", 'インポートデータ(解答履歴)'!$K:$K, "△", 'インポートデータ(解答履歴)'!$D:$D, "<="&BZ$2) + COUNTIFS('インポートデータ(解答履歴)'!$A:$A, $A7, 'インポートデータ(解答履歴)'!$X:$X, "初回", 'インポートデータ(解答履歴)'!$K:$K, "✕", 'インポートデータ(解答履歴)'!$D:$D, "<="&BZ$2) -> 0 | CA7: 0 | CB7: =COUNTIFS('インポートデータ(解答履歴)'!$A:$A, $A7, 'インポートデータ(解答履歴)'!Z:Z, "△", 'インポートデータ(解答履歴)'!$D:$D, "<="&BZ$2) + COUNTIFS('インポートデータ(解答履歴)'!$A:$A, $A7, 'インポートデータ(解答履歴)'!Z:Z, "✕", 'インポートデータ(解答履歴)'!$D:$D, "<="&BZ$2) -> 0 | CC7: =SUM(CD7:CE7) -> 23 | CD7: =COUNTIFS('インポートデータ(解答履歴)'!$A:$A, $A7, 'インポートデータ(解答履歴)'!$X:$X, "初回", 'インポートデータ(解答履歴)'!$K:$K, "◯", 'インポートデータ(解答履歴)'!$D:$D, "<="&CE$2) -> 23 | CE7: =COUNTIFS('インポートデータ(解答履歴)'!$A:$A, $A7, 'インポートデータ(解答履歴)'!$X:$X, "初回", 'インポートデータ(解答履歴)'!$K:$K, "△", 'インポートデータ(解答履歴)'!$D:$D, "<="&CE$2) + COUNTIFS('インポートデータ(解答履歴)'!$A:$A, $A7, 'インポートデータ(解答履歴)'!$X:$X, "初回", 'インポートデータ(解答履歴)'!$K:$K, "✕", 'インポートデータ(解答履歴)'!$D:$D, "<="&CE$2) -> 0 | CF7: 0 | CG7: =COUNTIFS('インポートデータ(解答履歴)'!$A:$A, $A7, 'インポートデータ(解答履歴)'!Z:Z, "△", 'インポートデータ(解答履歴)'!$D:$D, "<="&CE$2) + COUNTIFS('インポートデータ(解答履歴)'!$A:$A, $A7, 'インポートデータ(解答履歴)'!Z:Z, "✕", 'インポートデータ(解答履歴)'!$D:$D, "<="&CE$2) -> 0 | CH7: 0 | CI7: =SUM(list_group!$C$2:$C$7) -> 42 | CJ7: =IF($A7="","",IFERROR(ROWS(_xlfn.UNIQUE(_xlfn._xlws.FILTER('インポートデータ(解答履歴)'!$W:$W,('インポートデータ(解答履歴)'!$A:$A=$A7)*('インポートデータ(解答履歴)'!$V:$V<>"")*('インポートデータ(解答履歴)'!$V:$V<>0)*('インポートデータ(解答履歴)'!$V:$V<>"該当なし")))),0)) -> 42 | CK7: =IF($A7="","",IFERROR(ROWS(_xlfn.UNIQUE(_xlfn._xlws.FILTER('インポートデータ(解答履歴)'!$W:$W,('インポートデータ(解答履歴)'!$A:$A=$A7)*('インポートデータ(解答履歴)'!$V:$V<>"")*('インポートデータ(解答履歴)'!$V:$V<>0)*('インポートデータ(解答履歴)'!$V:$V<>"該当なし")*('インポートデータ(解答履歴)'!$Y:$Y="最新")*('インポートデータ(解答履歴)'!$K:$K="◯")))),0)) -> 42 | CL7: 1 | CM7: 1 | CN7: =IF($A7="","",IF(VLOOKUP(A7,生徒情報!A:C,3,FALSE)="","",VLOOKUP(A7,生徒情報!A:C,3,FALSE))) -> 未分類 | CO7: 56 | CP7: 4 | CQ7: その他 | CR7: =SUMIFS('インポートデータ(解答履歴)'!O:O,'インポートデータ(解答履歴)'!A:A,A7) -> 2343 | CS7: 10 | CT7: その他 | CU7: =IF($A7="","",IF(CI7=0,0,CJ7/CI7)) -> 1 | CV7: 1 | CW7: 1位 | CX7: 1 | CY7: 1 | CZ7: 1位 | DA7: 0 | DB7: 2 | DC7: 上位30% | DD7: 0 | DE7: 8 | DF7: その他
A8: 2 | B8: 佐々木 希望 | C8: 27 | D8: =IF(OR(C$3="",$A8=""),"",IFERROR(ROWS(_xlfn.UNIQUE(_xlfn._xlws.FILTER('インポートデータ(解答履歴)'!$W:$W,('インポートデータ(解答履歴)'!$A:$A=$A8)*('インポートデータ(解答履歴)'!$V:$V=C$3)))),0)) -> 17 | E8: =IF(OR(C$3="",$A8=""),"",IFERROR(ROWS(_xlfn.UNIQUE(_xlfn._xlws.FILTER('インポートデータ(解答履歴)'!$W:$W,('インポートデータ(解答履歴)'!$A:$A=$A8)*('インポートデータ(解答履歴)'!$V:$V=C$3)*('インポートデータ(解答履歴)'!$Y:$Y="最新")*('インポートデータ(解答履歴)'!$K:$K="◯")))),0)) -> 14 | F8: 15 | G8: =IF(OR(F$3="",$A8=""),"",IFERROR(ROWS(_xlfn.UNIQUE(_xlfn._xlws.FILTER('インポートデータ(解答履歴)'!$W:$W,('インポートデータ(解答履歴)'!$A:$A=$A8)*('インポートデータ(解答履歴)'!$V:$V=F$3)))),0)) -> 0 | H8: =IF(OR(F$3="",$A8=""),"",IFERROR(ROWS(_xlfn.UNIQUE(_xlfn._xlws.FILTER('インポートデータ(解答履歴)'!$W:$W,('インポートデータ(解答履歴)'!$A:$A=$A8)*('インポートデータ(解答履歴)'!$V:$V=F$3)*('インポートデータ(解答履歴)'!$Y:$Y="最新")*('インポートデータ(解答履歴)'!$K:$K="◯")))),0)) -> 0 | J8: =IF(OR(I$3="",$A8=""),"",IFERROR(ROWS(_xlfn.UNIQUE(_xlfn._xlws.FILTER('インポートデータ(解答履歴)'!$W:$W,('インポートデータ(解答履歴)'!$A:$A=$A8)*('インポートデータ(解答履歴)'!$V:$V=I$3)))),0)) ->  | K8: =IF(OR(I$3="",$A8=""),"",IFERROR(ROWS(_xlfn.UNIQUE(_xlfn._xlws.FILTER('インポートデータ(解答履歴)'!$W:$W,('インポートデータ(解答履歴)'!$A:$A=$A8)*('インポートデータ(解答履歴)'!$V:$V=I$3)*('インポートデータ(解答履歴)'!$Y:$Y="最新")*('インポートデータ(解答履歴)'!$K:$K="◯")))),0)) ->  | M8: =IF(OR(L$3="",$A8=""),"",IFERROR(ROWS(_xlfn.UNIQUE(_xlfn._xlws.FILTER('インポートデータ(解答履歴)'!$W:$W,('インポートデータ(解答履歴)'!$A:$A=$A8)*('インポートデータ(解答履歴)'!$V:$V=L$3)))),0)) ->  | N8: =IF(OR(L$3="",$A8=""),"",IFERROR(ROWS(_xlfn.UNIQUE(_xlfn._xlws.FILTER('インポートデータ(解答履歴)'!$W:$W,('インポートデータ(解答履歴)'!$A:$A=$A8)*('インポートデータ(解答履歴)'!$V:$V=L$3)*('インポートデータ(解答履歴)'!$Y:$Y="最新")*('インポートデータ(解答履歴)'!$K:$K="◯")))),0)) ->  | P8: =IF(OR(O$3="",$A8=""),"",IFERROR(ROWS(_xlfn.UNIQUE(_xlfn._xlws.FILTER('インポートデータ(解答履歴)'!$W:$W,('インポートデータ(解答履歴)'!$A:$A=$A8)*('インポートデータ(解答履歴)'!$V:$V=O$3)))),0)) ->  | Q8: =IF(OR(O$3="",$A8=""),"",IFERROR(ROWS(_xlfn.UNIQUE(_xlfn._xlws.FILTER('インポートデータ(解答履歴)'!$W:$W,('インポートデータ(解答履歴)'!$A:$A=$A8)*('インポートデータ(解答履歴)'!$V:$V=O$3)*('インポートデータ(解答履歴)'!$Y:$Y="最新")*('インポートデータ(解答履歴)'!$K:$K="◯")))),0)) ->  | S8: =IF(OR(R$3="",$A8=""),"",IFERROR(ROWS(_xlfn.UNIQUE(_xlfn._xlws.FILTER('インポートデータ(解答履歴)'!$W:$W,('インポートデータ(解答履歴)'!$A:$A=$A8)*('インポートデータ(解答履歴)'!$V:$V=R$3)))),0)) ->  | T8: =IF(OR(R$3="",$A8=""),"",IFERROR(ROWS(_xlfn.UNIQUE(_xlfn._xlws.FILTER('インポートデータ(解答履歴)'!$W:$W,('インポートデータ(解答履歴)'!$A:$A=$A8)*('インポートデータ(解答履歴)'!$V:$V=R$3)*('インポートデータ(解答履歴)'!$Y:$Y="最新")*('インポートデータ(解答履歴)'!$K:$K="◯")))),0)) ->  | U8: =COUNTIFS( 'インポートデータ(解答履歴)'!$A:$A, $A8, 'インポートデータ(解答履歴)'!$C:$C, ">="&(U$3), 'インポートデータ(解答履歴)'!$C:$C, "<"&(U$3+7), 'インポートデータ(解答履歴)'!$P:$P, U$4 ) -> 0 | V8: =COUNTIFS( 'インポートデータ(解答履歴)'!$A:$A, $A8, 'インポートデータ(解答履歴)'!$C:$C, ">="&(V$3), 'インポートデータ(解答履歴)'!$C:$C, "<"&(V$3+7), 'インポートデータ(解答履歴)'!$P:$P, V$4 ) -> 0 | W8: =COUNTIFS( 'インポートデータ(解答履歴)'!$A:$A, $A8, 'インポートデータ(解答履歴)'!$C:$C, ">="&(W$3), 'インポートデータ(解答履歴)'!$C:$C, "<"&(W$3+7), 'インポートデータ(解答履歴)'!$P:$P, W$4 ) -> 17 | X8: =COUNTIFS( 'インポートデータ(解答履歴)'!$A:$A, $A8, 'インポートデータ(解答履歴)'!$C:$C, ">="&(X$3), 'インポートデータ(解答履歴)'!$C:$C, "<"&(X$3+7), 'インポートデータ(解答履歴)'!$P:$P, X$4 ) -> 0 | Y8: =COUNTIFS( 'インポートデータ(解答履歴)'!$A:$A, $A8, 'インポートデータ(解答履歴)'!$C:$C, ">="&(Y$3), 'インポートデータ(解答履歴)'!$C:$C, "<"&(Y$3+7), 'インポートデータ(解答履歴)'!$P:$P, Y$4 ) -> 0 | Z8: =COUNTIFS( 'インポートデータ(解答履歴)'!$A:$A, $A8, 'インポートデータ(解答履歴)'!$C:$C, ">="&(Z$3), 'インポートデータ(解答履歴)'!$C:$C, "<"&(Z$3+7), 'インポートデータ(解答履歴)'!$P:$P, Z$4 ) -> 0 | AA8: =COUNTIFS( 'インポートデータ(解答履歴)'!$A:$A, $A8, 'インポートデータ(解答履歴)'!$C:$C, ">="&(AA$3), 'インポートデータ(解答履歴)'!$C:$C, "<"&(AA$3+7), 'インポートデータ(解答履歴)'!$P:$P, AA$4 ) -> 0 | AB8: =COUNTIFS( 'インポートデータ(解答履歴)'!$A:$A, $A8, 'インポートデータ(解答履歴)'!$C:$C, ">="&(AB$3), 'インポートデータ(解答履歴)'!$C:$C, "<"&(AB$3+7), 'インポートデータ(解答履歴)'!$P:$P, AB$4 ) -> 0 | AC8: =COUNTIFS( 'インポートデータ(解答履歴)'!$A:$A, $A8, 'インポートデータ(解答履歴)'!$C:$C, ">="&(AC$3), 'インポートデータ(解答履歴)'!$C:$C, "<"&(AC$3+7), 'インポートデータ(解答履歴)'!$P:$P, AC$4 ) -> 0 | AD8: =COUNTIFS( 'インポートデータ(解答履歴)'!$A:$A, $A8, 'インポートデータ(解答履歴)'!$C:$C, ">="&(AD$3), 'インポートデータ(解答履歴)'!$C:$C, "<"&(AD$3+7), 'インポートデータ(解答履歴)'!$P:$P, AD$4 ) -> 0 | AE8: =COUNTIFS( 'インポートデータ(解答履歴)'!$A:$A, $A8, 'インポートデータ(解答履歴)'!$C:$C, ">="&(AE$3), 'インポートデータ(解答履歴)'!$C:$C, "<"&(AE$3+7), 'インポートデータ(解答履歴)'!$P:$P, AE$4 ) -> 0 | AF8: =COUNTIFS( 'インポートデータ(解答履歴)'!$A:$A, $A8, 'インポートデータ(解答履歴)'!$C:$C, ">="&(AF$3), 'インポートデータ(解答履歴)'!$C:$C, "<"&(AF$3+7), 'インポートデータ(解答履歴)'!$P:$P, AF$4 ) -> 0 | AG8: =COUNTIFS( 'インポートデータ(解答履歴)'!$A:$A, $A8, 'インポートデータ(解答履歴)'!$C:$C, ">="&(AG$3), 'インポートデータ(解答履歴)'!$C:$C, "<"&(AG$3+7), 'インポートデータ(解答履歴)'!$P:$P, AG$4 ) -> 0 | AH8: =COUNTIFS( 'インポートデータ(解答履歴)'!$A:$A, $A8, 'インポートデータ(解答履歴)'!$C:$C, ">="&(AH$3), 'インポートデータ(解答履歴)'!$C:$C, "<"&(AH$3+7), 'インポートデータ(解答履歴)'!$P:$P, AH$4 ) -> 0 | AI8: =COUNTIFS( 'インポートデータ(解答履歴)'!$A:$A, $A8, 'インポートデータ(解答履歴)'!$C:$C, ">="&(AI$3), 'インポートデータ(解答履歴)'!$C:$C, "<"&(AI$3+7), 'インポートデータ(解答履歴)'!$P:$P, AI$4 ) -> 0 | AJ8: =COUNTIFS( 'インポートデータ(解答履歴)'!$A:$A, $A8, 'インポートデータ(解答履歴)'!$C:$C, ">="&(AJ$3), 'インポートデータ(解答履歴)'!$C:$C, "<"&(AJ$3+7), 'インポートデータ(解答履歴)'!$P:$P, AJ$4 ) -> 0 | AK8: =COUNTIFS( 'インポートデータ(解答履歴)'!$A:$A, $A8, 'インポートデータ(解答履歴)'!$C:$C, ">="&(AK$3), 'インポートデータ(解答履歴)'!$C:$C, "<"&(AK$3+7), 'インポートデータ(解答履歴)'!$P:$P, AK$4 ) -> 0 | AL8: =COUNTIFS( 'インポートデータ(解答履歴)'!$A:$A, $A8, 'インポートデータ(解答履歴)'!$C:$C, ">="&(AL$3), 'インポートデータ(解答履歴)'!$C:$C, "<"&(AL$3+7), 'インポートデータ(解答履歴)'!$P:$P, AL$4 ) -> 0 | AM8: =COUNTIFS( 'インポートデータ(解答履歴)'!$A:$A, $A8, 'インポートデータ(解答履歴)'!$C:$C, ">="&(AM$3), 'インポートデータ(解答履歴)'!$C:$C, "<"&(AM$3+7), 'インポートデータ(解答履歴)'!$P:$P, AM$4 ) -> 0 | AN8: =COUNTIFS( 'インポートデータ(解答履歴)'!$A:$A, $A8, 'インポートデータ(解答履歴)'!$C:$C, ">="&(AN$3), 'インポートデータ(解答履歴)'!$C:$C, "<"&(AN$3+7), 'インポートデータ(解答履歴)'!$P:$P, AN$4 ) -> 0 | AO8: =COUNTIFS( 'インポートデータ(解答履歴)'!$A:$A, $A8, 'インポートデータ(解答履歴)'!$C:$C, ">="&(AO$3), 'インポートデータ(解答履歴)'!$C:$C, "<"&(AO$3+7), 'インポートデータ(解答履歴)'!$P:$P, AO$4 ) -> 0 | AP8: =COUNTIFS( 'インポートデータ(解答履歴)'!$A:$A, $A8, 'インポートデータ(解答履歴)'!$C:$C, ">="&(AP$3), 'インポートデータ(解答履歴)'!$C:$C, "<"&(AP$3+7), 'インポートデータ(解答履歴)'!$P:$P, AP$4 ) -> 0 | AQ8: =COUNTIFS( 'インポートデータ(解答履歴)'!$A:$A, $A8, 'インポートデータ(解答履歴)'!$C:$C, ">="&(AQ$3), 'インポートデータ(解答履歴)'!$C:$C, "<"&(AQ$3+7), 'インポートデータ(解答履歴)'!$P:$P, AQ$4 ) -> 0 | AR8: =COUNTIFS( 'インポートデータ(解答履歴)'!$A:$A, $A8, 'インポートデータ(解答履歴)'!$C:$C, ">="&(AR$3), 'インポートデータ(解答履歴)'!$C:$C, "<"&(AR$3+7), 'インポートデータ(解答履歴)'!$P:$P, AR$4 ) -> 0 | AS8: =COUNTIFS( 'インポートデータ(解答履歴)'!$A:$A, $A8, 'インポートデータ(解答履歴)'!$C:$C, ">="&(AS$3), 'インポートデータ(解答履歴)'!$C:$C, "<"&(AS$3+7), 'インポートデータ(解答履歴)'!$P:$P, AS$4 ) -> 0 | AT8: =COUNTIFS( 'インポートデータ(解答履歴)'!$A:$A, $A8, 'インポートデータ(解答履歴)'!$C:$C, ">="&(AT$3), 'インポートデータ(解答履歴)'!$C:$C, "<"&(AT$3+7), 'インポートデータ(解答履歴)'!$P:$P, AT$4 ) -> 0 | AU8: =COUNTIFS( 'インポートデータ(解答履歴)'!$A:$A, $A8, 'インポートデータ(解答履歴)'!$C:$C, ">="&(AU$3), 'インポートデータ(解答履歴)'!$C:$C, "<"&(AU$3+7), 'インポートデータ(解答履歴)'!$P:$P, AU$4 ) -> 0 | AV8: =COUNTIFS( 'インポートデータ(解答履歴)'!$A:$A, $A8, 'インポートデータ(解答履歴)'!$C:$C, ">="&(AV$3), 'インポートデータ(解答履歴)'!$C:$C, "<"&(AV$3+7), 'インポートデータ(解答履歴)'!$P:$P, AV$4 ) -> 0 | AW8: =COUNTIFS('インポートデータ(解答履歴)'!$A:$A, $A8,'インポートデータ(解答履歴)'!$F:$F, AW$3) -> 0 | AX8: =COUNTIFS('インポートデータ(解答履歴)'!$A:$A, $A8,'インポートデータ(解答履歴)'!$F:$F, AX$3) -> 0 | AY8: =COUNTIFS('インポートデータ(解答履歴)'!$A:$A, $A8,'インポートデータ(解答履歴)'!$F:$F, AY$3) -> 0 | AZ8: =COUNTIFS('インポートデータ(解答履歴)'!$A:$A, $A8,'インポートデータ(解答履歴)'!$F:$F, AZ$3) -> 0 | BA8: =COUNTIFS('インポートデータ(解答履歴)'!$A:$A, $A8,'インポートデータ(解答履歴)'!$F:$F, BA$3) -> 0 | BB8: =COUNTIFS('インポートデータ(解答履歴)'!$A:$A, $A8,'インポートデータ(解答履歴)'!$F:$F, BB$3) -> 0 | BC8: =COUNTIFS('インポートデータ(解答履歴)'!$A:$A, $A8,'インポートデータ(解答履歴)'!$F:$F, BC$3) -> 0 | BD8: =COUNTIFS('インポートデータ(解答履歴)'!$A:$A, $A8,'インポートデータ(解答履歴)'!$F:$F, BD$3) -> 0 | BE8: =COUNTIFS('インポートデータ(解答履歴)'!$A:$A, $A8,'インポートデータ(解答履歴)'!$F:$F, BE$3) -> 4 | BF8: =COUNTIFS('インポートデータ(解答履歴)'!$A:$A, $A8,'インポートデータ(解答履歴)'!$F:$F, BF$3) -> 0 | BG8: =COUNTIFS('インポートデータ(解答履歴)'!$A:$A, $A8,'インポートデータ(解答履歴)'!$F:$F, BG$3) -> 0 | BH8: =COUNTIFS('インポートデータ(解答履歴)'!$A:$A, $A8,'インポートデータ(解答履歴)'!$F:$F, BH$3) -> 0 | BI8: =COUNTIFS('インポートデータ(解答履歴)'!$A:$A, $A8,'インポートデータ(解答履歴)'!$F:$F, BI$3) -> 0 | BJ8: =COUNTIFS('インポートデータ(解答履歴)'!$A:$A, $A8,'インポートデータ(解答履歴)'!$F:$F, BJ$3) -> 0 | BK8: =COUNTIFS('インポートデータ(解答履歴)'!$A:$A, $A8,'インポートデータ(解答履歴)'!$F:$F, BK$3) -> 4 | BL8: =COUNTIFS('インポートデータ(解答履歴)'!$A:$A, $A8,'インポートデータ(解答履歴)'!$F:$F, BL$3) -> 5 | BM8: =COUNTIFS('インポートデータ(解答履歴)'!$A:$A, $A8,'インポートデータ(解答履歴)'!$F:$F, BM$3) -> 0 | BN8: =COUNTIFS('インポートデータ(解答履歴)'!$A:$A, $A8,'インポートデータ(解答履歴)'!$F:$F, BN$3) -> 0 | BO8: =COUNTIFS('インポートデータ(解答履歴)'!$A:$A, $A8,'インポートデータ(解答履歴)'!$F:$F, BO$3) -> 0 | BP8: =COUNTIFS('インポートデータ(解答履歴)'!$A:$A, $A8,'インポートデータ(解答履歴)'!$F:$F, BP$3) -> 0 | BQ8: =COUNTIFS('インポートデータ(解答履歴)'!$A:$A, $A8,'インポートデータ(解答履歴)'!$F:$F, BQ$3) -> 0 | BR8: =COUNTIFS('インポートデータ(解答履歴)'!$A:$A, $A8,'インポートデータ(解答履歴)'!$F:$F, BR$3) -> 4 | BS8: =COUNTIFS('インポートデータ(解答履歴)'!$A:$A, $A8,'インポートデータ(解答履歴)'!$F:$F, BS$3) -> 0 | BT8: =COUNTIFS('インポートデータ(解答履歴)'!$A:$A, $A8,'インポートデータ(解答履歴)'!$F:$F, BT$3) -> 0 | BU8: 13 | BV8: 4 | BW8: 0 | BX8: 17 | BY8: =COUNTIFS('インポートデータ(解答履歴)'!$A:$A, $A8, 'インポートデータ(解答履歴)'!$X:$X, "初回", 'インポートデータ(解答履歴)'!$K:$K, "◯", 'インポートデータ(解答履歴)'!$D:$D, "<="&BZ$2) -> 14 | BZ8: =COUNTIFS('インポートデータ(解答履歴)'!$A:$A, $A8, 'インポートデータ(解答履歴)'!$X:$X, "初回", 'インポートデータ(解答履歴)'!$K:$K, "△", 'インポートデータ(解答履歴)'!$D:$D, "<="&BZ$2) + COUNTIFS('インポートデータ(解答履歴)'!$A:$A, $A8, 'インポートデータ(解答履歴)'!$X:$X, "初回", 'インポートデータ(解答履歴)'!$K:$K, "✕", 'インポートデータ(解答履歴)'!$D:$D, "<="&BZ$2) -> 3 | CA8: 0 | CB8: =COUNTIFS('インポートデータ(解答履歴)'!$A:$A, $A8, 'インポートデータ(解答履歴)'!Z:Z, "△", 'インポートデータ(解答履歴)'!$D:$D, "<="&BZ$2) + COUNTIFS('インポートデータ(解答履歴)'!$A:$A, $A8, 'インポートデータ(解答履歴)'!Z:Z, "✕", 'インポートデータ(解答履歴)'!$D:$D, "<="&BZ$2) -> 3 | CC8: 17 | CD8: =COUNTIFS('インポートデータ(解答履歴)'!$A:$A, $A8, 'インポートデータ(解答履歴)'!$X:$X, "初回", 'インポートデータ(解答履歴)'!$K:$K, "◯", 'インポートデータ(解答履歴)'!$D:$D, "<="&CE$2) -> 14 | CE8: =COUNTIFS('インポートデータ(解答履歴)'!$A:$A, $A8, 'インポートデータ(解答履歴)'!$X:$X, "初回", 'インポートデータ(解答履歴)'!$K:$K, "△", 'インポートデータ(解答履歴)'!$D:$D, "<="&CE$2) + COUNTIFS('インポートデータ(解答履歴)'!$A:$A, $A8, 'インポートデータ(解答履歴)'!$X:$X, "初回", 'インポートデータ(解答履歴)'!$K:$K, "✕", 'インポートデータ(解答履歴)'!$D:$D, "<="&CE$2) -> 3 | CF8: 0 | CG8: =COUNTIFS('インポートデータ(解答履歴)'!$A:$A, $A8, 'インポートデータ(解答履歴)'!Z:Z, "△", 'インポートデータ(解答履歴)'!$D:$D, "<="&CE$2) + COUNTIFS('インポートデータ(解答履歴)'!$A:$A, $A8, 'インポートデータ(解答履歴)'!Z:Z, "✕", 'インポートデータ(解答履歴)'!$D:$D, "<="&CE$2) -> 3 | CH8: 0 | CI8: =SUM(list_group!$C$2:$C$7) -> 42 | CJ8: =IF($A8="","",IFERROR(ROWS(_xlfn.UNIQUE(_xlfn._xlws.FILTER('インポートデータ(解答履歴)'!$W:$W,('インポートデータ(解答履歴)'!$A:$A=$A8)*('インポートデータ(解答履歴)'!$V:$V<>"")*('インポートデータ(解答履歴)'!$V:$V<>0)*('インポートデータ(解答履歴)'!$V:$V<>"該当なし")))),0)) -> 17 | CK8: =IF($A8="","",IFERROR(ROWS(_xlfn.UNIQUE(_xlfn._xlws.FILTER('インポートデータ(解答履歴)'!$W:$W,('インポートデータ(解答履歴)'!$A:$A=$A8)*('インポートデータ(解答履歴)'!$V:$V<>"")*('インポートデータ(解答履歴)'!$V:$V<>0)*('インポートデータ(解答履歴)'!$V:$V<>"該当なし")*('インポートデータ(解答履歴)'!$Y:$Y="最新")*('インポートデータ(解答履歴)'!$K:$K="◯")))),0)) -> 14 | CL8: 0.4047619048 | CM8: 0.8235294118 | CN8: =IF($A8="","",IF(VLOOKUP(A8,生徒情報!A:C,3,FALSE)="","",VLOOKUP(A8,生徒情報!A:C,3,FALSE))) -> 未分類 | CO8: 17 | CP8: 9 | CQ8: その他 | CR8: =SUMIFS('インポートデータ(解答履歴)'!O:O,'インポートデータ(解答履歴)'!A:A,A8) -> 4783 | CS8: 8 | CT8: その他 | CU8: 0.4047619048 | CV8: 8 | CW8: その他 | CX8: 0.8235294118 | CY8: 6 | CZ8: その他 | DA8: 0 | DB8: 2 | DC8: 上位30% | DD8: 0 | DE8: 8 | DF8: その他
A9: 5 | B9: 泉 優 | C9: 27 | D9: =IF(OR(C$3="",$A9=""),"",IFERROR(ROWS(_xlfn.UNIQUE(_xlfn._xlws.FILTER('インポートデータ(解答履歴)'!$W:$W,('インポートデータ(解答履歴)'!$A:$A=$A9)*('インポートデータ(解答履歴)'!$V:$V=C$3)))),0)) -> 27 | E9: =IF(OR(C$3="",$A9=""),"",IFERROR(ROWS(_xlfn.UNIQUE(_xlfn._xlws.FILTER('インポートデータ(解答履歴)'!$W:$W,('インポートデータ(解答履歴)'!$A:$A=$A9)*('インポートデータ(解答履歴)'!$V:$V=C$3)*('インポートデータ(解答履歴)'!$Y:$Y="最新")*('インポートデータ(解答履歴)'!$K:$K="◯")))),0)) -> 25 | F9: 15 | G9: =IF(OR(F$3="",$A9=""),"",IFERROR(ROWS(_xlfn.UNIQUE(_xlfn._xlws.FILTER('インポートデータ(解答履歴)'!$W:$W,('インポートデータ(解答履歴)'!$A:$A=$A9)*('インポートデータ(解答履歴)'!$V:$V=F$3)))),0)) -> 15 | H9: =IF(OR(F$3="",$A9=""),"",IFERROR(ROWS(_xlfn.UNIQUE(_xlfn._xlws.FILTER('インポートデータ(解答履歴)'!$W:$W,('インポートデータ(解答履歴)'!$A:$A=$A9)*('インポートデータ(解答履歴)'!$V:$V=F$3)*('インポートデータ(解答履歴)'!$Y:$Y="最新")*('インポートデータ(解答履歴)'!$K:$K="◯")))),0)) -> 14 | J9: =IF(OR(I$3="",$A9=""),"",IFERROR(ROWS(_xlfn.UNIQUE(_xlfn._xlws.FILTER('インポートデータ(解答履歴)'!$W:$W,('インポートデータ(解答履歴)'!$A:$A=$A9)*('インポートデータ(解答履歴)'!$V:$V=I$3)))),0)) ->  | K9: =IF(OR(I$3="",$A9=""),"",IFERROR(ROWS(_xlfn.UNIQUE(_xlfn._xlws.FILTER('インポートデータ(解答履歴)'!$W:$W,('インポートデータ(解答履歴)'!$A:$A=$A9)*('インポートデータ(解答履歴)'!$V:$V=I$3)*('インポートデータ(解答履歴)'!$Y:$Y="最新")*('インポートデータ(解答履歴)'!$K:$K="◯")))),0)) ->  | M9: =IF(OR(L$3="",$A9=""),"",IFERROR(ROWS(_xlfn.UNIQUE(_xlfn._xlws.FILTER('インポートデータ(解答履歴)'!$W:$W,('インポートデータ(解答履歴)'!$A:$A=$A9)*('インポートデータ(解答履歴)'!$V:$V=L$3)))),0)) ->  | N9: =IF(OR(L$3="",$A9=""),"",IFERROR(ROWS(_xlfn.UNIQUE(_xlfn._xlws.FILTER('インポートデータ(解答履歴)'!$W:$W,('インポートデータ(解答履歴)'!$A:$A=$A9)*('インポートデータ(解答履歴)'!$V:$V=L$3)*('インポートデータ(解答履歴)'!$Y:$Y="最新")*('インポートデータ(解答履歴)'!$K:$K="◯")))),0)) ->  | P9: =IF(OR(O$3="",$A9=""),"",IFERROR(ROWS(_xlfn.UNIQUE(_xlfn._xlws.FILTER('インポートデータ(解答履歴)'!$W:$W,('インポートデータ(解答履歴)'!$A:$A=$A9)*('インポートデータ(解答履歴)'!$V:$V=O$3)))),0)) ->  | Q9: =IF(OR(O$3="",$A9=""),"",IFERROR(ROWS(_xlfn.UNIQUE(_xlfn._xlws.FILTER('インポートデータ(解答履歴)'!$W:$W,('インポートデータ(解答履歴)'!$A:$A=$A9)*('インポートデータ(解答履歴)'!$V:$V=O$3)*('インポートデータ(解答履歴)'!$Y:$Y="最新")*('インポートデータ(解答履歴)'!$K:$K="◯")))),0)) ->  | S9: =IF(OR(R$3="",$A9=""),"",IFERROR(ROWS(_xlfn.UNIQUE(_xlfn._xlws.FILTER('インポートデータ(解答履歴)'!$W:$W,('インポートデータ(解答履歴)'!$A:$A=$A9)*('インポートデータ(解答履歴)'!$V:$V=R$3)))),0)) ->  | T9: =IF(OR(R$3="",$A9=""),"",IFERROR(ROWS(_xlfn.UNIQUE(_xlfn._xlws.FILTER('インポートデータ(解答履歴)'!$W:$W,('インポートデータ(解答履歴)'!$A:$A=$A9)*('インポートデータ(解答履歴)'!$V:$V=R$3)*('インポートデータ(解答履歴)'!$Y:$Y="最新")*('インポートデータ(解答履歴)'!$K:$K="◯")))),0)) ->  | U9: =COUNTIFS( 'インポートデータ(解答履歴)'!$A:$A, $A9, 'インポートデータ(解答履歴)'!$C:$C, ">="&(U$3), 'インポートデータ(解答履歴)'!$C:$C, "<"&(U$3+7), 'インポートデータ(解答履歴)'!$P:$P, U$4 ) -> 0 | V9: =COUNTIFS( 'インポートデータ(解答履歴)'!$A:$A, $A9, 'インポートデータ(解答履歴)'!$C:$C, ">="&(V$3), 'インポートデータ(解答履歴)'!$C:$C, "<"&(V$3+7), 'インポートデータ(解答履歴)'!$P:$P, V$4 ) -> 0 | W9: =COUNTIFS( 'インポートデータ(解答履歴)'!$A:$A, $A9, 'インポートデータ(解答履歴)'!$C:$C, ">="&(W$3), 'インポートデータ(解答履歴)'!$C:$C, "<"&(W$3+7), 'インポートデータ(解答履歴)'!$P:$P, W$4 ) -> 17 | X9: =COUNTIFS( 'インポートデータ(解答履歴)'!$A:$A, $A9, 'インポートデータ(解答履歴)'!$C:$C, ">="&(X$3), 'インポートデータ(解答履歴)'!$C:$C, "<"&(X$3+7), 'インポートデータ(解答履歴)'!$P:$P, X$4 ) -> 0 | Y9: =COUNTIFS( 'インポートデータ(解答履歴)'!$A:$A, $A9, 'インポートデータ(解答履歴)'!$C:$C, ">="&(Y$3), 'インポートデータ(解答履歴)'!$C:$C, "<"&(Y$3+7), 'インポートデータ(解答履歴)'!$P:$P, Y$4 ) -> 9 | Z9: =COUNTIFS( 'インポートデータ(解答履歴)'!$A:$A, $A9, 'インポートデータ(解答履歴)'!$C:$C, ">="&(Z$3), 'インポートデータ(解答履歴)'!$C:$C, "<"&(Z$3+7), 'インポートデータ(解答履歴)'!$P:$P, Z$4 ) -> 0 | AA9: =COUNTIFS( 'インポートデータ(解答履歴)'!$A:$A, $A9, 'インポートデータ(解答履歴)'!$C:$C, ">="&(AA$3), 'インポートデータ(解答履歴)'!$C:$C, "<"&(AA$3+7), 'インポートデータ(解答履歴)'!$P:$P, AA$4 ) -> 0 | AB9: =COUNTIFS( 'インポートデータ(解答履歴)'!$A:$A, $A9, 'インポートデータ(解答履歴)'!$C:$C, ">="&(AB$3), 'インポートデータ(解答履歴)'!$C:$C, "<"&(AB$3+7), 'インポートデータ(解答履歴)'!$P:$P, AB$4 ) -> 0 | AC9: =COUNTIFS( 'インポートデータ(解答履歴)'!$A:$A, $A9, 'インポートデータ(解答履歴)'!$C:$C, ">="&(AC$3), 'インポートデータ(解答履歴)'!$C:$C, "<"&(AC$3+7), 'インポートデータ(解答履歴)'!$P:$P, AC$4 ) -> 0 | AD9: =COUNTIFS( 'インポートデータ(解答履歴)'!$A:$A, $A9, 'インポートデータ(解答履歴)'!$C:$C, ">="&(AD$3), 'インポートデータ(解答履歴)'!$C:$C, "<"&(AD$3+7), 'インポートデータ(解答履歴)'!$P:$P, AD$4 ) -> 0 | AE9: =COUNTIFS( 'インポートデータ(解答履歴)'!$A:$A, $A9, 'インポートデータ(解答履歴)'!$C:$C, ">="&(AE$3), 'インポートデータ(解答履歴)'!$C:$C, "<"&(AE$3+7), 'インポートデータ(解答履歴)'!$P:$P, AE$4 ) -> 2 | AF9: =COUNTIFS( 'インポートデータ(解答履歴)'!$A:$A, $A9, 'インポートデータ(解答履歴)'!$C:$C, ">="&(AF$3), 'インポートデータ(解答履歴)'!$C:$C, "<"&(AF$3+7), 'インポートデータ(解答履歴)'!$P:$P, AF$4 ) -> 0 | AG9: =COUNTIFS( 'インポートデータ(解答履歴)'!$A:$A, $A9, 'インポートデータ(解答履歴)'!$C:$C, ">="&(AG$3), 'インポートデータ(解答履歴)'!$C:$C, "<"&(AG$3+7), 'インポートデータ(解答履歴)'!$P:$P, AG$4 ) -> 0 | AH9: =COUNTIFS( 'インポートデータ(解答履歴)'!$A:$A, $A9, 'インポートデータ(解答履歴)'!$C:$C, ">="&(AH$3), 'インポートデータ(解答履歴)'!$C:$C, "<"&(AH$3+7), 'インポートデータ(解答履歴)'!$P:$P, AH$4 ) -> 0 | AI9: =COUNTIFS( 'インポートデータ(解答履歴)'!$A:$A, $A9, 'インポートデータ(解答履歴)'!$C:$C, ">="&(AI$3), 'インポートデータ(解答履歴)'!$C:$C, "<"&(AI$3+7), 'インポートデータ(解答履歴)'!$P:$P, AI$4 ) -> 4 | AJ9: =COUNTIFS( 'インポートデータ(解答履歴)'!$A:$A, $A9, 'インポートデータ(解答履歴)'!$C:$C, ">="&(AJ$3), 'インポートデータ(解答履歴)'!$C:$C, "<"&(AJ$3+7), 'インポートデータ(解答履歴)'!$P:$P, AJ$4 ) -> 0 | AK9: =COUNTIFS( 'インポートデータ(解答履歴)'!$A:$A, $A9, 'インポートデータ(解答履歴)'!$C:$C, ">="&(AK$3), 'インポートデータ(解答履歴)'!$C:$C, "<"&(AK$3+7), 'インポートデータ(解答履歴)'!$P:$P, AK$4 ) -> 20 | AL9: =COUNTIFS( 'インポートデータ(解答履歴)'!$A:$A, $A9, 'インポートデータ(解答履歴)'!$C:$C, ">="&(AL$3), 'インポートデータ(解答履歴)'!$C:$C, "<"&(AL$3+7), 'インポートデータ(解答履歴)'!$P:$P, AL$4 ) -> 0 | AM9: =COUNTIFS( 'インポートデータ(解答履歴)'!$A:$A, $A9, 'インポートデータ(解答履歴)'!$C:$C, ">="&(AM$3), 'インポートデータ(解答履歴)'!$C:$C, "<"&(AM$3+7), 'インポートデータ(解答履歴)'!$P:$P, AM$4 ) -> 0 | AN9: =COUNTIFS( 'インポートデータ(解答履歴)'!$A:$A, $A9, 'インポートデータ(解答履歴)'!$C:$C, ">="&(AN$3), 'インポートデータ(解答履歴)'!$C:$C, "<"&(AN$3+7), 'インポートデータ(解答履歴)'!$P:$P, AN$4 ) -> 0 | AO9: =COUNTIFS( 'インポートデータ(解答履歴)'!$A:$A, $A9, 'インポートデータ(解答履歴)'!$C:$C, ">="&(AO$3), 'インポートデータ(解答履歴)'!$C:$C, "<"&(AO$3+7), 'インポートデータ(解答履歴)'!$P:$P, AO$4 ) -> 0 | AP9: =COUNTIFS( 'インポートデータ(解答履歴)'!$A:$A, $A9, 'インポートデータ(解答履歴)'!$C:$C, ">="&(AP$3), 'インポートデータ(解答履歴)'!$C:$C, "<"&(AP$3+7), 'インポートデータ(解答履歴)'!$P:$P, AP$4 ) -> 0 | AQ9: =COUNTIFS( 'インポートデータ(解答履歴)'!$A:$A, $A9, 'インポートデータ(解答履歴)'!$C:$C, ">="&(AQ$3), 'インポートデータ(解答履歴)'!$C:$C, "<"&(AQ$3+7), 'インポートデータ(解答履歴)'!$P:$P, AQ$4 ) -> 0 | AR9: =COUNTIFS( 'インポートデータ(解答履歴)'!$A:$A, $A9, 'インポートデータ(解答履歴)'!$C:$C, ">="&(AR$3), 'インポートデータ(解答履歴)'!$C:$C, "<"&(AR$3+7), 'インポートデータ(解答履歴)'!$P:$P, AR$4 ) -> 0 | AS9: =COUNTIFS( 'インポートデータ(解答履歴)'!$A:$A, $A9, 'インポートデータ(解答履歴)'!$C:$C, ">="&(AS$3), 'インポートデータ(解答履歴)'!$C:$C, "<"&(AS$3+7), 'インポートデータ(解答履歴)'!$P:$P, AS$4 ) -> 0 | AT9: =COUNTIFS( 'インポートデータ(解答履歴)'!$A:$A, $A9, 'インポートデータ(解答履歴)'!$C:$C, ">="&(AT$3), 'インポートデータ(解答履歴)'!$C:$C, "<"&(AT$3+7), 'インポートデータ(解答履歴)'!$P:$P, AT$4 ) -> 0 | AU9: =COUNTIFS( 'インポートデータ(解答履歴)'!$A:$A, $A9, 'インポートデータ(解答履歴)'!$C:$C, ">="&(AU$3), 'インポートデータ(解答履歴)'!$C:$C, "<"&(AU$3+7), 'インポートデータ(解答履歴)'!$P:$P, AU$4 ) -> 0 | AV9: =COUNTIFS( 'インポートデータ(解答履歴)'!$A:$A, $A9, 'インポートデータ(解答履歴)'!$C:$C, ">="&(AV$3), 'インポートデータ(解答履歴)'!$C:$C, "<"&(AV$3+7), 'インポートデータ(解答履歴)'!$P:$P, AV$4 ) -> 0 | AW9: =COUNTIFS('インポートデータ(解答履歴)'!$A:$A, $A9,'インポートデータ(解答履歴)'!$F:$F, AW$3) -> 0 | AX9: =COUNTIFS('インポートデータ(解答履歴)'!$A:$A, $A9,'インポートデータ(解答履歴)'!$F:$F, AX$3) -> 0 | AY9: =COUNTIFS('インポートデータ(解答履歴)'!$A:$A, $A9,'インポートデータ(解答履歴)'!$F:$F, AY$3) -> 0 | AZ9: =COUNTIFS('インポートデータ(解答履歴)'!$A:$A, $A9,'インポートデータ(解答履歴)'!$F:$F, AZ$3) -> 0 | BA9: =COUNTIFS('インポートデータ(解答履歴)'!$A:$A, $A9,'インポートデータ(解答履歴)'!$F:$F, BA$3) -> 0 | BB9: =COUNTIFS('インポートデータ(解答履歴)'!$A:$A, $A9,'インポートデータ(解答履歴)'!$F:$F, BB$3) -> 0 | BC9: =COUNTIFS('インポートデータ(解答履歴)'!$A:$A, $A9,'インポートデータ(解答履歴)'!$F:$F, BC$3) -> 0 | BD9: =COUNTIFS('インポートデータ(解答履歴)'!$A:$A, $A9,'インポートデータ(解答履歴)'!$F:$F, BD$3) -> 0 | BE9: =COUNTIFS('インポートデータ(解答履歴)'!$A:$A, $A9,'インポートデータ(解答履歴)'!$F:$F, BE$3) -> 0 | BF9: =COUNTIFS('インポートデータ(解答履歴)'!$A:$A, $A9,'インポートデータ(解答履歴)'!$F:$F, BF$3) -> 8 | BG9: =COUNTIFS('インポートデータ(解答履歴)'!$A:$A, $A9,'インポートデータ(解答履歴)'!$F:$F, BG$3) -> 0 | BH9: =COUNTIFS('インポートデータ(解答履歴)'!$A:$A, $A9,'インポートデータ(解答履歴)'!$F:$F, BH$3) -> 6 | BI9: =COUNTIFS('インポートデータ(解答履歴)'!$A:$A, $A9,'インポートデータ(解答履歴)'!$F:$F, BI$3) -> 0 | BJ9: =COUNTIFS('インポートデータ(解答履歴)'!$A:$A, $A9,'インポートデータ(解答履歴)'!$F:$F, BJ$3) -> 0 | BK9: =COUNTIFS('インポートデータ(解答履歴)'!$A:$A, $A9,'インポートデータ(解答履歴)'!$F:$F, BK$3) -> 0 | BL9: =COUNTIFS('インポートデータ(解答履歴)'!$A:$A, $A9,'インポートデータ(解答履歴)'!$F:$F, BL$3) -> 9 | BM9: =COUNTIFS('インポートデータ(解答履歴)'!$A:$A, $A9,'インポートデータ(解答履歴)'!$F:$F, BM$3) -> 6 | BN9: =COUNTIFS('インポートデータ(解答履歴)'!$A:$A, $A9,'インポートデータ(解答履歴)'!$F:$F, BN$3) -> 14 | BO9: =COUNTIFS('インポートデータ(解答履歴)'!$A:$A, $A9,'インポートデータ(解答履歴)'!$F:$F, BO$3) -> 0 | BP9: =COUNTIFS('インポートデータ(解答履歴)'!$A:$A, $A9,'インポートデータ(解答履歴)'!$F:$F, BP$3) -> 9 | BQ9: =COUNTIFS('インポートデータ(解答履歴)'!$A:$A, $A9,'インポートデータ(解答履歴)'!$F:$F, BQ$3) -> 0 | BR9: =COUNTIFS('インポートデータ(解答履歴)'!$A:$A, $A9,'インポートデータ(解答履歴)'!$F:$F, BR$3) -> 0 | BS9: =COUNTIFS('インポートデータ(解答履歴)'!$A:$A, $A9,'インポートデータ(解答履歴)'!$F:$F, BS$3) -> 0 | BT9: =COUNTIFS('インポートデータ(解答履歴)'!$A:$A, $A9,'インポートデータ(解答履歴)'!$F:$F, BT$3) -> 0 | BU9: 29 | BV9: 23 | BW9: 0 | BX9: 43 | BY9: =COUNTIFS('インポートデータ(解答履歴)'!$A:$A, $A9, 'インポートデータ(解答履歴)'!$X:$X, "初回", 'インポートデータ(解答履歴)'!$K:$K, "◯", 'インポートデータ(解答履歴)'!$D:$D, "<="&BZ$2) -> 38 | BZ9: =COUNTIFS('インポートデータ(解答履歴)'!$A:$A, $A9, 'インポートデータ(解答履歴)'!$X:$X, "初回", 'インポートデータ(解答履歴)'!$K:$K, "△", 'インポートデータ(解答履歴)'!$D:$D, "<="&BZ$2) + COUNTIFS('インポートデータ(解答履歴)'!$A:$A, $A9, 'インポートデータ(解答履歴)'!$X:$X, "初回", 'インポートデータ(解答履歴)'!$K:$K, "✕", 'インポートデータ(解答履歴)'!$D:$D, "<="&BZ$2) -> 5 | CA9: 2 | CB9: =COUNTIFS('インポートデータ(解答履歴)'!$A:$A, $A9, 'インポートデータ(解答履歴)'!Z:Z, "△", 'インポートデータ(解答履歴)'!$D:$D, "<="&BZ$2) + COUNTIFS('インポートデータ(解答履歴)'!$A:$A, $A9, 'インポートデータ(解答履歴)'!Z:Z, "✕", 'インポートデータ(解答履歴)'!$D:$D, "<="&BZ$2) -> 3 | CC9: 23 | CD9: =COUNTIFS('インポートデータ(解答履歴)'!$A:$A, $A9, 'インポートデータ(解答履歴)'!$X:$X, "初回", 'インポートデータ(解答履歴)'!$K:$K, "◯", 'インポートデータ(解答履歴)'!$D:$D, "<="&CE$2) -> 20 | CE9: =COUNTIFS('インポートデータ(解答履歴)'!$A:$A, $A9, 'インポートデータ(解答履歴)'!$X:$X, "初回", 'インポートデータ(解答履歴)'!$K:$K, "△", 'インポートデータ(解答履歴)'!$D:$D, "<="&CE$2) + COUNTIFS('インポートデータ(解答履歴)'!$A:$A, $A9, 'インポートデータ(解答履歴)'!$X:$X, "初回", 'インポートデータ(解答履歴)'!$K:$K, "✕", 'インポートデータ(解答履歴)'!$D:$D, "<="&CE$2) -> 3 | CF9: 2 | CG9: =COUNTIFS('インポートデータ(解答履歴)'!$A:$A, $A9, 'インポートデータ(解答履歴)'!Z:Z, "△", 'インポートデータ(解答履歴)'!$D:$D, "<="&CE$2) + COUNTIFS('インポートデータ(解答履歴)'!$A:$A, $A9, 'インポートデータ(解答履歴)'!Z:Z, "✕", 'インポートデータ(解答履歴)'!$D:$D, "<="&CE$2) -> 1 | CH9: 0 | CI9: =SUM(list_group!$C$2:$C$7) -> 42 | CJ9: =IF($A9="","",IFERROR(ROWS(_xlfn.UNIQUE(_xlfn._xlws.FILTER('インポートデータ(解答履歴)'!$W:$W,('インポートデータ(解答履歴)'!$A:$A=$A9)*('インポートデータ(解答履歴)'!$V:$V<>"")*('インポートデータ(解答履歴)'!$V:$V<>0)*('インポートデータ(解答履歴)'!$V:$V<>"該当なし")))),0)) -> 42 | CK9: =IF($A9="","",IFERROR(ROWS(_xlfn.UNIQUE(_xlfn._xlws.FILTER('インポートデータ(解答履歴)'!$W:$W,('インポートデータ(解答履歴)'!$A:$A=$A9)*('インポートデータ(解答履歴)'!$V:$V<>"")*('インポートデータ(解答履歴)'!$V:$V<>0)*('インポートデータ(解答履歴)'!$V:$V<>"該当なし")*('インポートデータ(解答履歴)'!$Y:$Y="最新")*('インポートデータ(解答履歴)'!$K:$K="◯")))),0)) -> 39 | CL9: 1 | CM9: 0.9285714286 | CN9: =IF($A9="","",IF(VLOOKUP(A9,生徒情報!A:C,3,FALSE)="","",VLOOKUP(A9,生徒情報!A:C,3,FALSE))) -> 未分類 | CO9: 52 | CP9: 5 | CQ9: その他 | CR9: =SUMIFS('インポートデータ(解答履歴)'!O:O,'インポートデータ(解答履歴)'!A:A,A9) -> 17989 | CS9: 3 | CT9: 上位30% | CU9: 1 | CV9: 1 | CW9: 1位 | CX9: 0.9285714286 | CY9: 4 | CZ9: その他 | DA9: 0 | DB9: 2 | DC9: 上位30% | DD9: 0.6666666667 | DE9: 3 | DF9: 上位30%
A10: 3 | B10: 岡野 千尋 | C10: 27 | D10: =IF(OR(C$3="",$A10=""),"",IFERROR(ROWS(_xlfn.UNIQUE(_xlfn._xlws.FILTER('インポートデータ(解答履歴)'!$W:$W,('インポートデータ(解答履歴)'!$A:$A=$A10)*('インポートデータ(解答履歴)'!$V:$V=C$3)))),0)) -> 12 | E10: =IF(OR(C$3="",$A10=""),"",IFERROR(ROWS(_xlfn.UNIQUE(_xlfn._xlws.FILTER('インポートデータ(解答履歴)'!$W:$W,('インポートデータ(解答履歴)'!$A:$A=$A10)*('インポートデータ(解答履歴)'!$V:$V=C$3)*('インポートデータ(解答履歴)'!$Y:$Y="最新")*('インポートデータ(解答履歴)'!$K:$K="◯")))),0)) -> 10 | F10: 15 | G10: =IF(OR(F$3="",$A10=""),"",IFERROR(ROWS(_xlfn.UNIQUE(_xlfn._xlws.FILTER('インポートデータ(解答履歴)'!$W:$W,('インポートデータ(解答履歴)'!$A:$A=$A10)*('インポートデータ(解答履歴)'!$V:$V=F$3)))),0)) -> 0 | H10: =IF(OR(F$3="",$A10=""),"",IFERROR(ROWS(_xlfn.UNIQUE(_xlfn._xlws.FILTER('インポートデータ(解答履歴)'!$W:$W,('インポートデータ(解答履歴)'!$A:$A=$A10)*('インポートデータ(解答履歴)'!$V:$V=F$3)*('インポートデータ(解答履歴)'!$Y:$Y="最新")*('インポートデータ(解答履歴)'!$K:$K="◯")))),0)) -> 0 | J10: =IF(OR(I$3="",$A10=""),"",IFERROR(ROWS(_xlfn.UNIQUE(_xlfn._xlws.FILTER('インポートデータ(解答履歴)'!$W:$W,('インポートデータ(解答履歴)'!$A:$A=$A10)*('インポートデータ(解答履歴)'!$V:$V=I$3)))),0)) ->  | K10: =IF(OR(I$3="",$A10=""),"",IFERROR(ROWS(_xlfn.UNIQUE(_xlfn._xlws.FILTER('インポートデータ(解答履歴)'!$W:$W,('インポートデータ(解答履歴)'!$A:$A=$A10)*('インポートデータ(解答履歴)'!$V:$V=I$3)*('インポートデータ(解答履歴)'!$Y:$Y="最新")*('インポートデータ(解答履歴)'!$K:$K="◯")))),0)) ->  | M10: =IF(OR(L$3="",$A10=""),"",IFERROR(ROWS(_xlfn.UNIQUE(_xlfn._xlws.FILTER('インポートデータ(解答履歴)'!$W:$W,('インポートデータ(解答履歴)'!$A:$A=$A10)*('インポートデータ(解答履歴)'!$V:$V=L$3)))),0)) ->  | N10: =IF(OR(L$3="",$A10=""),"",IFERROR(ROWS(_xlfn.UNIQUE(_xlfn._xlws.FILTER('インポートデータ(解答履歴)'!$W:$W,('インポートデータ(解答履歴)'!$A:$A=$A10)*('インポートデータ(解答履歴)'!$V:$V=L$3)*('インポートデータ(解答履歴)'!$Y:$Y="最新")*('インポートデータ(解答履歴)'!$K:$K="◯")))),0)) ->  | P10: =IF(OR(O$3="",$A10=""),"",IFERROR(ROWS(_xlfn.UNIQUE(_xlfn._xlws.FILTER('インポートデータ(解答履歴)'!$W:$W,('インポートデータ(解答履歴)'!$A:$A=$A10)*('インポートデータ(解答履歴)'!$V:$V=O$3)))),0)) ->  | Q10: =IF(OR(O$3="",$A10=""),"",IFERROR(ROWS(_xlfn.UNIQUE(_xlfn._xlws.FILTER('インポートデータ(解答履歴)'!$W:$W,('インポートデータ(解答履歴)'!$A:$A=$A10)*('インポートデータ(解答履歴)'!$V:$V=O$3)*('インポートデータ(解答履歴)'!$Y:$Y="最新")*('インポートデータ(解答履歴)'!$K:$K="◯")))),0)) ->  | S10: =IF(OR(R$3="",$A10=""),"",IFERROR(ROWS(_xlfn.UNIQUE(_xlfn._xlws.FILTER('インポートデータ(解答履歴)'!$W:$W,('インポートデータ(解答履歴)'!$A:$A=$A10)*('インポートデータ(解答履歴)'!$V:$V=R$3)))),0)) ->  | T10: =IF(OR(R$3="",$A10=""),"",IFERROR(ROWS(_xlfn.UNIQUE(_xlfn._xlws.FILTER('インポートデータ(解答履歴)'!$W:$W,('インポートデータ(解答履歴)'!$A:$A=$A10)*('インポートデータ(解答履歴)'!$V:$V=R$3)*('インポートデータ(解答履歴)'!$Y:$Y="最新")*('インポートデータ(解答履歴)'!$K:$K="◯")))),0)) ->  | U10: =COUNTIFS( 'インポートデータ(解答履歴)'!$A:$A, $A10, 'インポートデータ(解答履歴)'!$C:$C, ">="&(U$3), 'インポートデータ(解答履歴)'!$C:$C, "<"&(U$3+7), 'インポートデータ(解答履歴)'!$P:$P, U$4 ) -> 0 | V10: =COUNTIFS( 'インポートデータ(解答履歴)'!$A:$A, $A10, 'インポートデータ(解答履歴)'!$C:$C, ">="&(V$3), 'インポートデータ(解答履歴)'!$C:$C, "<"&(V$3+7), 'インポートデータ(解答履歴)'!$P:$P, V$4 ) -> 0 | W10: =COUNTIFS( 'インポートデータ(解答履歴)'!$A:$A, $A10, 'インポートデータ(解答履歴)'!$C:$C, ">="&(W$3), 'インポートデータ(解答履歴)'!$C:$C, "<"&(W$3+7), 'インポートデータ(解答履歴)'!$P:$P, W$4 ) -> 5 | X10: =COUNTIFS( 'インポートデータ(解答履歴)'!$A:$A, $A10, 'インポートデータ(解答履歴)'!$C:$C, ">="&(X$3), 'インポートデータ(解答履歴)'!$C:$C, "<"&(X$3+7), 'インポートデータ(解答履歴)'!$P:$P, X$4 ) -> 0 | Y10: =COUNTIFS( 'インポートデータ(解答履歴)'!$A:$A, $A10, 'インポートデータ(解答履歴)'!$C:$C, ">="&(Y$3), 'インポートデータ(解答履歴)'!$C:$C, "<"&(Y$3+7), 'インポートデータ(解答履歴)'!$P:$P, Y$4 ) -> 1 | Z10: =COUNTIFS( 'インポートデータ(解答履歴)'!$A:$A, $A10, 'インポートデータ(解答履歴)'!$C:$C, ">="&(Z$3), 'インポートデータ(解答履歴)'!$C:$C, "<"&(Z$3+7), 'インポートデータ(解答履歴)'!$P:$P, Z$4 ) -> 0 | AA10: =COUNTIFS( 'インポートデータ(解答履歴)'!$A:$A, $A10, 'インポートデータ(解答履歴)'!$C:$C, ">="&(AA$3), 'インポートデータ(解答履歴)'!$C:$C, "<"&(AA$3+7), 'インポートデータ(解答履歴)'!$P:$P, AA$4 ) -> 2 | AB10: =COUNTIFS( 'インポートデータ(解答履歴)'!$A:$A, $A10, 'インポートデータ(解答履歴)'!$C:$C, ">="&(AB$3), 'インポートデータ(解答履歴)'!$C:$C, "<"&(AB$3+7), 'インポートデータ(解答履歴)'!$P:$P, AB$4 ) -> 0 | AC10: =COUNTIFS( 'インポートデータ(解答履歴)'!$A:$A, $A10, 'インポートデータ(解答履歴)'!$C:$C, ">="&(AC$3), 'インポートデータ(解答履歴)'!$C:$C, "<"&(AC$3+7), 'インポートデータ(解答履歴)'!$P:$P, AC$4 ) -> 7 | AD10: =COUNTIFS( 'インポートデータ(解答履歴)'!$A:$A, $A10, 'インポートデータ(解答履歴)'!$C:$C, ">="&(AD$3), 'インポートデータ(解答履歴)'!$C:$C, "<"&(AD$3+7), 'インポートデータ(解答履歴)'!$P:$P, AD$4 ) -> 0 | AE10: =COUNTIFS( 'インポートデータ(解答履歴)'!$A:$A, $A10, 'インポートデータ(解答履歴)'!$C:$C, ">="&(AE$3), 'インポートデータ(解答履歴)'!$C:$C, "<"&(AE$3+7), 'インポートデータ(解答履歴)'!$P:$P, AE$4 ) -> 0 | AF10: =COUNTIFS( 'インポートデータ(解答履歴)'!$A:$A, $A10, 'インポートデータ(解答履歴)'!$C:$C, ">="&(AF$3), 'インポートデータ(解答履歴)'!$C:$C, "<"&(AF$3+7), 'インポートデータ(解答履歴)'!$P:$P, AF$4 ) -> 0 | AG10: =COUNTIFS( 'インポートデータ(解答履歴)'!$A:$A, $A10, 'インポートデータ(解答履歴)'!$C:$C, ">="&(AG$3), 'インポートデータ(解答履歴)'!$C:$C, "<"&(AG$3+7), 'インポートデータ(解答履歴)'!$P:$P, AG$4 ) -> 0 | AH10: =COUNTIFS( 'インポートデータ(解答履歴)'!$A:$A, $A10, 'インポートデータ(解答履歴)'!$C:$C, ">="&(AH$3), 'インポートデータ(解答履歴)'!$C:$C, "<"&(AH$3+7), 'インポートデータ(解答履歴)'!$P:$P, AH$4 ) -> 0 | AI10: =COUNTIFS( 'インポートデータ(解答履歴)'!$A:$A, $A10, 'インポートデータ(解答履歴)'!$C:$C, ">="&(AI$3), 'インポートデータ(解答履歴)'!$C:$C, "<"&(AI$3+7), 'インポートデータ(解答履歴)'!$P:$P, AI$4 ) -> 0 | AJ10: =COUNTIFS( 'インポートデータ(解答履歴)'!$A:$A, $A10, 'インポートデータ(解答履歴)'!$C:$C, ">="&(AJ$3), 'インポートデータ(解答履歴)'!$C:$C, "<"&(AJ$3+7), 'インポートデータ(解答履歴)'!$P:$P, AJ$4 ) -> 0 | AK10: =COUNTIFS( 'インポートデータ(解答履歴)'!$A:$A, $A10, 'インポートデータ(解答履歴)'!$C:$C, ">="&(AK$3), 'インポートデータ(解答履歴)'!$C:$C, "<"&(AK$3+7), 'インポートデータ(解答履歴)'!$P:$P, AK$4 ) -> 0 | AL10: =COUNTIFS( 'インポートデータ(解答履歴)'!$A:$A, $A10, 'インポートデータ(解答履歴)'!$C:$C, ">="&(AL$3), 'インポートデータ(解答履歴)'!$C:$C, "<"&(AL$3+7), 'インポートデータ(解答履歴)'!$P:$P, AL$4 ) -> 0 | AM10: =COUNTIFS( 'インポートデータ(解答履歴)'!$A:$A, $A10, 'インポートデータ(解答履歴)'!$C:$C, ">="&(AM$3), 'インポートデータ(解答履歴)'!$C:$C, "<"&(AM$3+7), 'インポートデータ(解答履歴)'!$P:$P, AM$4 ) -> 0 | AN10: =COUNTIFS( 'インポートデータ(解答履歴)'!$A:$A, $A10, 'インポートデータ(解答履歴)'!$C:$C, ">="&(AN$3), 'インポートデータ(解答履歴)'!$C:$C, "<"&(AN$3+7), 'インポートデータ(解答履歴)'!$P:$P, AN$4 ) -> 0 | AO10: =COUNTIFS( 'インポートデータ(解答履歴)'!$A:$A, $A10, 'インポートデータ(解答履歴)'!$C:$C, ">="&(AO$3), 'インポートデータ(解答履歴)'!$C:$C, "<"&(AO$3+7), 'インポートデータ(解答履歴)'!$P:$P, AO$4 ) -> 0 | AP10: =COUNTIFS( 'インポートデータ(解答履歴)'!$A:$A, $A10, 'インポートデータ(解答履歴)'!$C:$C, ">="&(AP$3), 'インポートデータ(解答履歴)'!$C:$C, "<"&(AP$3+7), 'インポートデータ(解答履歴)'!$P:$P, AP$4 ) -> 0 | AQ10: =COUNTIFS( 'インポートデータ(解答履歴)'!$A:$A, $A10, 'インポートデータ(解答履歴)'!$C:$C, ">="&(AQ$3), 'インポートデータ(解答履歴)'!$C:$C, "<"&(AQ$3+7), 'インポートデータ(解答履歴)'!$P:$P, AQ$4 ) -> 0 | AR10: =COUNTIFS( 'インポートデータ(解答履歴)'!$A:$A, $A10, 'インポートデータ(解答履歴)'!$C:$C, ">="&(AR$3), 'インポートデータ(解答履歴)'!$C:$C, "<"&(AR$3+7), 'インポートデータ(解答履歴)'!$P:$P, AR$4 ) -> 0 | AS10: =COUNTIFS( 'インポートデータ(解答履歴)'!$A:$A, $A10, 'インポートデータ(解答履歴)'!$C:$C, ">="&(AS$3), 'インポートデータ(解答履歴)'!$C:$C, "<"&(AS$3+7), 'インポートデータ(解答履歴)'!$P:$P, AS$4 ) -> 0 | AT10: =COUNTIFS( 'インポートデータ(解答履歴)'!$A:$A, $A10, 'インポートデータ(解答履歴)'!$C:$C, ">="&(AT$3), 'インポートデータ(解答履歴)'!$C:$C, "<"&(AT$3+7), 'インポートデータ(解答履歴)'!$P:$P, AT$4 ) -> 0 | AU10: =COUNTIFS( 'インポートデータ(解答履歴)'!$A:$A, $A10, 'インポートデータ(解答履歴)'!$C:$C, ">="&(AU$3), 'インポートデータ(解答履歴)'!$C:$C, "<"&(AU$3+7), 'インポートデータ(解答履歴)'!$P:$P, AU$4 ) -> 0 | AV10: =COUNTIFS( 'インポートデータ(解答履歴)'!$A:$A, $A10, 'インポートデータ(解答履歴)'!$C:$C, ">="&(AV$3), 'インポートデータ(解答履歴)'!$C:$C, "<"&(AV$3+7), 'インポートデータ(解答履歴)'!$P:$P, AV$4 ) -> 0 | AW10: =COUNTIFS('インポートデータ(解答履歴)'!$A:$A, $A10,'インポートデータ(解答履歴)'!$F:$F, AW$3) -> 0 | AX10: =COUNTIFS('インポートデータ(解答履歴)'!$A:$A, $A10,'インポートデータ(解答履歴)'!$F:$F, AX$3) -> 0 | AY10: =COUNTIFS('インポートデータ(解答履歴)'!$A:$A, $A10,'インポートデータ(解答履歴)'!$F:$F, AY$3) -> 0 | AZ10: =COUNTIFS('インポートデータ(解答履歴)'!$A:$A, $A10,'インポートデータ(解答履歴)'!$F:$F, AZ$3) -> 0 | BA10: =COUNTIFS('インポートデータ(解答履歴)'!$A:$A, $A10,'インポートデータ(解答履歴)'!$F:$F, BA$3) -> 0 | BB10: =COUNTIFS('インポートデータ(解答履歴)'!$A:$A, $A10,'インポートデータ(解答履歴)'!$F:$F, BB$3) -> 0 | BC10: =COUNTIFS('インポートデータ(解答履歴)'!$A:$A, $A10,'インポートデータ(解答履歴)'!$F:$F, BC$3) -> 0 | BD10: =COUNTIFS('インポートデータ(解答履歴)'!$A:$A, $A10,'インポートデータ(解答履歴)'!$F:$F, BD$3) -> 0 | BE10: =COUNTIFS('インポートデータ(解答履歴)'!$A:$A, $A10,'インポートデータ(解答履歴)'!$F:$F, BE$3) -> 1 | BF10: =COUNTIFS('インポートデータ(解答履歴)'!$A:$A, $A10,'インポートデータ(解答履歴)'!$F:$F, BF$3) -> 9 | BG10: =COUNTIFS('インポートデータ(解答履歴)'!$A:$A, $A10,'インポートデータ(解答履歴)'!$F:$F, BG$3) -> 1 | BH10: =COUNTIFS('インポートデータ(解答履歴)'!$A:$A, $A10,'インポートデータ(解答履歴)'!$F:$F, BH$3) -> 0 | BI10: =COUNTIFS('インポートデータ(解答履歴)'!$A:$A, $A10,'インポートデータ(解答履歴)'!$F:$F, BI$3) -> 0 | BJ10: =COUNTIFS('インポートデータ(解答履歴)'!$A:$A, $A10,'インポートデータ(解答履歴)'!$F:$F, BJ$3) -> 0 | BK10: =COUNTIFS('インポートデータ(解答履歴)'!$A:$A, $A10,'インポートデータ(解答履歴)'!$F:$F, BK$3) -> 4 | BL10: =COUNTIFS('インポートデータ(解答履歴)'!$A:$A, $A10,'インポートデータ(解答履歴)'!$F:$F, BL$3) -> 0 | BM10: =COUNTIFS('インポートデータ(解答履歴)'!$A:$A, $A10,'インポートデータ(解答履歴)'!$F:$F, BM$3) -> 0 | BN10: =COUNTIFS('インポートデータ(解答履歴)'!$A:$A, $A10,'インポートデータ(解答履歴)'!$F:$F, BN$3) -> 0 | BO10: =COUNTIFS('インポートデータ(解答履歴)'!$A:$A, $A10,'インポートデータ(解答履歴)'!$F:$F, BO$3) -> 0 | BP10: =COUNTIFS('インポートデータ(解答履歴)'!$A:$A, $A10,'インポートデータ(解答履歴)'!$F:$F, BP$3) -> 0 | BQ10: =COUNTIFS('インポートデータ(解答履歴)'!$A:$A, $A10,'インポートデータ(解答履歴)'!$F:$F, BQ$3) -> 0 | BR10: =COUNTIFS('インポートデータ(解答履歴)'!$A:$A, $A10,'インポートデータ(解答履歴)'!$F:$F, BR$3) -> 0 | BS10: =COUNTIFS('インポートデータ(解答履歴)'!$A:$A, $A10,'インポートデータ(解答履歴)'!$F:$F, BS$3) -> 0 | BT10: =COUNTIFS('インポートデータ(解答履歴)'!$A:$A, $A10,'インポートデータ(解答履歴)'!$F:$F, BT$3) -> 0 | BU10: 15 | BV10: 0 | BW10: 0 | BX10: 12 | BY10: =COUNTIFS('インポートデータ(解答履歴)'!$A:$A, $A10, 'インポートデータ(解答履歴)'!$X:$X, "初回", 'インポートデータ(解答履歴)'!$K:$K, "◯", 'インポートデータ(解答履歴)'!$D:$D, "<="&BZ$2) -> 9 | BZ10: =COUNTIFS('インポートデータ(解答履歴)'!$A:$A, $A10, 'インポートデータ(解答履歴)'!$X:$X, "初回", 'インポートデータ(解答履歴)'!$K:$K, "△", 'インポートデータ(解答履歴)'!$D:$D, "<="&BZ$2) + COUNTIFS('インポートデータ(解答履歴)'!$A:$A, $A10, 'インポートデータ(解答履歴)'!$X:$X, "初回", 'インポートデータ(解答履歴)'!$K:$K, "✕", 'インポートデータ(解答履歴)'!$D:$D, "<="&BZ$2) -> 3 | CA10: 1 | CB10: =COUNTIFS('インポートデータ(解答履歴)'!$A:$A, $A10, 'インポートデータ(解答履歴)'!Z:Z, "△", 'インポートデータ(解答履歴)'!$D:$D, "<="&BZ$2) + COUNTIFS('インポートデータ(解答履歴)'!$A:$A, $A10, 'インポートデータ(解答履歴)'!Z:Z, "✕", 'インポートデータ(解答履歴)'!$D:$D, "<="&BZ$2) -> 2 | CC10: 12 | CD10: =COUNTIFS('インポートデータ(解答履歴)'!$A:$A, $A10, 'インポートデータ(解答履歴)'!$X:$X, "初回", 'インポートデータ(解答履歴)'!$K:$K, "◯", 'インポートデータ(解答履歴)'!$D:$D, "<="&CE$2) -> 9 | CE10: =COUNTIFS('インポートデータ(解答履歴)'!$A:$A, $A10, 'インポートデータ(解答履歴)'!$X:$X, "初回", 'インポートデータ(解答履歴)'!$K:$K, "△", 'インポートデータ(解答履歴)'!$D:$D, "<="&CE$2) + COUNTIFS('インポートデータ(解答履歴)'!$A:$A, $A10, 'インポートデータ(解答履歴)'!$X:$X, "初回", 'インポートデータ(解答履歴)'!$K:$K, "✕", 'インポートデータ(解答履歴)'!$D:$D, "<="&CE$2) -> 3 | CF10: 1 | CG10: =COUNTIFS('インポートデータ(解答履歴)'!$A:$A, $A10, 'インポートデータ(解答履歴)'!Z:Z, "△", 'インポートデータ(解答履歴)'!$D:$D, "<="&CE$2) + COUNTIFS('インポートデータ(解答履歴)'!$A:$A, $A10, 'インポートデータ(解答履歴)'!Z:Z, "✕", 'インポートデータ(解答履歴)'!$D:$D, "<="&CE$2) -> 2 | CH10: 0 | CI10: =SUM(list_group!$C$2:$C$7) -> 42 | CJ10: =IF($A10="","",IFERROR(ROWS(_xlfn.UNIQUE(_xlfn._xlws.FILTER('インポートデータ(解答履歴)'!$W:$W,('インポートデータ(解答履歴)'!$A:$A=$A10)*('インポートデータ(解答履歴)'!$V:$V<>"")*('インポートデータ(解答履歴)'!$V:$V<>0)*('インポートデータ(解答履歴)'!$V:$V<>"該当なし")))),0)) -> 12 | CK10: =IF($A10="","",IFERROR(ROWS(_xlfn.UNIQUE(_xlfn._xlws.FILTER('インポートデータ(解答履歴)'!$W:$W,('インポートデータ(解答履歴)'!$A:$A=$A10)*('インポートデータ(解答履歴)'!$V:$V<>"")*('インポートデータ(解答履歴)'!$V:$V<>0)*('インポートデータ(解答履歴)'!$V:$V<>"該当なし")*('インポートデータ(解答履歴)'!$Y:$Y="最新")*('インポートデータ(解答履歴)'!$K:$K="◯")))),0)) -> 10 | CL10: 0.2857142857 | CM10: 0.8333333333 | CN10: =IF($A10="","",IF(VLOOKUP(A10,生徒情報!A:C,3,FALSE)="","",VLOOKUP(A10,生徒情報!A:C,3,FALSE))) -> 未分類 | CO10: 15 | CP10: 10 | CQ10: その他 | CR10: =SUMIFS('インポートデータ(解答履歴)'!O:O,'インポートデータ(解答履歴)'!A:A,A10) -> 1686 | CS10: 11 | CT10: その他 | CU10: 0.2857142857 | CV10: 9 | CW10: その他 | CX10: 0.8333333333 | CY10: 5 | CZ10: その他 | DA10: 0 | DB10: 2 | DC10: 上位30% | DD10: 0.3333333333 | DE10: 6 | DF10: その他
A11: 11 | B11: 飯田 翼 | C11: 27 | D11: =IF(OR(C$3="",$A11=""),"",IFERROR(ROWS(_xlfn.UNIQUE(_xlfn._xlws.FILTER('インポートデータ(解答履歴)'!$W:$W,('インポートデータ(解答履歴)'!$A:$A=$A11)*('インポートデータ(解答履歴)'!$V:$V=C$3)))),0)) -> 27 | E11: =IF(OR(C$3="",$A11=""),"",IFERROR(ROWS(_xlfn.UNIQUE(_xlfn._xlws.FILTER('インポートデータ(解答履歴)'!$W:$W,('インポートデータ(解答履歴)'!$A:$A=$A11)*('インポートデータ(解答履歴)'!$V:$V=C$3)*('インポートデータ(解答履歴)'!$Y:$Y="最新")*('インポートデータ(解答履歴)'!$K:$K="◯")))),0)) -> 26 | F11: 15 | G11: =IF(OR(F$3="",$A11=""),"",IFERROR(ROWS(_xlfn.UNIQUE(_xlfn._xlws.FILTER('インポートデータ(解答履歴)'!$W:$W,('インポートデータ(解答履歴)'!$A:$A=$A11)*('インポートデータ(解答履歴)'!$V:$V=F$3)))),0)) -> 13 | H11: =IF(OR(F$3="",$A11=""),"",IFERROR(ROWS(_xlfn.UNIQUE(_xlfn._xlws.FILTER('インポートデータ(解答履歴)'!$W:$W,('インポートデータ(解答履歴)'!$A:$A=$A11)*('インポートデータ(解答履歴)'!$V:$V=F$3)*('インポートデータ(解答履歴)'!$Y:$Y="最新")*('インポートデータ(解答履歴)'!$K:$K="◯")))),0)) -> 13 | J11: =IF(OR(I$3="",$A11=""),"",IFERROR(ROWS(_xlfn.UNIQUE(_xlfn._xlws.FILTER('インポートデータ(解答履歴)'!$W:$W,('インポートデータ(解答履歴)'!$A:$A=$A11)*('インポートデータ(解答履歴)'!$V:$V=I$3)))),0)) ->  | K11: =IF(OR(I$3="",$A11=""),"",IFERROR(ROWS(_xlfn.UNIQUE(_xlfn._xlws.FILTER('インポートデータ(解答履歴)'!$W:$W,('インポートデータ(解答履歴)'!$A:$A=$A11)*('インポートデータ(解答履歴)'!$V:$V=I$3)*('インポートデータ(解答履歴)'!$Y:$Y="最新")*('インポートデータ(解答履歴)'!$K:$K="◯")))),0)) ->  | M11: =IF(OR(L$3="",$A11=""),"",IFERROR(ROWS(_xlfn.UNIQUE(_xlfn._xlws.FILTER('インポートデータ(解答履歴)'!$W:$W,('インポートデータ(解答履歴)'!$A:$A=$A11)*('インポートデータ(解答履歴)'!$V:$V=L$3)))),0)) ->  | N11: =IF(OR(L$3="",$A11=""),"",IFERROR(ROWS(_xlfn.UNIQUE(_xlfn._xlws.FILTER('インポートデータ(解答履歴)'!$W:$W,('インポートデータ(解答履歴)'!$A:$A=$A11)*('インポートデータ(解答履歴)'!$V:$V=L$3)*('インポートデータ(解答履歴)'!$Y:$Y="最新")*('インポートデータ(解答履歴)'!$K:$K="◯")))),0)) ->  | P11: =IF(OR(O$3="",$A11=""),"",IFERROR(ROWS(_xlfn.UNIQUE(_xlfn._xlws.FILTER('インポートデータ(解答履歴)'!$W:$W,('インポートデータ(解答履歴)'!$A:$A=$A11)*('インポートデータ(解答履歴)'!$V:$V=O$3)))),0)) ->  | Q11: =IF(OR(O$3="",$A11=""),"",IFERROR(ROWS(_xlfn.UNIQUE(_xlfn._xlws.FILTER('インポートデータ(解答履歴)'!$W:$W,('インポートデータ(解答履歴)'!$A:$A=$A11)*('インポートデータ(解答履歴)'!$V:$V=O$3)*('インポートデータ(解答履歴)'!$Y:$Y="最新")*('インポートデータ(解答履歴)'!$K:$K="◯")))),0)) ->  | S11: =IF(OR(R$3="",$A11=""),"",IFERROR(ROWS(_xlfn.UNIQUE(_xlfn._xlws.FILTER('インポートデータ(解答履歴)'!$W:$W,('インポートデータ(解答履歴)'!$A:$A=$A11)*('インポートデータ(解答履歴)'!$V:$V=R$3)))),0)) ->  | T11: =IF(OR(R$3="",$A11=""),"",IFERROR(ROWS(_xlfn.UNIQUE(_xlfn._xlws.FILTER('インポートデータ(解答履歴)'!$W:$W,('インポートデータ(解答履歴)'!$A:$A=$A11)*('インポートデータ(解答履歴)'!$V:$V=R$3)*('インポートデータ(解答履歴)'!$Y:$Y="最新")*('インポートデータ(解答履歴)'!$K:$K="◯")))),0)) ->  | U11: =COUNTIFS( 'インポートデータ(解答履歴)'!$A:$A, $A11, 'インポートデータ(解答履歴)'!$C:$C, ">="&(U$3), 'インポートデータ(解答履歴)'!$C:$C, "<"&(U$3+7), 'インポートデータ(解答履歴)'!$P:$P, U$4 ) -> 0 | V11: =COUNTIFS( 'インポートデータ(解答履歴)'!$A:$A, $A11, 'インポートデータ(解答履歴)'!$C:$C, ">="&(V$3), 'インポートデータ(解答履歴)'!$C:$C, "<"&(V$3+7), 'インポートデータ(解答履歴)'!$P:$P, V$4 ) -> 0 | W11: =COUNTIFS( 'インポートデータ(解答履歴)'!$A:$A, $A11, 'インポートデータ(解答履歴)'!$C:$C, ">="&(W$3), 'インポートデータ(解答履歴)'!$C:$C, "<"&(W$3+7), 'インポートデータ(解答履歴)'!$P:$P, W$4 ) -> 24 | X11: =COUNTIFS( 'インポートデータ(解答履歴)'!$A:$A, $A11, 'インポートデータ(解答履歴)'!$C:$C, ">="&(X$3), 'インポートデータ(解答履歴)'!$C:$C, "<"&(X$3+7), 'インポートデータ(解答履歴)'!$P:$P, X$4 ) -> 0 | Y11: =COUNTIFS( 'インポートデータ(解答履歴)'!$A:$A, $A11, 'インポートデータ(解答履歴)'!$C:$C, ">="&(Y$3), 'インポートデータ(解答履歴)'!$C:$C, "<"&(Y$3+7), 'インポートデータ(解答履歴)'!$P:$P, Y$4 ) -> 21 | Z11: =COUNTIFS( 'インポートデータ(解答履歴)'!$A:$A, $A11, 'インポートデータ(解答履歴)'!$C:$C, ">="&(Z$3), 'インポートデータ(解答履歴)'!$C:$C, "<"&(Z$3+7), 'インポートデータ(解答履歴)'!$P:$P, Z$4 ) -> 0 | AA11: =COUNTIFS( 'インポートデータ(解答履歴)'!$A:$A, $A11, 'インポートデータ(解答履歴)'!$C:$C, ">="&(AA$3), 'インポートデータ(解答履歴)'!$C:$C, "<"&(AA$3+7), 'インポートデータ(解答履歴)'!$P:$P, AA$4 ) -> 8 | AB11: =COUNTIFS( 'インポートデータ(解答履歴)'!$A:$A, $A11, 'インポートデータ(解答履歴)'!$C:$C, ">="&(AB$3), 'インポートデータ(解答履歴)'!$C:$C, "<"&(AB$3+7), 'インポートデータ(解答履歴)'!$P:$P, AB$4 ) -> 0 | AC11: =COUNTIFS( 'インポートデータ(解答履歴)'!$A:$A, $A11, 'インポートデータ(解答履歴)'!$C:$C, ">="&(AC$3), 'インポートデータ(解答履歴)'!$C:$C, "<"&(AC$3+7), 'インポートデータ(解答履歴)'!$P:$P, AC$4 ) -> 4 | AD11: =COUNTIFS( 'インポートデータ(解答履歴)'!$A:$A, $A11, 'インポートデータ(解答履歴)'!$C:$C, ">="&(AD$3), 'インポートデータ(解答履歴)'!$C:$C, "<"&(AD$3+7), 'インポートデータ(解答履歴)'!$P:$P, AD$4 ) -> 0 | AE11: =COUNTIFS( 'インポートデータ(解答履歴)'!$A:$A, $A11, 'インポートデータ(解答履歴)'!$C:$C, ">="&(AE$3), 'インポートデータ(解答履歴)'!$C:$C, "<"&(AE$3+7), 'インポートデータ(解答履歴)'!$P:$P, AE$4 ) -> 0 | AF11: =COUNTIFS( 'インポートデータ(解答履歴)'!$A:$A, $A11, 'インポートデータ(解答履歴)'!$C:$C, ">="&(AF$3), 'インポートデータ(解答履歴)'!$C:$C, "<"&(AF$3+7), 'インポートデータ(解答履歴)'!$P:$P, AF$4 ) -> 0 | AG11: =COUNTIFS( 'インポートデータ(解答履歴)'!$A:$A, $A11, 'インポートデータ(解答履歴)'!$C:$C, ">="&(AG$3), 'インポートデータ(解答履歴)'!$C:$C, "<"&(AG$3+7), 'インポートデータ(解答履歴)'!$P:$P, AG$4 ) -> 5 | AH11: =COUNTIFS( 'インポートデータ(解答履歴)'!$A:$A, $A11, 'インポートデータ(解答履歴)'!$C:$C, ">="&(AH$3), 'インポートデータ(解答履歴)'!$C:$C, "<"&(AH$3+7), 'インポートデータ(解答履歴)'!$P:$P, AH$4 ) -> 0 | AI11: =COUNTIFS( 'インポートデータ(解答履歴)'!$A:$A, $A11, 'インポートデータ(解答履歴)'!$C:$C, ">="&(AI$3), 'インポートデータ(解答履歴)'!$C:$C, "<"&(AI$3+7), 'インポートデータ(解答履歴)'!$P:$P, AI$4 ) -> 0 | AJ11: =COUNTIFS( 'インポートデータ(解答履歴)'!$A:$A, $A11, 'インポートデータ(解答履歴)'!$C:$C, ">="&(AJ$3), 'インポートデータ(解答履歴)'!$C:$C, "<"&(AJ$3+7), 'インポートデータ(解答履歴)'!$P:$P, AJ$4 ) -> 0 | AK11: =COUNTIFS( 'インポートデータ(解答履歴)'!$A:$A, $A11, 'インポートデータ(解答履歴)'!$C:$C, ">="&(AK$3), 'インポートデータ(解答履歴)'!$C:$C, "<"&(AK$3+7), 'インポートデータ(解答履歴)'!$P:$P, AK$4 ) -> 29 | AL11: =COUNTIFS( 'インポートデータ(解答履歴)'!$A:$A, $A11, 'インポートデータ(解答履歴)'!$C:$C, ">="&(AL$3), 'インポートデータ(解答履歴)'!$C:$C, "<"&(AL$3+7), 'インポートデータ(解答履歴)'!$P:$P, AL$4 ) -> 0 | AM11: =COUNTIFS( 'インポートデータ(解答履歴)'!$A:$A, $A11, 'インポートデータ(解答履歴)'!$C:$C, ">="&(AM$3), 'インポートデータ(解答履歴)'!$C:$C, "<"&(AM$3+7), 'インポートデータ(解答履歴)'!$P:$P, AM$4 ) -> 9 | AN11: =COUNTIFS( 'インポートデータ(解答履歴)'!$A:$A, $A11, 'インポートデータ(解答履歴)'!$C:$C, ">="&(AN$3), 'インポートデータ(解答履歴)'!$C:$C, "<"&(AN$3+7), 'インポートデータ(解答履歴)'!$P:$P, AN$4 ) -> 0 | AO11: =COUNTIFS( 'インポートデータ(解答履歴)'!$A:$A, $A11, 'インポートデータ(解答履歴)'!$C:$C, ">="&(AO$3), 'インポートデータ(解答履歴)'!$C:$C, "<"&(AO$3+7), 'インポートデータ(解答履歴)'!$P:$P, AO$4 ) -> 0 | AP11: =COUNTIFS( 'インポートデータ(解答履歴)'!$A:$A, $A11, 'インポートデータ(解答履歴)'!$C:$C, ">="&(AP$3), 'インポートデータ(解答履歴)'!$C:$C, "<"&(AP$3+7), 'インポートデータ(解答履歴)'!$P:$P, AP$4 ) -> 0 | AQ11: =COUNTIFS( 'インポートデータ(解答履歴)'!$A:$A, $A11, 'インポートデータ(解答履歴)'!$C:$C, ">="&(AQ$3), 'インポートデータ(解答履歴)'!$C:$C, "<"&(AQ$3+7), 'インポートデータ(解答履歴)'!$P:$P, AQ$4 ) -> 0 | AR11: =COUNTIFS( 'インポートデータ(解答履歴)'!$A:$A, $A11, 'インポートデータ(解答履歴)'!$C:$C, ">="&(AR$3), 'インポートデータ(解答履歴)'!$C:$C, "<"&(AR$3+7), 'インポートデータ(解答履歴)'!$P:$P, AR$4 ) -> 0 | AS11: =COUNTIFS( 'インポートデータ(解答履歴)'!$A:$A, $A11, 'インポートデータ(解答履歴)'!$C:$C, ">="&(AS$3), 'インポートデータ(解答履歴)'!$C:$C, "<"&(AS$3+7), 'インポートデータ(解答履歴)'!$P:$P, AS$4 ) -> 0 | AT11: =COUNTIFS( 'インポートデータ(解答履歴)'!$A:$A, $A11, 'インポートデータ(解答履歴)'!$C:$C, ">="&(AT$3), 'インポートデータ(解答履歴)'!$C:$C, "<"&(AT$3+7), 'インポートデータ(解答履歴)'!$P:$P, AT$4 ) -> 0 | AU11: =COUNTIFS( 'インポートデータ(解答履歴)'!$A:$A, $A11, 'インポートデータ(解答履歴)'!$C:$C, ">="&(AU$3), 'インポートデータ(解答履歴)'!$C:$C, "<"&(AU$3+7), 'インポートデータ(解答履歴)'!$P:$P, AU$4 ) -> 0 | AV11: =COUNTIFS( 'インポートデータ(解答履歴)'!$A:$A, $A11, 'インポートデータ(解答履歴)'!$C:$C, ">="&(AV$3), 'インポートデータ(解答履歴)'!$C:$C, "<"&(AV$3+7), 'インポートデータ(解答履歴)'!$P:$P, AV$4 ) -> 0 | AW11: =COUNTIFS('インポートデータ(解答履歴)'!$A:$A, $A11,'インポートデータ(解答履歴)'!$F:$F, AW$3) -> 9 | AX11: =COUNTIFS('インポートデータ(解答履歴)'!$A:$A, $A11,'インポートデータ(解答履歴)'!$F:$F, AX$3) -> 0 | AY11: =COUNTIFS('インポートデータ(解答履歴)'!$A:$A, $A11,'インポートデータ(解答履歴)'!$F:$F, AY$3) -> 0 | AZ11: =COUNTIFS('インポートデータ(解答履歴)'!$A:$A, $A11,'インポートデータ(解答履歴)'!$F:$F, AZ$3) -> 0 | BA11: =COUNTIFS('インポートデータ(解答履歴)'!$A:$A, $A11,'インポートデータ(解答履歴)'!$F:$F, BA$3) -> 0 | BB11: =COUNTIFS('インポートデータ(解答履歴)'!$A:$A, $A11,'インポートデータ(解答履歴)'!$F:$F, BB$3) -> 0 | BC11: =COUNTIFS('インポートデータ(解答履歴)'!$A:$A, $A11,'インポートデータ(解答履歴)'!$F:$F, BC$3) -> 0 | BD11: =COUNTIFS('インポートデータ(解答履歴)'!$A:$A, $A11,'インポートデータ(解答履歴)'!$F:$F, BD$3) -> 0 | BE11: =COUNTIFS('インポートデータ(解答履歴)'!$A:$A, $A11,'インポートデータ(解答履歴)'!$F:$F, BE$3) -> 0 | BF11: =COUNTIFS('インポートデータ(解答履歴)'!$A:$A, $A11,'インポートデータ(解答履歴)'!$F:$F, BF$3) -> 1 | BG11: =COUNTIFS('インポートデータ(解答履歴)'!$A:$A, $A11,'インポートデータ(解答履歴)'!$F:$F, BG$3) -> 4 | BH11: =COUNTIFS('インポートデータ(解答履歴)'!$A:$A, $A11,'インポートデータ(解答履歴)'!$F:$F, BH$3) -> 15 | BI11: =COUNTIFS('インポートデータ(解答履歴)'!$A:$A, $A11,'インポートデータ(解答履歴)'!$F:$F, BI$3) -> 0 | BJ11: =COUNTIFS('インポートデータ(解答履歴)'!$A:$A, $A11,'インポートデータ(解答履歴)'!$F:$F, BJ$3) -> 1 | BK11: =COUNTIFS('インポートデータ(解答履歴)'!$A:$A, $A11,'インポートデータ(解答履歴)'!$F:$F, BK$3) -> 0 | BL11: =COUNTIFS('インポートデータ(解答履歴)'!$A:$A, $A11,'インポートデータ(解答履歴)'!$F:$F, BL$3) -> 0 | BM11: =COUNTIFS('インポートデータ(解答履歴)'!$A:$A, $A11,'インポートデータ(解答履歴)'!$F:$F, BM$3) -> 0 | BN11: =COUNTIFS('インポートデータ(解答履歴)'!$A:$A, $A11,'インポートデータ(解答履歴)'!$F:$F, BN$3) -> 0 | BO11: =COUNTIFS('インポートデータ(解答履歴)'!$A:$A, $A11,'インポートデータ(解答履歴)'!$F:$F, BO$3) -> 8 | BP11: =COUNTIFS('インポートデータ(解答履歴)'!$A:$A, $A11,'インポートデータ(解答履歴)'!$F:$F, BP$3) -> 14 | BQ11: =COUNTIFS('インポートデータ(解答履歴)'!$A:$A, $A11,'インポートデータ(解答履歴)'!$F:$F, BQ$3) -> 11 | BR11: =COUNTIFS('インポートデータ(解答履歴)'!$A:$A, $A11,'インポートデータ(解答履歴)'!$F:$F, BR$3) -> 8 | BS11: =COUNTIFS('インポートデータ(解答履歴)'!$A:$A, $A11,'インポートデータ(解答履歴)'!$F:$F, BS$3) -> 25 | BT11: =COUNTIFS('インポートデータ(解答履歴)'!$A:$A, $A11,'インポートデータ(解答履歴)'!$F:$F, BT$3) -> 4 | BU11: 21 | BV11: 70 | BW11: 9 | BX11: 40 | BY11: =COUNTIFS('インポートデータ(解答履歴)'!$A:$A, $A11, 'インポートデータ(解答履歴)'!$X:$X, "初回", 'インポートデータ(解答履歴)'!$K:$K, "◯", 'インポートデータ(解答履歴)'!$D:$D, "<="&BZ$2) -> 17 | BZ11: =COUNTIFS('インポートデータ(解答履歴)'!$A:$A, $A11, 'インポートデータ(解答履歴)'!$X:$X, "初回", 'インポートデータ(解答履歴)'!$K:$K, "△", 'インポートデータ(解答履歴)'!$D:$D, "<="&BZ$2) + COUNTIFS('インポートデータ(解答履歴)'!$A:$A, $A11, 'インポートデータ(解答履歴)'!$X:$X, "初回", 'インポートデータ(解答履歴)'!$K:$K, "✕", 'インポートデータ(解答履歴)'!$D:$D, "<="&BZ$2) -> 23 | CA11: 22 | CB11: =COUNTIFS('インポートデータ(解答履歴)'!$A:$A, $A11, 'インポートデータ(解答履歴)'!Z:Z, "△", 'インポートデータ(解答履歴)'!$D:$D, "<="&BZ$2) + COUNTIFS('インポートデータ(解答履歴)'!$A:$A, $A11, 'インポートデータ(解答履歴)'!Z:Z, "✕", 'インポートデータ(解答履歴)'!$D:$D, "<="&BZ$2) -> 1 | CC11: 23 | CD11: =COUNTIFS('インポートデータ(解答履歴)'!$A:$A, $A11, 'インポートデータ(解答履歴)'!$X:$X, "初回", 'インポートデータ(解答履歴)'!$K:$K, "◯", 'インポートデータ(解答履歴)'!$D:$D, "<="&CE$2) -> 6 | CE11: =COUNTIFS('インポートデータ(解答履歴)'!$A:$A, $A11, 'インポートデータ(解答履歴)'!$X:$X, "初回", 'インポートデータ(解答履歴)'!$K:$K, "△", 'インポートデータ(解答履歴)'!$D:$D, "<="&CE$2) + COUNTIFS('インポートデータ(解答履歴)'!$A:$A, $A11, 'インポートデータ(解答履歴)'!$X:$X, "初回", 'インポートデータ(解答履歴)'!$K:$K, "✕", 'インポートデータ(解答履歴)'!$D:$D, "<="&CE$2) -> 17 | CF11: 16 | CG11: =COUNTIFS('インポートデータ(解答履歴)'!$A:$A, $A11, 'インポートデータ(解答履歴)'!Z:Z, "△", 'インポートデータ(解答履歴)'!$D:$D, "<="&CE$2) + COUNTIFS('インポートデータ(解答履歴)'!$A:$A, $A11, 'インポートデータ(解答履歴)'!Z:Z, "✕", 'インポートデータ(解答履歴)'!$D:$D, "<="&CE$2) -> 1 | CH11: 6 | CI11: =SUM(list_group!$C$2:$C$7) -> 42 | CJ11: =IF($A11="","",IFERROR(ROWS(_xlfn.UNIQUE(_xlfn._xlws.FILTER('インポートデータ(解答履歴)'!$W:$W,('インポートデータ(解答履歴)'!$A:$A=$A11)*('インポートデータ(解答履歴)'!$V:$V<>"")*('インポートデータ(解答履歴)'!$V:$V<>0)*('インポートデータ(解答履歴)'!$V:$V<>"該当なし")))),0)) -> 40 | CK11: =IF($A11="","",IFERROR(ROWS(_xlfn.UNIQUE(_xlfn._xlws.FILTER('インポートデータ(解答履歴)'!$W:$W,('インポートデータ(解答履歴)'!$A:$A=$A11)*('インポートデータ(解答履歴)'!$V:$V<>"")*('インポートデータ(解答履歴)'!$V:$V<>0)*('インポートデータ(解答履歴)'!$V:$V<>"該当なし")*('インポートデータ(解答履歴)'!$Y:$Y="最新")*('インポートデータ(解答履歴)'!$K:$K="◯")))),0)) -> 39 | CL11: 0.9523809524 | CM11: 0.975 | CN11: =IF($A11="","",IF(VLOOKUP(A11,生徒情報!A:C,3,FALSE)="","",VLOOKUP(A11,生徒情報!A:C,3,FALSE))) -> 未分類 | CO11: 100 | CP11: 1 | CQ11: 1位 | CR11: =SUMIFS('インポートデータ(解答履歴)'!O:O,'インポートデータ(解答履歴)'!A:A,A11) -> 10463 | CS11: 6 | CT11: その他 | CU11: 0.9523809524 | CV11: 6 | CW11: その他 | CX11: 0.975 | CY11: 3 | CZ11: 上位30% | DA11: 0 | DB11: 2 | DC11: 上位30% | DD11: 0.9411764706 | DE11: 2 | DF11: 上位30%
A12: 1 | B12: 石川 泉 | C12: 27 | D12: =IF(OR(C$3="",$A12=""),"",IFERROR(ROWS(_xlfn.UNIQUE(_xlfn._xlws.FILTER('インポートデータ(解答履歴)'!$W:$W,('インポートデータ(解答履歴)'!$A:$A=$A12)*('インポートデータ(解答履歴)'!$V:$V=C$3)))),0)) -> 21 | E12: =IF(OR(C$3="",$A12=""),"",IFERROR(ROWS(_xlfn.UNIQUE(_xlfn._xlws.FILTER('インポートデータ(解答履歴)'!$W:$W,('インポートデータ(解答履歴)'!$A:$A=$A12)*('インポートデータ(解答履歴)'!$V:$V=C$3)*('インポートデータ(解答履歴)'!$Y:$Y="最新")*('インポートデータ(解答履歴)'!$K:$K="◯")))),0)) -> 9 | F12: 15 | G12: =IF(OR(F$3="",$A12=""),"",IFERROR(ROWS(_xlfn.UNIQUE(_xlfn._xlws.FILTER('インポートデータ(解答履歴)'!$W:$W,('インポートデータ(解答履歴)'!$A:$A=$A12)*('インポートデータ(解答履歴)'!$V:$V=F$3)))),0)) -> 0 | H12: =IF(OR(F$3="",$A12=""),"",IFERROR(ROWS(_xlfn.UNIQUE(_xlfn._xlws.FILTER('インポートデータ(解答履歴)'!$W:$W,('インポートデータ(解答履歴)'!$A:$A=$A12)*('インポートデータ(解答履歴)'!$V:$V=F$3)*('インポートデータ(解答履歴)'!$Y:$Y="最新")*('インポートデータ(解答履歴)'!$K:$K="◯")))),0)) -> 0 | J12: =IF(OR(I$3="",$A12=""),"",IFERROR(ROWS(_xlfn.UNIQUE(_xlfn._xlws.FILTER('インポートデータ(解答履歴)'!$W:$W,('インポートデータ(解答履歴)'!$A:$A=$A12)*('インポートデータ(解答履歴)'!$V:$V=I$3)))),0)) ->  | K12: =IF(OR(I$3="",$A12=""),"",IFERROR(ROWS(_xlfn.UNIQUE(_xlfn._xlws.FILTER('インポートデータ(解答履歴)'!$W:$W,('インポートデータ(解答履歴)'!$A:$A=$A12)*('インポートデータ(解答履歴)'!$V:$V=I$3)*('インポートデータ(解答履歴)'!$Y:$Y="最新")*('インポートデータ(解答履歴)'!$K:$K="◯")))),0)) ->  | M12: =IF(OR(L$3="",$A12=""),"",IFERROR(ROWS(_xlfn.UNIQUE(_xlfn._xlws.FILTER('インポートデータ(解答履歴)'!$W:$W,('インポートデータ(解答履歴)'!$A:$A=$A12)*('インポートデータ(解答履歴)'!$V:$V=L$3)))),0)) ->  | N12: =IF(OR(L$3="",$A12=""),"",IFERROR(ROWS(_xlfn.UNIQUE(_xlfn._xlws.FILTER('インポートデータ(解答履歴)'!$W:$W,('インポートデータ(解答履歴)'!$A:$A=$A12)*('インポートデータ(解答履歴)'!$V:$V=L$3)*('インポートデータ(解答履歴)'!$Y:$Y="最新")*('インポートデータ(解答履歴)'!$K:$K="◯")))),0)) ->  | P12: =IF(OR(O$3="",$A12=""),"",IFERROR(ROWS(_xlfn.UNIQUE(_xlfn._xlws.FILTER('インポートデータ(解答履歴)'!$W:$W,('インポートデータ(解答履歴)'!$A:$A=$A12)*('インポートデータ(解答履歴)'!$V:$V=O$3)))),0)) ->  | Q12: =IF(OR(O$3="",$A12=""),"",IFERROR(ROWS(_xlfn.UNIQUE(_xlfn._xlws.FILTER('インポートデータ(解答履歴)'!$W:$W,('インポートデータ(解答履歴)'!$A:$A=$A12)*('インポートデータ(解答履歴)'!$V:$V=O$3)*('インポートデータ(解答履歴)'!$Y:$Y="最新")*('インポートデータ(解答履歴)'!$K:$K="◯")))),0)) ->  | S12: =IF(OR(R$3="",$A12=""),"",IFERROR(ROWS(_xlfn.UNIQUE(_xlfn._xlws.FILTER('インポートデータ(解答履歴)'!$W:$W,('インポートデータ(解答履歴)'!$A:$A=$A12)*('インポートデータ(解答履歴)'!$V:$V=R$3)))),0)) ->  | T12: =IF(OR(R$3="",$A12=""),"",IFERROR(ROWS(_xlfn.UNIQUE(_xlfn._xlws.FILTER('インポートデータ(解答履歴)'!$W:$W,('インポートデータ(解答履歴)'!$A:$A=$A12)*('インポートデータ(解答履歴)'!$V:$V=R$3)*('インポートデータ(解答履歴)'!$Y:$Y="最新")*('インポートデータ(解答履歴)'!$K:$K="◯")))),0)) ->  | U12: =COUNTIFS( 'インポートデータ(解答履歴)'!$A:$A, $A12, 'インポートデータ(解答履歴)'!$C:$C, ">="&(U$3), 'インポートデータ(解答履歴)'!$C:$C, "<"&(U$3+7), 'インポートデータ(解答履歴)'!$P:$P, U$4 ) -> 0 | V12: =COUNTIFS( 'インポートデータ(解答履歴)'!$A:$A, $A12, 'インポートデータ(解答履歴)'!$C:$C, ">="&(V$3), 'インポートデータ(解答履歴)'!$C:$C, "<"&(V$3+7), 'インポートデータ(解答履歴)'!$P:$P, V$4 ) -> 0 | W12: =COUNTIFS( 'インポートデータ(解答履歴)'!$A:$A, $A12, 'インポートデータ(解答履歴)'!$C:$C, ">="&(W$3), 'インポートデータ(解答履歴)'!$C:$C, "<"&(W$3+7), 'インポートデータ(解答履歴)'!$P:$P, W$4 ) -> 12 | X12: =COUNTIFS( 'インポートデータ(解答履歴)'!$A:$A, $A12, 'インポートデータ(解答履歴)'!$C:$C, ">="&(X$3), 'インポートデータ(解答履歴)'!$C:$C, "<"&(X$3+7), 'インポートデータ(解答履歴)'!$P:$P, X$4 ) -> 0 | Y12: =COUNTIFS( 'インポートデータ(解答履歴)'!$A:$A, $A12, 'インポートデータ(解答履歴)'!$C:$C, ">="&(Y$3), 'インポートデータ(解答履歴)'!$C:$C, "<"&(Y$3+7), 'インポートデータ(解答履歴)'!$P:$P, Y$4 ) -> 3 | Z12: =COUNTIFS( 'インポートデータ(解答履歴)'!$A:$A, $A12, 'インポートデータ(解答履歴)'!$C:$C, ">="&(Z$3), 'インポートデータ(解答履歴)'!$C:$C, "<"&(Z$3+7), 'インポートデータ(解答履歴)'!$P:$P, Z$4 ) -> 0 | AA12: =COUNTIFS( 'インポートデータ(解答履歴)'!$A:$A, $A12, 'インポートデータ(解答履歴)'!$C:$C, ">="&(AA$3), 'インポートデータ(解答履歴)'!$C:$C, "<"&(AA$3+7), 'インポートデータ(解答履歴)'!$P:$P, AA$4 ) -> 0 | AB12: =COUNTIFS( 'インポートデータ(解答履歴)'!$A:$A, $A12, 'インポートデータ(解答履歴)'!$C:$C, ">="&(AB$3), 'インポートデータ(解答履歴)'!$C:$C, "<"&(AB$3+7), 'インポートデータ(解答履歴)'!$P:$P, AB$4 ) -> 0 | AC12: =COUNTIFS( 'インポートデータ(解答履歴)'!$A:$A, $A12, 'インポートデータ(解答履歴)'!$C:$C, ">="&(AC$3), 'インポートデータ(解答履歴)'!$C:$C, "<"&(AC$3+7), 'インポートデータ(解答履歴)'!$P:$P, AC$4 ) -> 0 | AD12: =COUNTIFS( 'インポートデータ(解答履歴)'!$A:$A, $A12, 'インポートデータ(解答履歴)'!$C:$C, ">="&(AD$3), 'インポートデータ(解答履歴)'!$C:$C, "<"&(AD$3+7), 'インポートデータ(解答履歴)'!$P:$P, AD$4 ) -> 0 | AE12: =COUNTIFS( 'インポートデータ(解答履歴)'!$A:$A, $A12, 'インポートデータ(解答履歴)'!$C:$C, ">="&(AE$3), 'インポートデータ(解答履歴)'!$C:$C, "<"&(AE$3+7), 'インポートデータ(解答履歴)'!$P:$P, AE$4 ) -> 0 | AF12: =COUNTIFS( 'インポートデータ(解答履歴)'!$A:$A, $A12, 'インポートデータ(解答履歴)'!$C:$C, ">="&(AF$3), 'インポートデータ(解答履歴)'!$C:$C, "<"&(AF$3+7), 'インポートデータ(解答履歴)'!$P:$P, AF$4 ) -> 0 | AG12: =COUNTIFS( 'インポートデータ(解答履歴)'!$A:$A, $A12, 'インポートデータ(解答履歴)'!$C:$C, ">="&(AG$3), 'インポートデータ(解答履歴)'!$C:$C, "<"&(AG$3+7), 'インポートデータ(解答履歴)'!$P:$P, AG$4 ) -> 0 | AH12: =COUNTIFS( 'インポートデータ(解答履歴)'!$A:$A, $A12, 'インポートデータ(解答履歴)'!$C:$C, ">="&(AH$3), 'インポートデータ(解答履歴)'!$C:$C, "<"&(AH$3+7), 'インポートデータ(解答履歴)'!$P:$P, AH$4 ) -> 0 | AI12: =COUNTIFS( 'インポートデータ(解答履歴)'!$A:$A, $A12, 'インポートデータ(解答履歴)'!$C:$C, ">="&(AI$3), 'インポートデータ(解答履歴)'!$C:$C, "<"&(AI$3+7), 'インポートデータ(解答履歴)'!$P:$P, AI$4 ) -> 0 | AJ12: =COUNTIFS( 'インポートデータ(解答履歴)'!$A:$A, $A12, 'インポートデータ(解答履歴)'!$C:$C, ">="&(AJ$3), 'インポートデータ(解答履歴)'!$C:$C, "<"&(AJ$3+7), 'インポートデータ(解答履歴)'!$P:$P, AJ$4 ) -> 0 | AK12: =COUNTIFS( 'インポートデータ(解答履歴)'!$A:$A, $A12, 'インポートデータ(解答履歴)'!$C:$C, ">="&(AK$3), 'インポートデータ(解答履歴)'!$C:$C, "<"&(AK$3+7), 'インポートデータ(解答履歴)'!$P:$P, AK$4 ) -> 9 | AL12: =COUNTIFS( 'インポートデータ(解答履歴)'!$A:$A, $A12, 'インポートデータ(解答履歴)'!$C:$C, ">="&(AL$3), 'インポートデータ(解答履歴)'!$C:$C, "<"&(AL$3+7), 'インポートデータ(解答履歴)'!$P:$P, AL$4 ) -> 0 | AM12: =COUNTIFS( 'インポートデータ(解答履歴)'!$A:$A, $A12, 'インポートデータ(解答履歴)'!$C:$C, ">="&(AM$3), 'インポートデータ(解答履歴)'!$C:$C, "<"&(AM$3+7), 'インポートデータ(解答履歴)'!$P:$P, AM$4 ) -> 1 | AN12: =COUNTIFS( 'インポートデータ(解答履歴)'!$A:$A, $A12, 'インポートデータ(解答履歴)'!$C:$C, ">="&(AN$3), 'インポートデータ(解答履歴)'!$C:$C, "<"&(AN$3+7), 'インポートデータ(解答履歴)'!$P:$P, AN$4 ) -> 0 | AO12: =COUNTIFS( 'インポートデータ(解答履歴)'!$A:$A, $A12, 'インポートデータ(解答履歴)'!$C:$C, ">="&(AO$3), 'インポートデータ(解答履歴)'!$C:$C, "<"&(AO$3+7), 'インポートデータ(解答履歴)'!$P:$P, AO$4 ) -> 0 | AP12: =COUNTIFS( 'インポートデータ(解答履歴)'!$A:$A, $A12, 'インポートデータ(解答履歴)'!$C:$C, ">="&(AP$3), 'インポートデータ(解答履歴)'!$C:$C, "<"&(AP$3+7), 'インポートデータ(解答履歴)'!$P:$P, AP$4 ) -> 0 | AQ12: =COUNTIFS( 'インポートデータ(解答履歴)'!$A:$A, $A12, 'インポートデータ(解答履歴)'!$C:$C, ">="&(AQ$3), 'インポートデータ(解答履歴)'!$C:$C, "<"&(AQ$3+7), 'インポートデータ(解答履歴)'!$P:$P, AQ$4 ) -> 0 | AR12: =COUNTIFS( 'インポートデータ(解答履歴)'!$A:$A, $A12, 'インポートデータ(解答履歴)'!$C:$C, ">="&(AR$3), 'インポートデータ(解答履歴)'!$C:$C, "<"&(AR$3+7), 'インポートデータ(解答履歴)'!$P:$P, AR$4 ) -> 0 | AS12: =COUNTIFS( 'インポートデータ(解答履歴)'!$A:$A, $A12, 'インポートデータ(解答履歴)'!$C:$C, ">="&(AS$3), 'インポートデータ(解答履歴)'!$C:$C, "<"&(AS$3+7), 'インポートデータ(解答履歴)'!$P:$P, AS$4 ) -> 0 | AT12: =COUNTIFS( 'インポートデータ(解答履歴)'!$A:$A, $A12, 'インポートデータ(解答履歴)'!$C:$C, ">="&(AT$3), 'インポートデータ(解答履歴)'!$C:$C, "<"&(AT$3+7), 'インポートデータ(解答履歴)'!$P:$P, AT$4 ) -> 0 | AU12: =COUNTIFS( 'インポートデータ(解答履歴)'!$A:$A, $A12, 'インポートデータ(解答履歴)'!$C:$C, ">="&(AU$3), 'インポートデータ(解答履歴)'!$C:$C, "<"&(AU$3+7), 'インポートデータ(解答履歴)'!$P:$P, AU$4 ) -> 0 | AV12: =COUNTIFS( 'インポートデータ(解答履歴)'!$A:$A, $A12, 'インポートデータ(解答履歴)'!$C:$C, ">="&(AV$3), 'インポートデータ(解答履歴)'!$C:$C, "<"&(AV$3+7), 'インポートデータ(解答履歴)'!$P:$P, AV$4 ) -> 0 | AW12: =COUNTIFS('インポートデータ(解答履歴)'!$A:$A, $A12,'インポートデータ(解答履歴)'!$F:$F, AW$3) -> 0 | AX12: =COUNTIFS('インポートデータ(解答履歴)'!$A:$A, $A12,'インポートデータ(解答履歴)'!$F:$F, AX$3) -> 0 | AY12: =COUNTIFS('インポートデータ(解答履歴)'!$A:$A, $A12,'インポートデータ(解答履歴)'!$F:$F, AY$3) -> 0 | AZ12: =COUNTIFS('インポートデータ(解答履歴)'!$A:$A, $A12,'インポートデータ(解答履歴)'!$F:$F, AZ$3) -> 0 | BA12: =COUNTIFS('インポートデータ(解答履歴)'!$A:$A, $A12,'インポートデータ(解答履歴)'!$F:$F, BA$3) -> 0 | BB12: =COUNTIFS('インポートデータ(解答履歴)'!$A:$A, $A12,'インポートデータ(解答履歴)'!$F:$F, BB$3) -> 0 | BC12: =COUNTIFS('インポートデータ(解答履歴)'!$A:$A, $A12,'インポートデータ(解答履歴)'!$F:$F, BC$3) -> 0 | BD12: =COUNTIFS('インポートデータ(解答履歴)'!$A:$A, $A12,'インポートデータ(解答履歴)'!$F:$F, BD$3) -> 0 | BE12: =COUNTIFS('インポートデータ(解答履歴)'!$A:$A, $A12,'インポートデータ(解答履歴)'!$F:$F, BE$3) -> 1 | BF12: =COUNTIFS('インポートデータ(解答履歴)'!$A:$A, $A12,'インポートデータ(解答履歴)'!$F:$F, BF$3) -> 6 | BG12: =COUNTIFS('インポートデータ(解答履歴)'!$A:$A, $A12,'インポートデータ(解答履歴)'!$F:$F, BG$3) -> 1 | BH12: =COUNTIFS('インポートデータ(解答履歴)'!$A:$A, $A12,'インポートデータ(解答履歴)'!$F:$F, BH$3) -> 1 | BI12: =COUNTIFS('インポートデータ(解答履歴)'!$A:$A, $A12,'インポートデータ(解答履歴)'!$F:$F, BI$3) -> 5 | BJ12: =COUNTIFS('インポートデータ(解答履歴)'!$A:$A, $A12,'インポートデータ(解答履歴)'!$F:$F, BJ$3) -> 0 | BK12: =COUNTIFS('インポートデータ(解答履歴)'!$A:$A, $A12,'インポートデータ(解答履歴)'!$F:$F, BK$3) -> 11 | BL12: =COUNTIFS('インポートデータ(解答履歴)'!$A:$A, $A12,'インポートデータ(解答履歴)'!$F:$F, BL$3) -> 0 | BM12: =COUNTIFS('インポートデータ(解答履歴)'!$A:$A, $A12,'インポートデータ(解答履歴)'!$F:$F, BM$3) -> 0 | BN12: =COUNTIFS('インポートデータ(解答履歴)'!$A:$A, $A12,'インポートデータ(解答履歴)'!$F:$F, BN$3) -> 0 | BO12: =COUNTIFS('インポートデータ(解答履歴)'!$A:$A, $A12,'インポートデータ(解答履歴)'!$F:$F, BO$3) -> 0 | BP12: =COUNTIFS('インポートデータ(解答履歴)'!$A:$A, $A12,'インポートデータ(解答履歴)'!$F:$F, BP$3) -> 0 | BQ12: =COUNTIFS('インポートデータ(解答履歴)'!$A:$A, $A12,'インポートデータ(解答履歴)'!$F:$F, BQ$3) -> 0 | BR12: =COUNTIFS('インポートデータ(解答履歴)'!$A:$A, $A12,'インポートデータ(解答履歴)'!$F:$F, BR$3) -> 0 | BS12: =COUNTIFS('インポートデータ(解答履歴)'!$A:$A, $A12,'インポートデータ(解答履歴)'!$F:$F, BS$3) -> 0 | BT12: =COUNTIFS('インポートデータ(解答履歴)'!$A:$A, $A12,'インポートデータ(解答履歴)'!$F:$F, BT$3) -> 0 | BU12: 25 | BV12: 0 | BW12: 0 | BX12: 21 | BY12: =COUNTIFS('インポートデータ(解答履歴)'!$A:$A, $A12, 'インポートデータ(解答履歴)'!$X:$X, "初回", 'インポートデータ(解答履歴)'!$K:$K, "◯", 'インポートデータ(解答履歴)'!$D:$D, "<="&BZ$2) -> 6 | BZ12: =COUNTIFS('インポートデータ(解答履歴)'!$A:$A, $A12, 'インポートデータ(解答履歴)'!$X:$X, "初回", 'インポートデータ(解答履歴)'!$K:$K, "△", 'インポートデータ(解答履歴)'!$D:$D, "<="&BZ$2) + COUNTIFS('インポートデータ(解答履歴)'!$A:$A, $A12, 'インポートデータ(解答履歴)'!$X:$X, "初回", 'インポートデータ(解答履歴)'!$K:$K, "✕", 'インポートデータ(解答履歴)'!$D:$D, "<="&BZ$2) -> 15 | CA12: 3 | CB12: =COUNTIFS('インポートデータ(解答履歴)'!$A:$A, $A12, 'インポートデータ(解答履歴)'!Z:Z, "△", 'インポートデータ(解答履歴)'!$D:$D, "<="&BZ$2) + COUNTIFS('インポートデータ(解答履歴)'!$A:$A, $A12, 'インポートデータ(解答履歴)'!Z:Z, "✕", 'インポートデータ(解答履歴)'!$D:$D, "<="&BZ$2) -> 12 | CC12: 15 | CD12: =COUNTIFS('インポートデータ(解答履歴)'!$A:$A, $A12, 'インポートデータ(解答履歴)'!$X:$X, "初回", 'インポートデータ(解答履歴)'!$K:$K, "◯", 'インポートデータ(解答履歴)'!$D:$D, "<="&CE$2) -> 3 | CE12: =COUNTIFS('インポートデータ(解答履歴)'!$A:$A, $A12, 'インポートデータ(解答履歴)'!$X:$X, "初回", 'インポートデータ(解答履歴)'!$K:$K, "△", 'インポートデータ(解答履歴)'!$D:$D, "<="&CE$2) + COUNTIFS('インポートデータ(解答履歴)'!$A:$A, $A12, 'インポートデータ(解答履歴)'!$X:$X, "初回", 'インポートデータ(解答履歴)'!$K:$K, "✕", 'インポートデータ(解答履歴)'!$D:$D, "<="&CE$2) -> 12 | CF12: 0 | CG12: =COUNTIFS('インポートデータ(解答履歴)'!$A:$A, $A12, 'インポートデータ(解答履歴)'!Z:Z, "△", 'インポートデータ(解答履歴)'!$D:$D, "<="&CE$2) + COUNTIFS('インポートデータ(解答履歴)'!$A:$A, $A12, 'インポートデータ(解答履歴)'!Z:Z, "✕", 'インポートデータ(解答履歴)'!$D:$D, "<="&CE$2) -> 12 | CH12: 3 | CI12: =SUM(list_group!$C$2:$C$7) -> 42 | CJ12: =IF($A12="","",IFERROR(ROWS(_xlfn.UNIQUE(_xlfn._xlws.FILTER('インポートデータ(解答履歴)'!$W:$W,('インポートデータ(解答履歴)'!$A:$A=$A12)*('インポートデータ(解答履歴)'!$V:$V<>"")*('インポートデータ(解答履歴)'!$V:$V<>0)*('インポートデータ(解答履歴)'!$V:$V<>"該当なし")))),0)) -> 21 | CK12: =IF($A12="","",IFERROR(ROWS(_xlfn.UNIQUE(_xlfn._xlws.FILTER('インポートデータ(解答履歴)'!$W:$W,('インポートデータ(解答履歴)'!$A:$A=$A12)*('インポートデータ(解答履歴)'!$V:$V<>"")*('インポートデータ(解答履歴)'!$V:$V<>0)*('インポートデータ(解答履歴)'!$V:$V<>"該当なし")*('インポートデータ(解答履歴)'!$Y:$Y="最新")*('インポートデータ(解答履歴)'!$K:$K="◯")))),0)) -> 9 | CL12: 0.5 | CM12: 0.4285714286 | CN12: =IF($A12="","",IF(VLOOKUP(A12,生徒情報!A:C,3,FALSE)="","",VLOOKUP(A12,生徒情報!A:C,3,FALSE))) -> 未分類 | CO12: 25 | CP12: 7 | CQ12: その他 | CR12: =SUMIFS('インポートデータ(解答履歴)'!O:O,'インポートデータ(解答履歴)'!A:A,A12) -> 4021 | CS12: 9 | CT12: その他 | CU12: 0.5 | CV12: 7 | CW12: その他 | CX12: 0.4285714286 | CY12: 11 | CZ12: その他 | DA12: 0 | DB12: 2 | DC12: 上位30% | DD12: 0 | DE12: 8 | DF12: その他
A13: 7 | B13: 清水 幸 | C13: 27 | D13: =IF(OR(C$3="",$A13=""),"",IFERROR(ROWS(_xlfn.UNIQUE(_xlfn._xlws.FILTER('インポートデータ(解答履歴)'!$W:$W,('インポートデータ(解答履歴)'!$A:$A=$A13)*('インポートデータ(解答履歴)'!$V:$V=C$3)))),0)) -> 10 | E13: =IF(OR(C$3="",$A13=""),"",IFERROR(ROWS(_xlfn.UNIQUE(_xlfn._xlws.FILTER('インポートデータ(解答履歴)'!$W:$W,('インポートデータ(解答履歴)'!$A:$A=$A13)*('インポートデータ(解答履歴)'!$V:$V=C$3)*('インポートデータ(解答履歴)'!$Y:$Y="最新")*('インポートデータ(解答履歴)'!$K:$K="◯")))),0)) -> 6 | F13: 15 | G13: =IF(OR(F$3="",$A13=""),"",IFERROR(ROWS(_xlfn.UNIQUE(_xlfn._xlws.FILTER('インポートデータ(解答履歴)'!$W:$W,('インポートデータ(解答履歴)'!$A:$A=$A13)*('インポートデータ(解答履歴)'!$V:$V=F$3)))),0)) -> 0 | H13: =IF(OR(F$3="",$A13=""),"",IFERROR(ROWS(_xlfn.UNIQUE(_xlfn._xlws.FILTER('インポートデータ(解答履歴)'!$W:$W,('インポートデータ(解答履歴)'!$A:$A=$A13)*('インポートデータ(解答履歴)'!$V:$V=F$3)*('インポートデータ(解答履歴)'!$Y:$Y="最新")*('インポートデータ(解答履歴)'!$K:$K="◯")))),0)) -> 0 | J13: =IF(OR(I$3="",$A13=""),"",IFERROR(ROWS(_xlfn.UNIQUE(_xlfn._xlws.FILTER('インポートデータ(解答履歴)'!$W:$W,('インポートデータ(解答履歴)'!$A:$A=$A13)*('インポートデータ(解答履歴)'!$V:$V=I$3)))),0)) ->  | K13: =IF(OR(I$3="",$A13=""),"",IFERROR(ROWS(_xlfn.UNIQUE(_xlfn._xlws.FILTER('インポートデータ(解答履歴)'!$W:$W,('インポートデータ(解答履歴)'!$A:$A=$A13)*('インポートデータ(解答履歴)'!$V:$V=I$3)*('インポートデータ(解答履歴)'!$Y:$Y="最新")*('インポートデータ(解答履歴)'!$K:$K="◯")))),0)) ->  | M13: =IF(OR(L$3="",$A13=""),"",IFERROR(ROWS(_xlfn.UNIQUE(_xlfn._xlws.FILTER('インポートデータ(解答履歴)'!$W:$W,('インポートデータ(解答履歴)'!$A:$A=$A13)*('インポートデータ(解答履歴)'!$V:$V=L$3)))),0)) ->  | N13: =IF(OR(L$3="",$A13=""),"",IFERROR(ROWS(_xlfn.UNIQUE(_xlfn._xlws.FILTER('インポートデータ(解答履歴)'!$W:$W,('インポートデータ(解答履歴)'!$A:$A=$A13)*('インポートデータ(解答履歴)'!$V:$V=L$3)*('インポートデータ(解答履歴)'!$Y:$Y="最新")*('インポートデータ(解答履歴)'!$K:$K="◯")))),0)) ->  | P13: =IF(OR(O$3="",$A13=""),"",IFERROR(ROWS(_xlfn.UNIQUE(_xlfn._xlws.FILTER('インポートデータ(解答履歴)'!$W:$W,('インポートデータ(解答履歴)'!$A:$A=$A13)*('インポートデータ(解答履歴)'!$V:$V=O$3)))),0)) ->  | Q13: =IF(OR(O$3="",$A13=""),"",IFERROR(ROWS(_xlfn.UNIQUE(_xlfn._xlws.FILTER('インポートデータ(解答履歴)'!$W:$W,('インポートデータ(解答履歴)'!$A:$A=$A13)*('インポートデータ(解答履歴)'!$V:$V=O$3)*('インポートデータ(解答履歴)'!$Y:$Y="最新")*('インポートデータ(解答履歴)'!$K:$K="◯")))),0)) ->  | S13: =IF(OR(R$3="",$A13=""),"",IFERROR(ROWS(_xlfn.UNIQUE(_xlfn._xlws.FILTER('インポートデータ(解答履歴)'!$W:$W,('インポートデータ(解答履歴)'!$A:$A=$A13)*('インポートデータ(解答履歴)'!$V:$V=R$3)))),0)) ->  | T13: =IF(OR(R$3="",$A13=""),"",IFERROR(ROWS(_xlfn.UNIQUE(_xlfn._xlws.FILTER('インポートデータ(解答履歴)'!$W:$W,('インポートデータ(解答履歴)'!$A:$A=$A13)*('インポートデータ(解答履歴)'!$V:$V=R$3)*('インポートデータ(解答履歴)'!$Y:$Y="最新")*('インポートデータ(解答履歴)'!$K:$K="◯")))),0)) ->  | U13: =COUNTIFS( 'インポートデータ(解答履歴)'!$A:$A, $A13, 'インポートデータ(解答履歴)'!$C:$C, ">="&(U$3), 'インポートデータ(解答履歴)'!$C:$C, "<"&(U$3+7), 'インポートデータ(解答履歴)'!$P:$P, U$4 ) -> 0 | V13: =COUNTIFS( 'インポートデータ(解答履歴)'!$A:$A, $A13, 'インポートデータ(解答履歴)'!$C:$C, ">="&(V$3), 'インポートデータ(解答履歴)'!$C:$C, "<"&(V$3+7), 'インポートデータ(解答履歴)'!$P:$P, V$4 ) -> 0 | W13: =COUNTIFS( 'インポートデータ(解答履歴)'!$A:$A, $A13, 'インポートデータ(解答履歴)'!$C:$C, ">="&(W$3), 'インポートデータ(解答履歴)'!$C:$C, "<"&(W$3+7), 'インポートデータ(解答履歴)'!$P:$P, W$4 ) -> 5 | X13: =COUNTIFS( 'インポートデータ(解答履歴)'!$A:$A, $A13, 'インポートデータ(解答履歴)'!$C:$C, ">="&(X$3), 'インポートデータ(解答履歴)'!$C:$C, "<"&(X$3+7), 'インポートデータ(解答履歴)'!$P:$P, X$4 ) -> 0 | Y13: =COUNTIFS( 'インポートデータ(解答履歴)'!$A:$A, $A13, 'インポートデータ(解答履歴)'!$C:$C, ">="&(Y$3), 'インポートデータ(解答履歴)'!$C:$C, "<"&(Y$3+7), 'インポートデータ(解答履歴)'!$P:$P, Y$4 ) -> 0 | Z13: =COUNTIFS( 'インポートデータ(解答履歴)'!$A:$A, $A13, 'インポートデータ(解答履歴)'!$C:$C, ">="&(Z$3), 'インポートデータ(解答履歴)'!$C:$C, "<"&(Z$3+7), 'インポートデータ(解答履歴)'!$P:$P, Z$4 ) -> 0 | AA13: =COUNTIFS( 'インポートデータ(解答履歴)'!$A:$A, $A13, 'インポートデータ(解答履歴)'!$C:$C, ">="&(AA$3), 'インポートデータ(解答履歴)'!$C:$C, "<"&(AA$3+7), 'インポートデータ(解答履歴)'!$P:$P, AA$4 ) -> 0 | AB13: =COUNTIFS( 'インポートデータ(解答履歴)'!$A:$A, $A13, 'インポートデータ(解答履歴)'!$C:$C, ">="&(AB$3), 'インポートデータ(解答履歴)'!$C:$C, "<"&(AB$3+7), 'インポートデータ(解答履歴)'!$P:$P, AB$4 ) -> 0 | AC13: =COUNTIFS( 'インポートデータ(解答履歴)'!$A:$A, $A13, 'インポートデータ(解答履歴)'!$C:$C, ">="&(AC$3), 'インポートデータ(解答履歴)'!$C:$C, "<"&(AC$3+7), 'インポートデータ(解答履歴)'!$P:$P, AC$4 ) -> 0 | AD13: =COUNTIFS( 'インポートデータ(解答履歴)'!$A:$A, $A13, 'インポートデータ(解答履歴)'!$C:$C, ">="&(AD$3), 'インポートデータ(解答履歴)'!$C:$C, "<"&(AD$3+7), 'インポートデータ(解答履歴)'!$P:$P, AD$4 ) -> 0 | AE13: =COUNTIFS( 'インポートデータ(解答履歴)'!$A:$A, $A13, 'インポートデータ(解答履歴)'!$C:$C, ">="&(AE$3), 'インポートデータ(解答履歴)'!$C:$C, "<"&(AE$3+7), 'インポートデータ(解答履歴)'!$P:$P, AE$4 ) -> 0 | AF13: =COUNTIFS( 'インポートデータ(解答履歴)'!$A:$A, $A13, 'インポートデータ(解答履歴)'!$C:$C, ">="&(AF$3), 'インポートデータ(解答履歴)'!$C:$C, "<"&(AF$3+7), 'インポートデータ(解答履歴)'!$P:$P, AF$4 ) -> 0 | AG13: =COUNTIFS( 'インポートデータ(解答履歴)'!$A:$A, $A13, 'インポートデータ(解答履歴)'!$C:$C, ">="&(AG$3), 'インポートデータ(解答履歴)'!$C:$C, "<"&(AG$3+7), 'インポートデータ(解答履歴)'!$P:$P, AG$4 ) -> 0 | AH13: =COUNTIFS( 'インポートデータ(解答履歴)'!$A:$A, $A13, 'インポートデータ(解答履歴)'!$C:$C, ">="&(AH$3), 'インポートデータ(解答履歴)'!$C:$C, "<"&(AH$3+7), 'インポートデータ(解答履歴)'!$P:$P, AH$4 ) -> 0 | AI13: =COUNTIFS( 'インポートデータ(解答履歴)'!$A:$A, $A13, 'インポートデータ(解答履歴)'!$C:$C, ">="&(AI$3), 'インポートデータ(解答履歴)'!$C:$C, "<"&(AI$3+7), 'インポートデータ(解答履歴)'!$P:$P, AI$4 ) -> 4 | AJ13: =COUNTIFS( 'インポートデータ(解答履歴)'!$A:$A, $A13, 'インポートデータ(解答履歴)'!$C:$C, ">="&(AJ$3), 'インポートデータ(解答履歴)'!$C:$C, "<"&(AJ$3+7), 'インポートデータ(解答履歴)'!$P:$P, AJ$4 ) -> 0 | AK13: =COUNTIFS( 'インポートデータ(解答履歴)'!$A:$A, $A13, 'インポートデータ(解答履歴)'!$C:$C, ">="&(AK$3), 'インポートデータ(解答履歴)'!$C:$C, "<"&(AK$3+7), 'インポートデータ(解答履歴)'!$P:$P, AK$4 ) -> 2 | AL13: =COUNTIFS( 'インポートデータ(解答履歴)'!$A:$A, $A13, 'インポートデータ(解答履歴)'!$C:$C, ">="&(AL$3), 'インポートデータ(解答履歴)'!$C:$C, "<"&(AL$3+7), 'インポートデータ(解答履歴)'!$P:$P, AL$4 ) -> 0 | AM13: =COUNTIFS( 'インポートデータ(解答履歴)'!$A:$A, $A13, 'インポートデータ(解答履歴)'!$C:$C, ">="&(AM$3), 'インポートデータ(解答履歴)'!$C:$C, "<"&(AM$3+7), 'インポートデータ(解答履歴)'!$P:$P, AM$4 ) -> 0 | AN13: =COUNTIFS( 'インポートデータ(解答履歴)'!$A:$A, $A13, 'インポートデータ(解答履歴)'!$C:$C, ">="&(AN$3), 'インポートデータ(解答履歴)'!$C:$C, "<"&(AN$3+7), 'インポートデータ(解答履歴)'!$P:$P, AN$4 ) -> 0 | AO13: =COUNTIFS( 'インポートデータ(解答履歴)'!$A:$A, $A13, 'インポートデータ(解答履歴)'!$C:$C, ">="&(AO$3), 'インポートデータ(解答履歴)'!$C:$C, "<"&(AO$3+7), 'インポートデータ(解答履歴)'!$P:$P, AO$4 ) -> 0 | AP13: =COUNTIFS( 'インポートデータ(解答履歴)'!$A:$A, $A13, 'インポートデータ(解答履歴)'!$C:$C, ">="&(AP$3), 'インポートデータ(解答履歴)'!$C:$C, "<"&(AP$3+7), 'インポートデータ(解答履歴)'!$P:$P, AP$4 ) -> 0 | AQ13: =COUNTIFS( 'インポートデータ(解答履歴)'!$A:$A, $A13, 'インポートデータ(解答履歴)'!$C:$C, ">="&(AQ$3), 'インポートデータ(解答履歴)'!$C:$C, "<"&(AQ$3+7), 'インポートデータ(解答履歴)'!$P:$P, AQ$4 ) -> 0 | AR13: =COUNTIFS( 'インポートデータ(解答履歴)'!$A:$A, $A13, 'インポートデータ(解答履歴)'!$C:$C, ">="&(AR$3), 'インポートデータ(解答履歴)'!$C:$C, "<"&(AR$3+7), 'インポートデータ(解答履歴)'!$P:$P, AR$4 ) -> 0 | AS13: =COUNTIFS( 'インポートデータ(解答履歴)'!$A:$A, $A13, 'インポートデータ(解答履歴)'!$C:$C, ">="&(AS$3), 'インポートデータ(解答履歴)'!$C:$C, "<"&(AS$3+7), 'インポートデータ(解答履歴)'!$P:$P, AS$4 ) -> 0 | AT13: =COUNTIFS( 'インポートデータ(解答履歴)'!$A:$A, $A13, 'インポートデータ(解答履歴)'!$C:$C, ">="&(AT$3), 'インポートデータ(解答履歴)'!$C:$C, "<"&(AT$3+7), 'インポートデータ(解答履歴)'!$P:$P, AT$4 ) -> 0 | AU13: =COUNTIFS( 'インポートデータ(解答履歴)'!$A:$A, $A13, 'インポートデータ(解答履歴)'!$C:$C, ">="&(AU$3), 'インポートデータ(解答履歴)'!$C:$C, "<"&(AU$3+7), 'インポートデータ(解答履歴)'!$P:$P, AU$4 ) -> 0 | AV13: =COUNTIFS( 'インポートデータ(解答履歴)'!$A:$A, $A13, 'インポートデータ(解答履歴)'!$C:$C, ">="&(AV$3), 'インポートデータ(解答履歴)'!$C:$C, "<"&(AV$3+7), 'インポートデータ(解答履歴)'!$P:$P, AV$4 ) -> 0 | AW13: =COUNTIFS('インポートデータ(解答履歴)'!$A:$A, $A13,'インポートデータ(解答履歴)'!$F:$F, AW$3) -> 0 | AX13: =COUNTIFS('インポートデータ(解答履歴)'!$A:$A, $A13,'インポートデータ(解答履歴)'!$F:$F, AX$3) -> 0 | AY13: =COUNTIFS('インポートデータ(解答履歴)'!$A:$A, $A13,'インポートデータ(解答履歴)'!$F:$F, AY$3) -> 0 | AZ13: =COUNTIFS('インポートデータ(解答履歴)'!$A:$A, $A13,'インポートデータ(解答履歴)'!$F:$F, AZ$3) -> 0 | BA13: =COUNTIFS('インポートデータ(解答履歴)'!$A:$A, $A13,'インポートデータ(解答履歴)'!$F:$F, BA$3) -> 0 | BB13: =COUNTIFS('インポートデータ(解答履歴)'!$A:$A, $A13,'インポートデータ(解答履歴)'!$F:$F, BB$3) -> 0 | BC13: =COUNTIFS('インポートデータ(解答履歴)'!$A:$A, $A13,'インポートデータ(解答履歴)'!$F:$F, BC$3) -> 0 | BD13: =COUNTIFS('インポートデータ(解答履歴)'!$A:$A, $A13,'インポートデータ(解答履歴)'!$F:$F, BD$3) -> 0 | BE13: =COUNTIFS('インポートデータ(解答履歴)'!$A:$A, $A13,'インポートデータ(解答履歴)'!$F:$F, BE$3) -> 0 | BF13: =COUNTIFS('インポートデータ(解答履歴)'!$A:$A, $A13,'インポートデータ(解答履歴)'!$F:$F, BF$3) -> 5 | BG13: =COUNTIFS('インポートデータ(解答履歴)'!$A:$A, $A13,'インポートデータ(解答履歴)'!$F:$F, BG$3) -> 0 | BH13: =COUNTIFS('インポートデータ(解答履歴)'!$A:$A, $A13,'インポートデータ(解答履歴)'!$F:$F, BH$3) -> 2 | BI13: =COUNTIFS('インポートデータ(解答履歴)'!$A:$A, $A13,'インポートデータ(解答履歴)'!$F:$F, BI$3) -> 0 | BJ13: =COUNTIFS('インポートデータ(解答履歴)'!$A:$A, $A13,'インポートデータ(解答履歴)'!$F:$F, BJ$3) -> 0 | BK13: =COUNTIFS('インポートデータ(解答履歴)'!$A:$A, $A13,'インポートデータ(解答履歴)'!$F:$F, BK$3) -> 4 | BL13: =COUNTIFS('インポートデータ(解答履歴)'!$A:$A, $A13,'インポートデータ(解答履歴)'!$F:$F, BL$3) -> 0 | BM13: =COUNTIFS('インポートデータ(解答履歴)'!$A:$A, $A13,'インポートデータ(解答履歴)'!$F:$F, BM$3) -> 0 | BN13: =COUNTIFS('インポートデータ(解答履歴)'!$A:$A, $A13,'インポートデータ(解答履歴)'!$F:$F, BN$3) -> 0 | BO13: =COUNTIFS('インポートデータ(解答履歴)'!$A:$A, $A13,'インポートデータ(解答履歴)'!$F:$F, BO$3) -> 0 | BP13: =COUNTIFS('インポートデータ(解答履歴)'!$A:$A, $A13,'インポートデータ(解答履歴)'!$F:$F, BP$3) -> 0 | BQ13: =COUNTIFS('インポートデータ(解答履歴)'!$A:$A, $A13,'インポートデータ(解答履歴)'!$F:$F, BQ$3) -> 0 | BR13: =COUNTIFS('インポートデータ(解答履歴)'!$A:$A, $A13,'インポートデータ(解答履歴)'!$F:$F, BR$3) -> 0 | BS13: =COUNTIFS('インポートデータ(解答履歴)'!$A:$A, $A13,'インポートデータ(解答履歴)'!$F:$F, BS$3) -> 0 | BT13: =COUNTIFS('インポートデータ(解答履歴)'!$A:$A, $A13,'インポートデータ(解答履歴)'!$F:$F, BT$3) -> 0 | BU13: 11 | BV13: 0 | BW13: 0 | BX13: 10 | BY13: =COUNTIFS('インポートデータ(解答履歴)'!$A:$A, $A13, 'インポートデータ(解答履歴)'!$X:$X, "初回", 'インポートデータ(解答履歴)'!$K:$K, "◯", 'インポートデータ(解答履歴)'!$D:$D, "<="&BZ$2) -> 6 | BZ13: =COUNTIFS('インポートデータ(解答履歴)'!$A:$A, $A13, 'インポートデータ(解答履歴)'!$X:$X, "初回", 'インポートデータ(解答履歴)'!$K:$K, "△", 'インポートデータ(解答履歴)'!$D:$D, "<="&BZ$2) + COUNTIFS('インポートデータ(解答履歴)'!$A:$A, $A13, 'インポートデータ(解答履歴)'!$X:$X, "初回", 'インポートデータ(解答履歴)'!$K:$K, "✕", 'インポートデータ(解答履歴)'!$D:$D, "<="&BZ$2) -> 4 | CA13: 0 | CB13: =COUNTIFS('インポートデータ(解答履歴)'!$A:$A, $A13, 'インポートデータ(解答履歴)'!Z:Z, "△", 'インポートデータ(解答履歴)'!$D:$D, "<="&BZ$2) + COUNTIFS('インポートデータ(解答履歴)'!$A:$A, $A13, 'インポートデータ(解答履歴)'!Z:Z, "✕", 'インポートデータ(解答履歴)'!$D:$D, "<="&BZ$2) -> 4 | CC13: 8 | CD13: =COUNTIFS('インポートデータ(解答履歴)'!$A:$A, $A13, 'インポートデータ(解答履歴)'!$X:$X, "初回", 'インポートデータ(解答履歴)'!$K:$K, "◯", 'インポートデータ(解答履歴)'!$D:$D, "<="&CE$2) -> 5 | CE13: =COUNTIFS('インポートデータ(解答履歴)'!$A:$A, $A13, 'インポートデータ(解答履歴)'!$X:$X, "初回", 'インポートデータ(解答履歴)'!$K:$K, "△", 'インポートデータ(解答履歴)'!$D:$D, "<="&CE$2) + COUNTIFS('インポートデータ(解答履歴)'!$A:$A, $A13, 'インポートデータ(解答履歴)'!$X:$X, "初回", 'インポートデータ(解答履歴)'!$K:$K, "✕", 'インポートデータ(解答履歴)'!$D:$D, "<="&CE$2) -> 3 | CF13: 0 | CG13: =COUNTIFS('インポートデータ(解答履歴)'!$A:$A, $A13, 'インポートデータ(解答履歴)'!Z:Z, "△", 'インポートデータ(解答履歴)'!$D:$D, "<="&CE$2) + COUNTIFS('インポートデータ(解答履歴)'!$A:$A, $A13, 'インポートデータ(解答履歴)'!Z:Z, "✕", 'インポートデータ(解答履歴)'!$D:$D, "<="&CE$2) -> 3 | CH13: 0 | CI13: =SUM(list_group!$C$2:$C$7) -> 42 | CJ13: =IF($A13="","",IFERROR(ROWS(_xlfn.UNIQUE(_xlfn._xlws.FILTER('インポートデータ(解答履歴)'!$W:$W,('インポートデータ(解答履歴)'!$A:$A=$A13)*('インポートデータ(解答履歴)'!$V:$V<>"")*('インポートデータ(解答履歴)'!$V:$V<>0)*('インポートデータ(解答履歴)'!$V:$V<>"該当なし")))),0)) -> 10 | CK13: =IF($A13="","",IFERROR(ROWS(_xlfn.UNIQUE(_xlfn._xlws.FILTER('インポートデータ(解答履歴)'!$W:$W,('インポートデータ(解答履歴)'!$A:$A=$A13)*('インポートデータ(解答履歴)'!$V:$V<>"")*('インポートデータ(解答履歴)'!$V:$V<>0)*('インポートデータ(解答履歴)'!$V:$V<>"該当なし")*('インポートデータ(解答履歴)'!$Y:$Y="最新")*('インポートデータ(解答履歴)'!$K:$K="◯")))),0)) -> 6 | CL13: 0.2380952381 | CM13: 0.6 | CN13: =IF($A13="","",IF(VLOOKUP(A13,生徒情報!A:C,3,FALSE)="","",VLOOKUP(A13,生徒情報!A:C,3,FALSE))) -> 未分類 | CO13: 11 | CP13: 11 | CQ13: その他 | CR13: =SUMIFS('インポートデータ(解答履歴)'!O:O,'インポートデータ(解答履歴)'!A:A,A13) -> 182333 | CS13: 1 | CT13: 1位 | CU13: 0.2380952381 | CV13: 10 | CW13: その他 | CX13: 0.6 | CY13: 9 | CZ13: その他 | DA13: 0 | DB13: 2 | DC13: 上位30% | DD13: 0 | DE13: 8 | DF13: その他
A14: 4 | B14: 田中 桂 | C14: 27 | D14: =IF(OR(C$3="",$A14=""),"",IFERROR(ROWS(_xlfn.UNIQUE(_xlfn._xlws.FILTER('インポートデータ(解答履歴)'!$W:$W,('インポートデータ(解答履歴)'!$A:$A=$A14)*('インポートデータ(解答履歴)'!$V:$V=C$3)))),0)) -> 27 | E14: =IF(OR(C$3="",$A14=""),"",IFERROR(ROWS(_xlfn.UNIQUE(_xlfn._xlws.FILTER('インポートデータ(解答履歴)'!$W:$W,('インポートデータ(解答履歴)'!$A:$A=$A14)*('インポートデータ(解答履歴)'!$V:$V=C$3)*('インポートデータ(解答履歴)'!$Y:$Y="最新")*('インポートデータ(解答履歴)'!$K:$K="◯")))),0)) -> 20 | F14: 15 | G14: =IF(OR(F$3="",$A14=""),"",IFERROR(ROWS(_xlfn.UNIQUE(_xlfn._xlws.FILTER('インポートデータ(解答履歴)'!$W:$W,('インポートデータ(解答履歴)'!$A:$A=$A14)*('インポートデータ(解答履歴)'!$V:$V=F$3)))),0)) -> 15 | H14: =IF(OR(F$3="",$A14=""),"",IFERROR(ROWS(_xlfn.UNIQUE(_xlfn._xlws.FILTER('インポートデータ(解答履歴)'!$W:$W,('インポートデータ(解答履歴)'!$A:$A=$A14)*('インポートデータ(解答履歴)'!$V:$V=F$3)*('インポートデータ(解答履歴)'!$Y:$Y="最新")*('インポートデータ(解答履歴)'!$K:$K="◯")))),0)) -> 7 | J14: =IF(OR(I$3="",$A14=""),"",IFERROR(ROWS(_xlfn.UNIQUE(_xlfn._xlws.FILTER('インポートデータ(解答履歴)'!$W:$W,('インポートデータ(解答履歴)'!$A:$A=$A14)*('インポートデータ(解答履歴)'!$V:$V=I$3)))),0)) ->  | K14: =IF(OR(I$3="",$A14=""),"",IFERROR(ROWS(_xlfn.UNIQUE(_xlfn._xlws.FILTER('インポートデータ(解答履歴)'!$W:$W,('インポートデータ(解答履歴)'!$A:$A=$A14)*('インポートデータ(解答履歴)'!$V:$V=I$3)*('インポートデータ(解答履歴)'!$Y:$Y="最新")*('インポートデータ(解答履歴)'!$K:$K="◯")))),0)) ->  | M14: =IF(OR(L$3="",$A14=""),"",IFERROR(ROWS(_xlfn.UNIQUE(_xlfn._xlws.FILTER('インポートデータ(解答履歴)'!$W:$W,('インポートデータ(解答履歴)'!$A:$A=$A14)*('インポートデータ(解答履歴)'!$V:$V=L$3)))),0)) ->  | N14: =IF(OR(L$3="",$A14=""),"",IFERROR(ROWS(_xlfn.UNIQUE(_xlfn._xlws.FILTER('インポートデータ(解答履歴)'!$W:$W,('インポートデータ(解答履歴)'!$A:$A=$A14)*('インポートデータ(解答履歴)'!$V:$V=L$3)*('インポートデータ(解答履歴)'!$Y:$Y="最新")*('インポートデータ(解答履歴)'!$K:$K="◯")))),0)) ->  | P14: =IF(OR(O$3="",$A14=""),"",IFERROR(ROWS(_xlfn.UNIQUE(_xlfn._xlws.FILTER('インポートデータ(解答履歴)'!$W:$W,('インポートデータ(解答履歴)'!$A:$A=$A14)*('インポートデータ(解答履歴)'!$V:$V=O$3)))),0)) ->  | Q14: =IF(OR(O$3="",$A14=""),"",IFERROR(ROWS(_xlfn.UNIQUE(_xlfn._xlws.FILTER('インポートデータ(解答履歴)'!$W:$W,('インポートデータ(解答履歴)'!$A:$A=$A14)*('インポートデータ(解答履歴)'!$V:$V=O$3)*('インポートデータ(解答履歴)'!$Y:$Y="最新")*('インポートデータ(解答履歴)'!$K:$K="◯")))),0)) ->  | S14: =IF(OR(R$3="",$A14=""),"",IFERROR(ROWS(_xlfn.UNIQUE(_xlfn._xlws.FILTER('インポートデータ(解答履歴)'!$W:$W,('インポートデータ(解答履歴)'!$A:$A=$A14)*('インポートデータ(解答履歴)'!$V:$V=R$3)))),0)) ->  | T14: =IF(OR(R$3="",$A14=""),"",IFERROR(ROWS(_xlfn.UNIQUE(_xlfn._xlws.FILTER('インポートデータ(解答履歴)'!$W:$W,('インポートデータ(解答履歴)'!$A:$A=$A14)*('インポートデータ(解答履歴)'!$V:$V=R$3)*('インポートデータ(解答履歴)'!$Y:$Y="最新")*('インポートデータ(解答履歴)'!$K:$K="◯")))),0)) ->  | U14: =COUNTIFS( 'インポートデータ(解答履歴)'!$A:$A, $A14, 'インポートデータ(解答履歴)'!$C:$C, ">="&(U$3), 'インポートデータ(解答履歴)'!$C:$C, "<"&(U$3+7), 'インポートデータ(解答履歴)'!$P:$P, U$4 ) -> 0 | V14: =COUNTIFS( 'インポートデータ(解答履歴)'!$A:$A, $A14, 'インポートデータ(解答履歴)'!$C:$C, ">="&(V$3), 'インポートデータ(解答履歴)'!$C:$C, "<"&(V$3+7), 'インポートデータ(解答履歴)'!$P:$P, V$4 ) -> 0 | W14: =COUNTIFS( 'インポートデータ(解答履歴)'!$A:$A, $A14, 'インポートデータ(解答履歴)'!$C:$C, ">="&(W$3), 'インポートデータ(解答履歴)'!$C:$C, "<"&(W$3+7), 'インポートデータ(解答履歴)'!$P:$P, W$4 ) -> 0 | X14: =COUNTIFS( 'インポートデータ(解答履歴)'!$A:$A, $A14, 'インポートデータ(解答履歴)'!$C:$C, ">="&(X$3), 'インポートデータ(解答履歴)'!$C:$C, "<"&(X$3+7), 'インポートデータ(解答履歴)'!$P:$P, X$4 ) -> 0 | Y14: =COUNTIFS( 'インポートデータ(解答履歴)'!$A:$A, $A14, 'インポートデータ(解答履歴)'!$C:$C, ">="&(Y$3), 'インポートデータ(解答履歴)'!$C:$C, "<"&(Y$3+7), 'インポートデータ(解答履歴)'!$P:$P, Y$4 ) -> 0 | Z14: =COUNTIFS( 'インポートデータ(解答履歴)'!$A:$A, $A14, 'インポートデータ(解答履歴)'!$C:$C, ">="&(Z$3), 'インポートデータ(解答履歴)'!$C:$C, "<"&(Z$3+7), 'インポートデータ(解答履歴)'!$P:$P, Z$4 ) -> 18 | AA14: =COUNTIFS( 'インポートデータ(解答履歴)'!$A:$A, $A14, 'インポートデータ(解答履歴)'!$C:$C, ">="&(AA$3), 'インポートデータ(解答履歴)'!$C:$C, "<"&(AA$3+7), 'インポートデータ(解答履歴)'!$P:$P, AA$4 ) -> 0 | AB14: =COUNTIFS( 'インポートデータ(解答履歴)'!$A:$A, $A14, 'インポートデータ(解答履歴)'!$C:$C, ">="&(AB$3), 'インポートデータ(解答履歴)'!$C:$C, "<"&(AB$3+7), 'インポートデータ(解答履歴)'!$P:$P, AB$4 ) -> 0 | AC14: =COUNTIFS( 'インポートデータ(解答履歴)'!$A:$A, $A14, 'インポートデータ(解答履歴)'!$C:$C, ">="&(AC$3), 'インポートデータ(解答履歴)'!$C:$C, "<"&(AC$3+7), 'インポートデータ(解答履歴)'!$P:$P, AC$4 ) -> 0 | AD14: =COUNTIFS( 'インポートデータ(解答履歴)'!$A:$A, $A14, 'インポートデータ(解答履歴)'!$C:$C, ">="&(AD$3), 'インポートデータ(解答履歴)'!$C:$C, "<"&(AD$3+7), 'インポートデータ(解答履歴)'!$P:$P, AD$4 ) -> 4 | AE14: =COUNTIFS( 'インポートデータ(解答履歴)'!$A:$A, $A14, 'インポートデータ(解答履歴)'!$C:$C, ">="&(AE$3), 'インポートデータ(解答履歴)'!$C:$C, "<"&(AE$3+7), 'インポートデータ(解答履歴)'!$P:$P, AE$4 ) -> 0 | AF14: =COUNTIFS( 'インポートデータ(解答履歴)'!$A:$A, $A14, 'インポートデータ(解答履歴)'!$C:$C, ">="&(AF$3), 'インポートデータ(解答履歴)'!$C:$C, "<"&(AF$3+7), 'インポートデータ(解答履歴)'!$P:$P, AF$4 ) -> 0 | AG14: =COUNTIFS( 'インポートデータ(解答履歴)'!$A:$A, $A14, 'インポートデータ(解答履歴)'!$C:$C, ">="&(AG$3), 'インポートデータ(解答履歴)'!$C:$C, "<"&(AG$3+7), 'インポートデータ(解答履歴)'!$P:$P, AG$4 ) -> 1 | AH14: =COUNTIFS( 'インポートデータ(解答履歴)'!$A:$A, $A14, 'インポートデータ(解答履歴)'!$C:$C, ">="&(AH$3), 'インポートデータ(解答履歴)'!$C:$C, "<"&(AH$3+7), 'インポートデータ(解答履歴)'!$P:$P, AH$4 ) -> 0 | AI14: =COUNTIFS( 'インポートデータ(解答履歴)'!$A:$A, $A14, 'インポートデータ(解答履歴)'!$C:$C, ">="&(AI$3), 'インポートデータ(解答履歴)'!$C:$C, "<"&(AI$3+7), 'インポートデータ(解答履歴)'!$P:$P, AI$4 ) -> 3 | AJ14: =COUNTIFS( 'インポートデータ(解答履歴)'!$A:$A, $A14, 'インポートデータ(解答履歴)'!$C:$C, ">="&(AJ$3), 'インポートデータ(解答履歴)'!$C:$C, "<"&(AJ$3+7), 'インポートデータ(解答履歴)'!$P:$P, AJ$4 ) -> 0 | AK14: =COUNTIFS( 'インポートデータ(解答履歴)'!$A:$A, $A14, 'インポートデータ(解答履歴)'!$C:$C, ">="&(AK$3), 'インポートデータ(解答履歴)'!$C:$C, "<"&(AK$3+7), 'インポートデータ(解答履歴)'!$P:$P, AK$4 ) -> 20 | AL14: =COUNTIFS( 'インポートデータ(解答履歴)'!$A:$A, $A14, 'インポートデータ(解答履歴)'!$C:$C, ">="&(AL$3), 'インポートデータ(解答履歴)'!$C:$C, "<"&(AL$3+7), 'インポートデータ(解答履歴)'!$P:$P, AL$4 ) -> 0 | AM14: =COUNTIFS( 'インポートデータ(解答履歴)'!$A:$A, $A14, 'インポートデータ(解答履歴)'!$C:$C, ">="&(AM$3), 'インポートデータ(解答履歴)'!$C:$C, "<"&(AM$3+7), 'インポートデータ(解答履歴)'!$P:$P, AM$4 ) -> 6 | AN14: =COUNTIFS( 'インポートデータ(解答履歴)'!$A:$A, $A14, 'インポートデータ(解答履歴)'!$C:$C, ">="&(AN$3), 'インポートデータ(解答履歴)'!$C:$C, "<"&(AN$3+7), 'インポートデータ(解答履歴)'!$P:$P, AN$4 ) -> 0 | AO14: =COUNTIFS( 'インポートデータ(解答履歴)'!$A:$A, $A14, 'インポートデータ(解答履歴)'!$C:$C, ">="&(AO$3), 'インポートデータ(解答履歴)'!$C:$C, "<"&(AO$3+7), 'インポートデータ(解答履歴)'!$P:$P, AO$4 ) -> 0 | AP14: =COUNTIFS( 'インポートデータ(解答履歴)'!$A:$A, $A14, 'インポートデータ(解答履歴)'!$C:$C, ">="&(AP$3), 'インポートデータ(解答履歴)'!$C:$C, "<"&(AP$3+7), 'インポートデータ(解答履歴)'!$P:$P, AP$4 ) -> 0 | AQ14: =COUNTIFS( 'インポートデータ(解答履歴)'!$A:$A, $A14, 'インポートデータ(解答履歴)'!$C:$C, ">="&(AQ$3), 'インポートデータ(解答履歴)'!$C:$C, "<"&(AQ$3+7), 'インポートデータ(解答履歴)'!$P:$P, AQ$4 ) -> 0 | AR14: =COUNTIFS( 'インポートデータ(解答履歴)'!$A:$A, $A14, 'インポートデータ(解答履歴)'!$C:$C, ">="&(AR$3), 'インポートデータ(解答履歴)'!$C:$C, "<"&(AR$3+7), 'インポートデータ(解答履歴)'!$P:$P, AR$4 ) -> 0 | AS14: =COUNTIFS( 'インポートデータ(解答履歴)'!$A:$A, $A14, 'インポートデータ(解答履歴)'!$C:$C, ">="&(AS$3), 'インポートデータ(解答履歴)'!$C:$C, "<"&(AS$3+7), 'インポートデータ(解答履歴)'!$P:$P, AS$4 ) -> 0 | AT14: =COUNTIFS( 'インポートデータ(解答履歴)'!$A:$A, $A14, 'インポートデータ(解答履歴)'!$C:$C, ">="&(AT$3), 'インポートデータ(解答履歴)'!$C:$C, "<"&(AT$3+7), 'インポートデータ(解答履歴)'!$P:$P, AT$4 ) -> 0 | AU14: =COUNTIFS( 'インポートデータ(解答履歴)'!$A:$A, $A14, 'インポートデータ(解答履歴)'!$C:$C, ">="&(AU$3), 'インポートデータ(解答履歴)'!$C:$C, "<"&(AU$3+7), 'インポートデータ(解答履歴)'!$P:$P, AU$4 ) -> 0 | AV14: =COUNTIFS( 'インポートデータ(解答履歴)'!$A:$A, $A14, 'インポートデータ(解答履歴)'!$C:$C, ">="&(AV$3), 'インポートデータ(解答履歴)'!$C:$C, "<"&(AV$3+7), 'インポートデータ(解答履歴)'!$P:$P, AV$4 ) -> 0 | AW14: =COUNTIFS('インポートデータ(解答履歴)'!$A:$A, $A14,'インポートデータ(解答履歴)'!$F:$F, AW$3) -> 5 | AX14: =COUNTIFS('インポートデータ(解答履歴)'!$A:$A, $A14,'インポートデータ(解答履歴)'!$F:$F, AX$3) -> 1 | AY14: =COUNTIFS('インポートデータ(解答履歴)'!$A:$A, $A14,'インポートデータ(解答履歴)'!$F:$F, AY$3) -> 0 | AZ14: =COUNTIFS('インポートデータ(解答履歴)'!$A:$A, $A14,'インポートデータ(解答履歴)'!$F:$F, AZ$3) -> 0 | BA14: =COUNTIFS('インポートデータ(解答履歴)'!$A:$A, $A14,'インポートデータ(解答履歴)'!$F:$F, BA$3) -> 0 | BB14: =COUNTIFS('インポートデータ(解答履歴)'!$A:$A, $A14,'インポートデータ(解答履歴)'!$F:$F, BB$3) -> 0 | BC14: =COUNTIFS('インポートデータ(解答履歴)'!$A:$A, $A14,'インポートデータ(解答履歴)'!$F:$F, BC$3) -> 0 | BD14: =COUNTIFS('インポートデータ(解答履歴)'!$A:$A, $A14,'インポートデータ(解答履歴)'!$F:$F, BD$3) -> 0 | BE14: =COUNTIFS('インポートデータ(解答履歴)'!$A:$A, $A14,'インポートデータ(解答履歴)'!$F:$F, BE$3) -> 0 | BF14: =COUNTIFS('インポートデータ(解答履歴)'!$A:$A, $A14,'インポートデータ(解答履歴)'!$F:$F, BF$3) -> 3 | BG14: =COUNTIFS('インポートデータ(解答履歴)'!$A:$A, $A14,'インポートデータ(解答履歴)'!$F:$F, BG$3) -> 1 | BH14: =COUNTIFS('インポートデータ(解答履歴)'!$A:$A, $A14,'インポートデータ(解答履歴)'!$F:$F, BH$3) -> 0 | BI14: =COUNTIFS('インポートデータ(解答履歴)'!$A:$A, $A14,'インポートデータ(解答履歴)'!$F:$F, BI$3) -> 0 | BJ14: =COUNTIFS('インポートデータ(解答履歴)'!$A:$A, $A14,'インポートデータ(解答履歴)'!$F:$F, BJ$3) -> 0 | BK14: =COUNTIFS('インポートデータ(解答履歴)'!$A:$A, $A14,'インポートデータ(解答履歴)'!$F:$F, BK$3) -> 0 | BL14: =COUNTIFS('インポートデータ(解答履歴)'!$A:$A, $A14,'インポートデータ(解答履歴)'!$F:$F, BL$3) -> 3 | BM14: =COUNTIFS('インポートデータ(解答履歴)'!$A:$A, $A14,'インポートデータ(解答履歴)'!$F:$F, BM$3) -> 6 | BN14: =COUNTIFS('インポートデータ(解答履歴)'!$A:$A, $A14,'インポートデータ(解答履歴)'!$F:$F, BN$3) -> 0 | BO14: =COUNTIFS('インポートデータ(解答履歴)'!$A:$A, $A14,'インポートデータ(解答履歴)'!$F:$F, BO$3) -> 0 | BP14: =COUNTIFS('インポートデータ(解答履歴)'!$A:$A, $A14,'インポートデータ(解答履歴)'!$F:$F, BP$3) -> 4 | BQ14: =COUNTIFS('インポートデータ(解答履歴)'!$A:$A, $A14,'インポートデータ(解答履歴)'!$F:$F, BQ$3) -> 0 | BR14: =COUNTIFS('インポートデータ(解答履歴)'!$A:$A, $A14,'インポートデータ(解答履歴)'!$F:$F, BR$3) -> 3 | BS14: =COUNTIFS('インポートデータ(解答履歴)'!$A:$A, $A14,'インポートデータ(解答履歴)'!$F:$F, BS$3) -> 26 | BT14: =COUNTIFS('インポートデータ(解答履歴)'!$A:$A, $A14,'インポートデータ(解答履歴)'!$F:$F, BT$3) -> 0 | BU14: 13 | BV14: 33 | BW14: 6 | BX14: 44 | BY14: =COUNTIFS('インポートデータ(解答履歴)'!$A:$A, $A14, 'インポートデータ(解答履歴)'!$X:$X, "初回", 'インポートデータ(解答履歴)'!$K:$K, "◯", 'インポートデータ(解答履歴)'!$D:$D, "<="&BZ$2) -> 26 | BZ14: =COUNTIFS('インポートデータ(解答履歴)'!$A:$A, $A14, 'インポートデータ(解答履歴)'!$X:$X, "初回", 'インポートデータ(解答履歴)'!$K:$K, "△", 'インポートデータ(解答履歴)'!$D:$D, "<="&BZ$2) + COUNTIFS('インポートデータ(解答履歴)'!$A:$A, $A14, 'インポートデータ(解答履歴)'!$X:$X, "初回", 'インポートデータ(解答履歴)'!$K:$K, "✕", 'インポートデータ(解答履歴)'!$D:$D, "<="&BZ$2) -> 18 | CA14: 2 | CB14: =COUNTIFS('インポートデータ(解答履歴)'!$A:$A, $A14, 'インポートデータ(解答履歴)'!Z:Z, "△", 'インポートデータ(解答履歴)'!$D:$D, "<="&BZ$2) + COUNTIFS('インポートデータ(解答履歴)'!$A:$A, $A14, 'インポートデータ(解答履歴)'!Z:Z, "✕", 'インポートデータ(解答履歴)'!$D:$D, "<="&BZ$2) -> 16 | CC14: 24 | CD14: =COUNTIFS('インポートデータ(解答履歴)'!$A:$A, $A14, 'インポートデータ(解答履歴)'!$X:$X, "初回", 'インポートデータ(解答履歴)'!$K:$K, "◯", 'インポートデータ(解答履歴)'!$D:$D, "<="&CE$2) -> 16 | CE14: =COUNTIFS('インポートデータ(解答履歴)'!$A:$A, $A14, 'インポートデータ(解答履歴)'!$X:$X, "初回", 'インポートデータ(解答履歴)'!$K:$K, "△", 'インポートデータ(解答履歴)'!$D:$D, "<="&CE$2) + COUNTIFS('インポートデータ(解答履歴)'!$A:$A, $A14, 'インポートデータ(解答履歴)'!$X:$X, "初回", 'インポートデータ(解答履歴)'!$K:$K, "✕", 'インポートデータ(解答履歴)'!$D:$D, "<="&CE$2) -> 8 | CF14: 2 | CG14: =COUNTIFS('インポートデータ(解答履歴)'!$A:$A, $A14, 'インポートデータ(解答履歴)'!Z:Z, "△", 'インポートデータ(解答履歴)'!$D:$D, "<="&CE$2) + COUNTIFS('インポートデータ(解答履歴)'!$A:$A, $A14, 'インポートデータ(解答履歴)'!Z:Z, "✕", 'インポートデータ(解答履歴)'!$D:$D, "<="&CE$2) -> 6 | CH14: 0 | CI14: =SUM(list_group!$C$2:$C$7) -> 42 | CJ14: =IF($A14="","",IFERROR(ROWS(_xlfn.UNIQUE(_xlfn._xlws.FILTER('インポートデータ(解答履歴)'!$W:$W,('インポートデータ(解答履歴)'!$A:$A=$A14)*('インポートデータ(解答履歴)'!$V:$V<>"")*('インポートデータ(解答履歴)'!$V:$V<>0)*('インポートデータ(解答履歴)'!$V:$V<>"該当なし")))),0)) -> 42 | CK14: =IF($A14="","",IFERROR(ROWS(_xlfn.UNIQUE(_xlfn._xlws.FILTER('インポートデータ(解答履歴)'!$W:$W,('インポートデータ(解答履歴)'!$A:$A=$A14)*('インポートデータ(解答履歴)'!$V:$V<>"")*('インポートデータ(解答履歴)'!$V:$V<>0)*('インポートデータ(解答履歴)'!$V:$V<>"該当なし")*('インポートデータ(解答履歴)'!$Y:$Y="最新")*('インポートデータ(解答履歴)'!$K:$K="◯")))),0)) -> 27 | CL14: 1 | CM14: 0.6428571429 | CN14: =IF($A14="","",IF(VLOOKUP(A14,生徒情報!A:C,3,FALSE)="","",VLOOKUP(A14,生徒情報!A:C,3,FALSE))) -> 未分類 | CO14: 52 | CP14: 5 | CQ14: その他 | CR14: =SUMIFS('インポートデータ(解答履歴)'!O:O,'インポートデータ(解答履歴)'!A:A,A14) -> 6764 | CS14: 7 | CT14: その他 | CU14: 1 | CV14: 1 | CW14: 1位 | CX14: 0.6428571429 | CY14: 8 | CZ14: その他 | DA14: 22 | DB14: 1 | DC14: 1位 | DD14: 0.25 | DE14: 7 | DF14: その他
A15: 9 | B15: 武田 司 | C15: 27 | D15: =IF(OR(C$3="",$A15=""),"",IFERROR(ROWS(_xlfn.UNIQUE(_xlfn._xlws.FILTER('インポートデータ(解答履歴)'!$W:$W,('インポートデータ(解答履歴)'!$A:$A=$A15)*('インポートデータ(解答履歴)'!$V:$V=C$3)))),0)) -> 6 | E15: =IF(OR(C$3="",$A15=""),"",IFERROR(ROWS(_xlfn.UNIQUE(_xlfn._xlws.FILTER('インポートデータ(解答履歴)'!$W:$W,('インポートデータ(解答履歴)'!$A:$A=$A15)*('インポートデータ(解答履歴)'!$V:$V=C$3)*('インポートデータ(解答履歴)'!$Y:$Y="最新")*('インポートデータ(解答履歴)'!$K:$K="◯")))),0)) -> 6 | F15: 15 | G15: =IF(OR(F$3="",$A15=""),"",IFERROR(ROWS(_xlfn.UNIQUE(_xlfn._xlws.FILTER('インポートデータ(解答履歴)'!$W:$W,('インポートデータ(解答履歴)'!$A:$A=$A15)*('インポートデータ(解答履歴)'!$V:$V=F$3)))),0)) -> 0 | H15: =IF(OR(F$3="",$A15=""),"",IFERROR(ROWS(_xlfn.UNIQUE(_xlfn._xlws.FILTER('インポートデータ(解答履歴)'!$W:$W,('インポートデータ(解答履歴)'!$A:$A=$A15)*('インポートデータ(解答履歴)'!$V:$V=F$3)*('インポートデータ(解答履歴)'!$Y:$Y="最新")*('インポートデータ(解答履歴)'!$K:$K="◯")))),0)) -> 0 | J15: =IF(OR(I$3="",$A15=""),"",IFERROR(ROWS(_xlfn.UNIQUE(_xlfn._xlws.FILTER('インポートデータ(解答履歴)'!$W:$W,('インポートデータ(解答履歴)'!$A:$A=$A15)*('インポートデータ(解答履歴)'!$V:$V=I$3)))),0)) ->  | K15: =IF(OR(I$3="",$A15=""),"",IFERROR(ROWS(_xlfn.UNIQUE(_xlfn._xlws.FILTER('インポートデータ(解答履歴)'!$W:$W,('インポートデータ(解答履歴)'!$A:$A=$A15)*('インポートデータ(解答履歴)'!$V:$V=I$3)*('インポートデータ(解答履歴)'!$Y:$Y="最新")*('インポートデータ(解答履歴)'!$K:$K="◯")))),0)) ->  | M15: =IF(OR(L$3="",$A15=""),"",IFERROR(ROWS(_xlfn.UNIQUE(_xlfn._xlws.FILTER('インポートデータ(解答履歴)'!$W:$W,('インポートデータ(解答履歴)'!$A:$A=$A15)*('インポートデータ(解答履歴)'!$V:$V=L$3)))),0)) ->  | N15: =IF(OR(L$3="",$A15=""),"",IFERROR(ROWS(_xlfn.UNIQUE(_xlfn._xlws.FILTER('インポートデータ(解答履歴)'!$W:$W,('インポートデータ(解答履歴)'!$A:$A=$A15)*('インポートデータ(解答履歴)'!$V:$V=L$3)*('インポートデータ(解答履歴)'!$Y:$Y="最新")*('インポートデータ(解答履歴)'!$K:$K="◯")))),0)) ->  | P15: =IF(OR(O$3="",$A15=""),"",IFERROR(ROWS(_xlfn.UNIQUE(_xlfn._xlws.FILTER('インポートデータ(解答履歴)'!$W:$W,('インポートデータ(解答履歴)'!$A:$A=$A15)*('インポートデータ(解答履歴)'!$V:$V=O$3)))),0)) ->  | Q15: =IF(OR(O$3="",$A15=""),"",IFERROR(ROWS(_xlfn.UNIQUE(_xlfn._xlws.FILTER('インポートデータ(解答履歴)'!$W:$W,('インポートデータ(解答履歴)'!$A:$A=$A15)*('インポートデータ(解答履歴)'!$V:$V=O$3)*('インポートデータ(解答履歴)'!$Y:$Y="最新")*('インポートデータ(解答履歴)'!$K:$K="◯")))),0)) ->  | S15: =IF(OR(R$3="",$A15=""),"",IFERROR(ROWS(_xlfn.UNIQUE(_xlfn._xlws.FILTER('インポートデータ(解答履歴)'!$W:$W,('インポートデータ(解答履歴)'!$A:$A=$A15)*('インポートデータ(解答履歴)'!$V:$V=R$3)))),0)) ->  | T15: =IF(OR(R$3="",$A15=""),"",IFERROR(ROWS(_xlfn.UNIQUE(_xlfn._xlws.FILTER('インポートデータ(解答履歴)'!$W:$W,('インポートデータ(解答履歴)'!$A:$A=$A15)*('インポートデータ(解答履歴)'!$V:$V=R$3)*('インポートデータ(解答履歴)'!$Y:$Y="最新")*('インポートデータ(解答履歴)'!$K:$K="◯")))),0)) ->  | U15: =COUNTIFS( 'インポートデータ(解答履歴)'!$A:$A, $A15, 'インポートデータ(解答履歴)'!$C:$C, ">="&(U$3), 'インポートデータ(解答履歴)'!$C:$C, "<"&(U$3+7), 'インポートデータ(解答履歴)'!$P:$P, U$4 ) -> 0 | V15: =COUNTIFS( 'インポートデータ(解答履歴)'!$A:$A, $A15, 'インポートデータ(解答履歴)'!$C:$C, ">="&(V$3), 'インポートデータ(解答履歴)'!$C:$C, "<"&(V$3+7), 'インポートデータ(解答履歴)'!$P:$P, V$4 ) -> 0 | W15: =COUNTIFS( 'インポートデータ(解答履歴)'!$A:$A, $A15, 'インポートデータ(解答履歴)'!$C:$C, ">="&(W$3), 'インポートデータ(解答履歴)'!$C:$C, "<"&(W$3+7), 'インポートデータ(解答履歴)'!$P:$P, W$4 ) -> 0 | X15: =COUNTIFS( 'インポートデータ(解答履歴)'!$A:$A, $A15, 'インポートデータ(解答履歴)'!$C:$C, ">="&(X$3), 'インポートデータ(解答履歴)'!$C:$C, "<"&(X$3+7), 'インポートデータ(解答履歴)'!$P:$P, X$4 ) -> 0 | Y15: =COUNTIFS( 'インポートデータ(解答履歴)'!$A:$A, $A15, 'インポートデータ(解答履歴)'!$C:$C, ">="&(Y$3), 'インポートデータ(解答履歴)'!$C:$C, "<"&(Y$3+7), 'インポートデータ(解答履歴)'!$P:$P, Y$4 ) -> 0 | Z15: =COUNTIFS( 'インポートデータ(解答履歴)'!$A:$A, $A15, 'インポートデータ(解答履歴)'!$C:$C, ">="&(Z$3), 'インポートデータ(解答履歴)'!$C:$C, "<"&(Z$3+7), 'インポートデータ(解答履歴)'!$P:$P, Z$4 ) -> 0 | AA15: =COUNTIFS( 'インポートデータ(解答履歴)'!$A:$A, $A15, 'インポートデータ(解答履歴)'!$C:$C, ">="&(AA$3), 'インポートデータ(解答履歴)'!$C:$C, "<"&(AA$3+7), 'インポートデータ(解答履歴)'!$P:$P, AA$4 ) -> 0 | AB15: =COUNTIFS( 'インポートデータ(解答履歴)'!$A:$A, $A15, 'インポートデータ(解答履歴)'!$C:$C, ">="&(AB$3), 'インポートデータ(解答履歴)'!$C:$C, "<"&(AB$3+7), 'インポートデータ(解答履歴)'!$P:$P, AB$4 ) -> 0 | AC15: =COUNTIFS( 'インポートデータ(解答履歴)'!$A:$A, $A15, 'インポートデータ(解答履歴)'!$C:$C, ">="&(AC$3), 'インポートデータ(解答履歴)'!$C:$C, "<"&(AC$3+7), 'インポートデータ(解答履歴)'!$P:$P, AC$4 ) -> 0 | AD15: =COUNTIFS( 'インポートデータ(解答履歴)'!$A:$A, $A15, 'インポートデータ(解答履歴)'!$C:$C, ">="&(AD$3), 'インポートデータ(解答履歴)'!$C:$C, "<"&(AD$3+7), 'インポートデータ(解答履歴)'!$P:$P, AD$4 ) -> 0 | AE15: =COUNTIFS( 'インポートデータ(解答履歴)'!$A:$A, $A15, 'インポートデータ(解答履歴)'!$C:$C, ">="&(AE$3), 'インポートデータ(解答履歴)'!$C:$C, "<"&(AE$3+7), 'インポートデータ(解答履歴)'!$P:$P, AE$4 ) -> 0 | AF15: =COUNTIFS( 'インポートデータ(解答履歴)'!$A:$A, $A15, 'インポートデータ(解答履歴)'!$C:$C, ">="&(AF$3), 'インポートデータ(解答履歴)'!$C:$C, "<"&(AF$3+7), 'インポートデータ(解答履歴)'!$P:$P, AF$4 ) -> 0 | AG15: =COUNTIFS( 'インポートデータ(解答履歴)'!$A:$A, $A15, 'インポートデータ(解答履歴)'!$C:$C, ">="&(AG$3), 'インポートデータ(解答履歴)'!$C:$C, "<"&(AG$3+7), 'インポートデータ(解答履歴)'!$P:$P, AG$4 ) -> 0 | AH15: =COUNTIFS( 'インポートデータ(解答履歴)'!$A:$A, $A15, 'インポートデータ(解答履歴)'!$C:$C, ">="&(AH$3), 'インポートデータ(解答履歴)'!$C:$C, "<"&(AH$3+7), 'インポートデータ(解答履歴)'!$P:$P, AH$4 ) -> 0 | AI15: =COUNTIFS( 'インポートデータ(解答履歴)'!$A:$A, $A15, 'インポートデータ(解答履歴)'!$C:$C, ">="&(AI$3), 'インポートデータ(解答履歴)'!$C:$C, "<"&(AI$3+7), 'インポートデータ(解答履歴)'!$P:$P, AI$4 ) -> 14 | AJ15: =COUNTIFS( 'インポートデータ(解答履歴)'!$A:$A, $A15, 'インポートデータ(解答履歴)'!$C:$C, ">="&(AJ$3), 'インポートデータ(解答履歴)'!$C:$C, "<"&(AJ$3+7), 'インポートデータ(解答履歴)'!$P:$P, AJ$4 ) -> 0 | AK15: =COUNTIFS( 'インポートデータ(解答履歴)'!$A:$A, $A15, 'インポートデータ(解答履歴)'!$C:$C, ">="&(AK$3), 'インポートデータ(解答履歴)'!$C:$C, "<"&(AK$3+7), 'インポートデータ(解答履歴)'!$P:$P, AK$4 ) -> 11 | AL15: =COUNTIFS( 'インポートデータ(解答履歴)'!$A:$A, $A15, 'インポートデータ(解答履歴)'!$C:$C, ">="&(AL$3), 'インポートデータ(解答履歴)'!$C:$C, "<"&(AL$3+7), 'インポートデータ(解答履歴)'!$P:$P, AL$4 ) -> 0 | AM15: =COUNTIFS( 'インポートデータ(解答履歴)'!$A:$A, $A15, 'インポートデータ(解答履歴)'!$C:$C, ">="&(AM$3), 'インポートデータ(解答履歴)'!$C:$C, "<"&(AM$3+7), 'インポートデータ(解答履歴)'!$P:$P, AM$4 ) -> 0 | AN15: =COUNTIFS( 'インポートデータ(解答履歴)'!$A:$A, $A15, 'インポートデータ(解答履歴)'!$C:$C, ">="&(AN$3), 'インポートデータ(解答履歴)'!$C:$C, "<"&(AN$3+7), 'インポートデータ(解答履歴)'!$P:$P, AN$4 ) -> 0 | AO15: =COUNTIFS( 'インポートデータ(解答履歴)'!$A:$A, $A15, 'インポートデータ(解答履歴)'!$C:$C, ">="&(AO$3), 'インポートデータ(解答履歴)'!$C:$C, "<"&(AO$3+7), 'インポートデータ(解答履歴)'!$P:$P, AO$4 ) -> 0 | AP15: =COUNTIFS( 'インポートデータ(解答履歴)'!$A:$A, $A15, 'インポートデータ(解答履歴)'!$C:$C, ">="&(AP$3), 'インポートデータ(解答履歴)'!$C:$C, "<"&(AP$3+7), 'インポートデータ(解答履歴)'!$P:$P, AP$4 ) -> 0 | AQ15: =COUNTIFS( 'インポートデータ(解答履歴)'!$A:$A, $A15, 'インポートデータ(解答履歴)'!$C:$C, ">="&(AQ$3), 'インポートデータ(解答履歴)'!$C:$C, "<"&(AQ$3+7), 'インポートデータ(解答履歴)'!$P:$P, AQ$4 ) -> 0 | AR15: =COUNTIFS( 'インポートデータ(解答履歴)'!$A:$A, $A15, 'インポートデータ(解答履歴)'!$C:$C, ">="&(AR$3), 'インポートデータ(解答履歴)'!$C:$C, "<"&(AR$3+7), 'インポートデータ(解答履歴)'!$P:$P, AR$4 ) -> 0 | AS15: =COUNTIFS( 'インポートデータ(解答履歴)'!$A:$A, $A15, 'インポートデータ(解答履歴)'!$C:$C, ">="&(AS$3), 'インポートデータ(解答履歴)'!$C:$C, "<"&(AS$3+7), 'インポートデータ(解答履歴)'!$P:$P, AS$4 ) -> 0 | AT15: =COUNTIFS( 'インポートデータ(解答履歴)'!$A:$A, $A15, 'インポートデータ(解答履歴)'!$C:$C, ">="&(AT$3), 'インポートデータ(解答履歴)'!$C:$C, "<"&(AT$3+7), 'インポートデータ(解答履歴)'!$P:$P, AT$4 ) -> 0 | AU15: =COUNTIFS( 'インポートデータ(解答履歴)'!$A:$A, $A15, 'インポートデータ(解答履歴)'!$C:$C, ">="&(AU$3), 'インポートデータ(解答履歴)'!$C:$C, "<"&(AU$3+7), 'インポートデータ(解答履歴)'!$P:$P, AU$4 ) -> 0 | AV15: =COUNTIFS( 'インポートデータ(解答履歴)'!$A:$A, $A15, 'インポートデータ(解答履歴)'!$C:$C, ">="&(AV$3), 'インポートデータ(解答履歴)'!$C:$C, "<"&(AV$3+7), 'インポートデータ(解答履歴)'!$P:$P, AV$4 ) -> 0 | AW15: =COUNTIFS('インポートデータ(解答履歴)'!$A:$A, $A15,'インポートデータ(解答履歴)'!$F:$F, AW$3) -> 0 | AX15: =COUNTIFS('インポートデータ(解答履歴)'!$A:$A, $A15,'インポートデータ(解答履歴)'!$F:$F, AX$3) -> 0 | AY15: =COUNTIFS('インポートデータ(解答履歴)'!$A:$A, $A15,'インポートデータ(解答履歴)'!$F:$F, AY$3) -> 0 | AZ15: =COUNTIFS('インポートデータ(解答履歴)'!$A:$A, $A15,'インポートデータ(解答履歴)'!$F:$F, AZ$3) -> 0 | BA15: =COUNTIFS('インポートデータ(解答履歴)'!$A:$A, $A15,'インポートデータ(解答履歴)'!$F:$F, BA$3) -> 0 | BB15: =COUNTIFS('インポートデータ(解答履歴)'!$A:$A, $A15,'インポートデータ(解答履歴)'!$F:$F, BB$3) -> 0 | BC15: =COUNTIFS('インポートデータ(解答履歴)'!$A:$A, $A15,'インポートデータ(解答履歴)'!$F:$F, BC$3) -> 0 | BD15: =COUNTIFS('インポートデータ(解答履歴)'!$A:$A, $A15,'インポートデータ(解答履歴)'!$F:$F, BD$3) -> 0 | BE15: =COUNTIFS('インポートデータ(解答履歴)'!$A:$A, $A15,'インポートデータ(解答履歴)'!$F:$F, BE$3) -> 0 | BF15: =COUNTIFS('インポートデータ(解答履歴)'!$A:$A, $A15,'インポートデータ(解答履歴)'!$F:$F, BF$3) -> 0 | BG15: =COUNTIFS('インポートデータ(解答履歴)'!$A:$A, $A15,'インポートデータ(解答履歴)'!$F:$F, BG$3) -> 0 | BH15: =COUNTIFS('インポートデータ(解答履歴)'!$A:$A, $A15,'インポートデータ(解答履歴)'!$F:$F, BH$3) -> 0 | BI15: =COUNTIFS('インポートデータ(解答履歴)'!$A:$A, $A15,'インポートデータ(解答履歴)'!$F:$F, BI$3) -> 2 | BJ15: =COUNTIFS('インポートデータ(解答履歴)'!$A:$A, $A15,'インポートデータ(解答履歴)'!$F:$F, BJ$3) -> 1 | BK15: =COUNTIFS('インポートデータ(解答履歴)'!$A:$A, $A15,'インポートデータ(解答履歴)'!$F:$F, BK$3) -> 5 | BL15: =COUNTIFS('インポートデータ(解答履歴)'!$A:$A, $A15,'インポートデータ(解答履歴)'!$F:$F, BL$3) -> 0 | BM15: =COUNTIFS('インポートデータ(解答履歴)'!$A:$A, $A15,'インポートデータ(解答履歴)'!$F:$F, BM$3) -> 0 | BN15: =COUNTIFS('インポートデータ(解答履歴)'!$A:$A, $A15,'インポートデータ(解答履歴)'!$F:$F, BN$3) -> 7 | BO15: =COUNTIFS('インポートデータ(解答履歴)'!$A:$A, $A15,'インポートデータ(解答履歴)'!$F:$F, BO$3) -> 7 | BP15: =COUNTIFS('インポートデータ(解答履歴)'!$A:$A, $A15,'インポートデータ(解答履歴)'!$F:$F, BP$3) -> 0 | BQ15: =COUNTIFS('インポートデータ(解答履歴)'!$A:$A, $A15,'インポートデータ(解答履歴)'!$F:$F, BQ$3) -> 0 | BR15: =COUNTIFS('インポートデータ(解答履歴)'!$A:$A, $A15,'インポートデータ(解答履歴)'!$F:$F, BR$3) -> 0 | BS15: =COUNTIFS('インポートデータ(解答履歴)'!$A:$A, $A15,'インポートデータ(解答履歴)'!$F:$F, BS$3) -> 3 | BT15: =COUNTIFS('インポートデータ(解答履歴)'!$A:$A, $A15,'インポートデータ(解答履歴)'!$F:$F, BT$3) -> 0 | BU15: 8 | BV15: 17 | BW15: 0 | BX15: 6 | BY15: =COUNTIFS('インポートデータ(解答履歴)'!$A:$A, $A15, 'インポートデータ(解答履歴)'!$X:$X, "初回", 'インポートデータ(解答履歴)'!$K:$K, "◯", 'インポートデータ(解答履歴)'!$D:$D, "<="&BZ$2) -> 0 | BZ15: =COUNTIFS('インポートデータ(解答履歴)'!$A:$A, $A15, 'インポートデータ(解答履歴)'!$X:$X, "初回", 'インポートデータ(解答履歴)'!$K:$K, "△", 'インポートデータ(解答履歴)'!$D:$D, "<="&BZ$2) + COUNTIFS('インポートデータ(解答履歴)'!$A:$A, $A15, 'インポートデータ(解答履歴)'!$X:$X, "初回", 'インポートデータ(解答履歴)'!$K:$K, "✕", 'インポートデータ(解答履歴)'!$D:$D, "<="&BZ$2) -> 6 | CA15: 6 | CB15: =COUNTIFS('インポートデータ(解答履歴)'!$A:$A, $A15, 'インポートデータ(解答履歴)'!Z:Z, "△", 'インポートデータ(解答履歴)'!$D:$D, "<="&BZ$2) + COUNTIFS('インポートデータ(解答履歴)'!$A:$A, $A15, 'インポートデータ(解答履歴)'!Z:Z, "✕", 'インポートデータ(解答履歴)'!$D:$D, "<="&BZ$2) -> 0 | CC15: 6 | CD15: =COUNTIFS('インポートデータ(解答履歴)'!$A:$A, $A15, 'インポートデータ(解答履歴)'!$X:$X, "初回", 'インポートデータ(解答履歴)'!$K:$K, "◯", 'インポートデータ(解答履歴)'!$D:$D, "<="&CE$2) -> 0 | CE15: =COUNTIFS('インポートデータ(解答履歴)'!$A:$A, $A15, 'インポートデータ(解答履歴)'!$X:$X, "初回", 'インポートデータ(解答履歴)'!$K:$K, "△", 'インポートデータ(解答履歴)'!$D:$D, "<="&CE$2) + COUNTIFS('インポートデータ(解答履歴)'!$A:$A, $A15, 'インポートデータ(解答履歴)'!$X:$X, "初回", 'インポートデータ(解答履歴)'!$K:$K, "✕", 'インポートデータ(解答履歴)'!$D:$D, "<="&CE$2) -> 6 | CF15: 6 | CG15: =COUNTIFS('インポートデータ(解答履歴)'!$A:$A, $A15, 'インポートデータ(解答履歴)'!Z:Z, "△", 'インポートデータ(解答履歴)'!$D:$D, "<="&CE$2) + COUNTIFS('インポートデータ(解答履歴)'!$A:$A, $A15, 'インポートデータ(解答履歴)'!Z:Z, "✕", 'インポートデータ(解答履歴)'!$D:$D, "<="&CE$2) -> 0 | CH15: 0 | CI15: =SUM(list_group!$C$2:$C$7) -> 42 | CJ15: =IF($A15="","",IFERROR(ROWS(_xlfn.UNIQUE(_xlfn._xlws.FILTER('インポートデータ(解答履歴)'!$W:$W,('インポートデータ(解答履歴)'!$A:$A=$A15)*('インポートデータ(解答履歴)'!$V:$V<>"")*('インポートデータ(解答履歴)'!$V:$V<>0)*('インポートデータ(解答履歴)'!$V:$V<>"該当なし")))),0)) -> 6 | CK15: =IF($A15="","",IFERROR(ROWS(_xlfn.UNIQUE(_xlfn._xlws.FILTER('インポートデータ(解答履歴)'!$W:$W,('インポートデータ(解答履歴)'!$A:$A=$A15)*('インポートデータ(解答履歴)'!$V:$V<>"")*('インポートデータ(解答履歴)'!$V:$V<>0)*('インポートデータ(解答履歴)'!$V:$V<>"該当なし")*('インポートデータ(解答履歴)'!$Y:$Y="最新")*('インポートデータ(解答履歴)'!$K:$K="◯")))),0)) -> 6 | CL15: 0.1428571429 | CM15: 1 | CN15: =IF($A15="","",IF(VLOOKUP(A15,生徒情報!A:C,3,FALSE)="","",VLOOKUP(A15,生徒情報!A:C,3,FALSE))) -> 未分類 | CO15: 25 | CP15: 7 | CQ15: その他 | CR15: =SUMIFS('インポートデータ(解答履歴)'!O:O,'インポートデータ(解答履歴)'!A:A,A15) -> 15841 | CS15: 4 | CT15: その他 | CU15: 0.1428571429 | CV15: 11 | CW15: その他 | CX15: 1 | CY15: 1 | CZ15: 1位 | DA15: 0 | DB15: 2 | DC15: 上位30% | DD15: 1 | DE15: 1 | DF15: 1位
D16: =IF(OR(C$3="",$A16=""),"",IFERROR(ROWS(_xlfn.UNIQUE(_xlfn._xlws.FILTER('インポートデータ(解答履歴)'!$W:$W,('インポートデータ(解答履歴)'!$A:$A=$A16)*('インポートデータ(解答履歴)'!$V:$V=C$3)))),0)) ->  | E16: =IF(OR(C$3="",$A16=""),"",IFERROR(ROWS(_xlfn.UNIQUE(_xlfn._xlws.FILTER('インポートデータ(解答履歴)'!$W:$W,('インポートデータ(解答履歴)'!$A:$A=$A16)*('インポートデータ(解答履歴)'!$V:$V=C$3)*('インポートデータ(解答履歴)'!$Y:$Y="最新")*('インポートデータ(解答履歴)'!$K:$K="◯")))),0)) ->  | G16: =IF(OR(F$3="",$A16=""),"",IFERROR(ROWS(_xlfn.UNIQUE(_xlfn._xlws.FILTER('インポートデータ(解答履歴)'!$W:$W,('インポートデータ(解答履歴)'!$A:$A=$A16)*('インポートデータ(解答履歴)'!$V:$V=F$3)))),0)) ->  | H16: =IF(OR(F$3="",$A16=""),"",IFERROR(ROWS(_xlfn.UNIQUE(_xlfn._xlws.FILTER('インポートデータ(解答履歴)'!$W:$W,('インポートデータ(解答履歴)'!$A:$A=$A16)*('インポートデータ(解答履歴)'!$V:$V=F$3)*('インポートデータ(解答履歴)'!$Y:$Y="最新")*('インポートデータ(解答履歴)'!$K:$K="◯")))),0)) ->  | J16: =IF(OR(I$3="",$A16=""),"",IFERROR(ROWS(_xlfn.UNIQUE(_xlfn._xlws.FILTER('インポートデータ(解答履歴)'!$W:$W,('インポートデータ(解答履歴)'!$A:$A=$A16)*('インポートデータ(解答履歴)'!$V:$V=I$3)))),0)) ->  | K16: =IF(OR(I$3="",$A16=""),"",IFERROR(ROWS(_xlfn.UNIQUE(_xlfn._xlws.FILTER('インポートデータ(解答履歴)'!$W:$W,('インポートデータ(解答履歴)'!$A:$A=$A16)*('インポートデータ(解答履歴)'!$V:$V=I$3)*('インポートデータ(解答履歴)'!$Y:$Y="最新")*('インポートデータ(解答履歴)'!$K:$K="◯")))),0)) ->  | M16: =IF(OR(L$3="",$A16=""),"",IFERROR(ROWS(_xlfn.UNIQUE(_xlfn._xlws.FILTER('インポートデータ(解答履歴)'!$W:$W,('インポートデータ(解答履歴)'!$A:$A=$A16)*('インポートデータ(解答履歴)'!$V:$V=L$3)))),0)) ->  | N16: =IF(OR(L$3="",$A16=""),"",IFERROR(ROWS(_xlfn.UNIQUE(_xlfn._xlws.FILTER('インポートデータ(解答履歴)'!$W:$W,('インポートデータ(解答履歴)'!$A:$A=$A16)*('インポートデータ(解答履歴)'!$V:$V=L$3)*('インポートデータ(解答履歴)'!$Y:$Y="最新")*('インポートデータ(解答履歴)'!$K:$K="◯")))),0)) ->  | P16: =IF(OR(O$3="",$A16=""),"",IFERROR(ROWS(_xlfn.UNIQUE(_xlfn._xlws.FILTER('インポートデータ(解答履歴)'!$W:$W,('インポートデータ(解答履歴)'!$A:$A=$A16)*('インポートデータ(解答履歴)'!$V:$V=O$3)))),0)) ->  | Q16: =IF(OR(O$3="",$A16=""),"",IFERROR(ROWS(_xlfn.UNIQUE(_xlfn._xlws.FILTER('インポートデータ(解答履歴)'!$W:$W,('インポートデータ(解答履歴)'!$A:$A=$A16)*('インポートデータ(解答履歴)'!$V:$V=O$3)*('インポートデータ(解答履歴)'!$Y:$Y="最新")*('インポートデータ(解答履歴)'!$K:$K="◯")))),0)) ->  | S16: =IF(OR(R$3="",$A16=""),"",IFERROR(ROWS(_xlfn.UNIQUE(_xlfn._xlws.FILTER('インポートデータ(解答履歴)'!$W:$W,('インポートデータ(解答履歴)'!$A:$A=$A16)*('インポートデータ(解答履歴)'!$V:$V=R$3)))),0)) ->  | T16: =IF(OR(R$3="",$A16=""),"",IFERROR(ROWS(_xlfn.UNIQUE(_xlfn._xlws.FILTER('インポートデータ(解答履歴)'!$W:$W,('インポートデータ(解答履歴)'!$A:$A=$A16)*('インポートデータ(解答履歴)'!$V:$V=R$3)*('インポートデータ(解答履歴)'!$Y:$Y="最新")*('インポートデータ(解答履歴)'!$K:$K="◯")))),0)) ->  | U16: =COUNTIFS( 'インポートデータ(解答履歴)'!$A:$A, $A16, 'インポートデータ(解答履歴)'!$C:$C, ">="&(U$3), 'インポートデータ(解答履歴)'!$C:$C, "<"&(U$3+7), 'インポートデータ(解答履歴)'!$P:$P, U$4 ) -> 0 | V16: =COUNTIFS( 'インポートデータ(解答履歴)'!$A:$A, $A16, 'インポートデータ(解答履歴)'!$C:$C, ">="&(V$3), 'インポートデータ(解答履歴)'!$C:$C, "<"&(V$3+7), 'インポートデータ(解答履歴)'!$P:$P, V$4 ) -> 0 | W16: =COUNTIFS( 'インポートデータ(解答履歴)'!$A:$A, $A16, 'インポートデータ(解答履歴)'!$C:$C, ">="&(W$3), 'インポートデータ(解答履歴)'!$C:$C, "<"&(W$3+7), 'インポートデータ(解答履歴)'!$P:$P, W$4 ) -> 0 | X16: =COUNTIFS( 'インポートデータ(解答履歴)'!$A:$A, $A16, 'インポートデータ(解答履歴)'!$C:$C, ">="&(X$3), 'インポートデータ(解答履歴)'!$C:$C, "<"&(X$3+7), 'インポートデータ(解答履歴)'!$P:$P, X$4 ) -> 0 | Y16: =COUNTIFS( 'インポートデータ(解答履歴)'!$A:$A, $A16, 'インポートデータ(解答履歴)'!$C:$C, ">="&(Y$3), 'インポートデータ(解答履歴)'!$C:$C, "<"&(Y$3+7), 'インポートデータ(解答履歴)'!$P:$P, Y$4 ) -> 0 | Z16: =COUNTIFS( 'インポートデータ(解答履歴)'!$A:$A, $A16, 'インポートデータ(解答履歴)'!$C:$C, ">="&(Z$3), 'インポートデータ(解答履歴)'!$C:$C, "<"&(Z$3+7), 'インポートデータ(解答履歴)'!$P:$P, Z$4 ) -> 0 | AA16: =COUNTIFS( 'インポートデータ(解答履歴)'!$A:$A, $A16, 'インポートデータ(解答履歴)'!$C:$C, ">="&(AA$3), 'インポートデータ(解答履歴)'!$C:$C, "<"&(AA$3+7), 'インポートデータ(解答履歴)'!$P:$P, AA$4 ) -> 0 | AB16: =COUNTIFS( 'インポートデータ(解答履歴)'!$A:$A, $A16, 'インポートデータ(解答履歴)'!$C:$C, ">="&(AB$3), 'インポートデータ(解答履歴)'!$C:$C, "<"&(AB$3+7), 'インポートデータ(解答履歴)'!$P:$P, AB$4 ) -> 0 | AC16: =COUNTIFS( 'インポートデータ(解答履歴)'!$A:$A, $A16, 'インポートデータ(解答履歴)'!$C:$C, ">="&(AC$3), 'インポートデータ(解答履歴)'!$C:$C, "<"&(AC$3+7), 'インポートデータ(解答履歴)'!$P:$P, AC$4 ) -> 0 | AD16: =COUNTIFS( 'インポートデータ(解答履歴)'!$A:$A, $A16, 'インポートデータ(解答履歴)'!$C:$C, ">="&(AD$3), 'インポートデータ(解答履歴)'!$C:$C, "<"&(AD$3+7), 'インポートデータ(解答履歴)'!$P:$P, AD$4 ) -> 0 | AE16: =COUNTIFS( 'インポートデータ(解答履歴)'!$A:$A, $A16, 'インポートデータ(解答履歴)'!$C:$C, ">="&(AE$3), 'インポートデータ(解答履歴)'!$C:$C, "<"&(AE$3+7), 'インポートデータ(解答履歴)'!$P:$P, AE$4 ) -> 0 | AF16: =COUNTIFS( 'インポートデータ(解答履歴)'!$A:$A, $A16, 'インポートデータ(解答履歴)'!$C:$C, ">="&(AF$3), 'インポートデータ(解答履歴)'!$C:$C, "<"&(AF$3+7), 'インポートデータ(解答履歴)'!$P:$P, AF$4 ) -> 0 | AG16: =COUNTIFS( 'インポートデータ(解答履歴)'!$A:$A, $A16, 'インポートデータ(解答履歴)'!$C:$C, ">="&(AG$3), 'インポートデータ(解答履歴)'!$C:$C, "<"&(AG$3+7), 'インポートデータ(解答履歴)'!$P:$P, AG$4 ) -> 0 | AH16: =COUNTIFS( 'インポートデータ(解答履歴)'!$A:$A, $A16, 'インポートデータ(解答履歴)'!$C:$C, ">="&(AH$3), 'インポートデータ(解答履歴)'!$C:$C, "<"&(AH$3+7), 'インポートデータ(解答履歴)'!$P:$P, AH$4 ) -> 0 | AI16: =COUNTIFS( 'インポートデータ(解答履歴)'!$A:$A, $A16, 'インポートデータ(解答履歴)'!$C:$C, ">="&(AI$3), 'インポートデータ(解答履歴)'!$C:$C, "<"&(AI$3+7), 'インポートデータ(解答履歴)'!$P:$P, AI$4 ) -> 0 | AJ16: =COUNTIFS( 'インポートデータ(解答履歴)'!$A:$A, $A16, 'インポートデータ(解答履歴)'!$C:$C, ">="&(AJ$3), 'インポートデータ(解答履歴)'!$C:$C, "<"&(AJ$3+7), 'インポートデータ(解答履歴)'!$P:$P, AJ$4 ) -> 0 | AK16: =COUNTIFS( 'インポートデータ(解答履歴)'!$A:$A, $A16, 'インポートデータ(解答履歴)'!$C:$C, ">="&(AK$3), 'インポートデータ(解答履歴)'!$C:$C, "<"&(AK$3+7), 'インポートデータ(解答履歴)'!$P:$P, AK$4 ) -> 0 | AL16: =COUNTIFS( 'インポートデータ(解答履歴)'!$A:$A, $A16, 'インポートデータ(解答履歴)'!$C:$C, ">="&(AL$3), 'インポートデータ(解答履歴)'!$C:$C, "<"&(AL$3+7), 'インポートデータ(解答履歴)'!$P:$P, AL$4 ) -> 0 | AM16: =COUNTIFS( 'インポートデータ(解答履歴)'!$A:$A, $A16, 'インポートデータ(解答履歴)'!$C:$C, ">="&(AM$3), 'インポートデータ(解答履歴)'!$C:$C, "<"&(AM$3+7), 'インポートデータ(解答履歴)'!$P:$P, AM$4 ) -> 0 | AN16: =COUNTIFS( 'インポートデータ(解答履歴)'!$A:$A, $A16, 'インポートデータ(解答履歴)'!$C:$C, ">="&(AN$3), 'インポートデータ(解答履歴)'!$C:$C, "<"&(AN$3+7), 'インポートデータ(解答履歴)'!$P:$P, AN$4 ) -> 0 | AO16: =COUNTIFS( 'インポートデータ(解答履歴)'!$A:$A, $A16, 'インポートデータ(解答履歴)'!$C:$C, ">="&(AO$3), 'インポートデータ(解答履歴)'!$C:$C, "<"&(AO$3+7), 'インポートデータ(解答履歴)'!$P:$P, AO$4 ) -> 0 | AP16: =COUNTIFS( 'インポートデータ(解答履歴)'!$A:$A, $A16, 'インポートデータ(解答履歴)'!$C:$C, ">="&(AP$3), 'インポートデータ(解答履歴)'!$C:$C, "<"&(AP$3+7), 'インポートデータ(解答履歴)'!$P:$P, AP$4 ) -> 0 | AQ16: =COUNTIFS( 'インポートデータ(解答履歴)'!$A:$A, $A16, 'インポートデータ(解答履歴)'!$C:$C, ">="&(AQ$3), 'インポートデータ(解答履歴)'!$C:$C, "<"&(AQ$3+7), 'インポートデータ(解答履歴)'!$P:$P, AQ$4 ) -> 0 | AR16: =COUNTIFS( 'インポートデータ(解答履歴)'!$A:$A, $A16, 'インポートデータ(解答履歴)'!$C:$C, ">="&(AR$3), 'インポートデータ(解答履歴)'!$C:$C, "<"&(AR$3+7), 'インポートデータ(解答履歴)'!$P:$P, AR$4 ) -> 0 | AS16: =COUNTIFS( 'インポートデータ(解答履歴)'!$A:$A, $A16, 'インポートデータ(解答履歴)'!$C:$C, ">="&(AS$3), 'インポートデータ(解答履歴)'!$C:$C, "<"&(AS$3+7), 'インポートデータ(解答履歴)'!$P:$P, AS$4 ) -> 0 | AT16: =COUNTIFS( 'インポートデータ(解答履歴)'!$A:$A, $A16, 'インポートデータ(解答履歴)'!$C:$C, ">="&(AT$3), 'インポートデータ(解答履歴)'!$C:$C, "<"&(AT$3+7), 'インポートデータ(解答履歴)'!$P:$P, AT$4 ) -> 0 | AU16: =COUNTIFS( 'インポートデータ(解答履歴)'!$A:$A, $A16, 'インポートデータ(解答履歴)'!$C:$C, ">="&(AU$3), 'インポートデータ(解答履歴)'!$C:$C, "<"&(AU$3+7), 'インポートデータ(解答履歴)'!$P:$P, AU$4 ) -> 0 | AV16: =COUNTIFS( 'インポートデータ(解答履歴)'!$A:$A, $A16, 'インポートデータ(解答履歴)'!$C:$C, ">="&(AV$3), 'インポートデータ(解答履歴)'!$C:$C, "<"&(AV$3+7), 'インポートデータ(解答履歴)'!$P:$P, AV$4 ) -> 0 | AW16: =COUNTIFS('インポートデータ(解答履歴)'!$A:$A, $A16,'インポートデータ(解答履歴)'!$F:$F, AW$3) -> 0 | AX16: =COUNTIFS('インポートデータ(解答履歴)'!$A:$A, $A16,'インポートデータ(解答履歴)'!$F:$F, AX$3) -> 0 | AY16: =COUNTIFS('インポートデータ(解答履歴)'!$A:$A, $A16,'インポートデータ(解答履歴)'!$F:$F, AY$3) -> 0 | AZ16: =COUNTIFS('インポートデータ(解答履歴)'!$A:$A, $A16,'インポートデータ(解答履歴)'!$F:$F, AZ$3) -> 0 | BA16: =COUNTIFS('インポートデータ(解答履歴)'!$A:$A, $A16,'インポートデータ(解答履歴)'!$F:$F, BA$3) -> 0 | BB16: =COUNTIFS('インポートデータ(解答履歴)'!$A:$A, $A16,'インポートデータ(解答履歴)'!$F:$F, BB$3) -> 0 | BC16: =COUNTIFS('インポートデータ(解答履歴)'!$A:$A, $A16,'インポートデータ(解答履歴)'!$F:$F, BC$3) -> 0 | BD16: =COUNTIFS('インポートデータ(解答履歴)'!$A:$A, $A16,'インポートデータ(解答履歴)'!$F:$F, BD$3) -> 0 | BE16: =COUNTIFS('インポートデータ(解答履歴)'!$A:$A, $A16,'インポートデータ(解答履歴)'!$F:$F, BE$3) -> 0 | BF16: =COUNTIFS('インポートデータ(解答履歴)'!$A:$A, $A16,'インポートデータ(解答履歴)'!$F:$F, BF$3) -> 0 | BG16: =COUNTIFS('インポートデータ(解答履歴)'!$A:$A, $A16,'インポートデータ(解答履歴)'!$F:$F, BG$3) -> 0 | BH16: =COUNTIFS('インポートデータ(解答履歴)'!$A:$A, $A16,'インポートデータ(解答履歴)'!$F:$F, BH$3) -> 0 | BI16: =COUNTIFS('インポートデータ(解答履歴)'!$A:$A, $A16,'インポートデータ(解答履歴)'!$F:$F, BI$3) -> 0 | BJ16: =COUNTIFS('インポートデータ(解答履歴)'!$A:$A, $A16,'インポートデータ(解答履歴)'!$F:$F, BJ$3) -> 0 | BK16: =COUNTIFS('インポートデータ(解答履歴)'!$A:$A, $A16,'インポートデータ(解答履歴)'!$F:$F, BK$3) -> 0 | BL16: =COUNTIFS('インポートデータ(解答履歴)'!$A:$A, $A16,'インポートデータ(解答履歴)'!$F:$F, BL$3) -> 0 | BM16: =COUNTIFS('インポートデータ(解答履歴)'!$A:$A, $A16,'インポートデータ(解答履歴)'!$F:$F, BM$3) -> 0 | BN16: =COUNTIFS('インポートデータ(解答履歴)'!$A:$A, $A16,'インポートデータ(解答履歴)'!$F:$F, BN$3) -> 0 | BO16: =COUNTIFS('インポートデータ(解答履歴)'!$A:$A, $A16,'インポートデータ(解答履歴)'!$F:$F, BO$3) -> 0 | BP16: =COUNTIFS('インポートデータ(解答履歴)'!$A:$A, $A16,'インポートデータ(解答履歴)'!$F:$F, BP$3) -> 0 | BQ16: =COUNTIFS('インポートデータ(解答履歴)'!$A:$A, $A16,'インポートデータ(解答履歴)'!$F:$F, BQ$3) -> 0 | BR16: =COUNTIFS('インポートデータ(解答履歴)'!$A:$A, $A16,'インポートデータ(解答履歴)'!$F:$F, BR$3) -> 0 | BS16: =COUNTIFS('インポートデータ(解答履歴)'!$A:$A, $A16,'インポートデータ(解答履歴)'!$F:$F, BS$3) -> 0 | BT16: =COUNTIFS('インポートデータ(解答履歴)'!$A:$A, $A16,'インポートデータ(解答履歴)'!$F:$F, BT$3) -> 0 | BU16: 0 | BV16: 0 | BW16: 0 | BX16: 0 | BY16: =COUNTIFS('インポートデータ(解答履歴)'!$A:$A, $A16, 'インポートデータ(解答履歴)'!$X:$X, "初回", 'インポートデータ(解答履歴)'!$K:$K, "◯", 'インポートデータ(解答履歴)'!$D:$D, "<="&BZ$2) -> 0 | BZ16: =COUNTIFS('インポートデータ(解答履歴)'!$A:$A, $A16, 'インポートデータ(解答履歴)'!$X:$X, "初回", 'インポートデータ(解答履歴)'!$K:$K, "△", 'インポートデータ(解答履歴)'!$D:$D, "<="&BZ$2) + COUNTIFS('インポートデータ(解答履歴)'!$A:$A, $A16, 'インポートデータ(解答履歴)'!$X:$X, "初回", 'インポートデータ(解答履歴)'!$K:$K, "✕", 'インポートデータ(解答履歴)'!$D:$D, "<="&BZ$2) -> 0 | CA16: 0 | CB16: =COUNTIFS('インポートデータ(解答履歴)'!$A:$A, $A16, 'インポートデータ(解答履歴)'!Z:Z, "△", 'インポートデータ(解答履歴)'!$D:$D, "<="&BZ$2) + COUNTIFS('インポートデータ(解答履歴)'!$A:$A, $A16, 'インポートデータ(解答履歴)'!Z:Z, "✕", 'インポートデータ(解答履歴)'!$D:$D, "<="&BZ$2) -> 0 | CC16: 0 | CD16: =COUNTIFS('インポートデータ(解答履歴)'!$A:$A, $A16, 'インポートデータ(解答履歴)'!$X:$X, "初回", 'インポートデータ(解答履歴)'!$K:$K, "◯", 'インポートデータ(解答履歴)'!$D:$D, "<="&CE$2) -> 0 | CE16: =COUNTIFS('インポートデータ(解答履歴)'!$A:$A, $A16, 'インポートデータ(解答履歴)'!$X:$X, "初回", 'インポートデータ(解答履歴)'!$K:$K, "△", 'インポートデータ(解答履歴)'!$D:$D, "<="&CE$2) + COUNTIFS('インポートデータ(解答履歴)'!$A:$A, $A16, 'インポートデータ(解答履歴)'!$X:$X, "初回", 'インポートデータ(解答履歴)'!$K:$K, "✕", 'インポートデータ(解答履歴)'!$D:$D, "<="&CE$2) -> 0 | CF16: 0 | CG16: =COUNTIFS('インポートデータ(解答履歴)'!$A:$A, $A16, 'インポートデータ(解答履歴)'!Z:Z, "△", 'インポートデータ(解答履歴)'!$D:$D, "<="&CE$2) + COUNTIFS('インポートデータ(解答履歴)'!$A:$A, $A16, 'インポートデータ(解答履歴)'!Z:Z, "✕", 'インポートデータ(解答履歴)'!$D:$D, "<="&CE$2) -> 0 | CH16: 0 | CI16: =SUM(list_group!$C$2:$C$7) -> 42 | CJ16: =IF($A16="","",IFERROR(ROWS(_xlfn.UNIQUE(_xlfn._xlws.FILTER('インポートデータ(解答履歴)'!$W:$W,('インポートデータ(解答履歴)'!$A:$A=$A16)*('インポートデータ(解答履歴)'!$V:$V<>"")*('インポートデータ(解答履歴)'!$V:$V<>0)*('インポートデータ(解答履歴)'!$V:$V<>"該当なし")))),0)) ->  | CK16: =IF($A16="","",IFERROR(ROWS(_xlfn.UNIQUE(_xlfn._xlws.FILTER('インポートデータ(解答履歴)'!$W:$W,('インポートデータ(解答履歴)'!$A:$A=$A16)*('インポートデータ(解答履歴)'!$V:$V<>"")*('インポートデータ(解答履歴)'!$V:$V<>0)*('インポートデータ(解答履歴)'!$V:$V<>"該当なし")*('インポートデータ(解答履歴)'!$Y:$Y="最新")*('インポートデータ(解答履歴)'!$K:$K="◯")))),0)) ->  | CN16: =IF($A16="","",IF(VLOOKUP(A16,生徒情報!A:C,3,FALSE)="","",VLOOKUP(A16,生徒情報!A:C,3,FALSE))) ->  | CO16: 0 | CR16: =SUMIFS('インポートデータ(解答履歴)'!O:O,'インポートデータ(解答履歴)'!A:A,A16) -> 0 | DA16: 0 | DD16: 0
D17: =IF(OR(C$3="",$A17=""),"",IFERROR(ROWS(_xlfn.UNIQUE(_xlfn._xlws.FILTER('インポートデータ(解答履歴)'!$W:$W,('インポートデータ(解答履歴)'!$A:$A=$A17)*('インポートデータ(解答履歴)'!$V:$V=C$3)))),0)) ->  | E17: =IF(OR(C$3="",$A17=""),"",IFERROR(ROWS(_xlfn.UNIQUE(_xlfn._xlws.FILTER('インポートデータ(解答履歴)'!$W:$W,('インポートデータ(解答履歴)'!$A:$A=$A17)*('インポートデータ(解答履歴)'!$V:$V=C$3)*('インポートデータ(解答履歴)'!$Y:$Y="最新")*('インポートデータ(解答履歴)'!$K:$K="◯")))),0)) ->  | G17: =IF(OR(F$3="",$A17=""),"",IFERROR(ROWS(_xlfn.UNIQUE(_xlfn._xlws.FILTER('インポートデータ(解答履歴)'!$W:$W,('インポートデータ(解答履歴)'!$A:$A=$A17)*('インポートデータ(解答履歴)'!$V:$V=F$3)))),0)) ->  | H17: =IF(OR(F$3="",$A17=""),"",IFERROR(ROWS(_xlfn.UNIQUE(_xlfn._xlws.FILTER('インポートデータ(解答履歴)'!$W:$W,('インポートデータ(解答履歴)'!$A:$A=$A17)*('インポートデータ(解答履歴)'!$V:$V=F$3)*('インポートデータ(解答履歴)'!$Y:$Y="最新")*('インポートデータ(解答履歴)'!$K:$K="◯")))),0)) ->  | J17: =IF(OR(I$3="",$A17=""),"",IFERROR(ROWS(_xlfn.UNIQUE(_xlfn._xlws.FILTER('インポートデータ(解答履歴)'!$W:$W,('インポートデータ(解答履歴)'!$A:$A=$A17)*('インポートデータ(解答履歴)'!$V:$V=I$3)))),0)) ->  | K17: =IF(OR(I$3="",$A17=""),"",IFERROR(ROWS(_xlfn.UNIQUE(_xlfn._xlws.FILTER('インポートデータ(解答履歴)'!$W:$W,('インポートデータ(解答履歴)'!$A:$A=$A17)*('インポートデータ(解答履歴)'!$V:$V=I$3)*('インポートデータ(解答履歴)'!$Y:$Y="最新")*('インポートデータ(解答履歴)'!$K:$K="◯")))),0)) ->  | M17: =IF(OR(L$3="",$A17=""),"",IFERROR(ROWS(_xlfn.UNIQUE(_xlfn._xlws.FILTER('インポートデータ(解答履歴)'!$W:$W,('インポートデータ(解答履歴)'!$A:$A=$A17)*('インポートデータ(解答履歴)'!$V:$V=L$3)))),0)) ->  | N17: =IF(OR(L$3="",$A17=""),"",IFERROR(ROWS(_xlfn.UNIQUE(_xlfn._xlws.FILTER('インポートデータ(解答履歴)'!$W:$W,('インポートデータ(解答履歴)'!$A:$A=$A17)*('インポートデータ(解答履歴)'!$V:$V=L$3)*('インポートデータ(解答履歴)'!$Y:$Y="最新")*('インポートデータ(解答履歴)'!$K:$K="◯")))),0)) ->  | P17: =IF(OR(O$3="",$A17=""),"",IFERROR(ROWS(_xlfn.UNIQUE(_xlfn._xlws.FILTER('インポートデータ(解答履歴)'!$W:$W,('インポートデータ(解答履歴)'!$A:$A=$A17)*('インポートデータ(解答履歴)'!$V:$V=O$3)))),0)) ->  | Q17: =IF(OR(O$3="",$A17=""),"",IFERROR(ROWS(_xlfn.UNIQUE(_xlfn._xlws.FILTER('インポートデータ(解答履歴)'!$W:$W,('インポートデータ(解答履歴)'!$A:$A=$A17)*('インポートデータ(解答履歴)'!$V:$V=O$3)*('インポートデータ(解答履歴)'!$Y:$Y="最新")*('インポートデータ(解答履歴)'!$K:$K="◯")))),0)) ->  | S17: =IF(OR(R$3="",$A17=""),"",IFERROR(ROWS(_xlfn.UNIQUE(_xlfn._xlws.FILTER('インポートデータ(解答履歴)'!$W:$W,('インポートデータ(解答履歴)'!$A:$A=$A17)*('インポートデータ(解答履歴)'!$V:$V=R$3)))),0)) ->  | T17: =IF(OR(R$3="",$A17=""),"",IFERROR(ROWS(_xlfn.UNIQUE(_xlfn._xlws.FILTER('インポートデータ(解答履歴)'!$W:$W,('インポートデータ(解答履歴)'!$A:$A=$A17)*('インポートデータ(解答履歴)'!$V:$V=R$3)*('インポートデータ(解答履歴)'!$Y:$Y="最新")*('インポートデータ(解答履歴)'!$K:$K="◯")))),0)) ->  | U17: =COUNTIFS( 'インポートデータ(解答履歴)'!$A:$A, $A17, 'インポートデータ(解答履歴)'!$C:$C, ">="&(U$3), 'インポートデータ(解答履歴)'!$C:$C, "<"&(U$3+7), 'インポートデータ(解答履歴)'!$P:$P, U$4 ) -> 0 | V17: =COUNTIFS( 'インポートデータ(解答履歴)'!$A:$A, $A17, 'インポートデータ(解答履歴)'!$C:$C, ">="&(V$3), 'インポートデータ(解答履歴)'!$C:$C, "<"&(V$3+7), 'インポートデータ(解答履歴)'!$P:$P, V$4 ) -> 0 | W17: =COUNTIFS( 'インポートデータ(解答履歴)'!$A:$A, $A17, 'インポートデータ(解答履歴)'!$C:$C, ">="&(W$3), 'インポートデータ(解答履歴)'!$C:$C, "<"&(W$3+7), 'インポートデータ(解答履歴)'!$P:$P, W$4 ) -> 0 | X17: =COUNTIFS( 'インポートデータ(解答履歴)'!$A:$A, $A17, 'インポートデータ(解答履歴)'!$C:$C, ">="&(X$3), 'インポートデータ(解答履歴)'!$C:$C, "<"&(X$3+7), 'インポートデータ(解答履歴)'!$P:$P, X$4 ) -> 0 | Y17: =COUNTIFS( 'インポートデータ(解答履歴)'!$A:$A, $A17, 'インポートデータ(解答履歴)'!$C:$C, ">="&(Y$3), 'インポートデータ(解答履歴)'!$C:$C, "<"&(Y$3+7), 'インポートデータ(解答履歴)'!$P:$P, Y$4 ) -> 0 | Z17: =COUNTIFS( 'インポートデータ(解答履歴)'!$A:$A, $A17, 'インポートデータ(解答履歴)'!$C:$C, ">="&(Z$3), 'インポートデータ(解答履歴)'!$C:$C, "<"&(Z$3+7), 'インポートデータ(解答履歴)'!$P:$P, Z$4 ) -> 0 | AA17: =COUNTIFS( 'インポートデータ(解答履歴)'!$A:$A, $A17, 'インポートデータ(解答履歴)'!$C:$C, ">="&(AA$3), 'インポートデータ(解答履歴)'!$C:$C, "<"&(AA$3+7), 'インポートデータ(解答履歴)'!$P:$P, AA$4 ) -> 0 | AB17: =COUNTIFS( 'インポートデータ(解答履歴)'!$A:$A, $A17, 'インポートデータ(解答履歴)'!$C:$C, ">="&(AB$3), 'インポートデータ(解答履歴)'!$C:$C, "<"&(AB$3+7), 'インポートデータ(解答履歴)'!$P:$P, AB$4 ) -> 0 | AC17: =COUNTIFS( 'インポートデータ(解答履歴)'!$A:$A, $A17, 'インポートデータ(解答履歴)'!$C:$C, ">="&(AC$3), 'インポートデータ(解答履歴)'!$C:$C, "<"&(AC$3+7), 'インポートデータ(解答履歴)'!$P:$P, AC$4 ) -> 0 | AD17: =COUNTIFS( 'インポートデータ(解答履歴)'!$A:$A, $A17, 'インポートデータ(解答履歴)'!$C:$C, ">="&(AD$3), 'インポートデータ(解答履歴)'!$C:$C, "<"&(AD$3+7), 'インポートデータ(解答履歴)'!$P:$P, AD$4 ) -> 0 | AE17: =COUNTIFS( 'インポートデータ(解答履歴)'!$A:$A, $A17, 'インポートデータ(解答履歴)'!$C:$C, ">="&(AE$3), 'インポートデータ(解答履歴)'!$C:$C, "<"&(AE$3+7), 'インポートデータ(解答履歴)'!$P:$P, AE$4 ) -> 0 | AF17: =COUNTIFS( 'インポートデータ(解答履歴)'!$A:$A, $A17, 'インポートデータ(解答履歴)'!$C:$C, ">="&(AF$3), 'インポートデータ(解答履歴)'!$C:$C, "<"&(AF$3+7), 'インポートデータ(解答履歴)'!$P:$P, AF$4 ) -> 0 | AG17: =COUNTIFS( 'インポートデータ(解答履歴)'!$A:$A, $A17, 'インポートデータ(解答履歴)'!$C:$C, ">="&(AG$3), 'インポートデータ(解答履歴)'!$C:$C, "<"&(AG$3+7), 'インポートデータ(解答履歴)'!$P:$P, AG$4 ) -> 0 | AH17: =COUNTIFS( 'インポートデータ(解答履歴)'!$A:$A, $A17, 'インポートデータ(解答履歴)'!$C:$C, ">="&(AH$3), 'インポートデータ(解答履歴)'!$C:$C, "<"&(AH$3+7), 'インポートデータ(解答履歴)'!$P:$P, AH$4 ) -> 0 | AI17: =COUNTIFS( 'インポートデータ(解答履歴)'!$A:$A, $A17, 'インポートデータ(解答履歴)'!$C:$C, ">="&(AI$3), 'インポートデータ(解答履歴)'!$C:$C, "<"&(AI$3+7), 'インポートデータ(解答履歴)'!$P:$P, AI$4 ) -> 0 | AJ17: =COUNTIFS( 'インポートデータ(解答履歴)'!$A:$A, $A17, 'インポートデータ(解答履歴)'!$C:$C, ">="&(AJ$3), 'インポートデータ(解答履歴)'!$C:$C, "<"&(AJ$3+7), 'インポートデータ(解答履歴)'!$P:$P, AJ$4 ) -> 0 | AK17: =COUNTIFS( 'インポートデータ(解答履歴)'!$A:$A, $A17, 'インポートデータ(解答履歴)'!$C:$C, ">="&(AK$3), 'インポートデータ(解答履歴)'!$C:$C, "<"&(AK$3+7), 'インポートデータ(解答履歴)'!$P:$P, AK$4 ) -> 0 | AL17: =COUNTIFS( 'インポートデータ(解答履歴)'!$A:$A, $A17, 'インポートデータ(解答履歴)'!$C:$C, ">="&(AL$3), 'インポートデータ(解答履歴)'!$C:$C, "<"&(AL$3+7), 'インポートデータ(解答履歴)'!$P:$P, AL$4 ) -> 0 | AM17: =COUNTIFS( 'インポートデータ(解答履歴)'!$A:$A, $A17, 'インポートデータ(解答履歴)'!$C:$C, ">="&(AM$3), 'インポートデータ(解答履歴)'!$C:$C, "<"&(AM$3+7), 'インポートデータ(解答履歴)'!$P:$P, AM$4 ) -> 0 | AN17: =COUNTIFS( 'インポートデータ(解答履歴)'!$A:$A, $A17, 'インポートデータ(解答履歴)'!$C:$C, ">="&(AN$3), 'インポートデータ(解答履歴)'!$C:$C, "<"&(AN$3+7), 'インポートデータ(解答履歴)'!$P:$P, AN$4 ) -> 0 | AO17: =COUNTIFS( 'インポートデータ(解答履歴)'!$A:$A, $A17, 'インポートデータ(解答履歴)'!$C:$C, ">="&(AO$3), 'インポートデータ(解答履歴)'!$C:$C, "<"&(AO$3+7), 'インポートデータ(解答履歴)'!$P:$P, AO$4 ) -> 0 | AP17: =COUNTIFS( 'インポートデータ(解答履歴)'!$A:$A, $A17, 'インポートデータ(解答履歴)'!$C:$C, ">="&(AP$3), 'インポートデータ(解答履歴)'!$C:$C, "<"&(AP$3+7), 'インポートデータ(解答履歴)'!$P:$P, AP$4 ) -> 0 | AQ17: =COUNTIFS( 'インポートデータ(解答履歴)'!$A:$A, $A17, 'インポートデータ(解答履歴)'!$C:$C, ">="&(AQ$3), 'インポートデータ(解答履歴)'!$C:$C, "<"&(AQ$3+7), 'インポートデータ(解答履歴)'!$P:$P, AQ$4 ) -> 0 | AR17: =COUNTIFS( 'インポートデータ(解答履歴)'!$A:$A, $A17, 'インポートデータ(解答履歴)'!$C:$C, ">="&(AR$3), 'インポートデータ(解答履歴)'!$C:$C, "<"&(AR$3+7), 'インポートデータ(解答履歴)'!$P:$P, AR$4 ) -> 0 | AS17: =COUNTIFS( 'インポートデータ(解答履歴)'!$A:$A, $A17, 'インポートデータ(解答履歴)'!$C:$C, ">="&(AS$3), 'インポートデータ(解答履歴)'!$C:$C, "<"&(AS$3+7), 'インポートデータ(解答履歴)'!$P:$P, AS$4 ) -> 0 | AT17: =COUNTIFS( 'インポートデータ(解答履歴)'!$A:$A, $A17, 'インポートデータ(解答履歴)'!$C:$C, ">="&(AT$3), 'インポートデータ(解答履歴)'!$C:$C, "<"&(AT$3+7), 'インポートデータ(解答履歴)'!$P:$P, AT$4 ) -> 0 | AU17: =COUNTIFS( 'インポートデータ(解答履歴)'!$A:$A, $A17, 'インポートデータ(解答履歴)'!$C:$C, ">="&(AU$3), 'インポートデータ(解答履歴)'!$C:$C, "<"&(AU$3+7), 'インポートデータ(解答履歴)'!$P:$P, AU$4 ) -> 0 | AV17: =COUNTIFS( 'インポートデータ(解答履歴)'!$A:$A, $A17, 'インポートデータ(解答履歴)'!$C:$C, ">="&(AV$3), 'インポートデータ(解答履歴)'!$C:$C, "<"&(AV$3+7), 'インポートデータ(解答履歴)'!$P:$P, AV$4 ) -> 0 | AW17: =COUNTIFS('インポートデータ(解答履歴)'!$A:$A, $A17,'インポートデータ(解答履歴)'!$F:$F, AW$3) -> 0 | AX17: =COUNTIFS('インポートデータ(解答履歴)'!$A:$A, $A17,'インポートデータ(解答履歴)'!$F:$F, AX$3) -> 0 | AY17: =COUNTIFS('インポートデータ(解答履歴)'!$A:$A, $A17,'インポートデータ(解答履歴)'!$F:$F, AY$3) -> 0 | AZ17: =COUNTIFS('インポートデータ(解答履歴)'!$A:$A, $A17,'インポートデータ(解答履歴)'!$F:$F, AZ$3) -> 0 | BA17: =COUNTIFS('インポートデータ(解答履歴)'!$A:$A, $A17,'インポートデータ(解答履歴)'!$F:$F, BA$3) -> 0 | BB17: =COUNTIFS('インポートデータ(解答履歴)'!$A:$A, $A17,'インポートデータ(解答履歴)'!$F:$F, BB$3) -> 0 | BC17: =COUNTIFS('インポートデータ(解答履歴)'!$A:$A, $A17,'インポートデータ(解答履歴)'!$F:$F, BC$3) -> 0 | BD17: =COUNTIFS('インポートデータ(解答履歴)'!$A:$A, $A17,'インポートデータ(解答履歴)'!$F:$F, BD$3) -> 0 | BE17: =COUNTIFS('インポートデータ(解答履歴)'!$A:$A, $A17,'インポートデータ(解答履歴)'!$F:$F, BE$3) -> 0 | BF17: =COUNTIFS('インポートデータ(解答履歴)'!$A:$A, $A17,'インポートデータ(解答履歴)'!$F:$F, BF$3) -> 0 | BG17: =COUNTIFS('インポートデータ(解答履歴)'!$A:$A, $A17,'インポートデータ(解答履歴)'!$F:$F, BG$3) -> 0 | BH17: =COUNTIFS('インポートデータ(解答履歴)'!$A:$A, $A17,'インポートデータ(解答履歴)'!$F:$F, BH$3) -> 0 | BI17: =COUNTIFS('インポートデータ(解答履歴)'!$A:$A, $A17,'インポートデータ(解答履歴)'!$F:$F, BI$3) -> 0 | BJ17: =COUNTIFS('インポートデータ(解答履歴)'!$A:$A, $A17,'インポートデータ(解答履歴)'!$F:$F, BJ$3) -> 0 | BK17: =COUNTIFS('インポートデータ(解答履歴)'!$A:$A, $A17,'インポートデータ(解答履歴)'!$F:$F, BK$3) -> 0 | BL17: =COUNTIFS('インポートデータ(解答履歴)'!$A:$A, $A17,'インポートデータ(解答履歴)'!$F:$F, BL$3) -> 0 | BM17: =COUNTIFS('インポートデータ(解答履歴)'!$A:$A, $A17,'インポートデータ(解答履歴)'!$F:$F, BM$3) -> 0 | BN17: =COUNTIFS('インポートデータ(解答履歴)'!$A:$A, $A17,'インポートデータ(解答履歴)'!$F:$F, BN$3) -> 0 | BO17: =COUNTIFS('インポートデータ(解答履歴)'!$A:$A, $A17,'インポートデータ(解答履歴)'!$F:$F, BO$3) -> 0 | BP17: =COUNTIFS('インポートデータ(解答履歴)'!$A:$A, $A17,'インポートデータ(解答履歴)'!$F:$F, BP$3) -> 0 | BQ17: =COUNTIFS('インポートデータ(解答履歴)'!$A:$A, $A17,'インポートデータ(解答履歴)'!$F:$F, BQ$3) -> 0 | BR17: =COUNTIFS('インポートデータ(解答履歴)'!$A:$A, $A17,'インポートデータ(解答履歴)'!$F:$F, BR$3) -> 0 | BS17: =COUNTIFS('インポートデータ(解答履歴)'!$A:$A, $A17,'インポートデータ(解答履歴)'!$F:$F, BS$3) -> 0 | BT17: =COUNTIFS('インポートデータ(解答履歴)'!$A:$A, $A17,'インポートデータ(解答履歴)'!$F:$F, BT$3) -> 0 | BU17: 0 | BV17: 0 | BW17: 0 | BX17: 0 | BY17: =COUNTIFS('インポートデータ(解答履歴)'!$A:$A, $A17, 'インポートデータ(解答履歴)'!$X:$X, "初回", 'インポートデータ(解答履歴)'!$K:$K, "◯", 'インポートデータ(解答履歴)'!$D:$D, "<="&BZ$2) -> 0 | BZ17: =COUNTIFS('インポートデータ(解答履歴)'!$A:$A, $A17, 'インポートデータ(解答履歴)'!$X:$X, "初回", 'インポートデータ(解答履歴)'!$K:$K, "△", 'インポートデータ(解答履歴)'!$D:$D, "<="&BZ$2) + COUNTIFS('インポートデータ(解答履歴)'!$A:$A, $A17, 'インポートデータ(解答履歴)'!$X:$X, "初回", 'インポートデータ(解答履歴)'!$K:$K, "✕", 'インポートデータ(解答履歴)'!$D:$D, "<="&BZ$2) -> 0 | CA17: 0 | CB17: =COUNTIFS('インポートデータ(解答履歴)'!$A:$A, $A17, 'インポートデータ(解答履歴)'!Z:Z, "△", 'インポートデータ(解答履歴)'!$D:$D, "<="&BZ$2) + COUNTIFS('インポートデータ(解答履歴)'!$A:$A, $A17, 'インポートデータ(解答履歴)'!Z:Z, "✕", 'インポートデータ(解答履歴)'!$D:$D, "<="&BZ$2) -> 0 | CC17: 0 | CD17: =COUNTIFS('インポートデータ(解答履歴)'!$A:$A, $A17, 'インポートデータ(解答履歴)'!$X:$X, "初回", 'インポートデータ(解答履歴)'!$K:$K, "◯", 'インポートデータ(解答履歴)'!$D:$D, "<="&CE$2) -> 0 | CE17: =COUNTIFS('インポートデータ(解答履歴)'!$A:$A, $A17, 'インポートデータ(解答履歴)'!$X:$X, "初回", 'インポートデータ(解答履歴)'!$K:$K, "△", 'インポートデータ(解答履歴)'!$D:$D, "<="&CE$2) + COUNTIFS('インポートデータ(解答履歴)'!$A:$A, $A17, 'インポートデータ(解答履歴)'!$X:$X, "初回", 'インポートデータ(解答履歴)'!$K:$K, "✕", 'インポートデータ(解答履歴)'!$D:$D, "<="&CE$2) -> 0 | CF17: 0 | CG17: =COUNTIFS('インポートデータ(解答履歴)'!$A:$A, $A17, 'インポートデータ(解答履歴)'!Z:Z, "△", 'インポートデータ(解答履歴)'!$D:$D, "<="&CE$2) + COUNTIFS('インポートデータ(解答履歴)'!$A:$A, $A17, 'インポートデータ(解答履歴)'!Z:Z, "✕", 'インポートデータ(解答履歴)'!$D:$D, "<="&CE$2) -> 0 | CH17: 0 | CI17: =SUM(list_group!$C$2:$C$7) -> 42 | CJ17: =IF($A17="","",IFERROR(ROWS(_xlfn.UNIQUE(_xlfn._xlws.FILTER('インポートデータ(解答履歴)'!$W:$W,('インポートデータ(解答履歴)'!$A:$A=$A17)*('インポートデータ(解答履歴)'!$V:$V<>"")*('インポートデータ(解答履歴)'!$V:$V<>0)*('インポートデータ(解答履歴)'!$V:$V<>"該当なし")))),0)) ->  | CK17: =IF($A17="","",IFERROR(ROWS(_xlfn.UNIQUE(_xlfn._xlws.FILTER('インポートデータ(解答履歴)'!$W:$W,('インポートデータ(解答履歴)'!$A:$A=$A17)*('インポートデータ(解答履歴)'!$V:$V<>"")*('インポートデータ(解答履歴)'!$V:$V<>0)*('インポートデータ(解答履歴)'!$V:$V<>"該当なし")*('インポートデータ(解答履歴)'!$Y:$Y="最新")*('インポートデータ(解答履歴)'!$K:$K="◯")))),0)) ->  | CN17: =IF($A17="","",IF(VLOOKUP(A17,生徒情報!A:C,3,FALSE)="","",VLOOKUP(A17,生徒情報!A:C,3,FALSE))) ->  | CO17: 0 | CR17: =SUMIFS('インポートデータ(解答履歴)'!O:O,'インポートデータ(解答履歴)'!A:A,A17) -> 0 | DA17: 0 | DD17: 0
D18: =IF(OR(C$3="",$A18=""),"",IFERROR(ROWS(_xlfn.UNIQUE(_xlfn._xlws.FILTER('インポートデータ(解答履歴)'!$W:$W,('インポートデータ(解答履歴)'!$A:$A=$A18)*('インポートデータ(解答履歴)'!$V:$V=C$3)))),0)) ->  | E18: =IF(OR(C$3="",$A18=""),"",IFERROR(ROWS(_xlfn.UNIQUE(_xlfn._xlws.FILTER('インポートデータ(解答履歴)'!$W:$W,('インポートデータ(解答履歴)'!$A:$A=$A18)*('インポートデータ(解答履歴)'!$V:$V=C$3)*('インポートデータ(解答履歴)'!$Y:$Y="最新")*('インポートデータ(解答履歴)'!$K:$K="◯")))),0)) ->  | G18: =IF(OR(F$3="",$A18=""),"",IFERROR(ROWS(_xlfn.UNIQUE(_xlfn._xlws.FILTER('インポートデータ(解答履歴)'!$W:$W,('インポートデータ(解答履歴)'!$A:$A=$A18)*('インポートデータ(解答履歴)'!$V:$V=F$3)))),0)) ->  | H18: =IF(OR(F$3="",$A18=""),"",IFERROR(ROWS(_xlfn.UNIQUE(_xlfn._xlws.FILTER('インポートデータ(解答履歴)'!$W:$W,('インポートデータ(解答履歴)'!$A:$A=$A18)*('インポートデータ(解答履歴)'!$V:$V=F$3)*('インポートデータ(解答履歴)'!$Y:$Y="最新")*('インポートデータ(解答履歴)'!$K:$K="◯")))),0)) ->  | J18: =IF(OR(I$3="",$A18=""),"",IFERROR(ROWS(_xlfn.UNIQUE(_xlfn._xlws.FILTER('インポートデータ(解答履歴)'!$W:$W,('インポートデータ(解答履歴)'!$A:$A=$A18)*('インポートデータ(解答履歴)'!$V:$V=I$3)))),0)) ->  | K18: =IF(OR(I$3="",$A18=""),"",IFERROR(ROWS(_xlfn.UNIQUE(_xlfn._xlws.FILTER('インポートデータ(解答履歴)'!$W:$W,('インポートデータ(解答履歴)'!$A:$A=$A18)*('インポートデータ(解答履歴)'!$V:$V=I$3)*('インポートデータ(解答履歴)'!$Y:$Y="最新")*('インポートデータ(解答履歴)'!$K:$K="◯")))),0)) ->  | M18: =IF(OR(L$3="",$A18=""),"",IFERROR(ROWS(_xlfn.UNIQUE(_xlfn._xlws.FILTER('インポートデータ(解答履歴)'!$W:$W,('インポートデータ(解答履歴)'!$A:$A=$A18)*('インポートデータ(解答履歴)'!$V:$V=L$3)))),0)) ->  | N18: =IF(OR(L$3="",$A18=""),"",IFERROR(ROWS(_xlfn.UNIQUE(_xlfn._xlws.FILTER('インポートデータ(解答履歴)'!$W:$W,('インポートデータ(解答履歴)'!$A:$A=$A18)*('インポートデータ(解答履歴)'!$V:$V=L$3)*('インポートデータ(解答履歴)'!$Y:$Y="最新")*('インポートデータ(解答履歴)'!$K:$K="◯")))),0)) ->  | P18: =IF(OR(O$3="",$A18=""),"",IFERROR(ROWS(_xlfn.UNIQUE(_xlfn._xlws.FILTER('インポートデータ(解答履歴)'!$W:$W,('インポートデータ(解答履歴)'!$A:$A=$A18)*('インポートデータ(解答履歴)'!$V:$V=O$3)))),0)) ->  | Q18: =IF(OR(O$3="",$A18=""),"",IFERROR(ROWS(_xlfn.UNIQUE(_xlfn._xlws.FILTER('インポートデータ(解答履歴)'!$W:$W,('インポートデータ(解答履歴)'!$A:$A=$A18)*('インポートデータ(解答履歴)'!$V:$V=O$3)*('インポートデータ(解答履歴)'!$Y:$Y="最新")*('インポートデータ(解答履歴)'!$K:$K="◯")))),0)) ->  | S18: =IF(OR(R$3="",$A18=""),"",IFERROR(ROWS(_xlfn.UNIQUE(_xlfn._xlws.FILTER('インポートデータ(解答履歴)'!$W:$W,('インポートデータ(解答履歴)'!$A:$A=$A18)*('インポートデータ(解答履歴)'!$V:$V=R$3)))),0)) ->  | T18: =IF(OR(R$3="",$A18=""),"",IFERROR(ROWS(_xlfn.UNIQUE(_xlfn._xlws.FILTER('インポートデータ(解答履歴)'!$W:$W,('インポートデータ(解答履歴)'!$A:$A=$A18)*('インポートデータ(解答履歴)'!$V:$V=R$3)*('インポートデータ(解答履歴)'!$Y:$Y="最新")*('インポートデータ(解答履歴)'!$K:$K="◯")))),0)) ->  | U18: =COUNTIFS( 'インポートデータ(解答履歴)'!$A:$A, $A18, 'インポートデータ(解答履歴)'!$C:$C, ">="&(U$3), 'インポートデータ(解答履歴)'!$C:$C, "<"&(U$3+7), 'インポートデータ(解答履歴)'!$P:$P, U$4 ) -> 0 | V18: =COUNTIFS( 'インポートデータ(解答履歴)'!$A:$A, $A18, 'インポートデータ(解答履歴)'!$C:$C, ">="&(V$3), 'インポートデータ(解答履歴)'!$C:$C, "<"&(V$3+7), 'インポートデータ(解答履歴)'!$P:$P, V$4 ) -> 0 | W18: =COUNTIFS( 'インポートデータ(解答履歴)'!$A:$A, $A18, 'インポートデータ(解答履歴)'!$C:$C, ">="&(W$3), 'インポートデータ(解答履歴)'!$C:$C, "<"&(W$3+7), 'インポートデータ(解答履歴)'!$P:$P, W$4 ) -> 0 | X18: =COUNTIFS( 'インポートデータ(解答履歴)'!$A:$A, $A18, 'インポートデータ(解答履歴)'!$C:$C, ">="&(X$3), 'インポートデータ(解答履歴)'!$C:$C, "<"&(X$3+7), 'インポートデータ(解答履歴)'!$P:$P, X$4 ) -> 0 | Y18: =COUNTIFS( 'インポートデータ(解答履歴)'!$A:$A, $A18, 'インポートデータ(解答履歴)'!$C:$C, ">="&(Y$3), 'インポートデータ(解答履歴)'!$C:$C, "<"&(Y$3+7), 'インポートデータ(解答履歴)'!$P:$P, Y$4 ) -> 0 | Z18: =COUNTIFS( 'インポートデータ(解答履歴)'!$A:$A, $A18, 'インポートデータ(解答履歴)'!$C:$C, ">="&(Z$3), 'インポートデータ(解答履歴)'!$C:$C, "<"&(Z$3+7), 'インポートデータ(解答履歴)'!$P:$P, Z$4 ) -> 0 | AA18: =COUNTIFS( 'インポートデータ(解答履歴)'!$A:$A, $A18, 'インポートデータ(解答履歴)'!$C:$C, ">="&(AA$3), 'インポートデータ(解答履歴)'!$C:$C, "<"&(AA$3+7), 'インポートデータ(解答履歴)'!$P:$P, AA$4 ) -> 0 | AB18: =COUNTIFS( 'インポートデータ(解答履歴)'!$A:$A, $A18, 'インポートデータ(解答履歴)'!$C:$C, ">="&(AB$3), 'インポートデータ(解答履歴)'!$C:$C, "<"&(AB$3+7), 'インポートデータ(解答履歴)'!$P:$P, AB$4 ) -> 0 | AC18: =COUNTIFS( 'インポートデータ(解答履歴)'!$A:$A, $A18, 'インポートデータ(解答履歴)'!$C:$C, ">="&(AC$3), 'インポートデータ(解答履歴)'!$C:$C, "<"&(AC$3+7), 'インポートデータ(解答履歴)'!$P:$P, AC$4 ) -> 0 | AD18: =COUNTIFS( 'インポートデータ(解答履歴)'!$A:$A, $A18, 'インポートデータ(解答履歴)'!$C:$C, ">="&(AD$3), 'インポートデータ(解答履歴)'!$C:$C, "<"&(AD$3+7), 'インポートデータ(解答履歴)'!$P:$P, AD$4 ) -> 0 | AE18: =COUNTIFS( 'インポートデータ(解答履歴)'!$A:$A, $A18, 'インポートデータ(解答履歴)'!$C:$C, ">="&(AE$3), 'インポートデータ(解答履歴)'!$C:$C, "<"&(AE$3+7), 'インポートデータ(解答履歴)'!$P:$P, AE$4 ) -> 0 | AF18: =COUNTIFS( 'インポートデータ(解答履歴)'!$A:$A, $A18, 'インポートデータ(解答履歴)'!$C:$C, ">="&(AF$3), 'インポートデータ(解答履歴)'!$C:$C, "<"&(AF$3+7), 'インポートデータ(解答履歴)'!$P:$P, AF$4 ) -> 0 | AG18: =COUNTIFS( 'インポートデータ(解答履歴)'!$A:$A, $A18, 'インポートデータ(解答履歴)'!$C:$C, ">="&(AG$3), 'インポートデータ(解答履歴)'!$C:$C, "<"&(AG$3+7), 'インポートデータ(解答履歴)'!$P:$P, AG$4 ) -> 0 | AH18: =COUNTIFS( 'インポートデータ(解答履歴)'!$A:$A, $A18, 'インポートデータ(解答履歴)'!$C:$C, ">="&(AH$3), 'インポートデータ(解答履歴)'!$C:$C, "<"&(AH$3+7), 'インポートデータ(解答履歴)'!$P:$P, AH$4 ) -> 0 | AI18: =COUNTIFS( 'インポートデータ(解答履歴)'!$A:$A, $A18, 'インポートデータ(解答履歴)'!$C:$C, ">="&(AI$3), 'インポートデータ(解答履歴)'!$C:$C, "<"&(AI$3+7), 'インポートデータ(解答履歴)'!$P:$P, AI$4 ) -> 0 | AJ18: =COUNTIFS( 'インポートデータ(解答履歴)'!$A:$A, $A18, 'インポートデータ(解答履歴)'!$C:$C, ">="&(AJ$3), 'インポートデータ(解答履歴)'!$C:$C, "<"&(AJ$3+7), 'インポートデータ(解答履歴)'!$P:$P, AJ$4 ) -> 0 | AK18: =COUNTIFS( 'インポートデータ(解答履歴)'!$A:$A, $A18, 'インポートデータ(解答履歴)'!$C:$C, ">="&(AK$3), 'インポートデータ(解答履歴)'!$C:$C, "<"&(AK$3+7), 'インポートデータ(解答履歴)'!$P:$P, AK$4 ) -> 0 | AL18: =COUNTIFS( 'インポートデータ(解答履歴)'!$A:$A, $A18, 'インポートデータ(解答履歴)'!$C:$C, ">="&(AL$3), 'インポートデータ(解答履歴)'!$C:$C, "<"&(AL$3+7), 'インポートデータ(解答履歴)'!$P:$P, AL$4 ) -> 0 | AM18: =COUNTIFS( 'インポートデータ(解答履歴)'!$A:$A, $A18, 'インポートデータ(解答履歴)'!$C:$C, ">="&(AM$3), 'インポートデータ(解答履歴)'!$C:$C, "<"&(AM$3+7), 'インポートデータ(解答履歴)'!$P:$P, AM$4 ) -> 0 | AN18: =COUNTIFS( 'インポートデータ(解答履歴)'!$A:$A, $A18, 'インポートデータ(解答履歴)'!$C:$C, ">="&(AN$3), 'インポートデータ(解答履歴)'!$C:$C, "<"&(AN$3+7), 'インポートデータ(解答履歴)'!$P:$P, AN$4 ) -> 0 | AO18: =COUNTIFS( 'インポートデータ(解答履歴)'!$A:$A, $A18, 'インポートデータ(解答履歴)'!$C:$C, ">="&(AO$3), 'インポートデータ(解答履歴)'!$C:$C, "<"&(AO$3+7), 'インポートデータ(解答履歴)'!$P:$P, AO$4 ) -> 0 | AP18: =COUNTIFS( 'インポートデータ(解答履歴)'!$A:$A, $A18, 'インポートデータ(解答履歴)'!$C:$C, ">="&(AP$3), 'インポートデータ(解答履歴)'!$C:$C, "<"&(AP$3+7), 'インポートデータ(解答履歴)'!$P:$P, AP$4 ) -> 0 | AQ18: =COUNTIFS( 'インポートデータ(解答履歴)'!$A:$A, $A18, 'インポートデータ(解答履歴)'!$C:$C, ">="&(AQ$3), 'インポートデータ(解答履歴)'!$C:$C, "<"&(AQ$3+7), 'インポートデータ(解答履歴)'!$P:$P, AQ$4 ) -> 0 | AR18: =COUNTIFS( 'インポートデータ(解答履歴)'!$A:$A, $A18, 'インポートデータ(解答履歴)'!$C:$C, ">="&(AR$3), 'インポートデータ(解答履歴)'!$C:$C, "<"&(AR$3+7), 'インポートデータ(解答履歴)'!$P:$P, AR$4 ) -> 0 | AS18: =COUNTIFS( 'インポートデータ(解答履歴)'!$A:$A, $A18, 'インポートデータ(解答履歴)'!$C:$C, ">="&(AS$3), 'インポートデータ(解答履歴)'!$C:$C, "<"&(AS$3+7), 'インポートデータ(解答履歴)'!$P:$P, AS$4 ) -> 0 | AT18: =COUNTIFS( 'インポートデータ(解答履歴)'!$A:$A, $A18, 'インポートデータ(解答履歴)'!$C:$C, ">="&(AT$3), 'インポートデータ(解答履歴)'!$C:$C, "<"&(AT$3+7), 'インポートデータ(解答履歴)'!$P:$P, AT$4 ) -> 0 | AU18: =COUNTIFS( 'インポートデータ(解答履歴)'!$A:$A, $A18, 'インポートデータ(解答履歴)'!$C:$C, ">="&(AU$3), 'インポートデータ(解答履歴)'!$C:$C, "<"&(AU$3+7), 'インポートデータ(解答履歴)'!$P:$P, AU$4 ) -> 0 | AV18: =COUNTIFS( 'インポートデータ(解答履歴)'!$A:$A, $A18, 'インポートデータ(解答履歴)'!$C:$C, ">="&(AV$3), 'インポートデータ(解答履歴)'!$C:$C, "<"&(AV$3+7), 'インポートデータ(解答履歴)'!$P:$P, AV$4 ) -> 0 | AW18: =COUNTIFS('インポートデータ(解答履歴)'!$A:$A, $A18,'インポートデータ(解答履歴)'!$F:$F, AW$3) -> 0 | AX18: =COUNTIFS('インポートデータ(解答履歴)'!$A:$A, $A18,'インポートデータ(解答履歴)'!$F:$F, AX$3) -> 0 | AY18: =COUNTIFS('インポートデータ(解答履歴)'!$A:$A, $A18,'インポートデータ(解答履歴)'!$F:$F, AY$3) -> 0 | AZ18: =COUNTIFS('インポートデータ(解答履歴)'!$A:$A, $A18,'インポートデータ(解答履歴)'!$F:$F, AZ$3) -> 0 | BA18: =COUNTIFS('インポートデータ(解答履歴)'!$A:$A, $A18,'インポートデータ(解答履歴)'!$F:$F, BA$3) -> 0 | BB18: =COUNTIFS('インポートデータ(解答履歴)'!$A:$A, $A18,'インポートデータ(解答履歴)'!$F:$F, BB$3) -> 0 | BC18: =COUNTIFS('インポートデータ(解答履歴)'!$A:$A, $A18,'インポートデータ(解答履歴)'!$F:$F, BC$3) -> 0 | BD18: =COUNTIFS('インポートデータ(解答履歴)'!$A:$A, $A18,'インポートデータ(解答履歴)'!$F:$F, BD$3) -> 0 | BE18: =COUNTIFS('インポートデータ(解答履歴)'!$A:$A, $A18,'インポートデータ(解答履歴)'!$F:$F, BE$3) -> 0 | BF18: =COUNTIFS('インポートデータ(解答履歴)'!$A:$A, $A18,'インポートデータ(解答履歴)'!$F:$F, BF$3) -> 0 | BG18: =COUNTIFS('インポートデータ(解答履歴)'!$A:$A, $A18,'インポートデータ(解答履歴)'!$F:$F, BG$3) -> 0 | BH18: =COUNTIFS('インポートデータ(解答履歴)'!$A:$A, $A18,'インポートデータ(解答履歴)'!$F:$F, BH$3) -> 0 | BI18: =COUNTIFS('インポートデータ(解答履歴)'!$A:$A, $A18,'インポートデータ(解答履歴)'!$F:$F, BI$3) -> 0 | BJ18: =COUNTIFS('インポートデータ(解答履歴)'!$A:$A, $A18,'インポートデータ(解答履歴)'!$F:$F, BJ$3) -> 0 | BK18: =COUNTIFS('インポートデータ(解答履歴)'!$A:$A, $A18,'インポートデータ(解答履歴)'!$F:$F, BK$3) -> 0 | BL18: =COUNTIFS('インポートデータ(解答履歴)'!$A:$A, $A18,'インポートデータ(解答履歴)'!$F:$F, BL$3) -> 0 | BM18: =COUNTIFS('インポートデータ(解答履歴)'!$A:$A, $A18,'インポートデータ(解答履歴)'!$F:$F, BM$3) -> 0 | BN18: =COUNTIFS('インポートデータ(解答履歴)'!$A:$A, $A18,'インポートデータ(解答履歴)'!$F:$F, BN$3) -> 0 | BO18: =COUNTIFS('インポートデータ(解答履歴)'!$A:$A, $A18,'インポートデータ(解答履歴)'!$F:$F, BO$3) -> 0 | BP18: =COUNTIFS('インポートデータ(解答履歴)'!$A:$A, $A18,'インポートデータ(解答履歴)'!$F:$F, BP$3) -> 0 | BQ18: =COUNTIFS('インポートデータ(解答履歴)'!$A:$A, $A18,'インポートデータ(解答履歴)'!$F:$F, BQ$3) -> 0 | BR18: =COUNTIFS('インポートデータ(解答履歴)'!$A:$A, $A18,'インポートデータ(解答履歴)'!$F:$F, BR$3) -> 0 | BS18: =COUNTIFS('インポートデータ(解答履歴)'!$A:$A, $A18,'インポートデータ(解答履歴)'!$F:$F, BS$3) -> 0 | BT18: =COUNTIFS('インポートデータ(解答履歴)'!$A:$A, $A18,'インポートデータ(解答履歴)'!$F:$F, BT$3) -> 0 | BU18: 0 | BV18: 0 | BW18: 0 | BX18: 0 | BY18: =COUNTIFS('インポートデータ(解答履歴)'!$A:$A, $A18, 'インポートデータ(解答履歴)'!$X:$X, "初回", 'インポートデータ(解答履歴)'!$K:$K, "◯", 'インポートデータ(解答履歴)'!$D:$D, "<="&BZ$2) -> 0 | BZ18: =COUNTIFS('インポートデータ(解答履歴)'!$A:$A, $A18, 'インポートデータ(解答履歴)'!$X:$X, "初回", 'インポートデータ(解答履歴)'!$K:$K, "△", 'インポートデータ(解答履歴)'!$D:$D, "<="&BZ$2) + COUNTIFS('インポートデータ(解答履歴)'!$A:$A, $A18, 'インポートデータ(解答履歴)'!$X:$X, "初回", 'インポートデータ(解答履歴)'!$K:$K, "✕", 'インポートデータ(解答履歴)'!$D:$D, "<="&BZ$2) -> 0 | CA18: 0 | CB18: =COUNTIFS('インポートデータ(解答履歴)'!$A:$A, $A18, 'インポートデータ(解答履歴)'!Z:Z, "△", 'インポートデータ(解答履歴)'!$D:$D, "<="&BZ$2) + COUNTIFS('インポートデータ(解答履歴)'!$A:$A, $A18, 'インポートデータ(解答履歴)'!Z:Z, "✕", 'インポートデータ(解答履歴)'!$D:$D, "<="&BZ$2) -> 0 | CC18: 0 | CD18: =COUNTIFS('インポートデータ(解答履歴)'!$A:$A, $A18, 'インポートデータ(解答履歴)'!$X:$X, "初回", 'インポートデータ(解答履歴)'!$K:$K, "◯", 'インポートデータ(解答履歴)'!$D:$D, "<="&CE$2) -> 0 | CE18: =COUNTIFS('インポートデータ(解答履歴)'!$A:$A, $A18, 'インポートデータ(解答履歴)'!$X:$X, "初回", 'インポートデータ(解答履歴)'!$K:$K, "△", 'インポートデータ(解答履歴)'!$D:$D, "<="&CE$2) + COUNTIFS('インポートデータ(解答履歴)'!$A:$A, $A18, 'インポートデータ(解答履歴)'!$X:$X, "初回", 'インポートデータ(解答履歴)'!$K:$K, "✕", 'インポートデータ(解答履歴)'!$D:$D, "<="&CE$2) -> 0 | CF18: 0 | CG18: =COUNTIFS('インポートデータ(解答履歴)'!$A:$A, $A18, 'インポートデータ(解答履歴)'!Z:Z, "△", 'インポートデータ(解答履歴)'!$D:$D, "<="&CE$2) + COUNTIFS('インポートデータ(解答履歴)'!$A:$A, $A18, 'インポートデータ(解答履歴)'!Z:Z, "✕", 'インポートデータ(解答履歴)'!$D:$D, "<="&CE$2) -> 0 | CH18: 0 | CI18: =SUM(list_group!$C$2:$C$7) -> 42 | CJ18: =IF($A18="","",IFERROR(ROWS(_xlfn.UNIQUE(_xlfn._xlws.FILTER('インポートデータ(解答履歴)'!$W:$W,('インポートデータ(解答履歴)'!$A:$A=$A18)*('インポートデータ(解答履歴)'!$V:$V<>"")*('インポートデータ(解答履歴)'!$V:$V<>0)*('インポートデータ(解答履歴)'!$V:$V<>"該当なし")))),0)) ->  | CK18: =IF($A18="","",IFERROR(ROWS(_xlfn.UNIQUE(_xlfn._xlws.FILTER('インポートデータ(解答履歴)'!$W:$W,('インポートデータ(解答履歴)'!$A:$A=$A18)*('インポートデータ(解答履歴)'!$V:$V<>"")*('インポートデータ(解答履歴)'!$V:$V<>0)*('インポートデータ(解答履歴)'!$V:$V<>"該当なし")*('インポートデータ(解答履歴)'!$Y:$Y="最新")*('インポートデータ(解答履歴)'!$K:$K="◯")))),0)) ->  | CN18: =IF($A18="","",IF(VLOOKUP(A18,生徒情報!A:C,3,FALSE)="","",VLOOKUP(A18,生徒情報!A:C,3,FALSE))) ->  | CO18: 0 | CR18: =SUMIFS('インポートデータ(解答履歴)'!O:O,'インポートデータ(解答履歴)'!A:A,A18) -> 0 | DA18: 0 | DD18: 0
D19: =IF(OR(C$3="",$A19=""),"",IFERROR(ROWS(_xlfn.UNIQUE(_xlfn._xlws.FILTER('インポートデータ(解答履歴)'!$W:$W,('インポートデータ(解答履歴)'!$A:$A=$A19)*('インポートデータ(解答履歴)'!$V:$V=C$3)))),0)) ->  | E19: =IF(OR(C$3="",$A19=""),"",IFERROR(ROWS(_xlfn.UNIQUE(_xlfn._xlws.FILTER('インポートデータ(解答履歴)'!$W:$W,('インポートデータ(解答履歴)'!$A:$A=$A19)*('インポートデータ(解答履歴)'!$V:$V=C$3)*('インポートデータ(解答履歴)'!$Y:$Y="最新")*('インポートデータ(解答履歴)'!$K:$K="◯")))),0)) ->  | G19: =IF(OR(F$3="",$A19=""),"",IFERROR(ROWS(_xlfn.UNIQUE(_xlfn._xlws.FILTER('インポートデータ(解答履歴)'!$W:$W,('インポートデータ(解答履歴)'!$A:$A=$A19)*('インポートデータ(解答履歴)'!$V:$V=F$3)))),0)) ->  | H19: =IF(OR(F$3="",$A19=""),"",IFERROR(ROWS(_xlfn.UNIQUE(_xlfn._xlws.FILTER('インポートデータ(解答履歴)'!$W:$W,('インポートデータ(解答履歴)'!$A:$A=$A19)*('インポートデータ(解答履歴)'!$V:$V=F$3)*('インポートデータ(解答履歴)'!$Y:$Y="最新")*('インポートデータ(解答履歴)'!$K:$K="◯")))),0)) ->  | J19: =IF(OR(I$3="",$A19=""),"",IFERROR(ROWS(_xlfn.UNIQUE(_xlfn._xlws.FILTER('インポートデータ(解答履歴)'!$W:$W,('インポートデータ(解答履歴)'!$A:$A=$A19)*('インポートデータ(解答履歴)'!$V:$V=I$3)))),0)) ->  | K19: =IF(OR(I$3="",$A19=""),"",IFERROR(ROWS(_xlfn.UNIQUE(_xlfn._xlws.FILTER('インポートデータ(解答履歴)'!$W:$W,('インポートデータ(解答履歴)'!$A:$A=$A19)*('インポートデータ(解答履歴)'!$V:$V=I$3)*('インポートデータ(解答履歴)'!$Y:$Y="最新")*('インポートデータ(解答履歴)'!$K:$K="◯")))),0)) ->  | M19: =IF(OR(L$3="",$A19=""),"",IFERROR(ROWS(_xlfn.UNIQUE(_xlfn._xlws.FILTER('インポートデータ(解答履歴)'!$W:$W,('インポートデータ(解答履歴)'!$A:$A=$A19)*('インポートデータ(解答履歴)'!$V:$V=L$3)))),0)) ->  | N19: =IF(OR(L$3="",$A19=""),"",IFERROR(ROWS(_xlfn.UNIQUE(_xlfn._xlws.FILTER('インポートデータ(解答履歴)'!$W:$W,('インポートデータ(解答履歴)'!$A:$A=$A19)*('インポートデータ(解答履歴)'!$V:$V=L$3)*('インポートデータ(解答履歴)'!$Y:$Y="最新")*('インポートデータ(解答履歴)'!$K:$K="◯")))),0)) ->  | P19: =IF(OR(O$3="",$A19=""),"",IFERROR(ROWS(_xlfn.UNIQUE(_xlfn._xlws.FILTER('インポートデータ(解答履歴)'!$W:$W,('インポートデータ(解答履歴)'!$A:$A=$A19)*('インポートデータ(解答履歴)'!$V:$V=O$3)))),0)) ->  | Q19: =IF(OR(O$3="",$A19=""),"",IFERROR(ROWS(_xlfn.UNIQUE(_xlfn._xlws.FILTER('インポートデータ(解答履歴)'!$W:$W,('インポートデータ(解答履歴)'!$A:$A=$A19)*('インポートデータ(解答履歴)'!$V:$V=O$3)*('インポートデータ(解答履歴)'!$Y:$Y="最新")*('インポートデータ(解答履歴)'!$K:$K="◯")))),0)) ->  | S19: =IF(OR(R$3="",$A19=""),"",IFERROR(ROWS(_xlfn.UNIQUE(_xlfn._xlws.FILTER('インポートデータ(解答履歴)'!$W:$W,('インポートデータ(解答履歴)'!$A:$A=$A19)*('インポートデータ(解答履歴)'!$V:$V=R$3)))),0)) ->  | T19: =IF(OR(R$3="",$A19=""),"",IFERROR(ROWS(_xlfn.UNIQUE(_xlfn._xlws.FILTER('インポートデータ(解答履歴)'!$W:$W,('インポートデータ(解答履歴)'!$A:$A=$A19)*('インポートデータ(解答履歴)'!$V:$V=R$3)*('インポートデータ(解答履歴)'!$Y:$Y="最新")*('インポートデータ(解答履歴)'!$K:$K="◯")))),0)) ->  | U19: =COUNTIFS( 'インポートデータ(解答履歴)'!$A:$A, $A19, 'インポートデータ(解答履歴)'!$C:$C, ">="&(U$3), 'インポートデータ(解答履歴)'!$C:$C, "<"&(U$3+7), 'インポートデータ(解答履歴)'!$P:$P, U$4 ) -> 0 | V19: =COUNTIFS( 'インポートデータ(解答履歴)'!$A:$A, $A19, 'インポートデータ(解答履歴)'!$C:$C, ">="&(V$3), 'インポートデータ(解答履歴)'!$C:$C, "<"&(V$3+7), 'インポートデータ(解答履歴)'!$P:$P, V$4 ) -> 0 | W19: =COUNTIFS( 'インポートデータ(解答履歴)'!$A:$A, $A19, 'インポートデータ(解答履歴)'!$C:$C, ">="&(W$3), 'インポートデータ(解答履歴)'!$C:$C, "<"&(W$3+7), 'インポートデータ(解答履歴)'!$P:$P, W$4 ) -> 0 | X19: =COUNTIFS( 'インポートデータ(解答履歴)'!$A:$A, $A19, 'インポートデータ(解答履歴)'!$C:$C, ">="&(X$3), 'インポートデータ(解答履歴)'!$C:$C, "<"&(X$3+7), 'インポートデータ(解答履歴)'!$P:$P, X$4 ) -> 0 | Y19: =COUNTIFS( 'インポートデータ(解答履歴)'!$A:$A, $A19, 'インポートデータ(解答履歴)'!$C:$C, ">="&(Y$3), 'インポートデータ(解答履歴)'!$C:$C, "<"&(Y$3+7), 'インポートデータ(解答履歴)'!$P:$P, Y$4 ) -> 0 | Z19: =COUNTIFS( 'インポートデータ(解答履歴)'!$A:$A, $A19, 'インポートデータ(解答履歴)'!$C:$C, ">="&(Z$3), 'インポートデータ(解答履歴)'!$C:$C, "<"&(Z$3+7), 'インポートデータ(解答履歴)'!$P:$P, Z$4 ) -> 0 | AA19: =COUNTIFS( 'インポートデータ(解答履歴)'!$A:$A, $A19, 'インポートデータ(解答履歴)'!$C:$C, ">="&(AA$3), 'インポートデータ(解答履歴)'!$C:$C, "<"&(AA$3+7), 'インポートデータ(解答履歴)'!$P:$P, AA$4 ) -> 0 | AB19: =COUNTIFS( 'インポートデータ(解答履歴)'!$A:$A, $A19, 'インポートデータ(解答履歴)'!$C:$C, ">="&(AB$3), 'インポートデータ(解答履歴)'!$C:$C, "<"&(AB$3+7), 'インポートデータ(解答履歴)'!$P:$P, AB$4 ) -> 0 | AC19: =COUNTIFS( 'インポートデータ(解答履歴)'!$A:$A, $A19, 'インポートデータ(解答履歴)'!$C:$C, ">="&(AC$3), 'インポートデータ(解答履歴)'!$C:$C, "<"&(AC$3+7), 'インポートデータ(解答履歴)'!$P:$P, AC$4 ) -> 0 | AD19: =COUNTIFS( 'インポートデータ(解答履歴)'!$A:$A, $A19, 'インポートデータ(解答履歴)'!$C:$C, ">="&(AD$3), 'インポートデータ(解答履歴)'!$C:$C, "<"&(AD$3+7), 'インポートデータ(解答履歴)'!$P:$P, AD$4 ) -> 0 | AE19: =COUNTIFS( 'インポートデータ(解答履歴)'!$A:$A, $A19, 'インポートデータ(解答履歴)'!$C:$C, ">="&(AE$3), 'インポートデータ(解答履歴)'!$C:$C, "<"&(AE$3+7), 'インポートデータ(解答履歴)'!$P:$P, AE$4 ) -> 0 | AF19: =COUNTIFS( 'インポートデータ(解答履歴)'!$A:$A, $A19, 'インポートデータ(解答履歴)'!$C:$C, ">="&(AF$3), 'インポートデータ(解答履歴)'!$C:$C, "<"&(AF$3+7), 'インポートデータ(解答履歴)'!$P:$P, AF$4 ) -> 0 | AG19: =COUNTIFS( 'インポートデータ(解答履歴)'!$A:$A, $A19, 'インポートデータ(解答履歴)'!$C:$C, ">="&(AG$3), 'インポートデータ(解答履歴)'!$C:$C, "<"&(AG$3+7), 'インポートデータ(解答履歴)'!$P:$P, AG$4 ) -> 0 | AH19: =COUNTIFS( 'インポートデータ(解答履歴)'!$A:$A, $A19, 'インポートデータ(解答履歴)'!$C:$C, ">="&(AH$3), 'インポートデータ(解答履歴)'!$C:$C, "<"&(AH$3+7), 'インポートデータ(解答履歴)'!$P:$P, AH$4 ) -> 0 | AI19: =COUNTIFS( 'インポートデータ(解答履歴)'!$A:$A, $A19, 'インポートデータ(解答履歴)'!$C:$C, ">="&(AI$3), 'インポートデータ(解答履歴)'!$C:$C, "<"&(AI$3+7), 'インポートデータ(解答履歴)'!$P:$P, AI$4 ) -> 0 | AJ19: =COUNTIFS( 'インポートデータ(解答履歴)'!$A:$A, $A19, 'インポートデータ(解答履歴)'!$C:$C, ">="&(AJ$3), 'インポートデータ(解答履歴)'!$C:$C, "<"&(AJ$3+7), 'インポートデータ(解答履歴)'!$P:$P, AJ$4 ) -> 0 | AK19: =COUNTIFS( 'インポートデータ(解答履歴)'!$A:$A, $A19, 'インポートデータ(解答履歴)'!$C:$C, ">="&(AK$3), 'インポートデータ(解答履歴)'!$C:$C, "<"&(AK$3+7), 'インポートデータ(解答履歴)'!$P:$P, AK$4 ) -> 0 | AL19: =COUNTIFS( 'インポートデータ(解答履歴)'!$A:$A, $A19, 'インポートデータ(解答履歴)'!$C:$C, ">="&(AL$3), 'インポートデータ(解答履歴)'!$C:$C, "<"&(AL$3+7), 'インポートデータ(解答履歴)'!$P:$P, AL$4 ) -> 0 | AM19: =COUNTIFS( 'インポートデータ(解答履歴)'!$A:$A, $A19, 'インポートデータ(解答履歴)'!$C:$C, ">="&(AM$3), 'インポートデータ(解答履歴)'!$C:$C, "<"&(AM$3+7), 'インポートデータ(解答履歴)'!$P:$P, AM$4 ) -> 0 | AN19: =COUNTIFS( 'インポートデータ(解答履歴)'!$A:$A, $A19, 'インポートデータ(解答履歴)'!$C:$C, ">="&(AN$3), 'インポートデータ(解答履歴)'!$C:$C, "<"&(AN$3+7), 'インポートデータ(解答履歴)'!$P:$P, AN$4 ) -> 0 | AO19: =COUNTIFS( 'インポートデータ(解答履歴)'!$A:$A, $A19, 'インポートデータ(解答履歴)'!$C:$C, ">="&(AO$3), 'インポートデータ(解答履歴)'!$C:$C, "<"&(AO$3+7), 'インポートデータ(解答履歴)'!$P:$P, AO$4 ) -> 0 | AP19: =COUNTIFS( 'インポートデータ(解答履歴)'!$A:$A, $A19, 'インポートデータ(解答履歴)'!$C:$C, ">="&(AP$3), 'インポートデータ(解答履歴)'!$C:$C, "<"&(AP$3+7), 'インポートデータ(解答履歴)'!$P:$P, AP$4 ) -> 0 | AQ19: =COUNTIFS( 'インポートデータ(解答履歴)'!$A:$A, $A19, 'インポートデータ(解答履歴)'!$C:$C, ">="&(AQ$3), 'インポートデータ(解答履歴)'!$C:$C, "<"&(AQ$3+7), 'インポートデータ(解答履歴)'!$P:$P, AQ$4 ) -> 0 | AR19: =COUNTIFS( 'インポートデータ(解答履歴)'!$A:$A, $A19, 'インポートデータ(解答履歴)'!$C:$C, ">="&(AR$3), 'インポートデータ(解答履歴)'!$C:$C, "<"&(AR$3+7), 'インポートデータ(解答履歴)'!$P:$P, AR$4 ) -> 0 | AS19: =COUNTIFS( 'インポートデータ(解答履歴)'!$A:$A, $A19, 'インポートデータ(解答履歴)'!$C:$C, ">="&(AS$3), 'インポートデータ(解答履歴)'!$C:$C, "<"&(AS$3+7), 'インポートデータ(解答履歴)'!$P:$P, AS$4 ) -> 0 | AT19: =COUNTIFS( 'インポートデータ(解答履歴)'!$A:$A, $A19, 'インポートデータ(解答履歴)'!$C:$C, ">="&(AT$3), 'インポートデータ(解答履歴)'!$C:$C, "<"&(AT$3+7), 'インポートデータ(解答履歴)'!$P:$P, AT$4 ) -> 0 | AU19: =COUNTIFS( 'インポートデータ(解答履歴)'!$A:$A, $A19, 'インポートデータ(解答履歴)'!$C:$C, ">="&(AU$3), 'インポートデータ(解答履歴)'!$C:$C, "<"&(AU$3+7), 'インポートデータ(解答履歴)'!$P:$P, AU$4 ) -> 0 | AV19: =COUNTIFS( 'インポートデータ(解答履歴)'!$A:$A, $A19, 'インポートデータ(解答履歴)'!$C:$C, ">="&(AV$3), 'インポートデータ(解答履歴)'!$C:$C, "<"&(AV$3+7), 'インポートデータ(解答履歴)'!$P:$P, AV$4 ) -> 0 | AW19: =COUNTIFS('インポートデータ(解答履歴)'!$A:$A, $A19,'インポートデータ(解答履歴)'!$F:$F, AW$3) -> 0 | AX19: =COUNTIFS('インポートデータ(解答履歴)'!$A:$A, $A19,'インポートデータ(解答履歴)'!$F:$F, AX$3) -> 0 | AY19: =COUNTIFS('インポートデータ(解答履歴)'!$A:$A, $A19,'インポートデータ(解答履歴)'!$F:$F, AY$3) -> 0 | AZ19: =COUNTIFS('インポートデータ(解答履歴)'!$A:$A, $A19,'インポートデータ(解答履歴)'!$F:$F, AZ$3) -> 0 | BA19: =COUNTIFS('インポートデータ(解答履歴)'!$A:$A, $A19,'インポートデータ(解答履歴)'!$F:$F, BA$3) -> 0 | BB19: =COUNTIFS('インポートデータ(解答履歴)'!$A:$A, $A19,'インポートデータ(解答履歴)'!$F:$F, BB$3) -> 0 | BC19: =COUNTIFS('インポートデータ(解答履歴)'!$A:$A, $A19,'インポートデータ(解答履歴)'!$F:$F, BC$3) -> 0 | BD19: =COUNTIFS('インポートデータ(解答履歴)'!$A:$A, $A19,'インポートデータ(解答履歴)'!$F:$F, BD$3) -> 0 | BE19: =COUNTIFS('インポートデータ(解答履歴)'!$A:$A, $A19,'インポートデータ(解答履歴)'!$F:$F, BE$3) -> 0 | BF19: =COUNTIFS('インポートデータ(解答履歴)'!$A:$A, $A19,'インポートデータ(解答履歴)'!$F:$F, BF$3) -> 0 | BG19: =COUNTIFS('インポートデータ(解答履歴)'!$A:$A, $A19,'インポートデータ(解答履歴)'!$F:$F, BG$3) -> 0 | BH19: =COUNTIFS('インポートデータ(解答履歴)'!$A:$A, $A19,'インポートデータ(解答履歴)'!$F:$F, BH$3) -> 0 | BI19: =COUNTIFS('インポートデータ(解答履歴)'!$A:$A, $A19,'インポートデータ(解答履歴)'!$F:$F, BI$3) -> 0 | BJ19: =COUNTIFS('インポートデータ(解答履歴)'!$A:$A, $A19,'インポートデータ(解答履歴)'!$F:$F, BJ$3) -> 0 | BK19: =COUNTIFS('インポートデータ(解答履歴)'!$A:$A, $A19,'インポートデータ(解答履歴)'!$F:$F, BK$3) -> 0 | BL19: =COUNTIFS('インポートデータ(解答履歴)'!$A:$A, $A19,'インポートデータ(解答履歴)'!$F:$F, BL$3) -> 0 | BM19: =COUNTIFS('インポートデータ(解答履歴)'!$A:$A, $A19,'インポートデータ(解答履歴)'!$F:$F, BM$3) -> 0 | BN19: =COUNTIFS('インポートデータ(解答履歴)'!$A:$A, $A19,'インポートデータ(解答履歴)'!$F:$F, BN$3) -> 0 | BO19: =COUNTIFS('インポートデータ(解答履歴)'!$A:$A, $A19,'インポートデータ(解答履歴)'!$F:$F, BO$3) -> 0 | BP19: =COUNTIFS('インポートデータ(解答履歴)'!$A:$A, $A19,'インポートデータ(解答履歴)'!$F:$F, BP$3) -> 0 | BQ19: =COUNTIFS('インポートデータ(解答履歴)'!$A:$A, $A19,'インポートデータ(解答履歴)'!$F:$F, BQ$3) -> 0 | BR19: =COUNTIFS('インポートデータ(解答履歴)'!$A:$A, $A19,'インポートデータ(解答履歴)'!$F:$F, BR$3) -> 0 | BS19: =COUNTIFS('インポートデータ(解答履歴)'!$A:$A, $A19,'インポートデータ(解答履歴)'!$F:$F, BS$3) -> 0 | BT19: =COUNTIFS('インポートデータ(解答履歴)'!$A:$A, $A19,'インポートデータ(解答履歴)'!$F:$F, BT$3) -> 0 | BU19: 0 | BV19: 0 | BW19: 0 | BX19: 0 | BY19: =COUNTIFS('インポートデータ(解答履歴)'!$A:$A, $A19, 'インポートデータ(解答履歴)'!$X:$X, "初回", 'インポートデータ(解答履歴)'!$K:$K, "◯", 'インポートデータ(解答履歴)'!$D:$D, "<="&BZ$2) -> 0 | BZ19: =COUNTIFS('インポートデータ(解答履歴)'!$A:$A, $A19, 'インポートデータ(解答履歴)'!$X:$X, "初回", 'インポートデータ(解答履歴)'!$K:$K, "△", 'インポートデータ(解答履歴)'!$D:$D, "<="&BZ$2) + COUNTIFS('インポートデータ(解答履歴)'!$A:$A, $A19, 'インポートデータ(解答履歴)'!$X:$X, "初回", 'インポートデータ(解答履歴)'!$K:$K, "✕", 'インポートデータ(解答履歴)'!$D:$D, "<="&BZ$2) -> 0 | CA19: 0 | CB19: =COUNTIFS('インポートデータ(解答履歴)'!$A:$A, $A19, 'インポートデータ(解答履歴)'!Z:Z, "△", 'インポートデータ(解答履歴)'!$D:$D, "<="&BZ$2) + COUNTIFS('インポートデータ(解答履歴)'!$A:$A, $A19, 'インポートデータ(解答履歴)'!Z:Z, "✕", 'インポートデータ(解答履歴)'!$D:$D, "<="&BZ$2) -> 0 | CC19: 0 | CD19: =COUNTIFS('インポートデータ(解答履歴)'!$A:$A, $A19, 'インポートデータ(解答履歴)'!$X:$X, "初回", 'インポートデータ(解答履歴)'!$K:$K, "◯", 'インポートデータ(解答履歴)'!$D:$D, "<="&CE$2) -> 0 | CE19: =COUNTIFS('インポートデータ(解答履歴)'!$A:$A, $A19, 'インポートデータ(解答履歴)'!$X:$X, "初回", 'インポートデータ(解答履歴)'!$K:$K, "△", 'インポートデータ(解答履歴)'!$D:$D, "<="&CE$2) + COUNTIFS('インポートデータ(解答履歴)'!$A:$A, $A19, 'インポートデータ(解答履歴)'!$X:$X, "初回", 'インポートデータ(解答履歴)'!$K:$K, "✕", 'インポートデータ(解答履歴)'!$D:$D, "<="&CE$2) -> 0 | CF19: 0 | CG19: =COUNTIFS('インポートデータ(解答履歴)'!$A:$A, $A19, 'インポートデータ(解答履歴)'!Z:Z, "△", 'インポートデータ(解答履歴)'!$D:$D, "<="&CE$2) + COUNTIFS('インポートデータ(解答履歴)'!$A:$A, $A19, 'インポートデータ(解答履歴)'!Z:Z, "✕", 'インポートデータ(解答履歴)'!$D:$D, "<="&CE$2) -> 0 | CH19: 0 | CI19: =SUM(list_group!$C$2:$C$7) -> 42 | CJ19: =IF($A19="","",IFERROR(ROWS(_xlfn.UNIQUE(_xlfn._xlws.FILTER('インポートデータ(解答履歴)'!$W:$W,('インポートデータ(解答履歴)'!$A:$A=$A19)*('インポートデータ(解答履歴)'!$V:$V<>"")*('インポートデータ(解答履歴)'!$V:$V<>0)*('インポートデータ(解答履歴)'!$V:$V<>"該当なし")))),0)) ->  | CK19: =IF($A19="","",IFERROR(ROWS(_xlfn.UNIQUE(_xlfn._xlws.FILTER('インポートデータ(解答履歴)'!$W:$W,('インポートデータ(解答履歴)'!$A:$A=$A19)*('インポートデータ(解答履歴)'!$V:$V<>"")*('インポートデータ(解答履歴)'!$V:$V<>0)*('インポートデータ(解答履歴)'!$V:$V<>"該当なし")*('インポートデータ(解答履歴)'!$Y:$Y="最新")*('インポートデータ(解答履歴)'!$K:$K="◯")))),0)) ->  | CN19: =IF($A19="","",IF(VLOOKUP(A19,生徒情報!A:C,3,FALSE)="","",VLOOKUP(A19,生徒情報!A:C,3,FALSE))) ->  | CO19: 0 | CR19: =SUMIFS('インポートデータ(解答履歴)'!O:O,'インポートデータ(解答履歴)'!A:A,A19) -> 0 | DA19: 0 | DD19: 0
